Workbook

Sheet Cover
C2: Powercor
C3: Revised proposal 2026-31
C5: Replacement expenditure forecast model
C6: Model number: | D6: 3.4.01
C8: 2025-12-01
A40: =_xlfn.SHEETS() -> 14
A41: 2025-05-12

Sheet Repex forecast
A1: =bus -> Powercor
A2: =Cover!$C$5 -> Replacement expenditure forecast model
A3: TOTAL FORECAST EXPENDITURE
F8: FORECAST EXPENDITURE ($'000 2026) | L8: TOTAL
B9: Project/Program | D9: Asset category | F9: 2026-27 | G9: 2027-28 | H9: 2028-29 | I9: 2029-30 | J9: 2030-31 | L9: 2026-31
B10: =Consol!B10 -> LV wood pole replacement | D10: =Consol!D10 -> Poles | F10: =Consol!Y10/thous_conv -> 6257.760328 | G10: =Consol!Z10/thous_conv -> 6257.760328 | H10: =Consol!AA10/thous_conv -> 6257.760328 | I10: =Consol!AB10/thous_conv -> 6257.760328 | J10: =Consol!AC10/thous_conv -> 6257.760328 | L10: =SUM(F10:J10) -> 31288.80164
B11: =Consol!B11 -> HV wood pole replacement | D11: =Consol!D11 -> Poles | F11: =Consol!Y11/thous_conv -> 30632.88533 | G11: =Consol!Z11/thous_conv -> 30632.88533 | H11: =Consol!AA11/thous_conv -> 30632.88533 | I11: =Consol!AB11/thous_conv -> 30632.88533 | J11: =Consol!AC11/thous_conv -> 30632.88533 | L11: =SUM(F11:J11) -> 153164.4267
B12: =Consol!B12 -> LV pole top replacement | D12: =Consol!D12 -> Pole top structures | F12: =Consol!Y12/thous_conv -> 16478.09121 | G12: =Consol!Z12/thous_conv -> 19390.93587 | H12: =Consol!AA12/thous_conv -> 18759.33492 | I12: =Consol!AB12/thous_conv -> 15742.15824 | J12: =Consol!AC12/thous_conv -> 18846.85236 | L12: 89217.37259
B13: =Consol!B13 -> HV pole top replacement | D13: =Consol!D13 -> Pole top structures | F13: =Consol!Y13/thous_conv -> 19481.31423 | G13: =Consol!Z13/thous_conv -> 18048.38139 | H13: =Consol!AA13/thous_conv -> 16918.81247 | I13: =Consol!AB13/thous_conv -> 13992.16259 | J13: =Consol!AC13/thous_conv -> 20101.45908 | L13: 88542.12976
B14: =Consol!B14 -> Concrete pole replacement | D14: =Consol!D14 -> Poles | F14: =Consol!Y14/thous_conv -> 48322.90987 | G14: =Consol!Z14/thous_conv -> 48322.90987 | H14: =Consol!AA14/thous_conv -> 48322.90987 | I14: =Consol!AB14/thous_conv -> 48322.90987 | J14: =Consol!AC14/thous_conv -> 48322.90987 | L14: 241614.5493
B15: =Consol!B15 -> HBRA HV wooden cross-arm replacements | D15: =Consol!D15 -> Pole top structures | F15: =Consol!Y15/thous_conv -> 4007.967206 | G15: =Consol!Z15/thous_conv -> 4007.967206 | H15: =Consol!AA15/thous_conv -> 4007.967206 | I15: =Consol!AB15/thous_conv -> 4007.967206 | J15: =Consol!AC15/thous_conv -> 4007.967206 | L15: 20039.83603
B16: =Consol!B16 -> Pole reinforcement | D16: =Consol!D16 -> Staking | F16: =Consol!Y16/thous_conv -> 6600.602139 | G16: =Consol!Z16/thous_conv -> 6600.602139 | H16: =Consol!AA16/thous_conv -> 6600.602139 | I16: =Consol!AB16/thous_conv -> 6600.602139 | J16: =Consol!AC16/thous_conv -> 6600.602139 | L16: 33003.0107
B17: =Consol!B17 -> Defective conductor | D17: =Consol!D17 -> Overhead conductor | F17: =Consol!Y17/thous_conv -> 6954.377165 | G17: =Consol!Z17/thous_conv -> 6954.377165 | H17: =Consol!AA17/thous_conv -> 6954.377165 | I17: =Consol!AB17/thous_conv -> 6954.377165 | J17: =Consol!AC17/thous_conv -> 6954.377165 | L17: 34771.88583
B18: =Consol!B18 -> Risk-based HV conductor replacement | D18: =Consol!D18 -> Overhead conductor | F18: =Consol!Y18/thous_conv -> 405.0270293 | G18: =Consol!Z18/thous_conv -> 405.0270293 | H18: =Consol!AA18/thous_conv -> 405.0270293 | I18: =Consol!AB18/thous_conv -> 405.0270293 | J18: =Consol!AC18/thous_conv -> 405.0270293 | L18: 2025.135147
B19: =Consol!B19 -> Conductor clearance rectification from LIDAR | D19: =Consol!D19 -> Overhead conductor | F19: =Consol!Y19/thous_conv -> 3369.823605 | G19: =Consol!Z19/thous_conv -> 3369.823605 | H19: =Consol!AA19/thous_conv -> 3369.823605 | I19: =Consol!AB19/thous_conv -> 3369.823605 | J19: =Consol!AC19/thous_conv -> 3369.823605 | L19: 16849.11802
B20: =Consol!B20 -> Risk-based 66kV replacement | D20: =Consol!D20 -> Overhead conductor | F20: =Consol!Y20/thous_conv -> 1595.806073 | G20: =Consol!Z20/thous_conv -> 1595.806073 | H20: =Consol!AA20/thous_conv -> 1595.806073 | I20: =Consol!AB20/thous_conv -> 1595.806073 | J20: =Consol!AC20/thous_conv -> 1595.806073 | L20: 7979.030364
B21: =Consol!B21 -> Bare 22kV conductor bushfire mitigation | D21: =Consol!D21 -> Overhead conductor | F21: =Consol!Y21/thous_conv -> 5244.04439 | G21: =Consol!Z21/thous_conv -> 5244.04439 | H21: =Consol!AA21/thous_conv -> 0 | I21: =Consol!AB21/thous_conv -> 0 | J21: =Consol!AC21/thous_conv -> 0 | L21: 10488.08878
B22: =Consol!B22 -> Risk-based HV cable replacement | D22: =Consol!D22 -> Underground cable | F22: =Consol!Y22/thous_conv -> 3184.51234 | G22: =Consol!Z22/thous_conv -> 3183.169552 | H22: =Consol!AA22/thous_conv -> 3179.78402 | I22: =Consol!AB22/thous_conv -> 3173.390449 | J22: =Consol!AC22/thous_conv -> 3162.664222 | L22: 15883.52058
B23: =Consol!B23 -> Defective SWER ISO & CBU Earth Repair | D23: =Consol!D23 -> Underground cable | F23: =Consol!Y23/thous_conv -> 343.6889275 | G23: =Consol!Z23/thous_conv -> 343.6889275 | H23: =Consol!AA23/thous_conv -> 343.6889275 | I23: =Consol!AB23/thous_conv -> 343.6889275 | J23: =Consol!AC23/thous_conv -> 343.6889275 | L23: 1718.444637
B24: =Consol!B24 -> Corrective HV cable replacement | D24: =Consol!D24 -> Underground cable | F24: =Consol!Y24/thous_conv -> 1845.336293 | G24: =Consol!Z24/thous_conv -> 1845.336293 | H24: =Consol!AA24/thous_conv -> 1845.336293 | I24: =Consol!AB24/thous_conv -> 1845.336293 | J24: =Consol!AC24/thous_conv -> 1845.336293 | L24: 9226.681463
B25: =Consol!B25 -> Corrective LV cable replacement | D25: =Consol!D25 -> Underground cable | F25: =Consol!Y25/thous_conv -> 1402.5612 | G25: =Consol!Z25/thous_conv -> 1402.5612 | H25: =Consol!AA25/thous_conv -> 1402.5612 | I25: =Consol!AB25/thous_conv -> 1402.5612 | J25: =Consol!AC25/thous_conv -> 1402.5612 | L25: 7012.805998
B26: =Consol!B26 -> Service lines | D26: =Consol!D26 -> Service Lines | F26: =Consol!Y26/thous_conv -> 8686.187242 | G26: =Consol!Z26/thous_conv -> 12471.13761 | H26: =Consol!AA26/thous_conv -> 12292.04531 | I26: =Consol!AB26/thous_conv -> 10401.76934 | J26: =Consol!AC26/thous_conv -> 12999.00902 | L26: 56850.14853
B27: =Consol!B27 -> ZSS transformer replacement | D27: =Consol!D27 -> Transformers (ZSS) | F27: =Consol!Y27/thous_conv -> 4503.613268 | G27: =Consol!Z27/thous_conv -> 2959.561122 | H27: =Consol!AA27/thous_conv -> 2213.392821 | I27: =Consol!AB27/thous_conv -> 6877.656549 | J27: =Consol!AC27/thous_conv -> 2332.131864 | L27: 18886.35562
B28: =Consol!B28 -> Transformer refurbishment | D28: =Consol!D28 -> Transformers (ZSS) | F28: =Consol!Y28/thous_conv -> 2123.263777 | G28: =Consol!Z28/thous_conv -> 2123.263777 | H28: =Consol!AA28/thous_conv -> 2123.263777 | I28: =Consol!AB28/thous_conv -> 2123.263777 | J28: =Consol!AC28/thous_conv -> 2123.263777 | L28: 10616.31888
B29: =Consol!B29 -> Miscellaneous plant and station | D29: =Consol!D29 -> Other replacement | F29: =Consol!Y29/thous_conv -> 2102.777857 | G29: =Consol!Z29/thous_conv -> 2099.393549 | H29: =Consol!AA29/thous_conv -> 2417.104257 | I29: =Consol!AB29/thous_conv -> 2417.896226 | J29: =Consol!AC29/thous_conv -> 2102.757534 | L29: 11139.92942
B30: =Consol!B30 -> Minor station works | D30: =Consol!D30 -> Transformers (ZSS) | F30: =Consol!Y30/thous_conv -> 823.2828018 | G30: =Consol!Z30/thous_conv -> 967.1152378 | H30: =Consol!AA30/thous_conv -> 716.0468199 | I30: =Consol!AB30/thous_conv -> 994.2963978 | J30: =Consol!AC30/thous_conv -> 716.4701437 | L30: 4217.211401
B31: =Consol!B31 -> Defective kiosk transformer replacement | D31: =Consol!D31 -> Transformers (DSS) | F31: =Consol!Y31/thous_conv -> 11043.07697 | G31: =Consol!Z31/thous_conv -> 11051.68205 | H31: =Consol!AA31/thous_conv -> 11051.68205 | I31: =Consol!AB31/thous_conv -> 11060.28714 | J31: =Consol!AC31/thous_conv -> 11060.28714 | L31: 55267.01535
B32: =Consol!B32 -> Defective ground transformer replacement | D32: =Consol!D32 -> Transformers (DSS) | F32: =Consol!Y32/thous_conv -> 1979.209248 | G32: =Consol!Z32/thous_conv -> 1979.209248 | H32: =Consol!AA32/thous_conv -> 1979.209248 | I32: =Consol!AB32/thous_conv -> 1979.209248 | J32: =Consol!AC32/thous_conv -> 1979.209248 | L32: 9896.046242
B33: =Consol!B33 -> Compliance replacement transformers | D33: =Consol!D33 -> Transformers (DSS) | F33: =Consol!Y33/thous_conv -> 992.018615 | G33: =Consol!Z33/thous_conv -> 992.018615 | H33: =Consol!AA33/thous_conv -> 889.8103869 | I33: =Consol!AB33/thous_conv -> 631.2846744 | J33: =Consol!AC33/thous_conv -> 396.8073347 | L33: 3901.939626
B34: =Consol!B34 -> Defective indoor transformer replacement | D34: =Consol!D34 -> Transformers (DSS) | F34: =Consol!Y34/thous_conv -> 921.9698334 | G34: =Consol!Z34/thous_conv -> 921.9698334 | H34: =Consol!AA34/thous_conv -> 921.9698334 | I34: =Consol!AB34/thous_conv -> 921.9698334 | J34: =Consol!AC34/thous_conv -> 921.9698334 | L34: 4609.849167
B35: =Consol!B35 -> Other distribution works | D35: =Consol!D35 -> Transformers (DSS) | F35: =Consol!Y35/thous_conv -> 1213.938842 | G35: =Consol!Z35/thous_conv -> 1252.789392 | H35: =Consol!AA35/thous_conv -> 1291.997768 | I35: =Consol!AB35/thous_conv -> 1322.576984 | J35: =Consol!AC35/thous_conv -> 1335.686379 | L35: 6416.989365
B36: =Consol!B36 -> ZSS switchboard replacement | D36: =Consol!D36 -> Switchgear (ZSS) | F36: =Consol!Y36/thous_conv -> 2810.70156 | G36: =Consol!Z36/thous_conv -> 2903.48616 | H36: =Consol!AA36/thous_conv -> 5714.18772 | I36: =Consol!AB36/thous_conv -> 5621.40312 | J36: =Consol!AC36/thous_conv -> 5621.40312 | L36: 22671.18168
B37: =Consol!B37 -> Defective fuses, surge diverters and ACRs | D37: =Consol!D37 -> Switchgear (DSS) | F37: =Consol!Y37/thous_conv -> 12380.06449 | G37: =Consol!Z37/thous_conv -> 12401.72975 | H37: =Consol!AA37/thous_conv -> 12423.395 | I37: =Consol!AB37/thous_conv -> 12445.06026 | J37: =Consol!AC37/thous_conv -> 12466.72552 | L37: 62116.97502
B38: =Consol!B38 -> CRO switch program | D38: =Consol!D38 -> Switchgear (DSS) | F38: =Consol!Y38/thous_conv -> 5002.542346 | G38: =Consol!Z38/thous_conv -> 5002.542346 | H38: =Consol!AA38/thous_conv -> 5002.542346 | I38: =Consol!AB38/thous_conv -> 5002.542346 | J38: =Consol!AC38/thous_conv -> 5002.542346 | L38: 25012.71173
B39: =Consol!B39 -> Defective switches | D39: =Consol!D39 -> Switchgear (DSS) | F39: =Consol!Y39/thous_conv -> 7448.560429 | G39: =Consol!Z39/thous_conv -> 7515.220673 | H39: =Consol!AA39/thous_conv -> 7614.711841 | I39: =Consol!AB39/thous_conv -> 7681.372085 | J39: =Consol!AC39/thous_conv -> 7780.863253 | L39: =SUM(F39:J39) -> 38040.72828
B40: =Consol!B40 -> Expulsion drop-out fuse program | D40: =Consol!D40 -> Switchgear (DSS) | F40: =Consol!Y40/thous_conv -> 1816.121803 | G40: =Consol!Z40/thous_conv -> 0 | H40: =Consol!AA40/thous_conv -> 0 | I40: =Consol!AB40/thous_conv -> 0 | J40: =Consol!AC40/thous_conv -> 0 | L40: 1816.121803
B41: =Consol!B41 -> Relay replacements | D41: =Consol!D41 -> SCADA/comms | F41: =Consol!Y41/thous_conv -> 4178.656675 | G41: =Consol!Z41/thous_conv -> 3506.973828 | H41: =Consol!AA41/thous_conv -> 7492.03178 | I41: =Consol!AB41/thous_conv -> 2159.927509 | J41: =Consol!AC41/thous_conv -> 2237.737019 | L41: 19575.32681
B42: =Consol!B42 -> Secondary defects, batteries and chargers | D42: =Consol!D42 -> SCADA/comms | F42: =Consol!Y42/thous_conv -> 688.1138893 | G42: =Consol!Z42/thous_conv -> 1283.388606 | H42: =Consol!AA42/thous_conv -> 1283.388606 | I42: =Consol!AB42/thous_conv -> 688.1138893 | J42: =Consol!AC42/thous_conv -> 688.1138893 | L42: 4631.118879
B43: =Consol!B43 -> Underground pits and pillars | D43: =Consol!D43 -> Underground cable | F43: =Consol!Y43/thous_conv -> 579.9795127 | G43: =Consol!Z43/thous_conv -> 579.9795127 | H43: =Consol!AA43/thous_conv -> 579.9795127 | I43: =Consol!AB43/thous_conv -> 579.9795127 | J43: =Consol!AC43/thous_conv -> 579.9795127 | L43: 2899.897563
B44: =Consol!B44 -> Environmental | D44: =Consol!D44 -> Other replacement | F44: =Consol!Y44/thous_conv -> 1202.596463 | G44: =Consol!Z44/thous_conv -> 1202.596463 | H44: =Consol!AA44/thous_conv -> 1202.596463 | I44: =Consol!AB44/thous_conv -> 1202.596463 | J44: =Consol!AC44/thous_conv -> 1202.596463 | L44: 6012.982317
B45: =Consol!B45 -> Earth grid | D45: =Consol!D45 -> Other replacement | F45: =Consol!Y45/thous_conv -> 600.1161739 | G45: =Consol!Z45/thous_conv -> 266.0885507 | H45: =Consol!AA45/thous_conv -> 154.7027858 | I45: =Consol!AB45/thous_conv -> 154.6826358 | J45: =Consol!AC45/thous_conv -> 154.859958 | L45: 1330.450104
B46: =Consol!B46 -> Innovation fund | D46: =Consol!D46 -> Innovation | F46: =Consol!Y46/thous_conv -> 0 | G46: =Consol!Z46/thous_conv -> 0 | H46: =Consol!AA46/thous_conv -> 0 | I46: =Consol!AB46/thous_conv -> 0 | J46: =Consol!AC46/thous_conv -> 0 | L46: 0 | M46: *Not included in model
B47: Total | F47: =SUM(F10:F46) -> 227223.4991 | G47: =SUM(G10:G46) -> 229085.4227 | H47: =SUM(H10:H46) -> 227960.7349 | I47: =SUM(I10:I46) -> 218912.3444 | J47: =SUM(J10:J46) -> 225552.1342 | L47: =SUM(L10:L46) -> 1128734.135

Sheet Hist_volumes
A1: =bus -> Powercor
A2: =Cover!$C$5 -> Replacement expenditure forecast model
A3: HISTORICAL VOLUMES
C4: =Hist_expenditure!C4 -> Converstion to June 2026 $
C5: =Hist_expenditure!C5 -> Financial year ending | H5: =Hist_expenditure!H5 -> 22 | I5: =Hist_expenditure!I5 -> 23 | J5: =Hist_expenditure!J5 -> 24 | K5: =Hist_expenditure!K5 -> 25
C6: =Hist_expenditure!C6 -> Count | H6: =Hist_expenditure!H6 -> 1 | I6: =Hist_expenditure!I6 -> 2 | J6: =Hist_expenditure!J6 -> 3 | K6: =Hist_expenditure!K6 -> 4
M8: Historical average volume
B9: Capex model project/program | C9: Description | D9: Asset class | E9: Volume units | F9: Forecast methodology | H9: 2021/22 | I9: 2022/23 | J9: 2023/24 | K9: 2024/25 | M9: Average period (yrs) | N9: End year | O9: Average pa
B10: LV wood pole replacement | C10: LV wood pole replacement | D10: Poles | E10: each | F10: Pole calculation model & adjustment | H10: 472 | I10: 753 | J10: 787 | K10: 625 | O10: =Adjustments!L18 -> 306
B11: HV wood pole replacement | C11: HV wood pole replacement | D11: Poles | E11: each | F11: Pole calculation model & adjustment | H11: 2525 | I11: 3891 | J11: 3191 | K11: 3003 | O11: =Adjustments!L19 -> 1408
B12: LV pole top replacement | C12: LV cross-arm replacement | D12: Pole top structures | E12: each | F12: Defect analysis | H12: 3392 | I12: 4743 | J12: 3727 | K12: 2694 | O12: =IF($F12=Lists!$C$6,SUMPRODUCT(($H12:$K12)*($H$5:$K$5<=$N12)*($H$5:$K$5>($N12-$M12)))/$M12,0) -> 0
B13: HV pole top replacement | C13: HV cross-arm replacement | D13: Pole top structures | E13: each | F13: Defect analysis | H13: 2522 | I13: 2563 | J13: 2226 | K13: 1824 | O13: =IF($F13=Lists!$C$6,SUMPRODUCT(($H13:$K13)*($H$5:$K$5<=$N13)*($H$5:$K$5>($N13-$M13)))/$M13,0) -> 0
B14: HV pole top replacement | C14: Overhead HV insulators | D14: Pole top structures | E14: each | F14: Defect analysis | H14: 4344 | I14: 5440 | J14: 3160 | K14: 3269 | O14: =IF($F14=Lists!$C$6,SUMPRODUCT(($H14:$K14)*($H$5:$K$5<=$N14)*($H$5:$K$5>($N14-$M14)))/$M14,0) -> 0
B15: LV pole top replacement | C15: Overhead LV insulators | D15: Pole top structures | E15: each | F15: Defect analysis | H15: 815 | I15: 1326 | J15: 610 | K15: 385 | O15: =IF($F15=Lists!$C$6,SUMPRODUCT(($H15:$K15)*($H$5:$K$5<=$N15)*($H$5:$K$5>($N15-$M15)))/$M15,0) -> 0
B16: Defective fuses, surge diverters and ACRs | C16: Defective ACRs | D16: Switchgear (DSS) | E16: each | F16: Defect analysis | H16: 5.966101695 | I16: 0 | J16: 3.29076087 | K16: 29.94312796 | O16: =IF($F16=Lists!$C$6,SUMPRODUCT(($H16:$K16)*($H$5:$K$5<=$N16)*($H$5:$K$5>($N16-$M16)))/$M16,0) -> 0
B17: Pole reinforcement | C17: Pole reinforcement | D17: Staking | E17: each | F17: Historical % | H17: 1833 | I17: 4316 | J17: 2319 | K17: 2722 | O17: 2777
B18: LV wood pole replacement | C18: LV pole replacement: faults | D18: Poles | E18: each | F18: Historical average | H18: 33 | I18: 29 | J18: 21 | K18: 30 | M18: 4 | N18: 25 | O18: =IF($F18=Lists!$C$6,SUMPRODUCT(($H18:$K18)*($H$5:$K$5<=$N18)*($H$5:$K$5>($N18-$M18)))/$M18,0) -> 28.25
B19: HV wood pole replacement | C19: HV pole replacement: faults | D19: Poles | E19: each | F19: Historical average | H19: 280 | I19: 136 | J19: 166 | K19: 171 | M19: 4 | N19: 25 | O19: =IF($F19=Lists!$C$6,SUMPRODUCT(($H19:$K19)*($H$5:$K$5<=$N19)*($H$5:$K$5>($N19-$M19)))/$M19,0) -> 188.25
B20: LV pole top replacement | C20: LV pole top replacement: faults | D20: Pole top structures | E20: each | F20: Historical average | H20: 1417 | I20: 543 | J20: 552 | K20: 861 | M20: 4 | N20: 25 | O20: =IF($F20=Lists!$C$6,SUMPRODUCT(($H20:$K20)*($H$5:$K$5<=$N20)*($H$5:$K$5>($N20-$M20)))/$M20,0) -> 843.25
B21: HV pole top replacement | C21: HV pole top replacement: faults | D21: Pole top structures | E21: each | F21: Historical average | H21: 1271 | I21: 343 | J21: 335 | K21: 580 | M21: 4 | N21: 25 | O21: =IF($F21=Lists!$C$6,SUMPRODUCT(($H21:$K21)*($H$5:$K$5<=$N21)*($H$5:$K$5>($N21-$M21)))/$M21,0) -> 632.25
B22: HV pole top replacement | C22: ST pole top replacement: faults | D22: Pole top structures | E22: each | F22: Historical average | H22: 13 | I22: 41 | J22: 51 | K22: 51 | M22: 4 | N22: 25 | O22: =IF($F22=Lists!$C$6,SUMPRODUCT(($H22:$K22)*($H$5:$K$5<=$N22)*($H$5:$K$5>($N22-$M22)))/$M22,0) -> 39
B23: Defective fuses, surge diverters and ACRs | C23: Defective fuses and surge diverters: faults | D23: Switchgear (DSS) | E23: each | F23: Historical average | H23: 100 | I23: 47 | J23: 1026 | K23: 296 | M23: 4 | N23: 25 | O23: =IF($F23=Lists!$C$6,SUMPRODUCT(($H23:$K23)*($H$5:$K$5<=$N23)*($H$5:$K$5>($N23-$M23)))/$M23,0) -> 367.25
B24: HV wood pole replacement | C24: ST pole replacement: faults | D24: Poles | E24: each | F24: Historical average | H24: 1 | I24: 2 | J24: 5 | K24: 0 | M24: 4 | N24: 25 | O24: =IF($F24=Lists!$C$6,SUMPRODUCT(($H24:$K24)*($H$5:$K$5<=$N24)*($H$5:$K$5>($N24-$M24)))/$M24,0) -> 2
B25: HV wood pole replacement | C25: Other pole replacement: faults | D25: Poles | E25: each | F25: Historical average | H25: 0 | I25: 0 | J25: 9 | K25: 0 | M25: 4 | N25: 25 | O25: =IF($F25=Lists!$C$6,SUMPRODUCT(($H25:$K25)*($H$5:$K$5<=$N25)*($H$5:$K$5>($N25-$M25)))/$M25,0) -> 2.25
B26: Defective fuses, surge diverters and ACRs | C26: Distribution switchgear refurbishment and repairs | D26: Switchgear (DSS) | E26: each | F26: Estimate | H26: 0 | I26: 0 | J26: 0 | K26: 0 | O26: 29
B27: Defective fuses, surge diverters and ACRs | C27: Defective fuses and surge diverters | D27: Switchgear (DSS) | E27: each | F27: Historical average | H27: 4818 | I27: 4317 | J27: 4807 | K27: 5402 | M27: 4 | N27: 25 | O27: =IF($F27=Lists!$C$6,SUMPRODUCT(($H27:$K27)*($H$5:$K$5<=$N27)*($H$5:$K$5>($N27-$M27)))/$M27,0) -> 4836
B28: Defective SWER ISO & CBU Earth Repair | C28: Defective SWER ISO & CBU Earth Repair | D28: Underground cable | E28: each | F28: Historical average | H28: 159 | I28: 136 | J28: 157 | K28: 67 | M28: 4 | N28: 25 | O28: =IF($F28=Lists!$C$6,SUMPRODUCT(($H28:$K28)*($H$5:$K$5<=$N28)*($H$5:$K$5>($N28-$M28)))/$M28,0) -> 129.75
B29: Concrete pole replacement | C29: LV concrete pole replacement | D29: Poles | E29: each | F29: Pole calculation model & adjustment | H29: 0 | I29: 0 | J29: 0 | K29: 0 | O29: =Adjustments!L15 -> 460
B30: Concrete pole replacement | C30: HV concrete pole replacement | D30: Poles | E30: each | F30: Pole calculation model & adjustment | H30: 0 | I30: 0 | J30: 0 | K30: 0 | O30: =Adjustments!L16 -> 2113
B31: Concrete pole replacement | C31: HV concrete pole replacement | D31: Poles | E31: each | F31: Adjustment (bushfire) | H31: 0 | I31: 0 | J31: 0 | K31: 0 | O31: =-Adjustments!D43/5 -> -13.4
B32: Concrete pole replacement | C32: HV concrete pole replacement | D32: Poles | E32: each | F32: Adjustment (flood) | H32: 0 | I32: 0 | J32: 0 | K32: 0 | O32: =-Adjustments!D53/5 -> -10.2

Sheet Defect analysis
A1: =bus -> Powercor
A2: =Cover!$C$5 -> Replacement expenditure forecast model
A3: DEFECT RATE ANALYSIS
B5: Year | K5: 21 | L5: =K5+1 -> 22 | M5: 23 | N5: 24 | O5: 25 | P5: 26 | Q5: 27 | R5: 28 | S5: 29 | T5: 30 | U5: 31
B6: Count | K6: 1 | L6: =K6+1 -> 2 | M6: 3 | N6: 4 | O6: 5 | P6: 6 | Q6: 7 | R6: 8 | S6: 9 | T6: 10 | U6: 11
B9: Description | C9: Region | E9: Methodology | F9: Linear | H9: Average | K9: 2020/21 | L9: 2021/22 | M9: 2022/23 | N9: 2023/24 | O9: 2024/25 | P9: 2025/26 | Q9: 2026/27 | R9: 2027/28 | S9: 2028/29 | T9: 2029/30 | U9: 2030/31
F10: Gradient | G10: Intercept | H10: No. Yrs | I10: End year
B11: Actual inspection volume
B12: HV cross-arm replacement | C12: BAL | E12: 5 year cycle | F12: =IF($E12=Lists!$E$6, LINEST((OFFSET(INDEX($K12:$O12, MATCH($I12-$H12+1,$K$5:$O$5,0)),0,0,1, $H12)), (OFFSET(INDEX($K$6:$O$6, MATCH($I12-$H12+1,$K$5:$O$5,0)),0,0,1, $H12))),0) -> 0 | K12: 2366 | L12: 2025 | M12: 2132 | N12: 1453 | O12: 1492 | P12: =IF($E12=Lists!$E$7, K12, IF($E12=$H$9, (SUMPRODUCT(($K12:$O12)*($K$5:$O$5<=$I12)*($K$5:$O$5>($I12-$H12))))/$H12, IF($E12=$F$9, (P$6*$F12+$G12),0))) -> 2366 | Q12: =IF($E12=Lists!$E$7, L12, IF($E12=$H$9, (SUMPRODUCT(($K12:$O12)*($K$5:$O$5<=$I12)*($K$5:$O$5>($I12-$H12))))/$H12, IF($E12=$F$9, (Q$6*$F12+$G12),0))) -> 2025 | R12: =IF($E12=Lists!$E$7, M12, IF($E12=$H$9, (SUMPRODUCT(($K12:$O12)*($K$5:$O$5<=$I12)*($K$5:$O$5>($I12-$H12))))/$H12, IF($E12=$F$9, (R$6*$F12+$G12),0))) -> 2132 | S12: =IF($E12=Lists!$E$7, N12, IF($E12=$H$9, (SUMPRODUCT(($K12:$O12)*($K$5:$O$5<=$I12)*($K$5:$O$5>($I12-$H12))))/$H12, IF($E12=$F$9, (S$6*$F12+$G12),0))) -> 1453 | T12: =IF($E12=Lists!$E$7, O12, IF($E12=$H$9, (SUMPRODUCT(($K12:$O12)*($K$5:$O$5<=$I12)*($K$5:$O$5>($I12-$H12))))/$H12, IF($E12=$F$9, (T$6*$F12+$G12),0))) -> 1492 | U12: =IF($E12=Lists!$E$7, P12, IF($E12=$H$9, (SUMPRODUCT(($K12:$O12)*($K$5:$O$5<=$I12)*($K$5:$O$5>($I12-$H12))))/$H12, IF($E12=$F$9, (U$6*$F12+$G12),0))) -> 2366
B13: HV cross-arm replacement | C13: BEN | E13: 5 year cycle | F13: =IF($E13=Lists!$E$6, LINEST((OFFSET(INDEX($K13:$O13, MATCH($I13-$H13+1,$K$5:$O$5,0)),0,0,1, $H13)), (OFFSET(INDEX($K$6:$O$6, MATCH($I13-$H13+1,$K$5:$O$5,0)),0,0,1, $H13))),0) -> 0 | K13: 4236 | L13: 4304 | M13: 4160 | N13: 3270 | O13: 2898 | P13: =IF($E13=Lists!$E$7, K13, IF($E13=$H$9, (SUMPRODUCT(($K13:$O13)*($K$5:$O$5<=$I13)*($K$5:$O$5>($I13-$H13))))/$H13, IF($E13=$F$9, (P$6*$F13+$G13),0))) -> 4236 | Q13: =IF($E13=Lists!$E$7, L13, IF($E13=$H$9, (SUMPRODUCT(($K13:$O13)*($K$5:$O$5<=$I13)*($K$5:$O$5>($I13-$H13))))/$H13, IF($E13=$F$9, (Q$6*$F13+$G13),0))) -> 4304 | R13: =IF($E13=Lists!$E$7, M13, IF($E13=$H$9, (SUMPRODUCT(($K13:$O13)*($K$5:$O$5<=$I13)*($K$5:$O$5>($I13-$H13))))/$H13, IF($E13=$F$9, (R$6*$F13+$G13),0))) -> 4160 | S13: =IF($E13=Lists!$E$7, N13, IF($E13=$H$9, (SUMPRODUCT(($K13:$O13)*($K$5:$O$5<=$I13)*($K$5:$O$5>($I13-$H13))))/$H13, IF($E13=$F$9, (S$6*$F13+$G13),0))) -> 3270 | T13: =IF($E13=Lists!$E$7, O13, IF($E13=$H$9, (SUMPRODUCT(($K13:$O13)*($K$5:$O$5<=$I13)*($K$5:$O$5>($I13-$H13))))/$H13, IF($E13=$F$9, (T$6*$F13+$G13),0))) -> 2898 | U13: =IF($E13=Lists!$E$7, P13, IF($E13=$H$9, (SUMPRODUCT(($K13:$O13)*($K$5:$O$5<=$I13)*($K$5:$O$5>($I13-$H13))))/$H13, IF($E13=$F$9, (U$6*$F13+$G13),0))) -> 4236
B14: HV cross-arm replacement | C14: GEE | E14: 5 year cycle | F14: =IF($E14=Lists!$E$6, LINEST((OFFSET(INDEX($K14:$O14, MATCH($I14-$H14+1,$K$5:$O$5,0)),0,0,1, $H14)), (OFFSET(INDEX($K$6:$O$6, MATCH($I14-$H14+1,$K$5:$O$5,0)),0,0,1, $H14))),0) -> 0 | K14: 1249 | L14: 1124 | M14: 1209 | N14: 1062 | O14: 846 | P14: =IF($E14=Lists!$E$7, K14, IF($E14=$H$9, (SUMPRODUCT(($K14:$O14)*($K$5:$O$5<=$I14)*($K$5:$O$5>($I14-$H14))))/$H14, IF($E14=$F$9, (P$6*$F14+$G14),0))) -> 1249 | Q14: =IF($E14=Lists!$E$7, L14, IF($E14=$H$9, (SUMPRODUCT(($K14:$O14)*($K$5:$O$5<=$I14)*($K$5:$O$5>($I14-$H14))))/$H14, IF($E14=$F$9, (Q$6*$F14+$G14),0))) -> 1124 | R14: =IF($E14=Lists!$E$7, M14, IF($E14=$H$9, (SUMPRODUCT(($K14:$O14)*($K$5:$O$5<=$I14)*($K$5:$O$5>($I14-$H14))))/$H14, IF($E14=$F$9, (R$6*$F14+$G14),0))) -> 1209 | S14: =IF($E14=Lists!$E$7, N14, IF($E14=$H$9, (SUMPRODUCT(($K14:$O14)*($K$5:$O$5<=$I14)*($K$5:$O$5>($I14-$H14))))/$H14, IF($E14=$F$9, (S$6*$F14+$G14),0))) -> 1062 | T14: =IF($E14=Lists!$E$7, O14, IF($E14=$H$9, (SUMPRODUCT(($K14:$O14)*($K$5:$O$5<=$I14)*($K$5:$O$5>($I14-$H14))))/$H14, IF($E14=$F$9, (T$6*$F14+$G14),0))) -> 846 | U14: =IF($E14=Lists!$E$7, P14, IF($E14=$H$9, (SUMPRODUCT(($K14:$O14)*($K$5:$O$5<=$I14)*($K$5:$O$5>($I14-$H14))))/$H14, IF($E14=$F$9, (U$6*$F14+$G14),0))) -> 1249
B15: HV cross-arm replacement | C15: HOR | E15: 5 year cycle | F15: =IF($E15=Lists!$E$6, LINEST((OFFSET(INDEX($K15:$O15, MATCH($I15-$H15+1,$K$5:$O$5,0)),0,0,1, $H15)), (OFFSET(INDEX($K$6:$O$6, MATCH($I15-$H15+1,$K$5:$O$5,0)),0,0,1, $H15))),0) -> 0 | K15: 2118 | L15: 1945 | M15: 1728 | N15: 1644 | O15: 1093 | P15: =IF($E15=Lists!$E$7, K15, IF($E15=$H$9, (SUMPRODUCT(($K15:$O15)*($K$5:$O$5<=$I15)*($K$5:$O$5>($I15-$H15))))/$H15, IF($E15=$F$9, (P$6*$F15+$G15),0))) -> 2118 | Q15: =IF($E15=Lists!$E$7, L15, IF($E15=$H$9, (SUMPRODUCT(($K15:$O15)*($K$5:$O$5<=$I15)*($K$5:$O$5>($I15-$H15))))/$H15, IF($E15=$F$9, (Q$6*$F15+$G15),0))) -> 1945 | R15: =IF($E15=Lists!$E$7, M15, IF($E15=$H$9, (SUMPRODUCT(($K15:$O15)*($K$5:$O$5<=$I15)*($K$5:$O$5>($I15-$H15))))/$H15, IF($E15=$F$9, (R$6*$F15+$G15),0))) -> 1728 | S15: =IF($E15=Lists!$E$7, N15, IF($E15=$H$9, (SUMPRODUCT(($K15:$O15)*($K$5:$O$5<=$I15)*($K$5:$O$5>($I15-$H15))))/$H15, IF($E15=$F$9, (S$6*$F15+$G15),0))) -> 1644 | T15: =IF($E15=Lists!$E$7, O15, IF($E15=$H$9, (SUMPRODUCT(($K15:$O15)*($K$5:$O$5<=$I15)*($K$5:$O$5>($I15-$H15))))/$H15, IF($E15=$F$9, (T$6*$F15+$G15),0))) -> 1093 | U15: =IF($E15=Lists!$E$7, P15, IF($E15=$H$9, (SUMPRODUCT(($K15:$O15)*($K$5:$O$5<=$I15)*($K$5:$O$5>($I15-$H15))))/$H15, IF($E15=$F$9, (U$6*$F15+$G15),0))) -> 2118
B16: HV cross-arm replacement | C16: MIL | E16: 5 year cycle | F16: =IF($E16=Lists!$E$6, LINEST((OFFSET(INDEX($K16:$O16, MATCH($I16-$H16+1,$K$5:$O$5,0)),0,0,1, $H16)), (OFFSET(INDEX($K$6:$O$6, MATCH($I16-$H16+1,$K$5:$O$5,0)),0,0,1, $H16))),0) -> 0 | K16: 1876 | L16: 1144 | M16: 1110 | N16: 1416 | O16: 742 | P16: =IF($E16=Lists!$E$7, K16, IF($E16=$H$9, (SUMPRODUCT(($K16:$O16)*($K$5:$O$5<=$I16)*($K$5:$O$5>($I16-$H16))))/$H16, IF($E16=$F$9, (P$6*$F16+$G16),0))) -> 1876 | Q16: =IF($E16=Lists!$E$7, L16, IF($E16=$H$9, (SUMPRODUCT(($K16:$O16)*($K$5:$O$5<=$I16)*($K$5:$O$5>($I16-$H16))))/$H16, IF($E16=$F$9, (Q$6*$F16+$G16),0))) -> 1144 | R16: =IF($E16=Lists!$E$7, M16, IF($E16=$H$9, (SUMPRODUCT(($K16:$O16)*($K$5:$O$5<=$I16)*($K$5:$O$5>($I16-$H16))))/$H16, IF($E16=$F$9, (R$6*$F16+$G16),0))) -> 1110 | S16: =IF($E16=Lists!$E$7, N16, IF($E16=$H$9, (SUMPRODUCT(($K16:$O16)*($K$5:$O$5<=$I16)*($K$5:$O$5>($I16-$H16))))/$H16, IF($E16=$F$9, (S$6*$F16+$G16),0))) -> 1416 | T16: =IF($E16=Lists!$E$7, O16, IF($E16=$H$9, (SUMPRODUCT(($K16:$O16)*($K$5:$O$5<=$I16)*($K$5:$O$5>($I16-$H16))))/$H16, IF($E16=$F$9, (T$6*$F16+$G16),0))) -> 742 | U16: =IF($E16=Lists!$E$7, P16, IF($E16=$H$9, (SUMPRODUCT(($K16:$O16)*($K$5:$O$5<=$I16)*($K$5:$O$5>($I16-$H16))))/$H16, IF($E16=$F$9, (U$6*$F16+$G16),0))) -> 1876
B17: HV cross-arm replacement | C17: SHE | E17: 5 year cycle | F17: =IF($E17=Lists!$E$6, LINEST((OFFSET(INDEX($K17:$O17, MATCH($I17-$H17+1,$K$5:$O$5,0)),0,0,1, $H17)), (OFFSET(INDEX($K$6:$O$6, MATCH($I17-$H17+1,$K$5:$O$5,0)),0,0,1, $H17))),0) -> 0 | K17: 1721 | L17: 2300 | M17: 1540 | N17: 1514 | O17: 1297 | P17: =IF($E17=Lists!$E$7, K17, IF($E17=$H$9, (SUMPRODUCT(($K17:$O17)*($K$5:$O$5<=$I17)*($K$5:$O$5>($I17-$H17))))/$H17, IF($E17=$F$9, (P$6*$F17+$G17),0))) -> 1721 | Q17: =IF($E17=Lists!$E$7, L17, IF($E17=$H$9, (SUMPRODUCT(($K17:$O17)*($K$5:$O$5<=$I17)*($K$5:$O$5>($I17-$H17))))/$H17, IF($E17=$F$9, (Q$6*$F17+$G17),0))) -> 2300 | R17: =IF($E17=Lists!$E$7, M17, IF($E17=$H$9, (SUMPRODUCT(($K17:$O17)*($K$5:$O$5<=$I17)*($K$5:$O$5>($I17-$H17))))/$H17, IF($E17=$F$9, (R$6*$F17+$G17),0))) -> 1540 | S17: =IF($E17=Lists!$E$7, N17, IF($E17=$H$9, (SUMPRODUCT(($K17:$O17)*($K$5:$O$5<=$I17)*($K$5:$O$5>($I17-$H17))))/$H17, IF($E17=$F$9, (S$6*$F17+$G17),0))) -> 1514 | T17: =IF($E17=Lists!$E$7, O17, IF($E17=$H$9, (SUMPRODUCT(($K17:$O17)*($K$5:$O$5<=$I17)*($K$5:$O$5>($I17-$H17))))/$H17, IF($E17=$F$9, (T$6*$F17+$G17),0))) -> 1297 | U17: =IF($E17=Lists!$E$7, P17, IF($E17=$H$9, (SUMPRODUCT(($K17:$O17)*($K$5:$O$5<=$I17)*($K$5:$O$5>($I17-$H17))))/$H17, IF($E17=$F$9, (U$6*$F17+$G17),0))) -> 1721
B18: HV cross-arm replacement | C18: SUN | E18: 5 year cycle | F18: =IF($E18=Lists!$E$6, LINEST((OFFSET(INDEX($K18:$O18, MATCH($I18-$H18+1,$K$5:$O$5,0)),0,0,1, $H18)), (OFFSET(INDEX($K$6:$O$6, MATCH($I18-$H18+1,$K$5:$O$5,0)),0,0,1, $H18))),0) -> 0 | K18: 1369 | L18: 2192 | M18: 1801 | N18: 1446 | O18: 1321 | P18: =IF($E18=Lists!$E$7, K18, IF($E18=$H$9, (SUMPRODUCT(($K18:$O18)*($K$5:$O$5<=$I18)*($K$5:$O$5>($I18-$H18))))/$H18, IF($E18=$F$9, (P$6*$F18+$G18),0))) -> 1369 | Q18: =IF($E18=Lists!$E$7, L18, IF($E18=$H$9, (SUMPRODUCT(($K18:$O18)*($K$5:$O$5<=$I18)*($K$5:$O$5>($I18-$H18))))/$H18, IF($E18=$F$9, (Q$6*$F18+$G18),0))) -> 2192 | R18: =IF($E18=Lists!$E$7, M18, IF($E18=$H$9, (SUMPRODUCT(($K18:$O18)*($K$5:$O$5<=$I18)*($K$5:$O$5>($I18-$H18))))/$H18, IF($E18=$F$9, (R$6*$F18+$G18),0))) -> 1801 | S18: =IF($E18=Lists!$E$7, N18, IF($E18=$H$9, (SUMPRODUCT(($K18:$O18)*($K$5:$O$5<=$I18)*($K$5:$O$5>($I18-$H18))))/$H18, IF($E18=$F$9, (S$6*$F18+$G18),0))) -> 1446 | T18: =IF($E18=Lists!$E$7, O18, IF($E18=$H$9, (SUMPRODUCT(($K18:$O18)*($K$5:$O$5<=$I18)*($K$5:$O$5>($I18-$H18))))/$H18, IF($E18=$F$9, (T$6*$F18+$G18),0))) -> 1321 | U18: =IF($E18=Lists!$E$7, P18, IF($E18=$H$9, (SUMPRODUCT(($K18:$O18)*($K$5:$O$5<=$I18)*($K$5:$O$5>($I18-$H18))))/$H18, IF($E18=$F$9, (U$6*$F18+$G18),0))) -> 1369
B19: HV cross-arm replacement | C19: WAR | E19: 5 year cycle | F19: =IF($E19=Lists!$E$6, LINEST((OFFSET(INDEX($K19:$O19, MATCH($I19-$H19+1,$K$5:$O$5,0)),0,0,1, $H19)), (OFFSET(INDEX($K$6:$O$6, MATCH($I19-$H19+1,$K$5:$O$5,0)),0,0,1, $H19))),0) -> 0 | K19: 2209 | L19: 1680 | M19: 1313 | N19: 1576 | O19: 756 | P19: =IF($E19=Lists!$E$7, K19, IF($E19=$H$9, (SUMPRODUCT(($K19:$O19)*($K$5:$O$5<=$I19)*($K$5:$O$5>($I19-$H19))))/$H19, IF($E19=$F$9, (P$6*$F19+$G19),0))) -> 2209 | Q19: =IF($E19=Lists!$E$7, L19, IF($E19=$H$9, (SUMPRODUCT(($K19:$O19)*($K$5:$O$5<=$I19)*($K$5:$O$5>($I19-$H19))))/$H19, IF($E19=$F$9, (Q$6*$F19+$G19),0))) -> 1680 | R19: =IF($E19=Lists!$E$7, M19, IF($E19=$H$9, (SUMPRODUCT(($K19:$O19)*($K$5:$O$5<=$I19)*($K$5:$O$5>($I19-$H19))))/$H19, IF($E19=$F$9, (R$6*$F19+$G19),0))) -> 1313 | S19: =IF($E19=Lists!$E$7, N19, IF($E19=$H$9, (SUMPRODUCT(($K19:$O19)*($K$5:$O$5<=$I19)*($K$5:$O$5>($I19-$H19))))/$H19, IF($E19=$F$9, (S$6*$F19+$G19),0))) -> 1576 | T19: =IF($E19=Lists!$E$7, O19, IF($E19=$H$9, (SUMPRODUCT(($K19:$O19)*($K$5:$O$5<=$I19)*($K$5:$O$5>($I19-$H19))))/$H19, IF($E19=$F$9, (T$6*$F19+$G19),0))) -> 756 | U19: =IF($E19=Lists!$E$7, P19, IF($E19=$H$9, (SUMPRODUCT(($K19:$O19)*($K$5:$O$5<=$I19)*($K$5:$O$5>($I19-$H19))))/$H19, IF($E19=$F$9, (U$6*$F19+$G19),0))) -> 2209
B21: LV cross-arm replacement | C21: BAL | E21: 5 year cycle | F21: =IF($E21=Lists!$E$6, LINEST((OFFSET(INDEX($K21:$O21, MATCH($I21-$H21+1,$K$5:$O$5,0)),0,0,1, $H21)), (OFFSET(INDEX($K$6:$O$6, MATCH($I21-$H21+1,$K$5:$O$5,0)),0,0,1, $H21))),0) -> 0 | K21: 9972 | L21: 5778 | M21: 8334 | N21: 8103 | O21: 6996 | P21: =IF($E21=Lists!$E$7, K21, IF($E21=$H$9, (SUMPRODUCT(($K21:$O21)*($K$5:$O$5<=$I21)*($K$5:$O$5>($I21-$H21))))/$H21, IF($E21=$F$9, (P$6*$F21+$G21),0))) -> 9972 | Q21: =IF($E21=Lists!$E$7, L21, IF($E21=$H$9, (SUMPRODUCT(($K21:$O21)*($K$5:$O$5<=$I21)*($K$5:$O$5>($I21-$H21))))/$H21, IF($E21=$F$9, (Q$6*$F21+$G21),0))) -> 5778 | R21: =IF($E21=Lists!$E$7, M21, IF($E21=$H$9, (SUMPRODUCT(($K21:$O21)*($K$5:$O$5<=$I21)*($K$5:$O$5>($I21-$H21))))/$H21, IF($E21=$F$9, (R$6*$F21+$G21),0))) -> 8334 | S21: =IF($E21=Lists!$E$7, N21, IF($E21=$H$9, (SUMPRODUCT(($K21:$O21)*($K$5:$O$5<=$I21)*($K$5:$O$5>($I21-$H21))))/$H21, IF($E21=$F$9, (S$6*$F21+$G21),0))) -> 8103 | T21: =IF($E21=Lists!$E$7, O21, IF($E21=$H$9, (SUMPRODUCT(($K21:$O21)*($K$5:$O$5<=$I21)*($K$5:$O$5>($I21-$H21))))/$H21, IF($E21=$F$9, (T$6*$F21+$G21),0))) -> 6996 | U21: =IF($E21=Lists!$E$7, P21, IF($E21=$H$9, (SUMPRODUCT(($K21:$O21)*($K$5:$O$5<=$I21)*($K$5:$O$5>($I21-$H21))))/$H21, IF($E21=$F$9, (U$6*$F21+$G21),0))) -> 9972
B22: LV cross-arm replacement | C22: BEN | E22: 5 year cycle | F22: =IF($E22=Lists!$E$6, LINEST((OFFSET(INDEX($K22:$O22, MATCH($I22-$H22+1,$K$5:$O$5,0)),0,0,1, $H22)), (OFFSET(INDEX($K$6:$O$6, MATCH($I22-$H22+1,$K$5:$O$5,0)),0,0,1, $H22))),0) -> 0 | K22: 12367 | L22: 10582 | M22: 13694 | N22: 11945 | O22: 9296 | P22: =IF($E22=Lists!$E$7, K22, IF($E22=$H$9, (SUMPRODUCT(($K22:$O22)*($K$5:$O$5<=$I22)*($K$5:$O$5>($I22-$H22))))/$H22, IF($E22=$F$9, (P$6*$F22+$G22),0))) -> 12367 | Q22: =IF($E22=Lists!$E$7, L22, IF($E22=$H$9, (SUMPRODUCT(($K22:$O22)*($K$5:$O$5<=$I22)*($K$5:$O$5>($I22-$H22))))/$H22, IF($E22=$F$9, (Q$6*$F22+$G22),0))) -> 10582 | R22: =IF($E22=Lists!$E$7, M22, IF($E22=$H$9, (SUMPRODUCT(($K22:$O22)*($K$5:$O$5<=$I22)*($K$5:$O$5>($I22-$H22))))/$H22, IF($E22=$F$9, (R$6*$F22+$G22),0))) -> 13694 | S22: =IF($E22=Lists!$E$7, N22, IF($E22=$H$9, (SUMPRODUCT(($K22:$O22)*($K$5:$O$5<=$I22)*($K$5:$O$5>($I22-$H22))))/$H22, IF($E22=$F$9, (S$6*$F22+$G22),0))) -> 11945 | T22: =IF($E22=Lists!$E$7, O22, IF($E22=$H$9, (SUMPRODUCT(($K22:$O22)*($K$5:$O$5<=$I22)*($K$5:$O$5>($I22-$H22))))/$H22, IF($E22=$F$9, (T$6*$F22+$G22),0))) -> 9296 | U22: =IF($E22=Lists!$E$7, P22, IF($E22=$H$9, (SUMPRODUCT(($K22:$O22)*($K$5:$O$5<=$I22)*($K$5:$O$5>($I22-$H22))))/$H22, IF($E22=$F$9, (U$6*$F22+$G22),0))) -> 12367
B23: LV cross-arm replacement | C23: GEE | E23: 5 year cycle | F23: =IF($E23=Lists!$E$6, LINEST((OFFSET(INDEX($K23:$O23, MATCH($I23-$H23+1,$K$5:$O$5,0)),0,0,1, $H23)), (OFFSET(INDEX($K$6:$O$6, MATCH($I23-$H23+1,$K$5:$O$5,0)),0,0,1, $H23))),0) -> 0 | K23: 10042 | L23: 9251 | M23: 10183 | N23: 10511 | O23: 8584 | P23: =IF($E23=Lists!$E$7, K23, IF($E23=$H$9, (SUMPRODUCT(($K23:$O23)*($K$5:$O$5<=$I23)*($K$5:$O$5>($I23-$H23))))/$H23, IF($E23=$F$9, (P$6*$F23+$G23),0))) -> 10042 | Q23: =IF($E23=Lists!$E$7, L23, IF($E23=$H$9, (SUMPRODUCT(($K23:$O23)*($K$5:$O$5<=$I23)*($K$5:$O$5>($I23-$H23))))/$H23, IF($E23=$F$9, (Q$6*$F23+$G23),0))) -> 9251 | R23: =IF($E23=Lists!$E$7, M23, IF($E23=$H$9, (SUMPRODUCT(($K23:$O23)*($K$5:$O$5<=$I23)*($K$5:$O$5>($I23-$H23))))/$H23, IF($E23=$F$9, (R$6*$F23+$G23),0))) -> 10183 | S23: =IF($E23=Lists!$E$7, N23, IF($E23=$H$9, (SUMPRODUCT(($K23:$O23)*($K$5:$O$5<=$I23)*($K$5:$O$5>($I23-$H23))))/$H23, IF($E23=$F$9, (S$6*$F23+$G23),0))) -> 10511 | T23: =IF($E23=Lists!$E$7, O23, IF($E23=$H$9, (SUMPRODUCT(($K23:$O23)*($K$5:$O$5<=$I23)*($K$5:$O$5>($I23-$H23))))/$H23, IF($E23=$F$9, (T$6*$F23+$G23),0))) -> 8584 | U23: =IF($E23=Lists!$E$7, P23, IF($E23=$H$9, (SUMPRODUCT(($K23:$O23)*($K$5:$O$5<=$I23)*($K$5:$O$5>($I23-$H23))))/$H23, IF($E23=$F$9, (U$6*$F23+$G23),0))) -> 10042
B24: LV cross-arm replacement | C24: HOR | E24: 5 year cycle | F24: =IF($E24=Lists!$E$6, LINEST((OFFSET(INDEX($K24:$O24, MATCH($I24-$H24+1,$K$5:$O$5,0)),0,0,1, $H24)), (OFFSET(INDEX($K$6:$O$6, MATCH($I24-$H24+1,$K$5:$O$5,0)),0,0,1, $H24))),0) -> 0 | K24: 3449 | L24: 3844 | M24: 4445 | N24: 2724 | O24: 3853 | P24: =IF($E24=Lists!$E$7, K24, IF($E24=$H$9, (SUMPRODUCT(($K24:$O24)*($K$5:$O$5<=$I24)*($K$5:$O$5>($I24-$H24))))/$H24, IF($E24=$F$9, (P$6*$F24+$G24),0))) -> 3449 | Q24: =IF($E24=Lists!$E$7, L24, IF($E24=$H$9, (SUMPRODUCT(($K24:$O24)*($K$5:$O$5<=$I24)*($K$5:$O$5>($I24-$H24))))/$H24, IF($E24=$F$9, (Q$6*$F24+$G24),0))) -> 3844 | R24: =IF($E24=Lists!$E$7, M24, IF($E24=$H$9, (SUMPRODUCT(($K24:$O24)*($K$5:$O$5<=$I24)*($K$5:$O$5>($I24-$H24))))/$H24, IF($E24=$F$9, (R$6*$F24+$G24),0))) -> 4445 | S24: =IF($E24=Lists!$E$7, N24, IF($E24=$H$9, (SUMPRODUCT(($K24:$O24)*($K$5:$O$5<=$I24)*($K$5:$O$5>($I24-$H24))))/$H24, IF($E24=$F$9, (S$6*$F24+$G24),0))) -> 2724 | T24: =IF($E24=Lists!$E$7, O24, IF($E24=$H$9, (SUMPRODUCT(($K24:$O24)*($K$5:$O$5<=$I24)*($K$5:$O$5>($I24-$H24))))/$H24, IF($E24=$F$9, (T$6*$F24+$G24),0))) -> 3853 | U24: =IF($E24=Lists!$E$7, P24, IF($E24=$H$9, (SUMPRODUCT(($K24:$O24)*($K$5:$O$5<=$I24)*($K$5:$O$5>($I24-$H24))))/$H24, IF($E24=$F$9, (U$6*$F24+$G24),0))) -> 3449
B25: LV cross-arm replacement | C25: MIL | E25: 5 year cycle | F25: =IF($E25=Lists!$E$6, LINEST((OFFSET(INDEX($K25:$O25, MATCH($I25-$H25+1,$K$5:$O$5,0)),0,0,1, $H25)), (OFFSET(INDEX($K$6:$O$6, MATCH($I25-$H25+1,$K$5:$O$5,0)),0,0,1, $H25))),0) -> 0 | K25: 4643 | L25: 3799 | M25: 3777 | N25: 5514 | O25: 4229 | P25: =IF($E25=Lists!$E$7, K25, IF($E25=$H$9, (SUMPRODUCT(($K25:$O25)*($K$5:$O$5<=$I25)*($K$5:$O$5>($I25-$H25))))/$H25, IF($E25=$F$9, (P$6*$F25+$G25),0))) -> 4643 | Q25: =IF($E25=Lists!$E$7, L25, IF($E25=$H$9, (SUMPRODUCT(($K25:$O25)*($K$5:$O$5<=$I25)*($K$5:$O$5>($I25-$H25))))/$H25, IF($E25=$F$9, (Q$6*$F25+$G25),0))) -> 3799 | R25: =IF($E25=Lists!$E$7, M25, IF($E25=$H$9, (SUMPRODUCT(($K25:$O25)*($K$5:$O$5<=$I25)*($K$5:$O$5>($I25-$H25))))/$H25, IF($E25=$F$9, (R$6*$F25+$G25),0))) -> 3777 | S25: =IF($E25=Lists!$E$7, N25, IF($E25=$H$9, (SUMPRODUCT(($K25:$O25)*($K$5:$O$5<=$I25)*($K$5:$O$5>($I25-$H25))))/$H25, IF($E25=$F$9, (S$6*$F25+$G25),0))) -> 5514 | T25: =IF($E25=Lists!$E$7, O25, IF($E25=$H$9, (SUMPRODUCT(($K25:$O25)*($K$5:$O$5<=$I25)*($K$5:$O$5>($I25-$H25))))/$H25, IF($E25=$F$9, (T$6*$F25+$G25),0))) -> 4229 | U25: =IF($E25=Lists!$E$7, P25, IF($E25=$H$9, (SUMPRODUCT(($K25:$O25)*($K$5:$O$5<=$I25)*($K$5:$O$5>($I25-$H25))))/$H25, IF($E25=$F$9, (U$6*$F25+$G25),0))) -> 4643
B26: LV cross-arm replacement | C26: SHE | E26: 5 year cycle | F26: =IF($E26=Lists!$E$6, LINEST((OFFSET(INDEX($K26:$O26, MATCH($I26-$H26+1,$K$5:$O$5,0)),0,0,1, $H26)), (OFFSET(INDEX($K$6:$O$6, MATCH($I26-$H26+1,$K$5:$O$5,0)),0,0,1, $H26))),0) -> 0 | K26: 5448 | L26: 5995 | M26: 7133 | N26: 7220 | O26: 4686 | P26: =IF($E26=Lists!$E$7, K26, IF($E26=$H$9, (SUMPRODUCT(($K26:$O26)*($K$5:$O$5<=$I26)*($K$5:$O$5>($I26-$H26))))/$H26, IF($E26=$F$9, (P$6*$F26+$G26),0))) -> 5448 | Q26: =IF($E26=Lists!$E$7, L26, IF($E26=$H$9, (SUMPRODUCT(($K26:$O26)*($K$5:$O$5<=$I26)*($K$5:$O$5>($I26-$H26))))/$H26, IF($E26=$F$9, (Q$6*$F26+$G26),0))) -> 5995 | R26: =IF($E26=Lists!$E$7, M26, IF($E26=$H$9, (SUMPRODUCT(($K26:$O26)*($K$5:$O$5<=$I26)*($K$5:$O$5>($I26-$H26))))/$H26, IF($E26=$F$9, (R$6*$F26+$G26),0))) -> 7133 | S26: =IF($E26=Lists!$E$7, N26, IF($E26=$H$9, (SUMPRODUCT(($K26:$O26)*($K$5:$O$5<=$I26)*($K$5:$O$5>($I26-$H26))))/$H26, IF($E26=$F$9, (S$6*$F26+$G26),0))) -> 7220 | T26: =IF($E26=Lists!$E$7, O26, IF($E26=$H$9, (SUMPRODUCT(($K26:$O26)*($K$5:$O$5<=$I26)*($K$5:$O$5>($I26-$H26))))/$H26, IF($E26=$F$9, (T$6*$F26+$G26),0))) -> 4686 | U26: =IF($E26=Lists!$E$7, P26, IF($E26=$H$9, (SUMPRODUCT(($K26:$O26)*($K$5:$O$5<=$I26)*($K$5:$O$5>($I26-$H26))))/$H26, IF($E26=$F$9, (U$6*$F26+$G26),0))) -> 5448
B27: LV cross-arm replacement | C27: SUN | E27: 5 year cycle | F27: =IF($E27=Lists!$E$6, LINEST((OFFSET(INDEX($K27:$O27, MATCH($I27-$H27+1,$K$5:$O$5,0)),0,0,1, $H27)), (OFFSET(INDEX($K$6:$O$6, MATCH($I27-$H27+1,$K$5:$O$5,0)),0,0,1, $H27))),0) -> 0 | K27: 8717 | L27: 10197 | M27: 11172 | N27: 9826 | O27: 6727 | P27: =IF($E27=Lists!$E$7, K27, IF($E27=$H$9, (SUMPRODUCT(($K27:$O27)*($K$5:$O$5<=$I27)*($K$5:$O$5>($I27-$H27))))/$H27, IF($E27=$F$9, (P$6*$F27+$G27),0))) -> 8717 | Q27: =IF($E27=Lists!$E$7, L27, IF($E27=$H$9, (SUMPRODUCT(($K27:$O27)*($K$5:$O$5<=$I27)*($K$5:$O$5>($I27-$H27))))/$H27, IF($E27=$F$9, (Q$6*$F27+$G27),0))) -> 10197 | R27: =IF($E27=Lists!$E$7, M27, IF($E27=$H$9, (SUMPRODUCT(($K27:$O27)*($K$5:$O$5<=$I27)*($K$5:$O$5>($I27-$H27))))/$H27, IF($E27=$F$9, (R$6*$F27+$G27),0))) -> 11172 | S27: =IF($E27=Lists!$E$7, N27, IF($E27=$H$9, (SUMPRODUCT(($K27:$O27)*($K$5:$O$5<=$I27)*($K$5:$O$5>($I27-$H27))))/$H27, IF($E27=$F$9, (S$6*$F27+$G27),0))) -> 9826 | T27: =IF($E27=Lists!$E$7, O27, IF($E27=$H$9, (SUMPRODUCT(($K27:$O27)*($K$5:$O$5<=$I27)*($K$5:$O$5>($I27-$H27))))/$H27, IF($E27=$F$9, (T$6*$F27+$G27),0))) -> 6727 | U27: =IF($E27=Lists!$E$7, P27, IF($E27=$H$9, (SUMPRODUCT(($K27:$O27)*($K$5:$O$5<=$I27)*($K$5:$O$5>($I27-$H27))))/$H27, IF($E27=$F$9, (U$6*$F27+$G27),0))) -> 8717
B28: LV cross-arm replacement | C28: WAR | E28: 5 year cycle | F28: =IF($E28=Lists!$E$6, LINEST((OFFSET(INDEX($K28:$O28, MATCH($I28-$H28+1,$K$5:$O$5,0)),0,0,1, $H28)), (OFFSET(INDEX($K$6:$O$6, MATCH($I28-$H28+1,$K$5:$O$5,0)),0,0,1, $H28))),0) -> 0 | K28: 7125 | L28: 4382 | M28: 6887 | N28: 6590 | O28: 4982 | P28: =IF($E28=Lists!$E$7, K28, IF($E28=$H$9, (SUMPRODUCT(($K28:$O28)*($K$5:$O$5<=$I28)*($K$5:$O$5>($I28-$H28))))/$H28, IF($E28=$F$9, (P$6*$F28+$G28),0))) -> 7125 | Q28: =IF($E28=Lists!$E$7, L28, IF($E28=$H$9, (SUMPRODUCT(($K28:$O28)*($K$5:$O$5<=$I28)*($K$5:$O$5>($I28-$H28))))/$H28, IF($E28=$F$9, (Q$6*$F28+$G28),0))) -> 4382 | R28: =IF($E28=Lists!$E$7, M28, IF($E28=$H$9, (SUMPRODUCT(($K28:$O28)*($K$5:$O$5<=$I28)*($K$5:$O$5>($I28-$H28))))/$H28, IF($E28=$F$9, (R$6*$F28+$G28),0))) -> 6887 | S28: =IF($E28=Lists!$E$7, N28, IF($E28=$H$9, (SUMPRODUCT(($K28:$O28)*($K$5:$O$5<=$I28)*($K$5:$O$5>($I28-$H28))))/$H28, IF($E28=$F$9, (S$6*$F28+$G28),0))) -> 6590 | T28: =IF($E28=Lists!$E$7, O28, IF($E28=$H$9, (SUMPRODUCT(($K28:$O28)*($K$5:$O$5<=$I28)*($K$5:$O$5>($I28-$H28))))/$H28, IF($E28=$F$9, (T$6*$F28+$G28),0))) -> 4982 | U28: =IF($E28=Lists!$E$7, P28, IF($E28=$H$9, (SUMPRODUCT(($K28:$O28)*($K$5:$O$5<=$I28)*($K$5:$O$5>($I28-$H28))))/$H28, IF($E28=$F$9, (U$6*$F28+$G28),0))) -> 7125
B30: Overhead HV insulators | C30: BAL | E30: 5 year cycle | F30: =IF($E30=Lists!$E$6, LINEST((OFFSET(INDEX($K30:$O30, MATCH($I30-$H30+1,$K$5:$O$5,0)),0,0,1, $H30)), (OFFSET(INDEX($K$6:$O$6, MATCH($I30-$H30+1,$K$5:$O$5,0)),0,0,1, $H30))),0) -> 0 | K30: 17822 | L30: 16457 | M30: 16761 | N30: 16964 | O30: 16805 | P30: =IF($E30=Lists!$E$7, K30, IF($E30=$H$9, (SUMPRODUCT(($K30:$O30)*($K$5:$O$5<=$I30)*($K$5:$O$5>($I30-$H30))))/$H30, IF($E30=$F$9, (P$6*$F30+$G30),0))) -> 17822 | Q30: =IF($E30=Lists!$E$7, L30, IF($E30=$H$9, (SUMPRODUCT(($K30:$O30)*($K$5:$O$5<=$I30)*($K$5:$O$5>($I30-$H30))))/$H30, IF($E30=$F$9, (Q$6*$F30+$G30),0))) -> 16457 | R30: =IF($E30=Lists!$E$7, M30, IF($E30=$H$9, (SUMPRODUCT(($K30:$O30)*($K$5:$O$5<=$I30)*($K$5:$O$5>($I30-$H30))))/$H30, IF($E30=$F$9, (R$6*$F30+$G30),0))) -> 16761 | S30: =IF($E30=Lists!$E$7, N30, IF($E30=$H$9, (SUMPRODUCT(($K30:$O30)*($K$5:$O$5<=$I30)*($K$5:$O$5>($I30-$H30))))/$H30, IF($E30=$F$9, (S$6*$F30+$G30),0))) -> 16964 | T30: =IF($E30=Lists!$E$7, O30, IF($E30=$H$9, (SUMPRODUCT(($K30:$O30)*($K$5:$O$5<=$I30)*($K$5:$O$5>($I30-$H30))))/$H30, IF($E30=$F$9, (T$6*$F30+$G30),0))) -> 16805 | U30: =IF($E30=Lists!$E$7, P30, IF($E30=$H$9, (SUMPRODUCT(($K30:$O30)*($K$5:$O$5<=$I30)*($K$5:$O$5>($I30-$H30))))/$H30, IF($E30=$F$9, (U$6*$F30+$G30),0))) -> 17822
B31: Overhead HV insulators | C31: BEN | E31: 5 year cycle | F31: =IF($E31=Lists!$E$6, LINEST((OFFSET(INDEX($K31:$O31, MATCH($I31-$H31+1,$K$5:$O$5,0)),0,0,1, $H31)), (OFFSET(INDEX($K$6:$O$6, MATCH($I31-$H31+1,$K$5:$O$5,0)),0,0,1, $H31))),0) -> 0 | K31: 27814 | L31: 26769 | M31: 30570 | N31: 26690 | O31: 27951 | P31: =IF($E31=Lists!$E$7, K31, IF($E31=$H$9, (SUMPRODUCT(($K31:$O31)*($K$5:$O$5<=$I31)*($K$5:$O$5>($I31-$H31))))/$H31, IF($E31=$F$9, (P$6*$F31+$G31),0))) -> 27814 | Q31: =IF($E31=Lists!$E$7, L31, IF($E31=$H$9, (SUMPRODUCT(($K31:$O31)*($K$5:$O$5<=$I31)*($K$5:$O$5>($I31-$H31))))/$H31, IF($E31=$F$9, (Q$6*$F31+$G31),0))) -> 26769 | R31: =IF($E31=Lists!$E$7, M31, IF($E31=$H$9, (SUMPRODUCT(($K31:$O31)*($K$5:$O$5<=$I31)*($K$5:$O$5>($I31-$H31))))/$H31, IF($E31=$F$9, (R$6*$F31+$G31),0))) -> 30570 | S31: =IF($E31=Lists!$E$7, N31, IF($E31=$H$9, (SUMPRODUCT(($K31:$O31)*($K$5:$O$5<=$I31)*($K$5:$O$5>($I31-$H31))))/$H31, IF($E31=$F$9, (S$6*$F31+$G31),0))) -> 26690 | T31: =IF($E31=Lists!$E$7, O31, IF($E31=$H$9, (SUMPRODUCT(($K31:$O31)*($K$5:$O$5<=$I31)*($K$5:$O$5>($I31-$H31))))/$H31, IF($E31=$F$9, (T$6*$F31+$G31),0))) -> 27951 | U31: =IF($E31=Lists!$E$7, P31, IF($E31=$H$9, (SUMPRODUCT(($K31:$O31)*($K$5:$O$5<=$I31)*($K$5:$O$5>($I31-$H31))))/$H31, IF($E31=$F$9, (U$6*$F31+$G31),0))) -> 27814
B32: Overhead HV insulators | C32: GEE | E32: 5 year cycle | F32: =IF($E32=Lists!$E$6, LINEST((OFFSET(INDEX($K32:$O32, MATCH($I32-$H32+1,$K$5:$O$5,0)),0,0,1, $H32)), (OFFSET(INDEX($K$6:$O$6, MATCH($I32-$H32+1,$K$5:$O$5,0)),0,0,1, $H32))),0) -> 0 | K32: 12813 | L32: 10963 | M32: 13879 | N32: 13302 | O32: 12028 | P32: =IF($E32=Lists!$E$7, K32, IF($E32=$H$9, (SUMPRODUCT(($K32:$O32)*($K$5:$O$5<=$I32)*($K$5:$O$5>($I32-$H32))))/$H32, IF($E32=$F$9, (P$6*$F32+$G32),0))) -> 12813 | Q32: =IF($E32=Lists!$E$7, L32, IF($E32=$H$9, (SUMPRODUCT(($K32:$O32)*($K$5:$O$5<=$I32)*($K$5:$O$5>($I32-$H32))))/$H32, IF($E32=$F$9, (Q$6*$F32+$G32),0))) -> 10963 | R32: =IF($E32=Lists!$E$7, M32, IF($E32=$H$9, (SUMPRODUCT(($K32:$O32)*($K$5:$O$5<=$I32)*($K$5:$O$5>($I32-$H32))))/$H32, IF($E32=$F$9, (R$6*$F32+$G32),0))) -> 13879 | S32: =IF($E32=Lists!$E$7, N32, IF($E32=$H$9, (SUMPRODUCT(($K32:$O32)*($K$5:$O$5<=$I32)*($K$5:$O$5>($I32-$H32))))/$H32, IF($E32=$F$9, (S$6*$F32+$G32),0))) -> 13302 | T32: =IF($E32=Lists!$E$7, O32, IF($E32=$H$9, (SUMPRODUCT(($K32:$O32)*($K$5:$O$5<=$I32)*($K$5:$O$5>($I32-$H32))))/$H32, IF($E32=$F$9, (T$6*$F32+$G32),0))) -> 12028 | U32: =IF($E32=Lists!$E$7, P32, IF($E32=$H$9, (SUMPRODUCT(($K32:$O32)*($K$5:$O$5<=$I32)*($K$5:$O$5>($I32-$H32))))/$H32, IF($E32=$F$9, (U$6*$F32+$G32),0))) -> 12813
B33: Overhead HV insulators | C33: HOR | E33: 5 year cycle | F33: =IF($E33=Lists!$E$6, LINEST((OFFSET(INDEX($K33:$O33, MATCH($I33-$H33+1,$K$5:$O$5,0)),0,0,1, $H33)), (OFFSET(INDEX($K$6:$O$6, MATCH($I33-$H33+1,$K$5:$O$5,0)),0,0,1, $H33))),0) -> 0 | K33: 13631 | L33: 12485 | M33: 12415 | N33: 14230 | O33: 9474 | P33: =IF($E33=Lists!$E$7, K33, IF($E33=$H$9, (SUMPRODUCT(($K33:$O33)*($K$5:$O$5<=$I33)*($K$5:$O$5>($I33-$H33))))/$H33, IF($E33=$F$9, (P$6*$F33+$G33),0))) -> 13631 | Q33: =IF($E33=Lists!$E$7, L33, IF($E33=$H$9, (SUMPRODUCT(($K33:$O33)*($K$5:$O$5<=$I33)*($K$5:$O$5>($I33-$H33))))/$H33, IF($E33=$F$9, (Q$6*$F33+$G33),0))) -> 12485 | R33: =IF($E33=Lists!$E$7, M33, IF($E33=$H$9, (SUMPRODUCT(($K33:$O33)*($K$5:$O$5<=$I33)*($K$5:$O$5>($I33-$H33))))/$H33, IF($E33=$F$9, (R$6*$F33+$G33),0))) -> 12415 | S33: =IF($E33=Lists!$E$7, N33, IF($E33=$H$9, (SUMPRODUCT(($K33:$O33)*($K$5:$O$5<=$I33)*($K$5:$O$5>($I33-$H33))))/$H33, IF($E33=$F$9, (S$6*$F33+$G33),0))) -> 14230 | T33: =IF($E33=Lists!$E$7, O33, IF($E33=$H$9, (SUMPRODUCT(($K33:$O33)*($K$5:$O$5<=$I33)*($K$5:$O$5>($I33-$H33))))/$H33, IF($E33=$F$9, (T$6*$F33+$G33),0))) -> 9474 | U33: =IF($E33=Lists!$E$7, P33, IF($E33=$H$9, (SUMPRODUCT(($K33:$O33)*($K$5:$O$5<=$I33)*($K$5:$O$5>($I33-$H33))))/$H33, IF($E33=$F$9, (U$6*$F33+$G33),0))) -> 13631
B34: Overhead HV insulators | C34: MIL | E34: 5 year cycle | F34: =IF($E34=Lists!$E$6, LINEST((OFFSET(INDEX($K34:$O34, MATCH($I34-$H34+1,$K$5:$O$5,0)),0,0,1, $H34)), (OFFSET(INDEX($K$6:$O$6, MATCH($I34-$H34+1,$K$5:$O$5,0)),0,0,1, $H34))),0) -> 0 | K34: 11589 | L34: 11605 | M34: 11430 | N34: 13795 | O34: 10551 | P34: =IF($E34=Lists!$E$7, K34, IF($E34=$H$9, (SUMPRODUCT(($K34:$O34)*($K$5:$O$5<=$I34)*($K$5:$O$5>($I34-$H34))))/$H34, IF($E34=$F$9, (P$6*$F34+$G34),0))) -> 11589 | Q34: =IF($E34=Lists!$E$7, L34, IF($E34=$H$9, (SUMPRODUCT(($K34:$O34)*($K$5:$O$5<=$I34)*($K$5:$O$5>($I34-$H34))))/$H34, IF($E34=$F$9, (Q$6*$F34+$G34),0))) -> 11605 | R34: =IF($E34=Lists!$E$7, M34, IF($E34=$H$9, (SUMPRODUCT(($K34:$O34)*($K$5:$O$5<=$I34)*($K$5:$O$5>($I34-$H34))))/$H34, IF($E34=$F$9, (R$6*$F34+$G34),0))) -> 11430 | S34: =IF($E34=Lists!$E$7, N34, IF($E34=$H$9, (SUMPRODUCT(($K34:$O34)*($K$5:$O$5<=$I34)*($K$5:$O$5>($I34-$H34))))/$H34, IF($E34=$F$9, (S$6*$F34+$G34),0))) -> 13795 | T34: =IF($E34=Lists!$E$7, O34, IF($E34=$H$9, (SUMPRODUCT(($K34:$O34)*($K$5:$O$5<=$I34)*($K$5:$O$5>($I34-$H34))))/$H34, IF($E34=$F$9, (T$6*$F34+$G34),0))) -> 10551 | U34: =IF($E34=Lists!$E$7, P34, IF($E34=$H$9, (SUMPRODUCT(($K34:$O34)*($K$5:$O$5<=$I34)*($K$5:$O$5>($I34-$H34))))/$H34, IF($E34=$F$9, (U$6*$F34+$G34),0))) -> 11589
B35: Overhead HV insulators | C35: SHE | E35: 5 year cycle | F35: =IF($E35=Lists!$E$6, LINEST((OFFSET(INDEX($K35:$O35, MATCH($I35-$H35+1,$K$5:$O$5,0)),0,0,1, $H35)), (OFFSET(INDEX($K$6:$O$6, MATCH($I35-$H35+1,$K$5:$O$5,0)),0,0,1, $H35))),0) -> 0 | K35: 9647 | L35: 13863 | M35: 13254 | N35: 10438 | O35: 10506 | P35: =IF($E35=Lists!$E$7, K35, IF($E35=$H$9, (SUMPRODUCT(($K35:$O35)*($K$5:$O$5<=$I35)*($K$5:$O$5>($I35-$H35))))/$H35, IF($E35=$F$9, (P$6*$F35+$G35),0))) -> 9647 | Q35: =IF($E35=Lists!$E$7, L35, IF($E35=$H$9, (SUMPRODUCT(($K35:$O35)*($K$5:$O$5<=$I35)*($K$5:$O$5>($I35-$H35))))/$H35, IF($E35=$F$9, (Q$6*$F35+$G35),0))) -> 13863 | R35: =IF($E35=Lists!$E$7, M35, IF($E35=$H$9, (SUMPRODUCT(($K35:$O35)*($K$5:$O$5<=$I35)*($K$5:$O$5>($I35-$H35))))/$H35, IF($E35=$F$9, (R$6*$F35+$G35),0))) -> 13254 | S35: =IF($E35=Lists!$E$7, N35, IF($E35=$H$9, (SUMPRODUCT(($K35:$O35)*($K$5:$O$5<=$I35)*($K$5:$O$5>($I35-$H35))))/$H35, IF($E35=$F$9, (S$6*$F35+$G35),0))) -> 10438 | T35: =IF($E35=Lists!$E$7, O35, IF($E35=$H$9, (SUMPRODUCT(($K35:$O35)*($K$5:$O$5<=$I35)*($K$5:$O$5>($I35-$H35))))/$H35, IF($E35=$F$9, (T$6*$F35+$G35),0))) -> 10506 | U35: =IF($E35=Lists!$E$7, P35, IF($E35=$H$9, (SUMPRODUCT(($K35:$O35)*($K$5:$O$5<=$I35)*($K$5:$O$5>($I35-$H35))))/$H35, IF($E35=$F$9, (U$6*$F35+$G35),0))) -> 9647
B36: Overhead HV insulators | C36: SUN | E36: 5 year cycle | F36: =IF($E36=Lists!$E$6, LINEST((OFFSET(INDEX($K36:$O36, MATCH($I36-$H36+1,$K$5:$O$5,0)),0,0,1, $H36)), (OFFSET(INDEX($K$6:$O$6, MATCH($I36-$H36+1,$K$5:$O$5,0)),0,0,1, $H36))),0) -> 0 | K36: 13358 | L36: 17925 | M36: 13891 | N36: 18170 | O36: 12895 | P36: =IF($E36=Lists!$E$7, K36, IF($E36=$H$9, (SUMPRODUCT(($K36:$O36)*($K$5:$O$5<=$I36)*($K$5:$O$5>($I36-$H36))))/$H36, IF($E36=$F$9, (P$6*$F36+$G36),0))) -> 13358 | Q36: =IF($E36=Lists!$E$7, L36, IF($E36=$H$9, (SUMPRODUCT(($K36:$O36)*($K$5:$O$5<=$I36)*($K$5:$O$5>($I36-$H36))))/$H36, IF($E36=$F$9, (Q$6*$F36+$G36),0))) -> 17925 | R36: =IF($E36=Lists!$E$7, M36, IF($E36=$H$9, (SUMPRODUCT(($K36:$O36)*($K$5:$O$5<=$I36)*($K$5:$O$5>($I36-$H36))))/$H36, IF($E36=$F$9, (R$6*$F36+$G36),0))) -> 13891 | S36: =IF($E36=Lists!$E$7, N36, IF($E36=$H$9, (SUMPRODUCT(($K36:$O36)*($K$5:$O$5<=$I36)*($K$5:$O$5>($I36-$H36))))/$H36, IF($E36=$F$9, (S$6*$F36+$G36),0))) -> 18170 | T36: =IF($E36=Lists!$E$7, O36, IF($E36=$H$9, (SUMPRODUCT(($K36:$O36)*($K$5:$O$5<=$I36)*($K$5:$O$5>($I36-$H36))))/$H36, IF($E36=$F$9, (T$6*$F36+$G36),0))) -> 12895 | U36: =IF($E36=Lists!$E$7, P36, IF($E36=$H$9, (SUMPRODUCT(($K36:$O36)*($K$5:$O$5<=$I36)*($K$5:$O$5>($I36-$H36))))/$H36, IF($E36=$F$9, (U$6*$F36+$G36),0))) -> 13358
B37: Overhead HV insulators | C37: WAR | E37: 5 year cycle | F37: =IF($E37=Lists!$E$6, LINEST((OFFSET(INDEX($K37:$O37, MATCH($I37-$H37+1,$K$5:$O$5,0)),0,0,1, $H37)), (OFFSET(INDEX($K$6:$O$6, MATCH($I37-$H37+1,$K$5:$O$5,0)),0,0,1, $H37))),0) -> 0 | K37: 22056 | L37: 18999 | M37: 21326 | N37: 20648 | O37: 21348 | P37: =IF($E37=Lists!$E$7, K37, IF($E37=$H$9, (SUMPRODUCT(($K37:$O37)*($K$5:$O$5<=$I37)*($K$5:$O$5>($I37-$H37))))/$H37, IF($E37=$F$9, (P$6*$F37+$G37),0))) -> 22056 | Q37: =IF($E37=Lists!$E$7, L37, IF($E37=$H$9, (SUMPRODUCT(($K37:$O37)*($K$5:$O$5<=$I37)*($K$5:$O$5>($I37-$H37))))/$H37, IF($E37=$F$9, (Q$6*$F37+$G37),0))) -> 18999 | R37: =IF($E37=Lists!$E$7, M37, IF($E37=$H$9, (SUMPRODUCT(($K37:$O37)*($K$5:$O$5<=$I37)*($K$5:$O$5>($I37-$H37))))/$H37, IF($E37=$F$9, (R$6*$F37+$G37),0))) -> 21326 | S37: =IF($E37=Lists!$E$7, N37, IF($E37=$H$9, (SUMPRODUCT(($K37:$O37)*($K$5:$O$5<=$I37)*($K$5:$O$5>($I37-$H37))))/$H37, IF($E37=$F$9, (S$6*$F37+$G37),0))) -> 20648 | T37: =IF($E37=Lists!$E$7, O37, IF($E37=$H$9, (SUMPRODUCT(($K37:$O37)*($K$5:$O$5<=$I37)*($K$5:$O$5>($I37-$H37))))/$H37, IF($E37=$F$9, (T$6*$F37+$G37),0))) -> 21348 | U37: =IF($E37=Lists!$E$7, P37, IF($E37=$H$9, (SUMPRODUCT(($K37:$O37)*($K$5:$O$5<=$I37)*($K$5:$O$5>($I37-$H37))))/$H37, IF($E37=$F$9, (U$6*$F37+$G37),0))) -> 22056
B39: Overhead LV insulators | C39: BAL | E39: 5 year cycle | F39: =IF($E39=Lists!$E$6, LINEST((OFFSET(INDEX($K39:$O39, MATCH($I39-$H39+1,$K$5:$O$5,0)),0,0,1, $H39)), (OFFSET(INDEX($K$6:$O$6, MATCH($I39-$H39+1,$K$5:$O$5,0)),0,0,1, $H39))),0) -> 0 | K39: 9972 | L39: 5778 | M39: 8334 | N39: 8103 | O39: 6996 | P39: =IF($E39=Lists!$E$7, K39, IF($E39=$H$9, (SUMPRODUCT(($K39:$O39)*($K$5:$O$5<=$I39)*($K$5:$O$5>($I39-$H39))))/$H39, IF($E39=$F$9, (P$6*$F39+$G39),0))) -> 9972 | Q39: =IF($E39=Lists!$E$7, L39, IF($E39=$H$9, (SUMPRODUCT(($K39:$O39)*($K$5:$O$5<=$I39)*($K$5:$O$5>($I39-$H39))))/$H39, IF($E39=$F$9, (Q$6*$F39+$G39),0))) -> 5778 | R39: =IF($E39=Lists!$E$7, M39, IF($E39=$H$9, (SUMPRODUCT(($K39:$O39)*($K$5:$O$5<=$I39)*($K$5:$O$5>($I39-$H39))))/$H39, IF($E39=$F$9, (R$6*$F39+$G39),0))) -> 8334 | S39: =IF($E39=Lists!$E$7, N39, IF($E39=$H$9, (SUMPRODUCT(($K39:$O39)*($K$5:$O$5<=$I39)*($K$5:$O$5>($I39-$H39))))/$H39, IF($E39=$F$9, (S$6*$F39+$G39),0))) -> 8103 | T39: =IF($E39=Lists!$E$7, O39, IF($E39=$H$9, (SUMPRODUCT(($K39:$O39)*($K$5:$O$5<=$I39)*($K$5:$O$5>($I39-$H39))))/$H39, IF($E39=$F$9, (T$6*$F39+$G39),0))) -> 6996 | U39: =IF($E39=Lists!$E$7, P39, IF($E39=$H$9, (SUMPRODUCT(($K39:$O39)*($K$5:$O$5<=$I39)*($K$5:$O$5>($I39-$H39))))/$H39, IF($E39=$F$9, (U$6*$F39+$G39),0))) -> 9972
B40: Overhead LV insulators | C40: BEN | E40: 5 year cycle | F40: =IF($E40=Lists!$E$6, LINEST((OFFSET(INDEX($K40:$O40, MATCH($I40-$H40+1,$K$5:$O$5,0)),0,0,1, $H40)), (OFFSET(INDEX($K$6:$O$6, MATCH($I40-$H40+1,$K$5:$O$5,0)),0,0,1, $H40))),0) -> 0 | K40: 12367 | L40: 10582 | M40: 13694 | N40: 11945 | O40: 9296 | P40: =IF($E40=Lists!$E$7, K40, IF($E40=$H$9, (SUMPRODUCT(($K40:$O40)*($K$5:$O$5<=$I40)*($K$5:$O$5>($I40-$H40))))/$H40, IF($E40=$F$9, (P$6*$F40+$G40),0))) -> 12367 | Q40: =IF($E40=Lists!$E$7, L40, IF($E40=$H$9, (SUMPRODUCT(($K40:$O40)*($K$5:$O$5<=$I40)*($K$5:$O$5>($I40-$H40))))/$H40, IF($E40=$F$9, (Q$6*$F40+$G40),0))) -> 10582 | R40: =IF($E40=Lists!$E$7, M40, IF($E40=$H$9, (SUMPRODUCT(($K40:$O40)*($K$5:$O$5<=$I40)*($K$5:$O$5>($I40-$H40))))/$H40, IF($E40=$F$9, (R$6*$F40+$G40),0))) -> 13694 | S40: =IF($E40=Lists!$E$7, N40, IF($E40=$H$9, (SUMPRODUCT(($K40:$O40)*($K$5:$O$5<=$I40)*($K$5:$O$5>($I40-$H40))))/$H40, IF($E40=$F$9, (S$6*$F40+$G40),0))) -> 11945 | T40: =IF($E40=Lists!$E$7, O40, IF($E40=$H$9, (SUMPRODUCT(($K40:$O40)*($K$5:$O$5<=$I40)*($K$5:$O$5>($I40-$H40))))/$H40, IF($E40=$F$9, (T$6*$F40+$G40),0))) -> 9296 | U40: =IF($E40=Lists!$E$7, P40, IF($E40=$H$9, (SUMPRODUCT(($K40:$O40)*($K$5:$O$5<=$I40)*($K$5:$O$5>($I40-$H40))))/$H40, IF($E40=$F$9, (U$6*$F40+$G40),0))) -> 12367
B41: Overhead LV insulators | C41: GEE | E41: 5 year cycle | F41: =IF($E41=Lists!$E$6, LINEST((OFFSET(INDEX($K41:$O41, MATCH($I41-$H41+1,$K$5:$O$5,0)),0,0,1, $H41)), (OFFSET(INDEX($K$6:$O$6, MATCH($I41-$H41+1,$K$5:$O$5,0)),0,0,1, $H41))),0) -> 0 | K41: 10042 | L41: 9251 | M41: 10183 | N41: 10511 | O41: 8584 | P41: =IF($E41=Lists!$E$7, K41, IF($E41=$H$9, (SUMPRODUCT(($K41:$O41)*($K$5:$O$5<=$I41)*($K$5:$O$5>($I41-$H41))))/$H41, IF($E41=$F$9, (P$6*$F41+$G41),0))) -> 10042 | Q41: =IF($E41=Lists!$E$7, L41, IF($E41=$H$9, (SUMPRODUCT(($K41:$O41)*($K$5:$O$5<=$I41)*($K$5:$O$5>($I41-$H41))))/$H41, IF($E41=$F$9, (Q$6*$F41+$G41),0))) -> 9251 | R41: =IF($E41=Lists!$E$7, M41, IF($E41=$H$9, (SUMPRODUCT(($K41:$O41)*($K$5:$O$5<=$I41)*($K$5:$O$5>($I41-$H41))))/$H41, IF($E41=$F$9, (R$6*$F41+$G41),0))) -> 10183 | S41: =IF($E41=Lists!$E$7, N41, IF($E41=$H$9, (SUMPRODUCT(($K41:$O41)*($K$5:$O$5<=$I41)*($K$5:$O$5>($I41-$H41))))/$H41, IF($E41=$F$9, (S$6*$F41+$G41),0))) -> 10511 | T41: =IF($E41=Lists!$E$7, O41, IF($E41=$H$9, (SUMPRODUCT(($K41:$O41)*($K$5:$O$5<=$I41)*($K$5:$O$5>($I41-$H41))))/$H41, IF($E41=$F$9, (T$6*$F41+$G41),0))) -> 8584 | U41: =IF($E41=Lists!$E$7, P41, IF($E41=$H$9, (SUMPRODUCT(($K41:$O41)*($K$5:$O$5<=$I41)*($K$5:$O$5>($I41-$H41))))/$H41, IF($E41=$F$9, (U$6*$F41+$G41),0))) -> 10042
B42: Overhead LV insulators | C42: HOR | E42: 5 year cycle | F42: =IF($E42=Lists!$E$6, LINEST((OFFSET(INDEX($K42:$O42, MATCH($I42-$H42+1,$K$5:$O$5,0)),0,0,1, $H42)), (OFFSET(INDEX($K$6:$O$6, MATCH($I42-$H42+1,$K$5:$O$5,0)),0,0,1, $H42))),0) -> 0 | K42: 3449 | L42: 3844 | M42: 4445 | N42: 2724 | O42: 3853 | P42: =IF($E42=Lists!$E$7, K42, IF($E42=$H$9, (SUMPRODUCT(($K42:$O42)*($K$5:$O$5<=$I42)*($K$5:$O$5>($I42-$H42))))/$H42, IF($E42=$F$9, (P$6*$F42+$G42),0))) -> 3449 | Q42: =IF($E42=Lists!$E$7, L42, IF($E42=$H$9, (SUMPRODUCT(($K42:$O42)*($K$5:$O$5<=$I42)*($K$5:$O$5>($I42-$H42))))/$H42, IF($E42=$F$9, (Q$6*$F42+$G42),0))) -> 3844 | R42: =IF($E42=Lists!$E$7, M42, IF($E42=$H$9, (SUMPRODUCT(($K42:$O42)*($K$5:$O$5<=$I42)*($K$5:$O$5>($I42-$H42))))/$H42, IF($E42=$F$9, (R$6*$F42+$G42),0))) -> 4445 | S42: =IF($E42=Lists!$E$7, N42, IF($E42=$H$9, (SUMPRODUCT(($K42:$O42)*($K$5:$O$5<=$I42)*($K$5:$O$5>($I42-$H42))))/$H42, IF($E42=$F$9, (S$6*$F42+$G42),0))) -> 2724 | T42: =IF($E42=Lists!$E$7, O42, IF($E42=$H$9, (SUMPRODUCT(($K42:$O42)*($K$5:$O$5<=$I42)*($K$5:$O$5>($I42-$H42))))/$H42, IF($E42=$F$9, (T$6*$F42+$G42),0))) -> 3853 | U42: =IF($E42=Lists!$E$7, P42, IF($E42=$H$9, (SUMPRODUCT(($K42:$O42)*($K$5:$O$5<=$I42)*($K$5:$O$5>($I42-$H42))))/$H42, IF($E42=$F$9, (U$6*$F42+$G42),0))) -> 3449
B43: Overhead LV insulators | C43: MIL | E43: 5 year cycle | F43: =IF($E43=Lists!$E$6, LINEST((OFFSET(INDEX($K43:$O43, MATCH($I43-$H43+1,$K$5:$O$5,0)),0,0,1, $H43)), (OFFSET(INDEX($K$6:$O$6, MATCH($I43-$H43+1,$K$5:$O$5,0)),0,0,1, $H43))),0) -> 0 | K43: 4643 | L43: 3799 | M43: 3777 | N43: 5514 | O43: 4229 | P43: =IF($E43=Lists!$E$7, K43, IF($E43=$H$9, (SUMPRODUCT(($K43:$O43)*($K$5:$O$5<=$I43)*($K$5:$O$5>($I43-$H43))))/$H43, IF($E43=$F$9, (P$6*$F43+$G43),0))) -> 4643 | Q43: =IF($E43=Lists!$E$7, L43, IF($E43=$H$9, (SUMPRODUCT(($K43:$O43)*($K$5:$O$5<=$I43)*($K$5:$O$5>($I43-$H43))))/$H43, IF($E43=$F$9, (Q$6*$F43+$G43),0))) -> 3799 | R43: =IF($E43=Lists!$E$7, M43, IF($E43=$H$9, (SUMPRODUCT(($K43:$O43)*($K$5:$O$5<=$I43)*($K$5:$O$5>($I43-$H43))))/$H43, IF($E43=$F$9, (R$6*$F43+$G43),0))) -> 3777 | S43: =IF($E43=Lists!$E$7, N43, IF($E43=$H$9, (SUMPRODUCT(($K43:$O43)*($K$5:$O$5<=$I43)*($K$5:$O$5>($I43-$H43))))/$H43, IF($E43=$F$9, (S$6*$F43+$G43),0))) -> 5514 | T43: =IF($E43=Lists!$E$7, O43, IF($E43=$H$9, (SUMPRODUCT(($K43:$O43)*($K$5:$O$5<=$I43)*($K$5:$O$5>($I43-$H43))))/$H43, IF($E43=$F$9, (T$6*$F43+$G43),0))) -> 4229 | U43: =IF($E43=Lists!$E$7, P43, IF($E43=$H$9, (SUMPRODUCT(($K43:$O43)*($K$5:$O$5<=$I43)*($K$5:$O$5>($I43-$H43))))/$H43, IF($E43=$F$9, (U$6*$F43+$G43),0))) -> 4643
B44: Overhead LV insulators | C44: SHE | E44: 5 year cycle | F44: =IF($E44=Lists!$E$6, LINEST((OFFSET(INDEX($K44:$O44, MATCH($I44-$H44+1,$K$5:$O$5,0)),0,0,1, $H44)), (OFFSET(INDEX($K$6:$O$6, MATCH($I44-$H44+1,$K$5:$O$5,0)),0,0,1, $H44))),0) -> 0 | K44: 5448 | L44: 5995 | M44: 7133 | N44: 7220 | O44: 4686 | P44: =IF($E44=Lists!$E$7, K44, IF($E44=$H$9, (SUMPRODUCT(($K44:$O44)*($K$5:$O$5<=$I44)*($K$5:$O$5>($I44-$H44))))/$H44, IF($E44=$F$9, (P$6*$F44+$G44),0))) -> 5448 | Q44: =IF($E44=Lists!$E$7, L44, IF($E44=$H$9, (SUMPRODUCT(($K44:$O44)*($K$5:$O$5<=$I44)*($K$5:$O$5>($I44-$H44))))/$H44, IF($E44=$F$9, (Q$6*$F44+$G44),0))) -> 5995 | R44: =IF($E44=Lists!$E$7, M44, IF($E44=$H$9, (SUMPRODUCT(($K44:$O44)*($K$5:$O$5<=$I44)*($K$5:$O$5>($I44-$H44))))/$H44, IF($E44=$F$9, (R$6*$F44+$G44),0))) -> 7133 | S44: =IF($E44=Lists!$E$7, N44, IF($E44=$H$9, (SUMPRODUCT(($K44:$O44)*($K$5:$O$5<=$I44)*($K$5:$O$5>($I44-$H44))))/$H44, IF($E44=$F$9, (S$6*$F44+$G44),0))) -> 7220 | T44: =IF($E44=Lists!$E$7, O44, IF($E44=$H$9, (SUMPRODUCT(($K44:$O44)*($K$5:$O$5<=$I44)*($K$5:$O$5>($I44-$H44))))/$H44, IF($E44=$F$9, (T$6*$F44+$G44),0))) -> 4686 | U44: =IF($E44=Lists!$E$7, P44, IF($E44=$H$9, (SUMPRODUCT(($K44:$O44)*($K$5:$O$5<=$I44)*($K$5:$O$5>($I44-$H44))))/$H44, IF($E44=$F$9, (U$6*$F44+$G44),0))) -> 5448
B45: Overhead LV insulators | C45: SUN | E45: 5 year cycle | F45: =IF($E45=Lists!$E$6, LINEST((OFFSET(INDEX($K45:$O45, MATCH($I45-$H45+1,$K$5:$O$5,0)),0,0,1, $H45)), (OFFSET(INDEX($K$6:$O$6, MATCH($I45-$H45+1,$K$5:$O$5,0)),0,0,1, $H45))),0) -> 0 | K45: 8717 | L45: 10197 | M45: 11172 | N45: 9826 | O45: 6727 | P45: =IF($E45=Lists!$E$7, K45, IF($E45=$H$9, (SUMPRODUCT(($K45:$O45)*($K$5:$O$5<=$I45)*($K$5:$O$5>($I45-$H45))))/$H45, IF($E45=$F$9, (P$6*$F45+$G45),0))) -> 8717 | Q45: =IF($E45=Lists!$E$7, L45, IF($E45=$H$9, (SUMPRODUCT(($K45:$O45)*($K$5:$O$5<=$I45)*($K$5:$O$5>($I45-$H45))))/$H45, IF($E45=$F$9, (Q$6*$F45+$G45),0))) -> 10197 | R45: =IF($E45=Lists!$E$7, M45, IF($E45=$H$9, (SUMPRODUCT(($K45:$O45)*($K$5:$O$5<=$I45)*($K$5:$O$5>($I45-$H45))))/$H45, IF($E45=$F$9, (R$6*$F45+$G45),0))) -> 11172 | S45: =IF($E45=Lists!$E$7, N45, IF($E45=$H$9, (SUMPRODUCT(($K45:$O45)*($K$5:$O$5<=$I45)*($K$5:$O$5>($I45-$H45))))/$H45, IF($E45=$F$9, (S$6*$F45+$G45),0))) -> 9826 | T45: =IF($E45=Lists!$E$7, O45, IF($E45=$H$9, (SUMPRODUCT(($K45:$O45)*($K$5:$O$5<=$I45)*($K$5:$O$5>($I45-$H45))))/$H45, IF($E45=$F$9, (T$6*$F45+$G45),0))) -> 6727 | U45: =IF($E45=Lists!$E$7, P45, IF($E45=$H$9, (SUMPRODUCT(($K45:$O45)*($K$5:$O$5<=$I45)*($K$5:$O$5>($I45-$H45))))/$H45, IF($E45=$F$9, (U$6*$F45+$G45),0))) -> 8717
B46: Overhead LV insulators | C46: WAR | E46: 5 year cycle | F46: =IF($E46=Lists!$E$6, LINEST((OFFSET(INDEX($K46:$O46, MATCH($I46-$H46+1,$K$5:$O$5,0)),0,0,1, $H46)), (OFFSET(INDEX($K$6:$O$6, MATCH($I46-$H46+1,$K$5:$O$5,0)),0,0,1, $H46))),0) -> 0 | K46: 7125 | L46: 4382 | M46: 6887 | N46: 6590 | O46: 4982 | P46: =IF($E46=Lists!$E$7, K46, IF($E46=$H$9, (SUMPRODUCT(($K46:$O46)*($K$5:$O$5<=$I46)*($K$5:$O$5>($I46-$H46))))/$H46, IF($E46=$F$9, (P$6*$F46+$G46),0))) -> 7125 | Q46: =IF($E46=Lists!$E$7, L46, IF($E46=$H$9, (SUMPRODUCT(($K46:$O46)*($K$5:$O$5<=$I46)*($K$5:$O$5>($I46-$H46))))/$H46, IF($E46=$F$9, (Q$6*$F46+$G46),0))) -> 4382 | R46: =IF($E46=Lists!$E$7, M46, IF($E46=$H$9, (SUMPRODUCT(($K46:$O46)*($K$5:$O$5<=$I46)*($K$5:$O$5>($I46-$H46))))/$H46, IF($E46=$F$9, (R$6*$F46+$G46),0))) -> 6887 | S46: =IF($E46=Lists!$E$7, N46, IF($E46=$H$9, (SUMPRODUCT(($K46:$O46)*($K$5:$O$5<=$I46)*($K$5:$O$5>($I46-$H46))))/$H46, IF($E46=$F$9, (S$6*$F46+$G46),0))) -> 6590 | T46: =IF($E46=Lists!$E$7, O46, IF($E46=$H$9, (SUMPRODUCT(($K46:$O46)*($K$5:$O$5<=$I46)*($K$5:$O$5>($I46-$H46))))/$H46, IF($E46=$F$9, (T$6*$F46+$G46),0))) -> 4982 | U46: =IF($E46=Lists!$E$7, P46, IF($E46=$H$9, (SUMPRODUCT(($K46:$O46)*($K$5:$O$5<=$I46)*($K$5:$O$5>($I46-$H46))))/$H46, IF($E46=$F$9, (U$6*$F46+$G46),0))) -> 7125
B48: Defective ACRs | E48: Linear | F48: =IF($E48=Lists!$E$6, LINEST((OFFSET(INDEX($K48:$O48, MATCH($I48-$H48+1,$K$5:$O$5,0)),0,0,1, $H48)), (OFFSET(INDEX($K$6:$O$6, MATCH($I48-$H48+1,$K$5:$O$5,0)),0,0,1, $H48))),0) -> 79.5 | G48: 2104 | H48: 4 | I48: 25 | K48: 2014 | L48: 2266 | M48: 2346 | N48: 2406 | O48: 2511 | P48: =IF($E48=Lists!$E$7, K48, IF($E48=$H$9, (SUMPRODUCT(($K48:$O48)*($K$5:$O$5<=$I48)*($K$5:$O$5>($I48-$H48))))/$H48, IF($E48=$F$9, (P$6*$F48+$G48),0))) -> 2581 | Q48: =IF($E48=Lists!$E$7, L48, IF($E48=$H$9, (SUMPRODUCT(($K48:$O48)*($K$5:$O$5<=$I48)*($K$5:$O$5>($I48-$H48))))/$H48, IF($E48=$F$9, (Q$6*$F48+$G48),0))) -> 2660.5 | R48: =IF($E48=Lists!$E$7, M48, IF($E48=$H$9, (SUMPRODUCT(($K48:$O48)*($K$5:$O$5<=$I48)*($K$5:$O$5>($I48-$H48))))/$H48, IF($E48=$F$9, (R$6*$F48+$G48),0))) -> 2740 | S48: =IF($E48=Lists!$E$7, N48, IF($E48=$H$9, (SUMPRODUCT(($K48:$O48)*($K$5:$O$5<=$I48)*($K$5:$O$5>($I48-$H48))))/$H48, IF($E48=$F$9, (S$6*$F48+$G48),0))) -> 2819.5 | T48: =IF($E48=Lists!$E$7, O48, IF($E48=$H$9, (SUMPRODUCT(($K48:$O48)*($K$5:$O$5<=$I48)*($K$5:$O$5>($I48-$H48))))/$H48, IF($E48=$F$9, (T$6*$F48+$G48),0))) -> 2899 | U48: =IF($E48=Lists!$E$7, P48, IF($E48=$H$9, (SUMPRODUCT(($K48:$O48)*($K$5:$O$5<=$I48)*($K$5:$O$5>($I48-$H48))))/$H48, IF($E48=$F$9, (U$6*$F48+$G48),0))) -> 2978.5
B51: Forecast defect find rate | C51: (per inspections)
B52: =B12 -> HV cross-arm replacement | C52: BAL | E52: Average | F52: =IF($E52=Lists!$E$6, LINEST((OFFSET(INDEX($K52:$O52, MATCH($I52-$H52+1,$K$5:$O$5,0)),0,0,1, $H52)), (OFFSET(INDEX($K$6:$O$6, MATCH($I52-$H52+1,$K$5:$O$5,0)),0,0,1, $H52))),0) -> 0 | H52: 4 | I52: 25 | L52: 0.1456790123 | M52: 0.1468105066 | N52: 0.1878871301 | O52: 0.09986595174 | P52: =IF($E52=Lists!$E$7, K52, IF($E52=$H$9, (SUMPRODUCT(($K52:$O52)*($K$5:$O$5<=$I52)*($K$5:$O$5>($I52-$H52))))/$H52, IF($E52=$F$9, MAX(P$6*$F52+$G52,0),0))) -> 0.1450606502 | Q52: =IF($E52=Lists!$E$7, L52, IF($E52=$H$9, (SUMPRODUCT(($K52:$O52)*($K$5:$O$5<=$I52)*($K$5:$O$5>($I52-$H52))))/$H52, IF($E52=$F$9, MAX(Q$6*$F52+$G52,0),0))) -> 0.1450606502 | R52: =IF($E52=Lists!$E$7, M52, IF($E52=$H$9, (SUMPRODUCT(($K52:$O52)*($K$5:$O$5<=$I52)*($K$5:$O$5>($I52-$H52))))/$H52, IF($E52=$F$9, MAX(R$6*$F52+$G52,0),0))) -> 0.1450606502 | S52: =IF($E52=Lists!$E$7, N52, IF($E52=$H$9, (SUMPRODUCT(($K52:$O52)*($K$5:$O$5<=$I52)*($K$5:$O$5>($I52-$H52))))/$H52, IF($E52=$F$9, MAX(S$6*$F52+$G52,0),0))) -> 0.1450606502 | T52: =IF($E52=Lists!$E$7, O52, IF($E52=$H$9, (SUMPRODUCT(($K52:$O52)*($K$5:$O$5<=$I52)*($K$5:$O$5>($I52-$H52))))/$H52, IF($E52=$F$9, MAX(T$6*$F52+$G52,0),0))) -> 0.1450606502 | U52: =IF($E52=Lists!$E$7, P52, IF($E52=$H$9, (SUMPRODUCT(($K52:$O52)*($K$5:$O$5<=$I52)*($K$5:$O$5>($I52-$H52))))/$H52, IF($E52=$F$9, MAX(U$6*$F52+$G52,0),0))) -> 0.1450606502
B53: HV cross-arm replacement | C53: BEN | E53: Average | F53: =IF($E53=Lists!$E$6, LINEST((OFFSET(INDEX($K53:$O53, MATCH($I53-$H53+1,$K$5:$O$5,0)),0,0,1, $H53)), (OFFSET(INDEX($K$6:$O$6, MATCH($I53-$H53+1,$K$5:$O$5,0)),0,0,1, $H53))),0) -> 0 | H53: 4 | I53: 25 | L53: 0.1266263941 | M53: 0.1271634615 | N53: 0.1654434251 | O53: 0.1076604555 | P53: =IF($E53=Lists!$E$7, K53, IF($E53=$H$9, (SUMPRODUCT(($K53:$O53)*($K$5:$O$5<=$I53)*($K$5:$O$5>($I53-$H53))))/$H53, IF($E53=$F$9, MAX(P$6*$F53+$G53,0),0))) -> 0.131723434 | Q53: =IF($E53=Lists!$E$7, L53, IF($E53=$H$9, (SUMPRODUCT(($K53:$O53)*($K$5:$O$5<=$I53)*($K$5:$O$5>($I53-$H53))))/$H53, IF($E53=$F$9, MAX(Q$6*$F53+$G53,0),0))) -> 0.131723434 | R53: =IF($E53=Lists!$E$7, M53, IF($E53=$H$9, (SUMPRODUCT(($K53:$O53)*($K$5:$O$5<=$I53)*($K$5:$O$5>($I53-$H53))))/$H53, IF($E53=$F$9, MAX(R$6*$F53+$G53,0),0))) -> 0.131723434 | S53: =IF($E53=Lists!$E$7, N53, IF($E53=$H$9, (SUMPRODUCT(($K53:$O53)*($K$5:$O$5<=$I53)*($K$5:$O$5>($I53-$H53))))/$H53, IF($E53=$F$9, MAX(S$6*$F53+$G53,0),0))) -> 0.131723434 | T53: =IF($E53=Lists!$E$7, O53, IF($E53=$H$9, (SUMPRODUCT(($K53:$O53)*($K$5:$O$5<=$I53)*($K$5:$O$5>($I53-$H53))))/$H53, IF($E53=$F$9, MAX(T$6*$F53+$G53,0),0))) -> 0.131723434 | U53: =IF($E53=Lists!$E$7, P53, IF($E53=$H$9, (SUMPRODUCT(($K53:$O53)*($K$5:$O$5<=$I53)*($K$5:$O$5>($I53-$H53))))/$H53, IF($E53=$F$9, MAX(U$6*$F53+$G53,0),0))) -> 0.131723434
B54: HV cross-arm replacement | C54: GEE | E54: Linear | F54: =IF($E54=Lists!$E$6, LINEST((OFFSET(INDEX($K54:$O54, MATCH($I54-$H54+1,$K$5:$O$5,0)),0,0,1, $H54)), (OFFSET(INDEX($K$6:$O$6, MATCH($I54-$H54+1,$K$5:$O$5,0)),0,0,1, $H54))),0) -> -0.01580982743 | G54: 0.2158977563 | H54: 4 | I54: 25 | L54: 0.1832740214 | M54: 0.1695616212 | N54: 0.1534839925 | O54: 0.1359338061 | P54: =IF($E54=Lists!$E$7, K54, IF($E54=$H$9, (SUMPRODUCT(($K54:$O54)*($K$5:$O$5<=$I54)*($K$5:$O$5>($I54-$H54))))/$H54, IF($E54=$F$9, MAX(P$6*$F54+$G54,0),0))) -> 0.1210387917 | Q54: =IF($E54=Lists!$E$7, L54, IF($E54=$H$9, (SUMPRODUCT(($K54:$O54)*($K$5:$O$5<=$I54)*($K$5:$O$5>($I54-$H54))))/$H54, IF($E54=$F$9, MAX(Q$6*$F54+$G54,0),0))) -> 0.1052289643 | R54: =IF($E54=Lists!$E$7, M54, IF($E54=$H$9, (SUMPRODUCT(($K54:$O54)*($K$5:$O$5<=$I54)*($K$5:$O$5>($I54-$H54))))/$H54, IF($E54=$F$9, MAX(R$6*$F54+$G54,0),0))) -> 0.08941913684 | S54: =IF($E54=Lists!$E$7, N54, IF($E54=$H$9, (SUMPRODUCT(($K54:$O54)*($K$5:$O$5<=$I54)*($K$5:$O$5>($I54-$H54))))/$H54, IF($E54=$F$9, MAX(S$6*$F54+$G54,0),0))) -> 0.07360930941 | T54: =IF($E54=Lists!$E$7, O54, IF($E54=$H$9, (SUMPRODUCT(($K54:$O54)*($K$5:$O$5<=$I54)*($K$5:$O$5>($I54-$H54))))/$H54, IF($E54=$F$9, MAX(T$6*$F54+$G54,0),0))) -> 0.05779948197 | U54: =IF($E54=Lists!$E$7, P54, IF($E54=$H$9, (SUMPRODUCT(($K54:$O54)*($K$5:$O$5<=$I54)*($K$5:$O$5>($I54-$H54))))/$H54, IF($E54=$F$9, MAX(U$6*$F54+$G54,0),0))) -> 0.04198965454
B55: HV cross-arm replacement | C55: HOR | E55: Average | F55: =IF($E55=Lists!$E$6, LINEST((OFFSET(INDEX($K55:$O55, MATCH($I55-$H55+1,$K$5:$O$5,0)),0,0,1, $H55)), (OFFSET(INDEX($K$6:$O$6, MATCH($I55-$H55+1,$K$5:$O$5,0)),0,0,1, $H55))),0) -> 0 | H55: 4 | I55: 25 | L55: 0.1321336761 | M55: 0.1047453704 | N55: 0.1137469586 | O55: 0.07959743824 | P55: =IF($E55=Lists!$E$7, K55, IF($E55=$H$9, (SUMPRODUCT(($K55:$O55)*($K$5:$O$5<=$I55)*($K$5:$O$5>($I55-$H55))))/$H55, IF($E55=$F$9, MAX(P$6*$F55+$G55,0),0))) -> 0.1075558608 | Q55: =IF($E55=Lists!$E$7, L55, IF($E55=$H$9, (SUMPRODUCT(($K55:$O55)*($K$5:$O$5<=$I55)*($K$5:$O$5>($I55-$H55))))/$H55, IF($E55=$F$9, MAX(Q$6*$F55+$G55,0),0))) -> 0.1075558608 | R55: =IF($E55=Lists!$E$7, M55, IF($E55=$H$9, (SUMPRODUCT(($K55:$O55)*($K$5:$O$5<=$I55)*($K$5:$O$5>($I55-$H55))))/$H55, IF($E55=$F$9, MAX(R$6*$F55+$G55,0),0))) -> 0.1075558608 | S55: =IF($E55=Lists!$E$7, N55, IF($E55=$H$9, (SUMPRODUCT(($K55:$O55)*($K$5:$O$5<=$I55)*($K$5:$O$5>($I55-$H55))))/$H55, IF($E55=$F$9, MAX(S$6*$F55+$G55,0),0))) -> 0.1075558608 | T55: =IF($E55=Lists!$E$7, O55, IF($E55=$H$9, (SUMPRODUCT(($K55:$O55)*($K$5:$O$5<=$I55)*($K$5:$O$5>($I55-$H55))))/$H55, IF($E55=$F$9, MAX(T$6*$F55+$G55,0),0))) -> 0.1075558608 | U55: =IF($E55=Lists!$E$7, P55, IF($E55=$H$9, (SUMPRODUCT(($K55:$O55)*($K$5:$O$5<=$I55)*($K$5:$O$5>($I55-$H55))))/$H55, IF($E55=$F$9, MAX(U$6*$F55+$G55,0),0))) -> 0.1075558608
B56: HV cross-arm replacement | C56: MIL | E56: Average | F56: =IF($E56=Lists!$E$6, LINEST((OFFSET(INDEX($K56:$O56, MATCH($I56-$H56+1,$K$5:$O$5,0)),0,0,1, $H56)), (OFFSET(INDEX($K$6:$O$6, MATCH($I56-$H56+1,$K$5:$O$5,0)),0,0,1, $H56))),0) -> 0 | H56: 4 | I56: 25 | L56: 0.1013986014 | M56: 0.127027027 | N56: 0.1235875706 | O56: 0.1347708895 | P56: =IF($E56=Lists!$E$7, K56, IF($E56=$H$9, (SUMPRODUCT(($K56:$O56)*($K$5:$O$5<=$I56)*($K$5:$O$5>($I56-$H56))))/$H56, IF($E56=$F$9, MAX(P$6*$F56+$G56,0),0))) -> 0.1216960221 | Q56: =IF($E56=Lists!$E$7, L56, IF($E56=$H$9, (SUMPRODUCT(($K56:$O56)*($K$5:$O$5<=$I56)*($K$5:$O$5>($I56-$H56))))/$H56, IF($E56=$F$9, MAX(Q$6*$F56+$G56,0),0))) -> 0.1216960221 | R56: =IF($E56=Lists!$E$7, M56, IF($E56=$H$9, (SUMPRODUCT(($K56:$O56)*($K$5:$O$5<=$I56)*($K$5:$O$5>($I56-$H56))))/$H56, IF($E56=$F$9, MAX(R$6*$F56+$G56,0),0))) -> 0.1216960221 | S56: =IF($E56=Lists!$E$7, N56, IF($E56=$H$9, (SUMPRODUCT(($K56:$O56)*($K$5:$O$5<=$I56)*($K$5:$O$5>($I56-$H56))))/$H56, IF($E56=$F$9, MAX(S$6*$F56+$G56,0),0))) -> 0.1216960221 | T56: =IF($E56=Lists!$E$7, O56, IF($E56=$H$9, (SUMPRODUCT(($K56:$O56)*($K$5:$O$5<=$I56)*($K$5:$O$5>($I56-$H56))))/$H56, IF($E56=$F$9, MAX(T$6*$F56+$G56,0),0))) -> 0.1216960221 | U56: =IF($E56=Lists!$E$7, P56, IF($E56=$H$9, (SUMPRODUCT(($K56:$O56)*($K$5:$O$5<=$I56)*($K$5:$O$5>($I56-$H56))))/$H56, IF($E56=$F$9, MAX(U$6*$F56+$G56,0),0))) -> 0.1216960221
B57: HV cross-arm replacement | C57: SHE | E57: Average | F57: =IF($E57=Lists!$E$6, LINEST((OFFSET(INDEX($K57:$O57, MATCH($I57-$H57+1,$K$5:$O$5,0)),0,0,1, $H57)), (OFFSET(INDEX($K$6:$O$6, MATCH($I57-$H57+1,$K$5:$O$5,0)),0,0,1, $H57))),0) -> 0 | H57: 4 | I57: 25 | L57: 0.1647826087 | M57: 0.1344155844 | N57: 0.1387054161 | O57: 0.1279876638 | P57: =IF($E57=Lists!$E$7, K57, IF($E57=$H$9, (SUMPRODUCT(($K57:$O57)*($K$5:$O$5<=$I57)*($K$5:$O$5>($I57-$H57))))/$H57, IF($E57=$F$9, MAX(P$6*$F57+$G57,0),0))) -> 0.1414728183 | Q57: =IF($E57=Lists!$E$7, L57, IF($E57=$H$9, (SUMPRODUCT(($K57:$O57)*($K$5:$O$5<=$I57)*($K$5:$O$5>($I57-$H57))))/$H57, IF($E57=$F$9, MAX(Q$6*$F57+$G57,0),0))) -> 0.1414728183 | R57: =IF($E57=Lists!$E$7, M57, IF($E57=$H$9, (SUMPRODUCT(($K57:$O57)*($K$5:$O$5<=$I57)*($K$5:$O$5>($I57-$H57))))/$H57, IF($E57=$F$9, MAX(R$6*$F57+$G57,0),0))) -> 0.1414728183 | S57: =IF($E57=Lists!$E$7, N57, IF($E57=$H$9, (SUMPRODUCT(($K57:$O57)*($K$5:$O$5<=$I57)*($K$5:$O$5>($I57-$H57))))/$H57, IF($E57=$F$9, MAX(S$6*$F57+$G57,0),0))) -> 0.1414728183 | T57: =IF($E57=Lists!$E$7, O57, IF($E57=$H$9, (SUMPRODUCT(($K57:$O57)*($K$5:$O$5<=$I57)*($K$5:$O$5>($I57-$H57))))/$H57, IF($E57=$F$9, MAX(T$6*$F57+$G57,0),0))) -> 0.1414728183 | U57: =IF($E57=Lists!$E$7, P57, IF($E57=$H$9, (SUMPRODUCT(($K57:$O57)*($K$5:$O$5<=$I57)*($K$5:$O$5>($I57-$H57))))/$H57, IF($E57=$F$9, MAX(U$6*$F57+$G57,0),0))) -> 0.1414728183
B58: HV cross-arm replacement | C58: SUN | E58: Average | F58: =IF($E58=Lists!$E$6, LINEST((OFFSET(INDEX($K58:$O58, MATCH($I58-$H58+1,$K$5:$O$5,0)),0,0,1, $H58)), (OFFSET(INDEX($K$6:$O$6, MATCH($I58-$H58+1,$K$5:$O$5,0)),0,0,1, $H58))),0) -> 0 | H58: 4 | I58: 25 | L58: 0.09078467153 | M58: 0.08939478068 | N58: 0.04564315353 | O58: 0.05601816805 | P58: =IF($E58=Lists!$E$7, K58, IF($E58=$H$9, (SUMPRODUCT(($K58:$O58)*($K$5:$O$5<=$I58)*($K$5:$O$5>($I58-$H58))))/$H58, IF($E58=$F$9, MAX(P$6*$F58+$G58,0),0))) -> 0.07046019345 | Q58: =IF($E58=Lists!$E$7, L58, IF($E58=$H$9, (SUMPRODUCT(($K58:$O58)*($K$5:$O$5<=$I58)*($K$5:$O$5>($I58-$H58))))/$H58, IF($E58=$F$9, MAX(Q$6*$F58+$G58,0),0))) -> 0.07046019345 | R58: =IF($E58=Lists!$E$7, M58, IF($E58=$H$9, (SUMPRODUCT(($K58:$O58)*($K$5:$O$5<=$I58)*($K$5:$O$5>($I58-$H58))))/$H58, IF($E58=$F$9, MAX(R$6*$F58+$G58,0),0))) -> 0.07046019345 | S58: =IF($E58=Lists!$E$7, N58, IF($E58=$H$9, (SUMPRODUCT(($K58:$O58)*($K$5:$O$5<=$I58)*($K$5:$O$5>($I58-$H58))))/$H58, IF($E58=$F$9, MAX(S$6*$F58+$G58,0),0))) -> 0.07046019345 | T58: =IF($E58=Lists!$E$7, O58, IF($E58=$H$9, (SUMPRODUCT(($K58:$O58)*($K$5:$O$5<=$I58)*($K$5:$O$5>($I58-$H58))))/$H58, IF($E58=$F$9, MAX(T$6*$F58+$G58,0),0))) -> 0.07046019345 | U58: =IF($E58=Lists!$E$7, P58, IF($E58=$H$9, (SUMPRODUCT(($K58:$O58)*($K$5:$O$5<=$I58)*($K$5:$O$5>($I58-$H58))))/$H58, IF($E58=$F$9, MAX(U$6*$F58+$G58,0),0))) -> 0.07046019345
B59: HV cross-arm replacement | C59: WAR | E59: Average | F59: =IF($E59=Lists!$E$6, LINEST((OFFSET(INDEX($K59:$O59, MATCH($I59-$H59+1,$K$5:$O$5,0)),0,0,1, $H59)), (OFFSET(INDEX($K$6:$O$6, MATCH($I59-$H59+1,$K$5:$O$5,0)),0,0,1, $H59))),0) -> 0 | H59: 4 | I59: 25 | L59: 0.294047619 | M59: 0.2886519421 | N59: 0.2157360406 | O59: 0.1798941799 | P59: =IF($E59=Lists!$E$7, K59, IF($E59=$H$9, (SUMPRODUCT(($K59:$O59)*($K$5:$O$5<=$I59)*($K$5:$O$5>($I59-$H59))))/$H59, IF($E59=$F$9, MAX(P$6*$F59+$G59,0),0))) -> 0.2445824454 | Q59: =IF($E59=Lists!$E$7, L59, IF($E59=$H$9, (SUMPRODUCT(($K59:$O59)*($K$5:$O$5<=$I59)*($K$5:$O$5>($I59-$H59))))/$H59, IF($E59=$F$9, MAX(Q$6*$F59+$G59,0),0))) -> 0.2445824454 | R59: =IF($E59=Lists!$E$7, M59, IF($E59=$H$9, (SUMPRODUCT(($K59:$O59)*($K$5:$O$5<=$I59)*($K$5:$O$5>($I59-$H59))))/$H59, IF($E59=$F$9, MAX(R$6*$F59+$G59,0),0))) -> 0.2445824454 | S59: =IF($E59=Lists!$E$7, N59, IF($E59=$H$9, (SUMPRODUCT(($K59:$O59)*($K$5:$O$5<=$I59)*($K$5:$O$5>($I59-$H59))))/$H59, IF($E59=$F$9, MAX(S$6*$F59+$G59,0),0))) -> 0.2445824454 | T59: =IF($E59=Lists!$E$7, O59, IF($E59=$H$9, (SUMPRODUCT(($K59:$O59)*($K$5:$O$5<=$I59)*($K$5:$O$5>($I59-$H59))))/$H59, IF($E59=$F$9, MAX(T$6*$F59+$G59,0),0))) -> 0.2445824454 | U59: =IF($E59=Lists!$E$7, P59, IF($E59=$H$9, (SUMPRODUCT(($K59:$O59)*($K$5:$O$5<=$I59)*($K$5:$O$5>($I59-$H59))))/$H59, IF($E59=$F$9, MAX(U$6*$F59+$G59,0),0))) -> 0.2445824454
B61: =B21 -> LV cross-arm replacement | C61: BAL | E61: Average | F61: =IF($E61=Lists!$E$6, LINEST((OFFSET(INDEX($K61:$O61, MATCH($I61-$H61+1,$K$5:$O$5,0)),0,0,1, $H61)), (OFFSET(INDEX($K$6:$O$6, MATCH($I61-$H61+1,$K$5:$O$5,0)),0,0,1, $H61))),0) -> 0 | H61: 4 | I61: 25 | L61: 0.06645898235 | M61: 0.07379409647 | N61: 0.06442058497 | O61: 0.05102915952 | P61: =IF($E61=Lists!$E$7, K61, IF($E61=$H$9, (SUMPRODUCT(($K61:$O61)*($K$5:$O$5<=$I61)*($K$5:$O$5>($I61-$H61))))/$H61, IF($E61=$F$9, MAX(P$6*$F61+$G61,0),0))) -> 0.06392570583 | Q61: =IF($E61=Lists!$E$7, L61, IF($E61=$H$9, (SUMPRODUCT(($K61:$O61)*($K$5:$O$5<=$I61)*($K$5:$O$5>($I61-$H61))))/$H61, IF($E61=$F$9, MAX(Q$6*$F61+$G61,0),0))) -> 0.06392570583 | R61: =IF($E61=Lists!$E$7, M61, IF($E61=$H$9, (SUMPRODUCT(($K61:$O61)*($K$5:$O$5<=$I61)*($K$5:$O$5>($I61-$H61))))/$H61, IF($E61=$F$9, MAX(R$6*$F61+$G61,0),0))) -> 0.06392570583 | S61: =IF($E61=Lists!$E$7, N61, IF($E61=$H$9, (SUMPRODUCT(($K61:$O61)*($K$5:$O$5<=$I61)*($K$5:$O$5>($I61-$H61))))/$H61, IF($E61=$F$9, MAX(S$6*$F61+$G61,0),0))) -> 0.06392570583 | T61: =IF($E61=Lists!$E$7, O61, IF($E61=$H$9, (SUMPRODUCT(($K61:$O61)*($K$5:$O$5<=$I61)*($K$5:$O$5>($I61-$H61))))/$H61, IF($E61=$F$9, MAX(T$6*$F61+$G61,0),0))) -> 0.06392570583 | U61: =IF($E61=Lists!$E$7, P61, IF($E61=$H$9, (SUMPRODUCT(($K61:$O61)*($K$5:$O$5<=$I61)*($K$5:$O$5>($I61-$H61))))/$H61, IF($E61=$F$9, MAX(U$6*$F61+$G61,0),0))) -> 0.06392570583
B62: LV cross-arm replacement | C62: BEN | E62: Average | F62: =IF($E62=Lists!$E$6, LINEST((OFFSET(INDEX($K62:$O62, MATCH($I62-$H62+1,$K$5:$O$5,0)),0,0,1, $H62)), (OFFSET(INDEX($K$6:$O$6, MATCH($I62-$H62+1,$K$5:$O$5,0)),0,0,1, $H62))),0) -> 0 | H62: 4 | I62: 25 | L62: 0.05962955963 | M62: 0.06075653571 | N62: 0.04445374634 | O62: 0.04335197935 | P62: =IF($E62=Lists!$E$7, K62, IF($E62=$H$9, (SUMPRODUCT(($K62:$O62)*($K$5:$O$5<=$I62)*($K$5:$O$5>($I62-$H62))))/$H62, IF($E62=$F$9, MAX(P$6*$F62+$G62,0),0))) -> 0.05204795526 | Q62: =IF($E62=Lists!$E$7, L62, IF($E62=$H$9, (SUMPRODUCT(($K62:$O62)*($K$5:$O$5<=$I62)*($K$5:$O$5>($I62-$H62))))/$H62, IF($E62=$F$9, MAX(Q$6*$F62+$G62,0),0))) -> 0.05204795526 | R62: =IF($E62=Lists!$E$7, M62, IF($E62=$H$9, (SUMPRODUCT(($K62:$O62)*($K$5:$O$5<=$I62)*($K$5:$O$5>($I62-$H62))))/$H62, IF($E62=$F$9, MAX(R$6*$F62+$G62,0),0))) -> 0.05204795526 | S62: =IF($E62=Lists!$E$7, N62, IF($E62=$H$9, (SUMPRODUCT(($K62:$O62)*($K$5:$O$5<=$I62)*($K$5:$O$5>($I62-$H62))))/$H62, IF($E62=$F$9, MAX(S$6*$F62+$G62,0),0))) -> 0.05204795526 | T62: =IF($E62=Lists!$E$7, O62, IF($E62=$H$9, (SUMPRODUCT(($K62:$O62)*($K$5:$O$5<=$I62)*($K$5:$O$5>($I62-$H62))))/$H62, IF($E62=$F$9, MAX(T$6*$F62+$G62,0),0))) -> 0.05204795526 | U62: =IF($E62=Lists!$E$7, P62, IF($E62=$H$9, (SUMPRODUCT(($K62:$O62)*($K$5:$O$5<=$I62)*($K$5:$O$5>($I62-$H62))))/$H62, IF($E62=$F$9, MAX(U$6*$F62+$G62,0),0))) -> 0.05204795526
B63: LV cross-arm replacement | C63: GEE | E63: Average | F63: =IF($E63=Lists!$E$6, LINEST((OFFSET(INDEX($K63:$O63, MATCH($I63-$H63+1,$K$5:$O$5,0)),0,0,1, $H63)), (OFFSET(INDEX($K$6:$O$6, MATCH($I63-$H63+1,$K$5:$O$5,0)),0,0,1, $H63))),0) -> 0 | H63: 4 | I63: 25 | L63: 0.07177602421 | M63: 0.07168810763 | N63: 0.06631148321 | O63: 0.04624883504 | P63: =IF($E63=Lists!$E$7, K63, IF($E63=$H$9, (SUMPRODUCT(($K63:$O63)*($K$5:$O$5<=$I63)*($K$5:$O$5>($I63-$H63))))/$H63, IF($E63=$F$9, MAX(P$6*$F63+$G63,0),0))) -> 0.06400611252 | Q63: =IF($E63=Lists!$E$7, L63, IF($E63=$H$9, (SUMPRODUCT(($K63:$O63)*($K$5:$O$5<=$I63)*($K$5:$O$5>($I63-$H63))))/$H63, IF($E63=$F$9, MAX(Q$6*$F63+$G63,0),0))) -> 0.06400611252 | R63: =IF($E63=Lists!$E$7, M63, IF($E63=$H$9, (SUMPRODUCT(($K63:$O63)*($K$5:$O$5<=$I63)*($K$5:$O$5>($I63-$H63))))/$H63, IF($E63=$F$9, MAX(R$6*$F63+$G63,0),0))) -> 0.06400611252 | S63: =IF($E63=Lists!$E$7, N63, IF($E63=$H$9, (SUMPRODUCT(($K63:$O63)*($K$5:$O$5<=$I63)*($K$5:$O$5>($I63-$H63))))/$H63, IF($E63=$F$9, MAX(S$6*$F63+$G63,0),0))) -> 0.06400611252 | T63: =IF($E63=Lists!$E$7, O63, IF($E63=$H$9, (SUMPRODUCT(($K63:$O63)*($K$5:$O$5<=$I63)*($K$5:$O$5>($I63-$H63))))/$H63, IF($E63=$F$9, MAX(T$6*$F63+$G63,0),0))) -> 0.06400611252 | U63: =IF($E63=Lists!$E$7, P63, IF($E63=$H$9, (SUMPRODUCT(($K63:$O63)*($K$5:$O$5<=$I63)*($K$5:$O$5>($I63-$H63))))/$H63, IF($E63=$F$9, MAX(U$6*$F63+$G63,0),0))) -> 0.06400611252
B64: LV cross-arm replacement | C64: HOR | E64: Average | F64: =IF($E64=Lists!$E$6, LINEST((OFFSET(INDEX($K64:$O64, MATCH($I64-$H64+1,$K$5:$O$5,0)),0,0,1, $H64)), (OFFSET(INDEX($K$6:$O$6, MATCH($I64-$H64+1,$K$5:$O$5,0)),0,0,1, $H64))),0) -> 0 | H64: 4 | I64: 25 | L64: 0.05359001041 | M64: 0.04229471316 | N64: 0.04845814978 | O64: 0.02854918246 | P64: =IF($E64=Lists!$E$7, K64, IF($E64=$H$9, (SUMPRODUCT(($K64:$O64)*($K$5:$O$5<=$I64)*($K$5:$O$5>($I64-$H64))))/$H64, IF($E64=$F$9, MAX(P$6*$F64+$G64,0),0))) -> 0.04322301395 | Q64: =IF($E64=Lists!$E$7, L64, IF($E64=$H$9, (SUMPRODUCT(($K64:$O64)*($K$5:$O$5<=$I64)*($K$5:$O$5>($I64-$H64))))/$H64, IF($E64=$F$9, MAX(Q$6*$F64+$G64,0),0))) -> 0.04322301395 | R64: =IF($E64=Lists!$E$7, M64, IF($E64=$H$9, (SUMPRODUCT(($K64:$O64)*($K$5:$O$5<=$I64)*($K$5:$O$5>($I64-$H64))))/$H64, IF($E64=$F$9, MAX(R$6*$F64+$G64,0),0))) -> 0.04322301395 | S64: =IF($E64=Lists!$E$7, N64, IF($E64=$H$9, (SUMPRODUCT(($K64:$O64)*($K$5:$O$5<=$I64)*($K$5:$O$5>($I64-$H64))))/$H64, IF($E64=$F$9, MAX(S$6*$F64+$G64,0),0))) -> 0.04322301395 | T64: =IF($E64=Lists!$E$7, O64, IF($E64=$H$9, (SUMPRODUCT(($K64:$O64)*($K$5:$O$5<=$I64)*($K$5:$O$5>($I64-$H64))))/$H64, IF($E64=$F$9, MAX(T$6*$F64+$G64,0),0))) -> 0.04322301395 | U64: =IF($E64=Lists!$E$7, P64, IF($E64=$H$9, (SUMPRODUCT(($K64:$O64)*($K$5:$O$5<=$I64)*($K$5:$O$5>($I64-$H64))))/$H64, IF($E64=$F$9, MAX(U$6*$F64+$G64,0),0))) -> 0.04322301395
B65: LV cross-arm replacement | C65: MIL | E65: Linear | F65: =IF($E65=Lists!$E$6, LINEST((OFFSET(INDEX($K65:$O65, MATCH($I65-$H65+1,$K$5:$O$5,0)),0,0,1, $H65)), (OFFSET(INDEX($K$6:$O$6, MATCH($I65-$H65+1,$K$5:$O$5,0)),0,0,1, $H65))),0) -> 0.005395081397 | G65: 0.02400548661 | H65: 4 | I65: 25 | L65: 0.03474598579 | M65: 0.04156738152 | N65: 0.04298150163 | O65: 0.05225821707 | P65: =IF($E65=Lists!$E$7, K65, IF($E65=$H$9, (SUMPRODUCT(($K65:$O65)*($K$5:$O$5<=$I65)*($K$5:$O$5>($I65-$H65))))/$H65, IF($E65=$F$9, MAX(P$6*$F65+$G65,0),0))) -> 0.056375975 | Q65: =IF($E65=Lists!$E$7, L65, IF($E65=$H$9, (SUMPRODUCT(($K65:$O65)*($K$5:$O$5<=$I65)*($K$5:$O$5>($I65-$H65))))/$H65, IF($E65=$F$9, MAX(Q$6*$F65+$G65,0),0))) -> 0.06177105639 | R65: =IF($E65=Lists!$E$7, M65, IF($E65=$H$9, (SUMPRODUCT(($K65:$O65)*($K$5:$O$5<=$I65)*($K$5:$O$5>($I65-$H65))))/$H65, IF($E65=$F$9, MAX(R$6*$F65+$G65,0),0))) -> 0.06716613779 | S65: =IF($E65=Lists!$E$7, N65, IF($E65=$H$9, (SUMPRODUCT(($K65:$O65)*($K$5:$O$5<=$I65)*($K$5:$O$5>($I65-$H65))))/$H65, IF($E65=$F$9, MAX(S$6*$F65+$G65,0),0))) -> 0.07256121919 | T65: =IF($E65=Lists!$E$7, O65, IF($E65=$H$9, (SUMPRODUCT(($K65:$O65)*($K$5:$O$5<=$I65)*($K$5:$O$5>($I65-$H65))))/$H65, IF($E65=$F$9, MAX(T$6*$F65+$G65,0),0))) -> 0.07795630059 | U65: =IF($E65=Lists!$E$7, P65, IF($E65=$H$9, (SUMPRODUCT(($K65:$O65)*($K$5:$O$5<=$I65)*($K$5:$O$5>($I65-$H65))))/$H65, IF($E65=$F$9, MAX(U$6*$F65+$G65,0),0))) -> 0.08335138198
B66: LV cross-arm replacement | C66: SHE | E66: Linear | F66: =IF($E66=Lists!$E$6, LINEST((OFFSET(INDEX($K66:$O66, MATCH($I66-$H66+1,$K$5:$O$5,0)),0,0,1, $H66)), (OFFSET(INDEX($K$6:$O$6, MATCH($I66-$H66+1,$K$5:$O$5,0)),0,0,1, $H66))),0) -> -0.007143019166 | G66: 0.08208998435 | H66: 4 | I66: 25 | L66: 0.06622185154 | M66: 0.06098415814 | N66: 0.05761772853 | O66: 0.04353393086 | P66: =IF($E66=Lists!$E$7, K66, IF($E66=$H$9, (SUMPRODUCT(($K66:$O66)*($K$5:$O$5<=$I66)*($K$5:$O$5>($I66-$H66))))/$H66, IF($E66=$F$9, MAX(P$6*$F66+$G66,0),0))) -> 0.03923186935 | Q66: =IF($E66=Lists!$E$7, L66, IF($E66=$H$9, (SUMPRODUCT(($K66:$O66)*($K$5:$O$5<=$I66)*($K$5:$O$5>($I66-$H66))))/$H66, IF($E66=$F$9, MAX(Q$6*$F66+$G66,0),0))) -> 0.03208885019 | R66: =IF($E66=Lists!$E$7, M66, IF($E66=$H$9, (SUMPRODUCT(($K66:$O66)*($K$5:$O$5<=$I66)*($K$5:$O$5>($I66-$H66))))/$H66, IF($E66=$F$9, MAX(R$6*$F66+$G66,0),0))) -> 0.02494583102 | S66: =IF($E66=Lists!$E$7, N66, IF($E66=$H$9, (SUMPRODUCT(($K66:$O66)*($K$5:$O$5<=$I66)*($K$5:$O$5>($I66-$H66))))/$H66, IF($E66=$F$9, MAX(S$6*$F66+$G66,0),0))) -> 0.01780281185 | T66: =IF($E66=Lists!$E$7, O66, IF($E66=$H$9, (SUMPRODUCT(($K66:$O66)*($K$5:$O$5<=$I66)*($K$5:$O$5>($I66-$H66))))/$H66, IF($E66=$F$9, MAX(T$6*$F66+$G66,0),0))) -> 0.01065979269 | U66: =IF($E66=Lists!$E$7, P66, IF($E66=$H$9, (SUMPRODUCT(($K66:$O66)*($K$5:$O$5<=$I66)*($K$5:$O$5>($I66-$H66))))/$H66, IF($E66=$F$9, MAX(U$6*$F66+$G66,0),0))) -> 0.003516773522
B67: LV cross-arm replacement | C67: SUN | E67: Average | F67: =IF($E67=Lists!$E$6, LINEST((OFFSET(INDEX($K67:$O67, MATCH($I67-$H67+1,$K$5:$O$5,0)),0,0,1, $H67)), (OFFSET(INDEX($K$6:$O$6, MATCH($I67-$H67+1,$K$5:$O$5,0)),0,0,1, $H67))),0) -> 0 | H67: 4 | I67: 25 | L67: 0.04344415024 | M67: 0.05164697458 | N67: 0.04681457358 | O67: 0.03448788464 | P67: =IF($E67=Lists!$E$7, K67, IF($E67=$H$9, (SUMPRODUCT(($K67:$O67)*($K$5:$O$5<=$I67)*($K$5:$O$5>($I67-$H67))))/$H67, IF($E67=$F$9, MAX(P$6*$F67+$G67,0),0))) -> 0.04409839576 | Q67: =IF($E67=Lists!$E$7, L67, IF($E67=$H$9, (SUMPRODUCT(($K67:$O67)*($K$5:$O$5<=$I67)*($K$5:$O$5>($I67-$H67))))/$H67, IF($E67=$F$9, MAX(Q$6*$F67+$G67,0),0))) -> 0.04409839576 | R67: =IF($E67=Lists!$E$7, M67, IF($E67=$H$9, (SUMPRODUCT(($K67:$O67)*($K$5:$O$5<=$I67)*($K$5:$O$5>($I67-$H67))))/$H67, IF($E67=$F$9, MAX(R$6*$F67+$G67,0),0))) -> 0.04409839576 | S67: =IF($E67=Lists!$E$7, N67, IF($E67=$H$9, (SUMPRODUCT(($K67:$O67)*($K$5:$O$5<=$I67)*($K$5:$O$5>($I67-$H67))))/$H67, IF($E67=$F$9, MAX(S$6*$F67+$G67,0),0))) -> 0.04409839576 | T67: =IF($E67=Lists!$E$7, O67, IF($E67=$H$9, (SUMPRODUCT(($K67:$O67)*($K$5:$O$5<=$I67)*($K$5:$O$5>($I67-$H67))))/$H67, IF($E67=$F$9, MAX(T$6*$F67+$G67,0),0))) -> 0.04409839576 | U67: =IF($E67=Lists!$E$7, P67, IF($E67=$H$9, (SUMPRODUCT(($K67:$O67)*($K$5:$O$5<=$I67)*($K$5:$O$5>($I67-$H67))))/$H67, IF($E67=$F$9, MAX(U$6*$F67+$G67,0),0))) -> 0.04409839576
B68: LV cross-arm replacement | C68: WAR | E68: Average | F68: =IF($E68=Lists!$E$6, LINEST((OFFSET(INDEX($K68:$O68, MATCH($I68-$H68+1,$K$5:$O$5,0)),0,0,1, $H68)), (OFFSET(INDEX($K$6:$O$6, MATCH($I68-$H68+1,$K$5:$O$5,0)),0,0,1, $H68))),0) -> 0 | H68: 4 | I68: 25 | L68: 0.1209493382 | M68: 0.1224045303 | N68: 0.08163884674 | O68: 0.05138498595 | P68: =IF($E68=Lists!$E$7, K68, IF($E68=$H$9, (SUMPRODUCT(($K68:$O68)*($K$5:$O$5<=$I68)*($K$5:$O$5>($I68-$H68))))/$H68, IF($E68=$F$9, MAX(P$6*$F68+$G68,0),0))) -> 0.09409442529 | Q68: =IF($E68=Lists!$E$7, L68, IF($E68=$H$9, (SUMPRODUCT(($K68:$O68)*($K$5:$O$5<=$I68)*($K$5:$O$5>($I68-$H68))))/$H68, IF($E68=$F$9, MAX(Q$6*$F68+$G68,0),0))) -> 0.09409442529 | R68: =IF($E68=Lists!$E$7, M68, IF($E68=$H$9, (SUMPRODUCT(($K68:$O68)*($K$5:$O$5<=$I68)*($K$5:$O$5>($I68-$H68))))/$H68, IF($E68=$F$9, MAX(R$6*$F68+$G68,0),0))) -> 0.09409442529 | S68: =IF($E68=Lists!$E$7, N68, IF($E68=$H$9, (SUMPRODUCT(($K68:$O68)*($K$5:$O$5<=$I68)*($K$5:$O$5>($I68-$H68))))/$H68, IF($E68=$F$9, MAX(S$6*$F68+$G68,0),0))) -> 0.09409442529 | T68: =IF($E68=Lists!$E$7, O68, IF($E68=$H$9, (SUMPRODUCT(($K68:$O68)*($K$5:$O$5<=$I68)*($K$5:$O$5>($I68-$H68))))/$H68, IF($E68=$F$9, MAX(T$6*$F68+$G68,0),0))) -> 0.09409442529 | U68: =IF($E68=Lists!$E$7, P68, IF($E68=$H$9, (SUMPRODUCT(($K68:$O68)*($K$5:$O$5<=$I68)*($K$5:$O$5>($I68-$H68))))/$H68, IF($E68=$F$9, MAX(U$6*$F68+$G68,0),0))) -> 0.09409442529
B70: =B30 -> Overhead HV insulators | C70: BAL | E70: Average | F70: =IF($E70=Lists!$E$6, LINEST((OFFSET(INDEX($K70:$O70, MATCH($I70-$H70+1,$K$5:$O$5,0)),0,0,1, $H70)), (OFFSET(INDEX($K$6:$O$6, MATCH($I70-$H70+1,$K$5:$O$5,0)),0,0,1, $H70))),0) -> 0 | H70: 4 | I70: 25 | L70: 0.01780397399 | M70: 0.01545253863 | N70: 0.01267389767 | O70: 0.02255281166 | P70: =IF($E70=Lists!$E$7, K70, IF($E70=$H$9, (SUMPRODUCT(($K70:$O70)*($K$5:$O$5<=$I70)*($K$5:$O$5>($I70-$H70))))/$H70, IF($E70=$F$9, MAX(P$6*$F70+$G70,0),0))) -> 0.01712080549 | Q70: =IF($E70=Lists!$E$7, L70, IF($E70=$H$9, (SUMPRODUCT(($K70:$O70)*($K$5:$O$5<=$I70)*($K$5:$O$5>($I70-$H70))))/$H70, IF($E70=$F$9, MAX(Q$6*$F70+$G70,0),0))) -> 0.01712080549 | R70: =IF($E70=Lists!$E$7, M70, IF($E70=$H$9, (SUMPRODUCT(($K70:$O70)*($K$5:$O$5<=$I70)*($K$5:$O$5>($I70-$H70))))/$H70, IF($E70=$F$9, MAX(R$6*$F70+$G70,0),0))) -> 0.01712080549 | S70: =IF($E70=Lists!$E$7, N70, IF($E70=$H$9, (SUMPRODUCT(($K70:$O70)*($K$5:$O$5<=$I70)*($K$5:$O$5>($I70-$H70))))/$H70, IF($E70=$F$9, MAX(S$6*$F70+$G70,0),0))) -> 0.01712080549 | T70: =IF($E70=Lists!$E$7, O70, IF($E70=$H$9, (SUMPRODUCT(($K70:$O70)*($K$5:$O$5<=$I70)*($K$5:$O$5>($I70-$H70))))/$H70, IF($E70=$F$9, MAX(T$6*$F70+$G70,0),0))) -> 0.01712080549 | U70: =IF($E70=Lists!$E$7, P70, IF($E70=$H$9, (SUMPRODUCT(($K70:$O70)*($K$5:$O$5<=$I70)*($K$5:$O$5>($I70-$H70))))/$H70, IF($E70=$F$9, MAX(U$6*$F70+$G70,0),0))) -> 0.01712080549
B71: Overhead HV insulators | C71: BEN | E71: Average | F71: =IF($E71=Lists!$E$6, LINEST((OFFSET(INDEX($K71:$O71, MATCH($I71-$H71+1,$K$5:$O$5,0)),0,0,1, $H71)), (OFFSET(INDEX($K$6:$O$6, MATCH($I71-$H71+1,$K$5:$O$5,0)),0,0,1, $H71))),0) -> 0 | H71: 4 | I71: 25 | L71: 0.01968695132 | M71: 0.02250572457 | N71: 0.01558636193 | O71: 0.01084039927 | P71: =IF($E71=Lists!$E$7, K71, IF($E71=$H$9, (SUMPRODUCT(($K71:$O71)*($K$5:$O$5<=$I71)*($K$5:$O$5>($I71-$H71))))/$H71, IF($E71=$F$9, MAX(P$6*$F71+$G71,0),0))) -> 0.01715485927 | Q71: =IF($E71=Lists!$E$7, L71, IF($E71=$H$9, (SUMPRODUCT(($K71:$O71)*($K$5:$O$5<=$I71)*($K$5:$O$5>($I71-$H71))))/$H71, IF($E71=$F$9, MAX(Q$6*$F71+$G71,0),0))) -> 0.01715485927 | R71: =IF($E71=Lists!$E$7, M71, IF($E71=$H$9, (SUMPRODUCT(($K71:$O71)*($K$5:$O$5<=$I71)*($K$5:$O$5>($I71-$H71))))/$H71, IF($E71=$F$9, MAX(R$6*$F71+$G71,0),0))) -> 0.01715485927 | S71: =IF($E71=Lists!$E$7, N71, IF($E71=$H$9, (SUMPRODUCT(($K71:$O71)*($K$5:$O$5<=$I71)*($K$5:$O$5>($I71-$H71))))/$H71, IF($E71=$F$9, MAX(S$6*$F71+$G71,0),0))) -> 0.01715485927 | T71: =IF($E71=Lists!$E$7, O71, IF($E71=$H$9, (SUMPRODUCT(($K71:$O71)*($K$5:$O$5<=$I71)*($K$5:$O$5>($I71-$H71))))/$H71, IF($E71=$F$9, MAX(T$6*$F71+$G71,0),0))) -> 0.01715485927 | U71: =IF($E71=Lists!$E$7, P71, IF($E71=$H$9, (SUMPRODUCT(($K71:$O71)*($K$5:$O$5<=$I71)*($K$5:$O$5>($I71-$H71))))/$H71, IF($E71=$F$9, MAX(U$6*$F71+$G71,0),0))) -> 0.01715485927
B72: Overhead HV insulators | C72: GEE | E72: Average | F72: =IF($E72=Lists!$E$6, LINEST((OFFSET(INDEX($K72:$O72, MATCH($I72-$H72+1,$K$5:$O$5,0)),0,0,1, $H72)), (OFFSET(INDEX($K$6:$O$6, MATCH($I72-$H72+1,$K$5:$O$5,0)),0,0,1, $H72))),0) -> 0 | H72: 4 | I72: 25 | L72: 0.0271823406 | M72: 0.0137617984 | N72: 0.009397083145 | O72: 0.01089125374 | P72: =IF($E72=Lists!$E$7, K72, IF($E72=$H$9, (SUMPRODUCT(($K72:$O72)*($K$5:$O$5<=$I72)*($K$5:$O$5>($I72-$H72))))/$H72, IF($E72=$F$9, MAX(P$6*$F72+$G72,0),0))) -> 0.01530811897 | Q72: =IF($E72=Lists!$E$7, L72, IF($E72=$H$9, (SUMPRODUCT(($K72:$O72)*($K$5:$O$5<=$I72)*($K$5:$O$5>($I72-$H72))))/$H72, IF($E72=$F$9, MAX(Q$6*$F72+$G72,0),0))) -> 0.01530811897 | R72: =IF($E72=Lists!$E$7, M72, IF($E72=$H$9, (SUMPRODUCT(($K72:$O72)*($K$5:$O$5<=$I72)*($K$5:$O$5>($I72-$H72))))/$H72, IF($E72=$F$9, MAX(R$6*$F72+$G72,0),0))) -> 0.01530811897 | S72: =IF($E72=Lists!$E$7, N72, IF($E72=$H$9, (SUMPRODUCT(($K72:$O72)*($K$5:$O$5<=$I72)*($K$5:$O$5>($I72-$H72))))/$H72, IF($E72=$F$9, MAX(S$6*$F72+$G72,0),0))) -> 0.01530811897 | T72: =IF($E72=Lists!$E$7, O72, IF($E72=$H$9, (SUMPRODUCT(($K72:$O72)*($K$5:$O$5<=$I72)*($K$5:$O$5>($I72-$H72))))/$H72, IF($E72=$F$9, MAX(T$6*$F72+$G72,0),0))) -> 0.01530811897 | U72: =IF($E72=Lists!$E$7, P72, IF($E72=$H$9, (SUMPRODUCT(($K72:$O72)*($K$5:$O$5<=$I72)*($K$5:$O$5>($I72-$H72))))/$H72, IF($E72=$F$9, MAX(U$6*$F72+$G72,0),0))) -> 0.01530811897
B73: Overhead HV insulators | C73: HOR | E73: Linear | F73: =IF($E73=Lists!$E$6, LINEST((OFFSET(INDEX($K73:$O73, MATCH($I73-$H73+1,$K$5:$O$5,0)),0,0,1, $H73)), (OFFSET(INDEX($K$6:$O$6, MATCH($I73-$H73+1,$K$5:$O$5,0)),0,0,1, $H73))),0) -> -0.005852996936 | G73: 0.04100201704 | H73: 4 | I73: 25 | L73: 0.02979575491 | M73: 0.02263391059 | N73: 0.01770906535 | O73: 0.0119273802 | P73: =IF($E73=Lists!$E$7, K73, IF($E73=$H$9, (SUMPRODUCT(($K73:$O73)*($K$5:$O$5<=$I73)*($K$5:$O$5>($I73-$H73))))/$H73, IF($E73=$F$9, MAX(P$6*$F73+$G73,0),0))) -> 0.005884035423 | Q73: =IF($E73=Lists!$E$7, L73, IF($E73=$H$9, (SUMPRODUCT(($K73:$O73)*($K$5:$O$5<=$I73)*($K$5:$O$5>($I73-$H73))))/$H73, IF($E73=$F$9, MAX(Q$6*$F73+$G73,0),0))) -> 3.103848699e-05 | R73: =IF($E73=Lists!$E$7, M73, IF($E73=$H$9, (SUMPRODUCT(($K73:$O73)*($K$5:$O$5<=$I73)*($K$5:$O$5>($I73-$H73))))/$H73, IF($E73=$F$9, MAX(R$6*$F73+$G73,0),0))) -> 0 | S73: =IF($E73=Lists!$E$7, N73, IF($E73=$H$9, (SUMPRODUCT(($K73:$O73)*($K$5:$O$5<=$I73)*($K$5:$O$5>($I73-$H73))))/$H73, IF($E73=$F$9, MAX(S$6*$F73+$G73,0),0))) -> 0 | T73: =IF($E73=Lists!$E$7, O73, IF($E73=$H$9, (SUMPRODUCT(($K73:$O73)*($K$5:$O$5<=$I73)*($K$5:$O$5>($I73-$H73))))/$H73, IF($E73=$F$9, MAX(T$6*$F73+$G73,0),0))) -> 0 | U73: =IF($E73=Lists!$E$7, P73, IF($E73=$H$9, (SUMPRODUCT(($K73:$O73)*($K$5:$O$5<=$I73)*($K$5:$O$5>($I73-$H73))))/$H73, IF($E73=$F$9, MAX(U$6*$F73+$G73,0),0))) -> 0
B74: Overhead HV insulators | C74: MIL | E74: Average | F74: =IF($E74=Lists!$E$6, LINEST((OFFSET(INDEX($K74:$O74, MATCH($I74-$H74+1,$K$5:$O$5,0)),0,0,1, $H74)), (OFFSET(INDEX($K$6:$O$6, MATCH($I74-$H74+1,$K$5:$O$5,0)),0,0,1, $H74))),0) -> 0 | H74: 4 | I74: 25 | L74: 0.02240413615 | M74: 0.0280839895 | N74: 0.01551286698 | O74: 0.01687043882 | P74: =IF($E74=Lists!$E$7, K74, IF($E74=$H$9, (SUMPRODUCT(($K74:$O74)*($K$5:$O$5<=$I74)*($K$5:$O$5>($I74-$H74))))/$H74, IF($E74=$F$9, MAX(P$6*$F74+$G74,0),0))) -> 0.02071785786 | Q74: =IF($E74=Lists!$E$7, L74, IF($E74=$H$9, (SUMPRODUCT(($K74:$O74)*($K$5:$O$5<=$I74)*($K$5:$O$5>($I74-$H74))))/$H74, IF($E74=$F$9, MAX(Q$6*$F74+$G74,0),0))) -> 0.02071785786 | R74: =IF($E74=Lists!$E$7, M74, IF($E74=$H$9, (SUMPRODUCT(($K74:$O74)*($K$5:$O$5<=$I74)*($K$5:$O$5>($I74-$H74))))/$H74, IF($E74=$F$9, MAX(R$6*$F74+$G74,0),0))) -> 0.02071785786 | S74: =IF($E74=Lists!$E$7, N74, IF($E74=$H$9, (SUMPRODUCT(($K74:$O74)*($K$5:$O$5<=$I74)*($K$5:$O$5>($I74-$H74))))/$H74, IF($E74=$F$9, MAX(S$6*$F74+$G74,0),0))) -> 0.02071785786 | T74: =IF($E74=Lists!$E$7, O74, IF($E74=$H$9, (SUMPRODUCT(($K74:$O74)*($K$5:$O$5<=$I74)*($K$5:$O$5>($I74-$H74))))/$H74, IF($E74=$F$9, MAX(T$6*$F74+$G74,0),0))) -> 0.02071785786 | U74: =IF($E74=Lists!$E$7, P74, IF($E74=$H$9, (SUMPRODUCT(($K74:$O74)*($K$5:$O$5<=$I74)*($K$5:$O$5>($I74-$H74))))/$H74, IF($E74=$F$9, MAX(U$6*$F74+$G74,0),0))) -> 0.02071785786
B75: Overhead HV insulators | C75: SHE | E75: Average | F75: =IF($E75=Lists!$E$6, LINEST((OFFSET(INDEX($K75:$O75, MATCH($I75-$H75+1,$K$5:$O$5,0)),0,0,1, $H75)), (OFFSET(INDEX($K$6:$O$6, MATCH($I75-$H75+1,$K$5:$O$5,0)),0,0,1, $H75))),0) -> 0 | H75: 4 | I75: 25 | L75: 0.0180195258 | M75: 0.01763731913 | N75: 0.01926252064 | O75: 0.01605273362 | P75: =IF($E75=Lists!$E$7, K75, IF($E75=$H$9, (SUMPRODUCT(($K75:$O75)*($K$5:$O$5<=$I75)*($K$5:$O$5>($I75-$H75))))/$H75, IF($E75=$F$9, MAX(P$6*$F75+$G75,0),0))) -> 0.0177430248 | Q75: =IF($E75=Lists!$E$7, L75, IF($E75=$H$9, (SUMPRODUCT(($K75:$O75)*($K$5:$O$5<=$I75)*($K$5:$O$5>($I75-$H75))))/$H75, IF($E75=$F$9, MAX(Q$6*$F75+$G75,0),0))) -> 0.0177430248 | R75: =IF($E75=Lists!$E$7, M75, IF($E75=$H$9, (SUMPRODUCT(($K75:$O75)*($K$5:$O$5<=$I75)*($K$5:$O$5>($I75-$H75))))/$H75, IF($E75=$F$9, MAX(R$6*$F75+$G75,0),0))) -> 0.0177430248 | S75: =IF($E75=Lists!$E$7, N75, IF($E75=$H$9, (SUMPRODUCT(($K75:$O75)*($K$5:$O$5<=$I75)*($K$5:$O$5>($I75-$H75))))/$H75, IF($E75=$F$9, MAX(S$6*$F75+$G75,0),0))) -> 0.0177430248 | T75: =IF($E75=Lists!$E$7, O75, IF($E75=$H$9, (SUMPRODUCT(($K75:$O75)*($K$5:$O$5<=$I75)*($K$5:$O$5>($I75-$H75))))/$H75, IF($E75=$F$9, MAX(T$6*$F75+$G75,0),0))) -> 0.0177430248 | U75: =IF($E75=Lists!$E$7, P75, IF($E75=$H$9, (SUMPRODUCT(($K75:$O75)*($K$5:$O$5<=$I75)*($K$5:$O$5>($I75-$H75))))/$H75, IF($E75=$F$9, MAX(U$6*$F75+$G75,0),0))) -> 0.0177430248
B76: Overhead HV insulators | C76: SUN | E76: Linear | F76: =IF($E76=Lists!$E$6, LINEST((OFFSET(INDEX($K76:$O76, MATCH($I76-$H76+1,$K$5:$O$5,0)),0,0,1, $H76)), (OFFSET(INDEX($K$6:$O$6, MATCH($I76-$H76+1,$K$5:$O$5,0)),0,0,1, $H76))),0) -> 0.001680979284 | G76: 0.001602737826 | H76: 4 | I76: 25 | L76: 0.00476087427 | M76: 0.006564056134 | N76: 0.009101360414 | O76: 0.009518370455 | P76: =IF($E76=Lists!$E$7, K76, IF($E76=$H$9, (SUMPRODUCT(($K76:$O76)*($K$5:$O$5<=$I76)*($K$5:$O$5>($I76-$H76))))/$H76, IF($E76=$F$9, MAX(P$6*$F76+$G76,0),0))) -> 0.01168861353 | Q76: =IF($E76=Lists!$E$7, L76, IF($E76=$H$9, (SUMPRODUCT(($K76:$O76)*($K$5:$O$5<=$I76)*($K$5:$O$5>($I76-$H76))))/$H76, IF($E76=$F$9, MAX(Q$6*$F76+$G76,0),0))) -> 0.01336959281 | R76: =IF($E76=Lists!$E$7, M76, IF($E76=$H$9, (SUMPRODUCT(($K76:$O76)*($K$5:$O$5<=$I76)*($K$5:$O$5>($I76-$H76))))/$H76, IF($E76=$F$9, MAX(R$6*$F76+$G76,0),0))) -> 0.01505057209 | S76: =IF($E76=Lists!$E$7, N76, IF($E76=$H$9, (SUMPRODUCT(($K76:$O76)*($K$5:$O$5<=$I76)*($K$5:$O$5>($I76-$H76))))/$H76, IF($E76=$F$9, MAX(S$6*$F76+$G76,0),0))) -> 0.01673155138 | T76: =IF($E76=Lists!$E$7, O76, IF($E76=$H$9, (SUMPRODUCT(($K76:$O76)*($K$5:$O$5<=$I76)*($K$5:$O$5>($I76-$H76))))/$H76, IF($E76=$F$9, MAX(T$6*$F76+$G76,0),0))) -> 0.01841253066 | U76: =IF($E76=Lists!$E$7, P76, IF($E76=$H$9, (SUMPRODUCT(($K76:$O76)*($K$5:$O$5<=$I76)*($K$5:$O$5>($I76-$H76))))/$H76, IF($E76=$F$9, MAX(U$6*$F76+$G76,0),0))) -> 0.02009350995
B77: Overhead HV insulators | C77: WAR | E77: Average | F77: =IF($E77=Lists!$E$6, LINEST((OFFSET(INDEX($K77:$O77, MATCH($I77-$H77+1,$K$5:$O$5,0)),0,0,1, $H77)), (OFFSET(INDEX($K$6:$O$6, MATCH($I77-$H77+1,$K$5:$O$5,0)),0,0,1, $H77))),0) -> 0 | H77: 4 | I77: 25 | L77: 0.03763355966 | M77: 0.03469942793 | N77: 0.04048818287 | O77: 0.04403222784 | P77: =IF($E77=Lists!$E$7, K77, IF($E77=$H$9, (SUMPRODUCT(($K77:$O77)*($K$5:$O$5<=$I77)*($K$5:$O$5>($I77-$H77))))/$H77, IF($E77=$F$9, MAX(P$6*$F77+$G77,0),0))) -> 0.03921334958 | Q77: =IF($E77=Lists!$E$7, L77, IF($E77=$H$9, (SUMPRODUCT(($K77:$O77)*($K$5:$O$5<=$I77)*($K$5:$O$5>($I77-$H77))))/$H77, IF($E77=$F$9, MAX(Q$6*$F77+$G77,0),0))) -> 0.03921334958 | R77: =IF($E77=Lists!$E$7, M77, IF($E77=$H$9, (SUMPRODUCT(($K77:$O77)*($K$5:$O$5<=$I77)*($K$5:$O$5>($I77-$H77))))/$H77, IF($E77=$F$9, MAX(R$6*$F77+$G77,0),0))) -> 0.03921334958 | S77: =IF($E77=Lists!$E$7, N77, IF($E77=$H$9, (SUMPRODUCT(($K77:$O77)*($K$5:$O$5<=$I77)*($K$5:$O$5>($I77-$H77))))/$H77, IF($E77=$F$9, MAX(S$6*$F77+$G77,0),0))) -> 0.03921334958 | T77: =IF($E77=Lists!$E$7, O77, IF($E77=$H$9, (SUMPRODUCT(($K77:$O77)*($K$5:$O$5<=$I77)*($K$5:$O$5>($I77-$H77))))/$H77, IF($E77=$F$9, MAX(T$6*$F77+$G77,0),0))) -> 0.03921334958 | U77: =IF($E77=Lists!$E$7, P77, IF($E77=$H$9, (SUMPRODUCT(($K77:$O77)*($K$5:$O$5<=$I77)*($K$5:$O$5>($I77-$H77))))/$H77, IF($E77=$F$9, MAX(U$6*$F77+$G77,0),0))) -> 0.03921334958
B79: =B39 -> Overhead LV insulators | C79: BAL | E79: Linear | F79: =IF($E79=Lists!$E$6, LINEST((OFFSET(INDEX($K79:$O79, MATCH($I79-$H79+1,$K$5:$O$5,0)),0,0,1, $H79)), (OFFSET(INDEX($K$6:$O$6, MATCH($I79-$H79+1,$K$5:$O$5,0)),0,0,1, $H79))),0) -> -0.002760849556 | G79: 0.01699381521 | H79: 4 | I79: 25 | L79: 0.01298026999 | M79: 0.007079433645 | N79: 0.004689621128 | O79: 0.00457404231 | P79: =IF($E79=Lists!$E$7, K79, IF($E79=$H$9, (SUMPRODUCT(($K79:$O79)*($K$5:$O$5<=$I79)*($K$5:$O$5>($I79-$H79))))/$H79, IF($E79=$F$9, MAX(P$6*$F79+$G79,0),0))) -> 0.0004287178791 | Q79: =IF($E79=Lists!$E$7, L79, IF($E79=$H$9, (SUMPRODUCT(($K79:$O79)*($K$5:$O$5<=$I79)*($K$5:$O$5>($I79-$H79))))/$H79, IF($E79=$F$9, MAX(Q$6*$F79+$G79,0),0))) -> 0 | R79: =IF($E79=Lists!$E$7, M79, IF($E79=$H$9, (SUMPRODUCT(($K79:$O79)*($K$5:$O$5<=$I79)*($K$5:$O$5>($I79-$H79))))/$H79, IF($E79=$F$9, MAX(R$6*$F79+$G79,0),0))) -> 0 | S79: =IF($E79=Lists!$E$7, N79, IF($E79=$H$9, (SUMPRODUCT(($K79:$O79)*($K$5:$O$5<=$I79)*($K$5:$O$5>($I79-$H79))))/$H79, IF($E79=$F$9, MAX(S$6*$F79+$G79,0),0))) -> 0 | T79: =IF($E79=Lists!$E$7, O79, IF($E79=$H$9, (SUMPRODUCT(($K79:$O79)*($K$5:$O$5<=$I79)*($K$5:$O$5>($I79-$H79))))/$H79, IF($E79=$F$9, MAX(T$6*$F79+$G79,0),0))) -> 0 | U79: =IF($E79=Lists!$E$7, P79, IF($E79=$H$9, (SUMPRODUCT(($K79:$O79)*($K$5:$O$5<=$I79)*($K$5:$O$5>($I79-$H79))))/$H79, IF($E79=$F$9, MAX(U$6*$F79+$G79,0),0))) -> 0
B80: Overhead LV insulators | C80: BEN | E80: Average | F80: =IF($E80=Lists!$E$6, LINEST((OFFSET(INDEX($K80:$O80, MATCH($I80-$H80+1,$K$5:$O$5,0)),0,0,1, $H80)), (OFFSET(INDEX($K$6:$O$6, MATCH($I80-$H80+1,$K$5:$O$5,0)),0,0,1, $H80))),0) -> 0 | H80: 4 | I80: 25 | L80: 0.004536004536 | M80: 0.005257777129 | N80: 0.003432398493 | O80: 0.002689328744 | P80: =IF($E80=Lists!$E$7, K80, IF($E80=$H$9, (SUMPRODUCT(($K80:$O80)*($K$5:$O$5<=$I80)*($K$5:$O$5>($I80-$H80))))/$H80, IF($E80=$F$9, MAX(P$6*$F80+$G80,0),0))) -> 0.003978877225 | Q80: =IF($E80=Lists!$E$7, L80, IF($E80=$H$9, (SUMPRODUCT(($K80:$O80)*($K$5:$O$5<=$I80)*($K$5:$O$5>($I80-$H80))))/$H80, IF($E80=$F$9, MAX(Q$6*$F80+$G80,0),0))) -> 0.003978877225 | R80: =IF($E80=Lists!$E$7, M80, IF($E80=$H$9, (SUMPRODUCT(($K80:$O80)*($K$5:$O$5<=$I80)*($K$5:$O$5>($I80-$H80))))/$H80, IF($E80=$F$9, MAX(R$6*$F80+$G80,0),0))) -> 0.003978877225 | S80: =IF($E80=Lists!$E$7, N80, IF($E80=$H$9, (SUMPRODUCT(($K80:$O80)*($K$5:$O$5<=$I80)*($K$5:$O$5>($I80-$H80))))/$H80, IF($E80=$F$9, MAX(S$6*$F80+$G80,0),0))) -> 0.003978877225 | T80: =IF($E80=Lists!$E$7, O80, IF($E80=$H$9, (SUMPRODUCT(($K80:$O80)*($K$5:$O$5<=$I80)*($K$5:$O$5>($I80-$H80))))/$H80, IF($E80=$F$9, MAX(T$6*$F80+$G80,0),0))) -> 0.003978877225 | U80: =IF($E80=Lists!$E$7, P80, IF($E80=$H$9, (SUMPRODUCT(($K80:$O80)*($K$5:$O$5<=$I80)*($K$5:$O$5>($I80-$H80))))/$H80, IF($E80=$F$9, MAX(U$6*$F80+$G80,0),0))) -> 0.003978877225
B81: Overhead LV insulators | C81: GEE | E81: Average | F81: =IF($E81=Lists!$E$6, LINEST((OFFSET(INDEX($K81:$O81, MATCH($I81-$H81+1,$K$5:$O$5,0)),0,0,1, $H81)), (OFFSET(INDEX($K$6:$O$6, MATCH($I81-$H81+1,$K$5:$O$5,0)),0,0,1, $H81))),0) -> 0 | H81: 4 | I81: 25 | L81: 0.006593881743 | M81: 0.004910144358 | N81: 0.007135381981 | O81: 0.004310344828 | P81: =IF($E81=Lists!$E$7, K81, IF($E81=$H$9, (SUMPRODUCT(($K81:$O81)*($K$5:$O$5<=$I81)*($K$5:$O$5>($I81-$H81))))/$H81, IF($E81=$F$9, MAX(P$6*$F81+$G81,0),0))) -> 0.005737438227 | Q81: =IF($E81=Lists!$E$7, L81, IF($E81=$H$9, (SUMPRODUCT(($K81:$O81)*($K$5:$O$5<=$I81)*($K$5:$O$5>($I81-$H81))))/$H81, IF($E81=$F$9, MAX(Q$6*$F81+$G81,0),0))) -> 0.005737438227 | R81: =IF($E81=Lists!$E$7, M81, IF($E81=$H$9, (SUMPRODUCT(($K81:$O81)*($K$5:$O$5<=$I81)*($K$5:$O$5>($I81-$H81))))/$H81, IF($E81=$F$9, MAX(R$6*$F81+$G81,0),0))) -> 0.005737438227 | S81: =IF($E81=Lists!$E$7, N81, IF($E81=$H$9, (SUMPRODUCT(($K81:$O81)*($K$5:$O$5<=$I81)*($K$5:$O$5>($I81-$H81))))/$H81, IF($E81=$F$9, MAX(S$6*$F81+$G81,0),0))) -> 0.005737438227 | T81: =IF($E81=Lists!$E$7, O81, IF($E81=$H$9, (SUMPRODUCT(($K81:$O81)*($K$5:$O$5<=$I81)*($K$5:$O$5>($I81-$H81))))/$H81, IF($E81=$F$9, MAX(T$6*$F81+$G81,0),0))) -> 0.005737438227 | U81: =IF($E81=Lists!$E$7, P81, IF($E81=$H$9, (SUMPRODUCT(($K81:$O81)*($K$5:$O$5<=$I81)*($K$5:$O$5>($I81-$H81))))/$H81, IF($E81=$F$9, MAX(U$6*$F81+$G81,0),0))) -> 0.005737438227
B82: Overhead LV insulators | C82: HOR | E82: Average | F82: =IF($E82=Lists!$E$6, LINEST((OFFSET(INDEX($K82:$O82, MATCH($I82-$H82+1,$K$5:$O$5,0)),0,0,1, $H82)), (OFFSET(INDEX($K$6:$O$6, MATCH($I82-$H82+1,$K$5:$O$5,0)),0,0,1, $H82))),0) -> 0 | H82: 4 | I82: 25 | L82: 0.004422476587 | M82: 0.004049493813 | N82: 0.004772393539 | O82: 0.001038152089 | P82: =IF($E82=Lists!$E$7, K82, IF($E82=$H$9, (SUMPRODUCT(($K82:$O82)*($K$5:$O$5<=$I82)*($K$5:$O$5>($I82-$H82))))/$H82, IF($E82=$F$9, MAX(P$6*$F82+$G82,0),0))) -> 0.003570629007 | Q82: =IF($E82=Lists!$E$7, L82, IF($E82=$H$9, (SUMPRODUCT(($K82:$O82)*($K$5:$O$5<=$I82)*($K$5:$O$5>($I82-$H82))))/$H82, IF($E82=$F$9, MAX(Q$6*$F82+$G82,0),0))) -> 0.003570629007 | R82: =IF($E82=Lists!$E$7, M82, IF($E82=$H$9, (SUMPRODUCT(($K82:$O82)*($K$5:$O$5<=$I82)*($K$5:$O$5>($I82-$H82))))/$H82, IF($E82=$F$9, MAX(R$6*$F82+$G82,0),0))) -> 0.003570629007 | S82: =IF($E82=Lists!$E$7, N82, IF($E82=$H$9, (SUMPRODUCT(($K82:$O82)*($K$5:$O$5<=$I82)*($K$5:$O$5>($I82-$H82))))/$H82, IF($E82=$F$9, MAX(S$6*$F82+$G82,0),0))) -> 0.003570629007 | T82: =IF($E82=Lists!$E$7, O82, IF($E82=$H$9, (SUMPRODUCT(($K82:$O82)*($K$5:$O$5<=$I82)*($K$5:$O$5>($I82-$H82))))/$H82, IF($E82=$F$9, MAX(T$6*$F82+$G82,0),0))) -> 0.003570629007 | U82: =IF($E82=Lists!$E$7, P82, IF($E82=$H$9, (SUMPRODUCT(($K82:$O82)*($K$5:$O$5<=$I82)*($K$5:$O$5>($I82-$H82))))/$H82, IF($E82=$F$9, MAX(U$6*$F82+$G82,0),0))) -> 0.003570629007
B83: Overhead LV insulators | C83: MIL | E83: Linear | F83: =IF($E83=Lists!$E$6, LINEST((OFFSET(INDEX($K83:$O83, MATCH($I83-$H83+1,$K$5:$O$5,0)),0,0,1, $H83)), (OFFSET(INDEX($K$6:$O$6, MATCH($I83-$H83+1,$K$5:$O$5,0)),0,0,1, $H83))),0) -> -0.000562854276 | G83: 0.003913622648 | H83: 4 | I83: 25 | L83: 0.00263227165 | M83: 0.002382843527 | N83: 0.00181356547 | O83: 0.0009458500828 | P83: =IF($E83=Lists!$E$7, K83, IF($E83=$H$9, (SUMPRODUCT(($K83:$O83)*($K$5:$O$5<=$I83)*($K$5:$O$5>($I83-$H83))))/$H83, IF($E83=$F$9, MAX(P$6*$F83+$G83,0),0))) -> 0.0005364969924 | Q83: =IF($E83=Lists!$E$7, L83, IF($E83=$H$9, (SUMPRODUCT(($K83:$O83)*($K$5:$O$5<=$I83)*($K$5:$O$5>($I83-$H83))))/$H83, IF($E83=$F$9, MAX(Q$6*$F83+$G83,0),0))) -> 0 | R83: =IF($E83=Lists!$E$7, M83, IF($E83=$H$9, (SUMPRODUCT(($K83:$O83)*($K$5:$O$5<=$I83)*($K$5:$O$5>($I83-$H83))))/$H83, IF($E83=$F$9, MAX(R$6*$F83+$G83,0),0))) -> 0 | S83: =IF($E83=Lists!$E$7, N83, IF($E83=$H$9, (SUMPRODUCT(($K83:$O83)*($K$5:$O$5<=$I83)*($K$5:$O$5>($I83-$H83))))/$H83, IF($E83=$F$9, MAX(S$6*$F83+$G83,0),0))) -> 0 | T83: =IF($E83=Lists!$E$7, O83, IF($E83=$H$9, (SUMPRODUCT(($K83:$O83)*($K$5:$O$5<=$I83)*($K$5:$O$5>($I83-$H83))))/$H83, IF($E83=$F$9, MAX(T$6*$F83+$G83,0),0))) -> 0 | U83: =IF($E83=Lists!$E$7, P83, IF($E83=$H$9, (SUMPRODUCT(($K83:$O83)*($K$5:$O$5<=$I83)*($K$5:$O$5>($I83-$H83))))/$H83, IF($E83=$F$9, MAX(U$6*$F83+$G83,0),0))) -> 0
B84: Overhead LV insulators | C84: SHE | E84: Average | F84: =IF($E84=Lists!$E$6, LINEST((OFFSET(INDEX($K84:$O84, MATCH($I84-$H84+1,$K$5:$O$5,0)),0,0,1, $H84)), (OFFSET(INDEX($K$6:$O$6, MATCH($I84-$H84+1,$K$5:$O$5,0)),0,0,1, $H84))),0) -> 0 | H84: 4 | I84: 25 | L84: 0.003336113428 | M84: 0.004486190944 | N84: 0.002216066482 | O84: 0.001707212975 | P84: =IF($E84=Lists!$E$7, K84, IF($E84=$H$9, (SUMPRODUCT(($K84:$O84)*($K$5:$O$5<=$I84)*($K$5:$O$5>($I84-$H84))))/$H84, IF($E84=$F$9, MAX(P$6*$F84+$G84,0),0))) -> 0.002936395957 | Q84: =IF($E84=Lists!$E$7, L84, IF($E84=$H$9, (SUMPRODUCT(($K84:$O84)*($K$5:$O$5<=$I84)*($K$5:$O$5>($I84-$H84))))/$H84, IF($E84=$F$9, MAX(Q$6*$F84+$G84,0),0))) -> 0.002936395957 | R84: =IF($E84=Lists!$E$7, M84, IF($E84=$H$9, (SUMPRODUCT(($K84:$O84)*($K$5:$O$5<=$I84)*($K$5:$O$5>($I84-$H84))))/$H84, IF($E84=$F$9, MAX(R$6*$F84+$G84,0),0))) -> 0.002936395957 | S84: =IF($E84=Lists!$E$7, N84, IF($E84=$H$9, (SUMPRODUCT(($K84:$O84)*($K$5:$O$5<=$I84)*($K$5:$O$5>($I84-$H84))))/$H84, IF($E84=$F$9, MAX(S$6*$F84+$G84,0),0))) -> 0.002936395957 | T84: =IF($E84=Lists!$E$7, O84, IF($E84=$H$9, (SUMPRODUCT(($K84:$O84)*($K$5:$O$5<=$I84)*($K$5:$O$5>($I84-$H84))))/$H84, IF($E84=$F$9, MAX(T$6*$F84+$G84,0),0))) -> 0.002936395957 | U84: =IF($E84=Lists!$E$7, P84, IF($E84=$H$9, (SUMPRODUCT(($K84:$O84)*($K$5:$O$5<=$I84)*($K$5:$O$5>($I84-$H84))))/$H84, IF($E84=$F$9, MAX(U$6*$F84+$G84,0),0))) -> 0.002936395957
B85: Overhead LV insulators | C85: SUN | E85: Average | F85: =IF($E85=Lists!$E$6, LINEST((OFFSET(INDEX($K85:$O85, MATCH($I85-$H85+1,$K$5:$O$5,0)),0,0,1, $H85)), (OFFSET(INDEX($K$6:$O$6, MATCH($I85-$H85+1,$K$5:$O$5,0)),0,0,1, $H85))),0) -> 0 | H85: 4 | I85: 25 | L85: 0.002451701481 | M85: 0.004833512352 | N85: 0.003867290861 | O85: 0.002081165453 | P85: =IF($E85=Lists!$E$7, K85, IF($E85=$H$9, (SUMPRODUCT(($K85:$O85)*($K$5:$O$5<=$I85)*($K$5:$O$5>($I85-$H85))))/$H85, IF($E85=$F$9, MAX(P$6*$F85+$G85,0),0))) -> 0.003308417537 | Q85: =IF($E85=Lists!$E$7, L85, IF($E85=$H$9, (SUMPRODUCT(($K85:$O85)*($K$5:$O$5<=$I85)*($K$5:$O$5>($I85-$H85))))/$H85, IF($E85=$F$9, MAX(Q$6*$F85+$G85,0),0))) -> 0.003308417537 | R85: =IF($E85=Lists!$E$7, M85, IF($E85=$H$9, (SUMPRODUCT(($K85:$O85)*($K$5:$O$5<=$I85)*($K$5:$O$5>($I85-$H85))))/$H85, IF($E85=$F$9, MAX(R$6*$F85+$G85,0),0))) -> 0.003308417537 | S85: =IF($E85=Lists!$E$7, N85, IF($E85=$H$9, (SUMPRODUCT(($K85:$O85)*($K$5:$O$5<=$I85)*($K$5:$O$5>($I85-$H85))))/$H85, IF($E85=$F$9, MAX(S$6*$F85+$G85,0),0))) -> 0.003308417537 | T85: =IF($E85=Lists!$E$7, O85, IF($E85=$H$9, (SUMPRODUCT(($K85:$O85)*($K$5:$O$5<=$I85)*($K$5:$O$5>($I85-$H85))))/$H85, IF($E85=$F$9, MAX(T$6*$F85+$G85,0),0))) -> 0.003308417537 | U85: =IF($E85=Lists!$E$7, P85, IF($E85=$H$9, (SUMPRODUCT(($K85:$O85)*($K$5:$O$5<=$I85)*($K$5:$O$5>($I85-$H85))))/$H85, IF($E85=$F$9, MAX(U$6*$F85+$G85,0),0))) -> 0.003308417537
B86: Overhead LV insulators | C86: WAR | E86: Average | F86: =IF($E86=Lists!$E$6, LINEST((OFFSET(INDEX($K86:$O86, MATCH($I86-$H86+1,$K$5:$O$5,0)),0,0,1, $H86)), (OFFSET(INDEX($K$6:$O$6, MATCH($I86-$H86+1,$K$5:$O$5,0)),0,0,1, $H86))),0) -> 0 | H86: 4 | I86: 25 | L86: 0.01095390233 | M86: 0.01945694787 | N86: 0.008649468892 | O86: 0.008631071859 | P86: =IF($E86=Lists!$E$7, K86, IF($E86=$H$9, (SUMPRODUCT(($K86:$O86)*($K$5:$O$5<=$I86)*($K$5:$O$5>($I86-$H86))))/$H86, IF($E86=$F$9, MAX(P$6*$F86+$G86,0),0))) -> 0.01192284774 | Q86: =IF($E86=Lists!$E$7, L86, IF($E86=$H$9, (SUMPRODUCT(($K86:$O86)*($K$5:$O$5<=$I86)*($K$5:$O$5>($I86-$H86))))/$H86, IF($E86=$F$9, MAX(Q$6*$F86+$G86,0),0))) -> 0.01192284774 | R86: =IF($E86=Lists!$E$7, M86, IF($E86=$H$9, (SUMPRODUCT(($K86:$O86)*($K$5:$O$5<=$I86)*($K$5:$O$5>($I86-$H86))))/$H86, IF($E86=$F$9, MAX(R$6*$F86+$G86,0),0))) -> 0.01192284774 | S86: =IF($E86=Lists!$E$7, N86, IF($E86=$H$9, (SUMPRODUCT(($K86:$O86)*($K$5:$O$5<=$I86)*($K$5:$O$5>($I86-$H86))))/$H86, IF($E86=$F$9, MAX(S$6*$F86+$G86,0),0))) -> 0.01192284774 | T86: =IF($E86=Lists!$E$7, O86, IF($E86=$H$9, (SUMPRODUCT(($K86:$O86)*($K$5:$O$5<=$I86)*($K$5:$O$5>($I86-$H86))))/$H86, IF($E86=$F$9, MAX(T$6*$F86+$G86,0),0))) -> 0.01192284774 | U86: =IF($E86=Lists!$E$7, P86, IF($E86=$H$9, (SUMPRODUCT(($K86:$O86)*($K$5:$O$5<=$I86)*($K$5:$O$5>($I86-$H86))))/$H86, IF($E86=$F$9, MAX(U$6*$F86+$G86,0),0))) -> 0.01192284774
B88: =B48 -> Defective ACRs | C88: =C48 -> 0 | E88: Average | F88: =IF($E88=Lists!$E$6, LINEST((OFFSET(INDEX($K88:$O88, MATCH($I88-$H88+1,$K$5:$O$5,0)),0,0,1, $H88)), (OFFSET(INDEX($K$6:$O$6, MATCH($I88-$H88+1,$K$5:$O$5,0)),0,0,1, $H88))),0) -> 0 | H88: 4 | I88: 25 | L88: 0.008381120423 | M88: 0.002131287298 | N88: 0.03241895262 | O88: 0.007566706491 | P88: =IF($E88=Lists!$E$7, K88, IF($E88=$H$9, (SUMPRODUCT(($K88:$O88)*($K$5:$O$5<=$I88)*($K$5:$O$5>($I88-$H88))))/$H88, IF($E88=$F$9, MAX(P$6*$F88+$G88,0),0))) -> 0.01262451671 | Q88: =IF($E88=Lists!$E$7, L88, IF($E88=$H$9, (SUMPRODUCT(($K88:$O88)*($K$5:$O$5<=$I88)*($K$5:$O$5>($I88-$H88))))/$H88, IF($E88=$F$9, MAX(Q$6*$F88+$G88,0),0))) -> 0.01262451671 | R88: =IF($E88=Lists!$E$7, M88, IF($E88=$H$9, (SUMPRODUCT(($K88:$O88)*($K$5:$O$5<=$I88)*($K$5:$O$5>($I88-$H88))))/$H88, IF($E88=$F$9, MAX(R$6*$F88+$G88,0),0))) -> 0.01262451671 | S88: =IF($E88=Lists!$E$7, N88, IF($E88=$H$9, (SUMPRODUCT(($K88:$O88)*($K$5:$O$5<=$I88)*($K$5:$O$5>($I88-$H88))))/$H88, IF($E88=$F$9, MAX(S$6*$F88+$G88,0),0))) -> 0.01262451671 | T88: =IF($E88=Lists!$E$7, O88, IF($E88=$H$9, (SUMPRODUCT(($K88:$O88)*($K$5:$O$5<=$I88)*($K$5:$O$5>($I88-$H88))))/$H88, IF($E88=$F$9, MAX(T$6*$F88+$G88,0),0))) -> 0.01262451671 | U88: =IF($E88=Lists!$E$7, P88, IF($E88=$H$9, (SUMPRODUCT(($K88:$O88)*($K$5:$O$5<=$I88)*($K$5:$O$5>($I88-$H88))))/$H88, IF($E88=$F$9, MAX(U$6*$F88+$G88,0),0))) -> 0.01262451671
B92: Forecast notifications | C92: (per inspections)
B93: =B12 -> HV cross-arm replacement | C93: BAL | L93: =L12*L52 -> 295 | M93: 313 | N93: 273 | O93: 149 | P93: 343.2134983 | Q93: 293.7478166 | R93: 309.2693062 | S93: 210.7731247 | T93: 216.4304901 | U93: 343.2134983
B94: HV cross-arm replacement | C94: BEN | L94: =L13*L53 -> 545 | M94: 529 | N94: 541 | O94: 312 | P94: 557.9804666 | Q94: 566.9376601 | R94: 547.9694856 | S94: 430.7356293 | T94: 381.7345118 | U94: 557.9804666
B95: HV cross-arm replacement | C95: GEE | L95: =L14*L54 -> 206 | M95: 205 | N95: 163 | O95: 115 | P95: 151.1774508 | Q95: 118.2773558 | R95: 108.1077364 | S95: 78.17308659 | T95: 48.89836175 | U95: 52.44507852
B96: HV cross-arm replacement | C96: HOR | L96: =L15*L55 -> 257 | M96: 181 | N96: 187 | O96: 87 | P96: 227.8033133 | Q96: 209.1961493 | R96: 185.8565275 | S96: 176.8218352 | T96: 117.5585559 | U96: 227.8033133
B97: HV cross-arm replacement | C97: MIL | L97: =L16*L56 -> 116 | M97: 141 | N97: 175 | O97: 100 | P97: 228.3017375 | Q97: 139.2202493 | R97: 135.0825846 | S97: 172.3215673 | T97: 90.29844842 | U97: 228.3017375
B98: HV cross-arm replacement | C98: SHE | L98: =L17*L57 -> 379 | M98: 207 | N98: 210 | O98: 166 | P98: 243.4747202 | Q98: 325.387482 | R98: 217.8681401 | S98: 214.1898469 | T98: 183.4902453 | U98: 243.4747202
B99: HV cross-arm replacement | C99: SUN | L99: =L18*L58 -> 199 | M99: 161 | N99: 66 | O99: 74 | P99: 96.46000483 | Q99: 154.448744 | R99: 126.8988084 | S99: 101.8854397 | T99: 93.07791554 | U99: 96.46000483
B100: HV cross-arm replacement | C100: WAR | L100: =L19*L59 -> 494 | M100: 379 | N100: 340 | O100: 136 | P100: 540.2826219 | Q100: 410.8985083 | R100: 321.1367508 | S100: 385.461934 | T100: 184.9043287 | U100: 540.2826219
B102: =B21 -> LV cross-arm replacement | C102: BAL | L102: =L21*L61 -> 384 | M102: 615 | N102: 522 | O102: 357 | P102: 637.4671385 | Q102: 369.3627283 | R102: 532.7568324 | S102: 517.9899943 | T102: 447.224238 | U102: 637.4671385
B103: LV cross-arm replacement | C103: BEN | L103: =L22*L62 -> 631 | M103: 832 | N103: 531 | O103: 403 | P103: 643.6770626 | Q103: 550.7714625 | R103: 712.7446993 | S103: 621.7128255 | T103: 483.8377921 | U103: 643.6770626
B104: LV cross-arm replacement | C104: GEE | L104: =L23*L63 -> 664 | M104: 730 | N104: 697 | O104: 397 | P104: 642.749382 | Q104: 592.120547 | R104: 651.7742438 | S104: 672.7682487 | T104: 549.4284699 | U104: 642.749382
B105: LV cross-arm replacement | C105: HOR | L105: =L24*L64 -> 206 | M105: 188 | N105: 132 | O105: 110 | P105: 149.0761751 | Q105: 166.1492656 | R105: 192.126297 | S105: 117.73949 | T105: 166.5382728 | U105: 149.0761751
B106: LV cross-arm replacement | C106: MIL | L106: =L25*L65 -> 132 | M106: 157 | N106: 237 | O106: 221 | P106: 261.7536519 | Q106: 234.6682432 | R106: 253.6865024 | S106: 400.1025626 | T106: 329.6771952 | U106: 387.0004665
B107: LV cross-arm replacement | C107: SHE | L107: =L26*L66 -> 397 | M107: 435 | N107: 416 | O107: 204 | P107: 213.7352242 | Q107: 192.3726569 | R107: 177.9386127 | S107: 128.5363016 | T107: 49.95178853 | U107: 19.15938215
B108: LV cross-arm replacement | C108: SUN | L108: =L27*L67 -> 443 | M108: 577 | N108: 460 | O108: 232 | P108: 384.4057158 | Q108: 449.6713416 | R108: 492.6672774 | S108: 433.3108367 | T108: 296.6499083 | U108: 384.4057158
B109: LV cross-arm replacement | C109: WAR | L109: =L28*L68 -> 530 | M109: 843 | N109: 538 | O109: 256 | P109: 670.4227802 | Q109: 412.3217716 | R109: 648.028307 | S109: 620.0822627 | T109: 468.7784268 | U109: 670.4227802
B111: =B30 -> Overhead HV insulators | C111: BAL | L111: =L30*L70 -> 293 | M111: 259 | N111: 215 | O111: 379 | P111: 305.1269954 | Q111: 281.7570959 | R111: 286.9618208 | S111: 290.4373443 | T111: 287.7151362 | U111: 305.1269954
B112: Overhead HV insulators | C112: BEN | L112: =L31*L71 -> 527 | M112: 688 | N112: 416 | O112: 303 | P112: 477.1452558 | Q112: 459.2184279 | R112: 524.424048 | S112: 457.863194 | T112: 479.4954716 | U112: 477.1452558
B113: Overhead HV insulators | C113: GEE | L113: =L32*L72 -> 298 | M113: 191 | N113: 125 | O113: 131 | P113: 196.1429284 | Q113: 167.8229083 | R113: 212.4613832 | S113: 203.6285986 | T113: 184.126055 | U113: 196.1429284
B114: Overhead HV insulators | C114: HOR | L114: =L33*L73 -> 372 | M114: 281 | N114: 252 | O114: 113 | P114: 80.20528685 | Q114: 0.38751551 | R114: 0 | S114: 0 | T114: 0 | U114: 0
B115: Overhead HV insulators | C115: MIL | L115: =L34*L74 -> 260 | M115: 321 | N115: 214 | O115: 178 | P115: 240.0992548 | Q115: 240.4307405 | R115: 236.8051154 | S115: 285.8028492 | T115: 218.5941183 | U115: 240.0992548
B116: Overhead HV insulators | C116: SHE | L116: =L35*L75 -> 249.8046862 | M116: 233.7650277 | N116: 201.0621904 | O116: 168.6500194 | P116: 171.1669602 | Q116: 245.9715528 | R116: 235.1660507 | S116: 185.2016928 | T116: 186.4082185 | U116: 171.1669602
B117: Overhead HV insulators | C117: SUN | L117: =L36*L76 -> 85.33867128 | M117: 91.18130376 | N117: 165.3717187 | O117: 122.739387 | P117: 156.1364995 | Q117: 239.6499511 | R117: 209.067497 | S117: 304.0122885 | T117: 237.4295829 | U117: 268.4091058
B118: Overhead HV insulators | C118: WAR | L118: =L37*L77 -> 715 | M118: 740 | N118: 836 | O118: 940 | P118: 864.8896383 | Q118: 745.0144286 | R118: 836.2638931 | S118: 809.6772421 | T118: 837.1265868 | U118: 864.8896383
B120: =B39 -> Overhead LV insulators | C120: BAL | L120: =L39*L79 -> 75 | M120: 59 | N120: 38 | O120: 32 | P120: 4.27517469 | Q120: 0 | R120: 0 | S120: 0 | T120: 0 | U120: 0
B121: Overhead LV insulators | C121: BEN | L121: =L40*L80 -> 48 | M121: 72 | N121: 41 | O121: 25 | P121: 49.20677465 | Q121: 42.1044788 | R121: 54.48674472 | S121: 47.52768846 | T121: 36.98764269 | U121: 49.20677465
B122: Overhead LV insulators | C122: GEE | L122: =L41*L81 -> 61 | M122: 50 | N122: 75 | O122: 37 | P122: 57.61535468 | Q122: 53.07704104 | R122: 58.42433347 | S122: 60.30621321 | T122: 49.25016974 | U122: 57.61535468
B123: Overhead LV insulators | C123: HOR | L123: =L42*L82 -> 17 | M123: 18 | N123: 13 | O123: 4 | P123: 12.31509945 | Q123: 13.7254979 | R123: 15.87144594 | S123: 9.726393415 | T123: 13.75763356 | U123: 12.31509945
B124: Overhead LV insulators | C124: MIL | L124: =L43*L83 -> 10 | M124: 9 | N124: 10 | O124: 4 | P124: 2.490955536 | Q124: 0 | R124: 0 | S124: 0 | T124: 0 | U124: 0
B125: Overhead LV insulators | C125: SHE | L125: =L44*L84 -> 20 | M125: 32 | N125: 16 | O125: 8 | P125: 15.99748517 | Q125: 17.60369376 | R125: 20.94531236 | S125: 21.20077881 | T125: 13.75995145 | U125: 15.99748517
B126: Overhead LV insulators | C126: SUN | L126: =L45*L85 -> 25 | M126: 54 | N126: 38 | O126: 14 | P126: 28.83947567 | Q126: 33.73593362 | R126: 36.96164072 | S126: 32.50851072 | T126: 22.25572477 | U126: 28.83947567
B127: Overhead LV insulators | C127: WAR | L127: =L46*L86 -> 48 | M127: 134 | N127: 57 | O127: 43 | P127: 84.95029013 | Q127: 52.24591879 | R127: 82.11265237 | S127: 78.57156659 | T127: 59.39962743 | U127: 84.95029013
B129: =B48 -> Defective ACRs | L129: =L48*L88 -> 18.99161888 | M129: 5 | N129: 78 | O129: 19 | P129: 32.58387762 | Q129: 33.5875267 | R129: 34.59117578 | S129: 35.59482486 | T129: 36.59847394 | U129: 37.60212301
B133: Adjustments
B134: LV pole tops | P134: =-Adjustments!$D$33 -> -0.01663352273 | Q134: =-Adjustments!$D$33 -> -0.01663352273 | R134: =-Adjustments!$D$33 -> -0.01663352273 | S134: =-Adjustments!$D$33 -> -0.01663352273 | T134: =-Adjustments!$D$33 -> -0.01663352273 | U134: =-Adjustments!$D$33 -> -0.01663352273
B135: HV pole tops | P135: =-Adjustments!$D$32 -> -0.02386366257 | Q135: =-Adjustments!$D$32 -> -0.02386366257 | R135: =-Adjustments!$D$32 -> -0.02386366257 | S135: =-Adjustments!$D$32 -> -0.02386366257 | T135: =-Adjustments!$D$32 -> -0.02386366257 | U135: =-Adjustments!$D$32 -> -0.02386366257
B139: Total forecast notifications (excluding faults)
B140: HV cross-arm replacement | C140: HV pole tops | L140: =SUMPRODUCT((L$93:L$130)*($B$93:$B$130=$B140))*(1+SUMPRODUCT((L$134:L$135)*($B$134:$B$135=$C140))) -> 2491 | M140: =SUMPRODUCT((M$93:M$130)*($B$93:$B$130=$B140))*(1+SUMPRODUCT((M$134:M$135)*($B$134:$B$135=$C140))) -> 2116 | N140: =SUMPRODUCT((N$93:N$130)*($B$93:$B$130=$B140))*(1+SUMPRODUCT((N$134:N$135)*($B$134:$B$135=$C140))) -> 1955 | O140: =SUMPRODUCT((O$93:O$130)*($B$93:$B$130=$B140))*(1+SUMPRODUCT((O$134:O$135)*($B$134:$B$135=$C140))) -> 1139 | P140: =SUMPRODUCT((P$93:P$130)*($B$93:$B$130=$B140))*(1+SUMPRODUCT((P$134:P$135)*($B$134:$B$135=$C140))) -> 2331.69083 | Q140: =SUMPRODUCT((Q$93:Q$130)*($B$93:$B$130=$B140))*(1+SUMPRODUCT((Q$134:Q$135)*($B$134:$B$135=$C140))) -> 2165.181642 | R140: =SUMPRODUCT((R$93:R$130)*($B$93:$B$130=$B140))*(1+SUMPRODUCT((R$134:R$135)*($B$134:$B$135=$C140))) -> 1905.602952 | S140: =SUMPRODUCT((S$93:S$130)*($B$93:$B$130=$B140))*(1+SUMPRODUCT((S$134:S$135)*($B$134:$B$135=$C140))) -> 1728.115131 | T140: =SUMPRODUCT((T$93:T$130)*($B$93:$B$130=$B140))*(1+SUMPRODUCT((T$134:T$135)*($B$134:$B$135=$C140))) -> 1284.978903 | U140: =SUMPRODUCT((U$93:U$130)*($B$93:$B$130=$B140))*(1+SUMPRODUCT((U$134:U$135)*($B$134:$B$135=$C140))) -> 2235.314574
B141: LV cross-arm replacement | C141: LV pole tops | L141: =SUMPRODUCT((L$93:L$130)*($B$93:$B$130=$B141))*(1+SUMPRODUCT((L$134:L$135)*($B$134:$B$135=$C141))) -> 3387 | M141: =SUMPRODUCT((M$93:M$130)*($B$93:$B$130=$B141))*(1+SUMPRODUCT((M$134:M$135)*($B$134:$B$135=$C141))) -> 4377 | N141: =SUMPRODUCT((N$93:N$130)*($B$93:$B$130=$B141))*(1+SUMPRODUCT((N$134:N$135)*($B$134:$B$135=$C141))) -> 3533 | O141: =SUMPRODUCT((O$93:O$130)*($B$93:$B$130=$B141))*(1+SUMPRODUCT((O$134:O$135)*($B$134:$B$135=$C141))) -> 2180 | P141: =SUMPRODUCT((P$93:P$130)*($B$93:$B$130=$B141))*(1+SUMPRODUCT((P$134:P$135)*($B$134:$B$135=$C141))) -> 3543.351772 | Q141: =SUMPRODUCT((Q$93:Q$130)*($B$93:$B$130=$B141))*(1+SUMPRODUCT((Q$134:Q$135)*($B$134:$B$135=$C141))) -> 2918.079069 | R141: =SUMPRODUCT((R$93:R$130)*($B$93:$B$130=$B141))*(1+SUMPRODUCT((R$134:R$135)*($B$134:$B$135=$C141))) -> 3600.815423 | S141: =SUMPRODUCT((S$93:S$130)*($B$93:$B$130=$B141))*(1+SUMPRODUCT((S$134:S$135)*($B$134:$B$135=$C141))) -> 3453.821556 | T141: =SUMPRODUCT((T$93:T$130)*($B$93:$B$130=$B141))*(1+SUMPRODUCT((T$134:T$135)*($B$134:$B$135=$C141))) -> 2745.643864 | U141: =SUMPRODUCT((U$93:U$130)*($B$93:$B$130=$B141))*(1+SUMPRODUCT((U$134:U$135)*($B$134:$B$135=$C141))) -> 3475.175931
B142: Overhead HV insulators | C142: HV pole tops | L142: =SUMPRODUCT((L$93:L$130)*($B$93:$B$130=$B142))*(1+SUMPRODUCT((L$134:L$135)*($B$134:$B$135=$C142))) -> 2800.143357 | M142: =SUMPRODUCT((M$93:M$130)*($B$93:$B$130=$B142))*(1+SUMPRODUCT((M$134:M$135)*($B$134:$B$135=$C142))) -> 2804.946331 | N142: =SUMPRODUCT((N$93:N$130)*($B$93:$B$130=$B142))*(1+SUMPRODUCT((N$134:N$135)*($B$134:$B$135=$C142))) -> 2424.433909 | O142: =SUMPRODUCT((O$93:O$130)*($B$93:$B$130=$B142))*(1+SUMPRODUCT((O$134:O$135)*($B$134:$B$135=$C142))) -> 2335.389406 | P142: =SUMPRODUCT((P$93:P$130)*($B$93:$B$130=$B142))*(1+SUMPRODUCT((P$134:P$135)*($B$134:$B$135=$C142))) -> 2431.470516 | Q142: =SUMPRODUCT((Q$93:Q$130)*($B$93:$B$130=$B142))*(1+SUMPRODUCT((Q$134:Q$135)*($B$134:$B$135=$C142))) -> 2323.451075 | R142: =SUMPRODUCT((R$93:R$130)*($B$93:$B$130=$B142))*(1+SUMPRODUCT((R$134:R$135)*($B$134:$B$135=$C142))) -> 2480.508666 | S142: =SUMPRODUCT((S$93:S$130)*($B$93:$B$130=$B142))*(1+SUMPRODUCT((S$134:S$135)*($B$134:$B$135=$C142))) -> 2476.090089 | T142: =SUMPRODUCT((T$93:T$130)*($B$93:$B$130=$B142))*(1+SUMPRODUCT((T$134:T$135)*($B$134:$B$135=$C142))) -> 2372.885107 | U142: =SUMPRODUCT((U$93:U$130)*($B$93:$B$130=$B142))*(1+SUMPRODUCT((U$134:U$135)*($B$134:$B$135=$C142))) -> 2462.772592
B143: Overhead LV insulators | C143: LV pole tops | L143: =SUMPRODUCT((L$93:L$130)*($B$93:$B$130=$B143))*(1+SUMPRODUCT((L$134:L$135)*($B$134:$B$135=$C143))) -> 304 | M143: =SUMPRODUCT((M$93:M$130)*($B$93:$B$130=$B143))*(1+SUMPRODUCT((M$134:M$135)*($B$134:$B$135=$C143))) -> 428 | N143: =SUMPRODUCT((N$93:N$130)*($B$93:$B$130=$B143))*(1+SUMPRODUCT((N$134:N$135)*($B$134:$B$135=$C143))) -> 288 | O143: =SUMPRODUCT((O$93:O$130)*($B$93:$B$130=$B143))*(1+SUMPRODUCT((O$134:O$135)*($B$134:$B$135=$C143))) -> 167 | P143: =SUMPRODUCT((P$93:P$130)*($B$93:$B$130=$B143))*(1+SUMPRODUCT((P$134:P$135)*($B$134:$B$135=$C143))) -> 251.4375744 | Q143: =SUMPRODUCT((Q$93:Q$130)*($B$93:$B$130=$B143))*(1+SUMPRODUCT((Q$134:Q$135)*($B$134:$B$135=$C143))) -> 208.958064 | R143: =SUMPRODUCT((R$93:R$130)*($B$93:$B$130=$B143))*(1+SUMPRODUCT((R$134:R$135)*($B$134:$B$135=$C143))) -> 264.3310032 | S143: =SUMPRODUCT((S$93:S$130)*($B$93:$B$130=$B143))*(1+SUMPRODUCT((S$134:S$135)*($B$134:$B$135=$C143))) -> 245.6854127 | T143: =SUMPRODUCT((T$93:T$130)*($B$93:$B$130=$B143))*(1+SUMPRODUCT((T$134:T$135)*($B$134:$B$135=$C143))) -> 192.1603805 | U143: =SUMPRODUCT((U$93:U$130)*($B$93:$B$130=$B143))*(1+SUMPRODUCT((U$134:U$135)*($B$134:$B$135=$C143))) -> 244.7839888
B144: =B129 -> Defective ACRs | C144: Other | L144: =SUMPRODUCT((L$93:L$130)*($B$93:$B$130=$B144))*(1+SUMPRODUCT((L$134:L$135)*($B$134:$B$135=$C144))) -> 18.99161888 | M144: =SUMPRODUCT((M$93:M$130)*($B$93:$B$130=$B144))*(1+SUMPRODUCT((M$134:M$135)*($B$134:$B$135=$C144))) -> 5 | N144: =SUMPRODUCT((N$93:N$130)*($B$93:$B$130=$B144))*(1+SUMPRODUCT((N$134:N$135)*($B$134:$B$135=$C144))) -> 78 | O144: =SUMPRODUCT((O$93:O$130)*($B$93:$B$130=$B144))*(1+SUMPRODUCT((O$134:O$135)*($B$134:$B$135=$C144))) -> 19 | P144: =SUMPRODUCT((P$93:P$130)*($B$93:$B$130=$B144))*(1+SUMPRODUCT((P$134:P$135)*($B$134:$B$135=$C144))) -> 32.58387762 | Q144: =SUMPRODUCT((Q$93:Q$130)*($B$93:$B$130=$B144))*(1+SUMPRODUCT((Q$134:Q$135)*($B$134:$B$135=$C144))) -> 33.5875267 | R144: =SUMPRODUCT((R$93:R$130)*($B$93:$B$130=$B144))*(1+SUMPRODUCT((R$134:R$135)*($B$134:$B$135=$C144))) -> 34.59117578 | S144: =SUMPRODUCT((S$93:S$130)*($B$93:$B$130=$B144))*(1+SUMPRODUCT((S$134:S$135)*($B$134:$B$135=$C144))) -> 35.59482486 | T144: =SUMPRODUCT((T$93:T$130)*($B$93:$B$130=$B144))*(1+SUMPRODUCT((T$134:T$135)*($B$134:$B$135=$C144))) -> 36.59847394 | U144: =SUMPRODUCT((U$93:U$130)*($B$93:$B$130=$B144))*(1+SUMPRODUCT((U$134:U$135)*($B$134:$B$135=$C144))) -> 37.60212301

Sheet Forecast_volumes
A1: =bus -> Powercor
A2: =Cover!$C$5 -> Replacement expenditure forecast model
A3: TREND-BASED FORECAST VOLUMES
M8: FORECAST VOLUME | S8: TOTAL
B9: =Hist_volumes!B9 -> Capex model project/program | C9: =Hist_volumes!C9 -> Description | D9: =Hist_volumes!D9 -> Asset class | E9: =Hist_volumes!E9 -> Volume units | F9: =Hist_volumes!F9 -> Forecast methodology | H9: Average hist vol pa | M9: 2026/27 | N9: 2027/28 | O9: 2028/29 | P9: 2029/30 | Q9: 2030/31 | S9: 2026-31
B10: =IF(ISBLANK($C10),0, INDEX(Hist_volumes!B$10:B$32, MATCH($C10, Hist_volumes!$C$10:$C$32,0))) -> LV wood pole replacement | C10: =_xlfn.UNIQUE(Hist_volumes!$C$10:$C$32) -> LV wood pole replacement | D10: =IF(ISBLANK($C10),0, INDEX(Hist_volumes!D$10:D$32, MATCH($C10, Hist_volumes!$C$10:$C$32,0))) -> Poles | E10: =IF(ISBLANK($C10),0, INDEX(Hist_volumes!E$10:E$32, MATCH($C10, Hist_volumes!$C$10:$C$32,0))) -> each | F10: =IF(ISBLANK($C10),0, INDEX(Hist_volumes!F$10:F$32, MATCH($C10, Hist_volumes!$C$10:$C$32,0))) -> Pole calculation model & adjustment | H10: =SUMPRODUCT((Hist_volumes!$O$10:$O$32)*(Hist_volumes!$C$10:$C$32=$C10)) -> 306 | M10: =ROUND(IF($F10=Lists!$C$5,SUMPRODUCT(('Defect analysis'!Q$140:Q$144)*('Defect analysis'!$B$140:$B$144=$C10)),$H10), IF($E10=Lists!$M$5,0,Lists!$M$6)) -> 306 | N10: =ROUND(IF($F10=Lists!$C$5,SUMPRODUCT(('Defect analysis'!R$140:R$144)*('Defect analysis'!$B$140:$B$144=$C10)),$H10), IF($E10=Lists!$M$5,0,Lists!$M$6)) -> 306 | O10: =ROUND(IF($F10=Lists!$C$5,SUMPRODUCT(('Defect analysis'!S$140:S$144)*('Defect analysis'!$B$140:$B$144=$C10)),$H10), IF($E10=Lists!$M$5,0,Lists!$M$6)) -> 306 | P10: =ROUND(IF($F10=Lists!$C$5,SUMPRODUCT(('Defect analysis'!T$140:T$144)*('Defect analysis'!$B$140:$B$144=$C10)),$H10), IF($E10=Lists!$M$5,0,Lists!$M$6)) -> 306 | Q10: =ROUND(IF($F10=Lists!$C$5,SUMPRODUCT(('Defect analysis'!U$140:U$144)*('Defect analysis'!$B$140:$B$144=$C10)),$H10), IF($E10=Lists!$M$5,0,Lists!$M$6)) -> 306 | S10: =SUM(M10:Q10) -> 1530
B11: =IF(ISBLANK($C11),0, INDEX(Hist_volumes!B$10:B$32, MATCH($C11, Hist_volumes!$C$10:$C$32,0))) -> HV wood pole replacement | C11: HV wood pole replacement | D11: =IF(ISBLANK($C11),0, INDEX(Hist_volumes!D$10:D$32, MATCH($C11, Hist_volumes!$C$10:$C$32,0))) -> Poles | E11: =IF(ISBLANK($C11),0, INDEX(Hist_volumes!E$10:E$32, MATCH($C11, Hist_volumes!$C$10:$C$32,0))) -> each | F11: =IF(ISBLANK($C11),0, INDEX(Hist_volumes!F$10:F$32, MATCH($C11, Hist_volumes!$C$10:$C$32,0))) -> Pole calculation model & adjustment | H11: =SUMPRODUCT((Hist_volumes!$O$10:$O$32)*(Hist_volumes!$C$10:$C$32=$C11)) -> 1408 | M11: =ROUND(IF($F11=Lists!$C$5,SUMPRODUCT(('Defect analysis'!Q$140:Q$144)*('Defect analysis'!$B$140:$B$144=$C11)),$H11), IF($E11=Lists!$M$5,0,Lists!$M$6)) -> 1408 | N11: =ROUND(IF($F11=Lists!$C$5,SUMPRODUCT(('Defect analysis'!R$140:R$144)*('Defect analysis'!$B$140:$B$144=$C11)),$H11), IF($E11=Lists!$M$5,0,Lists!$M$6)) -> 1408 | O11: =ROUND(IF($F11=Lists!$C$5,SUMPRODUCT(('Defect analysis'!S$140:S$144)*('Defect analysis'!$B$140:$B$144=$C11)),$H11), IF($E11=Lists!$M$5,0,Lists!$M$6)) -> 1408 | P11: =ROUND(IF($F11=Lists!$C$5,SUMPRODUCT(('Defect analysis'!T$140:T$144)*('Defect analysis'!$B$140:$B$144=$C11)),$H11), IF($E11=Lists!$M$5,0,Lists!$M$6)) -> 1408 | Q11: =ROUND(IF($F11=Lists!$C$5,SUMPRODUCT(('Defect analysis'!U$140:U$144)*('Defect analysis'!$B$140:$B$144=$C11)),$H11), IF($E11=Lists!$M$5,0,Lists!$M$6)) -> 1408 | S11: =SUM(M11:Q11) -> 7040
B12: =IF(ISBLANK($C12),0, INDEX(Hist_volumes!B$10:B$32, MATCH($C12, Hist_volumes!$C$10:$C$32,0))) -> LV pole top replacement | C12: LV cross-arm replacement | D12: =IF(ISBLANK($C12),0, INDEX(Hist_volumes!D$10:D$32, MATCH($C12, Hist_volumes!$C$10:$C$32,0))) -> Pole top structures | E12: =IF(ISBLANK($C12),0, INDEX(Hist_volumes!E$10:E$32, MATCH($C12, Hist_volumes!$C$10:$C$32,0))) -> each | F12: =IF(ISBLANK($C12),0, INDEX(Hist_volumes!F$10:F$32, MATCH($C12, Hist_volumes!$C$10:$C$32,0))) -> Defect analysis | H12: =SUMPRODUCT((Hist_volumes!$O$10:$O$32)*(Hist_volumes!$C$10:$C$32=$C12)) -> 0 | M12: =ROUND(IF($F12=Lists!$C$5,SUMPRODUCT(('Defect analysis'!Q$140:Q$144)*('Defect analysis'!$B$140:$B$144=$C12)),$H12), IF($E12=Lists!$M$5,0,Lists!$M$6)) -> 2918 | N12: =ROUND(IF($F12=Lists!$C$5,SUMPRODUCT(('Defect analysis'!R$140:R$144)*('Defect analysis'!$B$140:$B$144=$C12)),$H12), IF($E12=Lists!$M$5,0,Lists!$M$6)) -> 3601 | O12: =ROUND(IF($F12=Lists!$C$5,SUMPRODUCT(('Defect analysis'!S$140:S$144)*('Defect analysis'!$B$140:$B$144=$C12)),$H12), IF($E12=Lists!$M$5,0,Lists!$M$6)) -> 3454 | P12: =ROUND(IF($F12=Lists!$C$5,SUMPRODUCT(('Defect analysis'!T$140:T$144)*('Defect analysis'!$B$140:$B$144=$C12)),$H12), IF($E12=Lists!$M$5,0,Lists!$M$6)) -> 2746 | Q12: =ROUND(IF($F12=Lists!$C$5,SUMPRODUCT(('Defect analysis'!U$140:U$144)*('Defect analysis'!$B$140:$B$144=$C12)),$H12), IF($E12=Lists!$M$5,0,Lists!$M$6)) -> 3475 | S12: 16194
B13: =IF(ISBLANK($C13),0, INDEX(Hist_volumes!B$10:B$32, MATCH($C13, Hist_volumes!$C$10:$C$32,0))) -> HV pole top replacement | C13: HV cross-arm replacement | D13: =IF(ISBLANK($C13),0, INDEX(Hist_volumes!D$10:D$32, MATCH($C13, Hist_volumes!$C$10:$C$32,0))) -> Pole top structures | E13: =IF(ISBLANK($C13),0, INDEX(Hist_volumes!E$10:E$32, MATCH($C13, Hist_volumes!$C$10:$C$32,0))) -> each | F13: =IF(ISBLANK($C13),0, INDEX(Hist_volumes!F$10:F$32, MATCH($C13, Hist_volumes!$C$10:$C$32,0))) -> Defect analysis | H13: =SUMPRODUCT((Hist_volumes!$O$10:$O$32)*(Hist_volumes!$C$10:$C$32=$C13)) -> 0 | M13: =ROUND(IF($F13=Lists!$C$5,SUMPRODUCT(('Defect analysis'!Q$140:Q$144)*('Defect analysis'!$B$140:$B$144=$C13)),$H13), IF($E13=Lists!$M$5,0,Lists!$M$6)) -> 2165 | N13: =ROUND(IF($F13=Lists!$C$5,SUMPRODUCT(('Defect analysis'!R$140:R$144)*('Defect analysis'!$B$140:$B$144=$C13)),$H13), IF($E13=Lists!$M$5,0,Lists!$M$6)) -> 1906 | O13: =ROUND(IF($F13=Lists!$C$5,SUMPRODUCT(('Defect analysis'!S$140:S$144)*('Defect analysis'!$B$140:$B$144=$C13)),$H13), IF($E13=Lists!$M$5,0,Lists!$M$6)) -> 1728 | P13: =ROUND(IF($F13=Lists!$C$5,SUMPRODUCT(('Defect analysis'!T$140:T$144)*('Defect analysis'!$B$140:$B$144=$C13)),$H13), IF($E13=Lists!$M$5,0,Lists!$M$6)) -> 1285 | Q13: =ROUND(IF($F13=Lists!$C$5,SUMPRODUCT(('Defect analysis'!U$140:U$144)*('Defect analysis'!$B$140:$B$144=$C13)),$H13), IF($E13=Lists!$M$5,0,Lists!$M$6)) -> 2235 | S13: 9319
B14: =IF(ISBLANK($C14),0, INDEX(Hist_volumes!B$10:B$32, MATCH($C14, Hist_volumes!$C$10:$C$32,0))) -> HV pole top replacement | C14: Overhead HV insulators | D14: =IF(ISBLANK($C14),0, INDEX(Hist_volumes!D$10:D$32, MATCH($C14, Hist_volumes!$C$10:$C$32,0))) -> Pole top structures | E14: =IF(ISBLANK($C14),0, INDEX(Hist_volumes!E$10:E$32, MATCH($C14, Hist_volumes!$C$10:$C$32,0))) -> each | F14: =IF(ISBLANK($C14),0, INDEX(Hist_volumes!F$10:F$32, MATCH($C14, Hist_volumes!$C$10:$C$32,0))) -> Defect analysis | H14: =SUMPRODUCT((Hist_volumes!$O$10:$O$32)*(Hist_volumes!$C$10:$C$32=$C14)) -> 0 | M14: =ROUND(IF($F14=Lists!$C$5,SUMPRODUCT(('Defect analysis'!Q$140:Q$144)*('Defect analysis'!$B$140:$B$144=$C14)),$H14), IF($E14=Lists!$M$5,0,Lists!$M$6)) -> 2323 | N14: =ROUND(IF($F14=Lists!$C$5,SUMPRODUCT(('Defect analysis'!R$140:R$144)*('Defect analysis'!$B$140:$B$144=$C14)),$H14), IF($E14=Lists!$M$5,0,Lists!$M$6)) -> 2481 | O14: =ROUND(IF($F14=Lists!$C$5,SUMPRODUCT(('Defect analysis'!S$140:S$144)*('Defect analysis'!$B$140:$B$144=$C14)),$H14), IF($E14=Lists!$M$5,0,Lists!$M$6)) -> 2476 | P14: =ROUND(IF($F14=Lists!$C$5,SUMPRODUCT(('Defect analysis'!T$140:T$144)*('Defect analysis'!$B$140:$B$144=$C14)),$H14), IF($E14=Lists!$M$5,0,Lists!$M$6)) -> 2373 | Q14: =ROUND(IF($F14=Lists!$C$5,SUMPRODUCT(('Defect analysis'!U$140:U$144)*('Defect analysis'!$B$140:$B$144=$C14)),$H14), IF($E14=Lists!$M$5,0,Lists!$M$6)) -> 2463 | S14: 12116
B15: =IF(ISBLANK($C15),0, INDEX(Hist_volumes!B$10:B$32, MATCH($C15, Hist_volumes!$C$10:$C$32,0))) -> LV pole top replacement | C15: Overhead LV insulators | D15: =IF(ISBLANK($C15),0, INDEX(Hist_volumes!D$10:D$32, MATCH($C15, Hist_volumes!$C$10:$C$32,0))) -> Pole top structures | E15: =IF(ISBLANK($C15),0, INDEX(Hist_volumes!E$10:E$32, MATCH($C15, Hist_volumes!$C$10:$C$32,0))) -> each | F15: =IF(ISBLANK($C15),0, INDEX(Hist_volumes!F$10:F$32, MATCH($C15, Hist_volumes!$C$10:$C$32,0))) -> Defect analysis | H15: =SUMPRODUCT((Hist_volumes!$O$10:$O$32)*(Hist_volumes!$C$10:$C$32=$C15)) -> 0 | M15: =ROUND(IF($F15=Lists!$C$5,SUMPRODUCT(('Defect analysis'!Q$140:Q$144)*('Defect analysis'!$B$140:$B$144=$C15)),$H15), IF($E15=Lists!$M$5,0,Lists!$M$6)) -> 209 | N15: =ROUND(IF($F15=Lists!$C$5,SUMPRODUCT(('Defect analysis'!R$140:R$144)*('Defect analysis'!$B$140:$B$144=$C15)),$H15), IF($E15=Lists!$M$5,0,Lists!$M$6)) -> 264 | O15: =ROUND(IF($F15=Lists!$C$5,SUMPRODUCT(('Defect analysis'!S$140:S$144)*('Defect analysis'!$B$140:$B$144=$C15)),$H15), IF($E15=Lists!$M$5,0,Lists!$M$6)) -> 246 | P15: =ROUND(IF($F15=Lists!$C$5,SUMPRODUCT(('Defect analysis'!T$140:T$144)*('Defect analysis'!$B$140:$B$144=$C15)),$H15), IF($E15=Lists!$M$5,0,Lists!$M$6)) -> 192 | Q15: =ROUND(IF($F15=Lists!$C$5,SUMPRODUCT(('Defect analysis'!U$140:U$144)*('Defect analysis'!$B$140:$B$144=$C15)),$H15), IF($E15=Lists!$M$5,0,Lists!$M$6)) -> 245 | S15: 1156
B16: =IF(ISBLANK($C16),0, INDEX(Hist_volumes!B$10:B$32, MATCH($C16, Hist_volumes!$C$10:$C$32,0))) -> Defective fuses, surge diverters and ACRs | C16: Defective ACRs | D16: =IF(ISBLANK($C16),0, INDEX(Hist_volumes!D$10:D$32, MATCH($C16, Hist_volumes!$C$10:$C$32,0))) -> Switchgear (DSS) | E16: =IF(ISBLANK($C16),0, INDEX(Hist_volumes!E$10:E$32, MATCH($C16, Hist_volumes!$C$10:$C$32,0))) -> each | F16: =IF(ISBLANK($C16),0, INDEX(Hist_volumes!F$10:F$32, MATCH($C16, Hist_volumes!$C$10:$C$32,0))) -> Defect analysis | H16: =SUMPRODUCT((Hist_volumes!$O$10:$O$32)*(Hist_volumes!$C$10:$C$32=$C16)) -> 0 | M16: =ROUND(IF($F16=Lists!$C$5,SUMPRODUCT(('Defect analysis'!Q$140:Q$144)*('Defect analysis'!$B$140:$B$144=$C16)),$H16), IF($E16=Lists!$M$5,0,Lists!$M$6)) -> 34 | N16: =ROUND(IF($F16=Lists!$C$5,SUMPRODUCT(('Defect analysis'!R$140:R$144)*('Defect analysis'!$B$140:$B$144=$C16)),$H16), IF($E16=Lists!$M$5,0,Lists!$M$6)) -> 35 | O16: =ROUND(IF($F16=Lists!$C$5,SUMPRODUCT(('Defect analysis'!S$140:S$144)*('Defect analysis'!$B$140:$B$144=$C16)),$H16), IF($E16=Lists!$M$5,0,Lists!$M$6)) -> 36 | P16: =ROUND(IF($F16=Lists!$C$5,SUMPRODUCT(('Defect analysis'!T$140:T$144)*('Defect analysis'!$B$140:$B$144=$C16)),$H16), IF($E16=Lists!$M$5,0,Lists!$M$6)) -> 37 | Q16: =ROUND(IF($F16=Lists!$C$5,SUMPRODUCT(('Defect analysis'!U$140:U$144)*('Defect analysis'!$B$140:$B$144=$C16)),$H16), IF($E16=Lists!$M$5,0,Lists!$M$6)) -> 38 | S16: 180
B17: =IF(ISBLANK($C17),0, INDEX(Hist_volumes!B$10:B$32, MATCH($C17, Hist_volumes!$C$10:$C$32,0))) -> Pole reinforcement | C17: Pole reinforcement | D17: =IF(ISBLANK($C17),0, INDEX(Hist_volumes!D$10:D$32, MATCH($C17, Hist_volumes!$C$10:$C$32,0))) -> Staking | E17: =IF(ISBLANK($C17),0, INDEX(Hist_volumes!E$10:E$32, MATCH($C17, Hist_volumes!$C$10:$C$32,0))) -> each | F17: =IF(ISBLANK($C17),0, INDEX(Hist_volumes!F$10:F$32, MATCH($C17, Hist_volumes!$C$10:$C$32,0))) -> Historical % | H17: =SUMPRODUCT((Hist_volumes!$O$10:$O$32)*(Hist_volumes!$C$10:$C$32=$C17)) -> 2777 | M17: =ROUND(IF($F17=Lists!$C$5,SUMPRODUCT(('Defect analysis'!Q$140:Q$144)*('Defect analysis'!$B$140:$B$144=$C17)),$H17), IF($E17=Lists!$M$5,0,Lists!$M$6)) -> 2777 | N17: =ROUND(IF($F17=Lists!$C$5,SUMPRODUCT(('Defect analysis'!R$140:R$144)*('Defect analysis'!$B$140:$B$144=$C17)),$H17), IF($E17=Lists!$M$5,0,Lists!$M$6)) -> 2777 | O17: =ROUND(IF($F17=Lists!$C$5,SUMPRODUCT(('Defect analysis'!S$140:S$144)*('Defect analysis'!$B$140:$B$144=$C17)),$H17), IF($E17=Lists!$M$5,0,Lists!$M$6)) -> 2777 | P17: =ROUND(IF($F17=Lists!$C$5,SUMPRODUCT(('Defect analysis'!T$140:T$144)*('Defect analysis'!$B$140:$B$144=$C17)),$H17), IF($E17=Lists!$M$5,0,Lists!$M$6)) -> 2777 | Q17: =ROUND(IF($F17=Lists!$C$5,SUMPRODUCT(('Defect analysis'!U$140:U$144)*('Defect analysis'!$B$140:$B$144=$C17)),$H17), IF($E17=Lists!$M$5,0,Lists!$M$6)) -> 2777 | S17: 13885
B18: =IF(ISBLANK($C18),0, INDEX(Hist_volumes!B$10:B$32, MATCH($C18, Hist_volumes!$C$10:$C$32,0))) -> LV wood pole replacement | C18: LV pole replacement: faults | D18: =IF(ISBLANK($C18),0, INDEX(Hist_volumes!D$10:D$32, MATCH($C18, Hist_volumes!$C$10:$C$32,0))) -> Poles | E18: =IF(ISBLANK($C18),0, INDEX(Hist_volumes!E$10:E$32, MATCH($C18, Hist_volumes!$C$10:$C$32,0))) -> each | F18: =IF(ISBLANK($C18),0, INDEX(Hist_volumes!F$10:F$32, MATCH($C18, Hist_volumes!$C$10:$C$32,0))) -> Historical average | H18: =SUMPRODUCT((Hist_volumes!$O$10:$O$32)*(Hist_volumes!$C$10:$C$32=$C18)) -> 28.25 | M18: =ROUND(IF($F18=Lists!$C$5,SUMPRODUCT(('Defect analysis'!Q$140:Q$144)*('Defect analysis'!$B$140:$B$144=$C18)),$H18), IF($E18=Lists!$M$5,0,Lists!$M$6)) -> 28 | N18: =ROUND(IF($F18=Lists!$C$5,SUMPRODUCT(('Defect analysis'!R$140:R$144)*('Defect analysis'!$B$140:$B$144=$C18)),$H18), IF($E18=Lists!$M$5,0,Lists!$M$6)) -> 28 | O18: =ROUND(IF($F18=Lists!$C$5,SUMPRODUCT(('Defect analysis'!S$140:S$144)*('Defect analysis'!$B$140:$B$144=$C18)),$H18), IF($E18=Lists!$M$5,0,Lists!$M$6)) -> 28 | P18: =ROUND(IF($F18=Lists!$C$5,SUMPRODUCT(('Defect analysis'!T$140:T$144)*('Defect analysis'!$B$140:$B$144=$C18)),$H18), IF($E18=Lists!$M$5,0,Lists!$M$6)) -> 28 | Q18: =ROUND(IF($F18=Lists!$C$5,SUMPRODUCT(('Defect analysis'!U$140:U$144)*('Defect analysis'!$B$140:$B$144=$C18)),$H18), IF($E18=Lists!$M$5,0,Lists!$M$6)) -> 28 | S18: 140
B19: =IF(ISBLANK($C19),0, INDEX(Hist_volumes!B$10:B$32, MATCH($C19, Hist_volumes!$C$10:$C$32,0))) -> HV wood pole replacement | C19: HV pole replacement: faults | D19: =IF(ISBLANK($C19),0, INDEX(Hist_volumes!D$10:D$32, MATCH($C19, Hist_volumes!$C$10:$C$32,0))) -> Poles | E19: =IF(ISBLANK($C19),0, INDEX(Hist_volumes!E$10:E$32, MATCH($C19, Hist_volumes!$C$10:$C$32,0))) -> each | F19: =IF(ISBLANK($C19),0, INDEX(Hist_volumes!F$10:F$32, MATCH($C19, Hist_volumes!$C$10:$C$32,0))) -> Historical average | H19: =SUMPRODUCT((Hist_volumes!$O$10:$O$32)*(Hist_volumes!$C$10:$C$32=$C19)) -> 188.25 | M19: =ROUND(IF($F19=Lists!$C$5,SUMPRODUCT(('Defect analysis'!Q$140:Q$144)*('Defect analysis'!$B$140:$B$144=$C19)),$H19), IF($E19=Lists!$M$5,0,Lists!$M$6)) -> 188 | N19: =ROUND(IF($F19=Lists!$C$5,SUMPRODUCT(('Defect analysis'!R$140:R$144)*('Defect analysis'!$B$140:$B$144=$C19)),$H19), IF($E19=Lists!$M$5,0,Lists!$M$6)) -> 188 | O19: =ROUND(IF($F19=Lists!$C$5,SUMPRODUCT(('Defect analysis'!S$140:S$144)*('Defect analysis'!$B$140:$B$144=$C19)),$H19), IF($E19=Lists!$M$5,0,Lists!$M$6)) -> 188 | P19: =ROUND(IF($F19=Lists!$C$5,SUMPRODUCT(('Defect analysis'!T$140:T$144)*('Defect analysis'!$B$140:$B$144=$C19)),$H19), IF($E19=Lists!$M$5,0,Lists!$M$6)) -> 188 | Q19: =ROUND(IF($F19=Lists!$C$5,SUMPRODUCT(('Defect analysis'!U$140:U$144)*('Defect analysis'!$B$140:$B$144=$C19)),$H19), IF($E19=Lists!$M$5,0,Lists!$M$6)) -> 188 | S19: 940
B20: =IF(ISBLANK($C20),0, INDEX(Hist_volumes!B$10:B$32, MATCH($C20, Hist_volumes!$C$10:$C$32,0))) -> LV pole top replacement | C20: LV pole top replacement: faults | D20: =IF(ISBLANK($C20),0, INDEX(Hist_volumes!D$10:D$32, MATCH($C20, Hist_volumes!$C$10:$C$32,0))) -> Pole top structures | E20: =IF(ISBLANK($C20),0, INDEX(Hist_volumes!E$10:E$32, MATCH($C20, Hist_volumes!$C$10:$C$32,0))) -> each | F20: =IF(ISBLANK($C20),0, INDEX(Hist_volumes!F$10:F$32, MATCH($C20, Hist_volumes!$C$10:$C$32,0))) -> Historical average | H20: =SUMPRODUCT((Hist_volumes!$O$10:$O$32)*(Hist_volumes!$C$10:$C$32=$C20)) -> 843.25 | M20: =ROUND(IF($F20=Lists!$C$5,SUMPRODUCT(('Defect analysis'!Q$140:Q$144)*('Defect analysis'!$B$140:$B$144=$C20)),$H20), IF($E20=Lists!$M$5,0,Lists!$M$6)) -> 843 | N20: =ROUND(IF($F20=Lists!$C$5,SUMPRODUCT(('Defect analysis'!R$140:R$144)*('Defect analysis'!$B$140:$B$144=$C20)),$H20), IF($E20=Lists!$M$5,0,Lists!$M$6)) -> 843 | O20: =ROUND(IF($F20=Lists!$C$5,SUMPRODUCT(('Defect analysis'!S$140:S$144)*('Defect analysis'!$B$140:$B$144=$C20)),$H20), IF($E20=Lists!$M$5,0,Lists!$M$6)) -> 843 | P20: =ROUND(IF($F20=Lists!$C$5,SUMPRODUCT(('Defect analysis'!T$140:T$144)*('Defect analysis'!$B$140:$B$144=$C20)),$H20), IF($E20=Lists!$M$5,0,Lists!$M$6)) -> 843 | Q20: =ROUND(IF($F20=Lists!$C$5,SUMPRODUCT(('Defect analysis'!U$140:U$144)*('Defect analysis'!$B$140:$B$144=$C20)),$H20), IF($E20=Lists!$M$5,0,Lists!$M$6)) -> 843 | S20: 4215
B21: =IF(ISBLANK($C21),0, INDEX(Hist_volumes!B$10:B$32, MATCH($C21, Hist_volumes!$C$10:$C$32,0))) -> HV pole top replacement | C21: HV pole top replacement: faults | D21: =IF(ISBLANK($C21),0, INDEX(Hist_volumes!D$10:D$32, MATCH($C21, Hist_volumes!$C$10:$C$32,0))) -> Pole top structures | E21: =IF(ISBLANK($C21),0, INDEX(Hist_volumes!E$10:E$32, MATCH($C21, Hist_volumes!$C$10:$C$32,0))) -> each | F21: =IF(ISBLANK($C21),0, INDEX(Hist_volumes!F$10:F$32, MATCH($C21, Hist_volumes!$C$10:$C$32,0))) -> Historical average | H21: =SUMPRODUCT((Hist_volumes!$O$10:$O$32)*(Hist_volumes!$C$10:$C$32=$C21)) -> 632.25 | M21: =ROUND(IF($F21=Lists!$C$5,SUMPRODUCT(('Defect analysis'!Q$140:Q$144)*('Defect analysis'!$B$140:$B$144=$C21)),$H21), IF($E21=Lists!$M$5,0,Lists!$M$6)) -> 632 | N21: =ROUND(IF($F21=Lists!$C$5,SUMPRODUCT(('Defect analysis'!R$140:R$144)*('Defect analysis'!$B$140:$B$144=$C21)),$H21), IF($E21=Lists!$M$5,0,Lists!$M$6)) -> 632 | O21: =ROUND(IF($F21=Lists!$C$5,SUMPRODUCT(('Defect analysis'!S$140:S$144)*('Defect analysis'!$B$140:$B$144=$C21)),$H21), IF($E21=Lists!$M$5,0,Lists!$M$6)) -> 632 | P21: =ROUND(IF($F21=Lists!$C$5,SUMPRODUCT(('Defect analysis'!T$140:T$144)*('Defect analysis'!$B$140:$B$144=$C21)),$H21), IF($E21=Lists!$M$5,0,Lists!$M$6)) -> 632 | Q21: =ROUND(IF($F21=Lists!$C$5,SUMPRODUCT(('Defect analysis'!U$140:U$144)*('Defect analysis'!$B$140:$B$144=$C21)),$H21), IF($E21=Lists!$M$5,0,Lists!$M$6)) -> 632 | S21: 3160
B22: =IF(ISBLANK($C22),0, INDEX(Hist_volumes!B$10:B$32, MATCH($C22, Hist_volumes!$C$10:$C$32,0))) -> HV pole top replacement | C22: ST pole top replacement: faults | D22: =IF(ISBLANK($C22),0, INDEX(Hist_volumes!D$10:D$32, MATCH($C22, Hist_volumes!$C$10:$C$32,0))) -> Pole top structures | E22: =IF(ISBLANK($C22),0, INDEX(Hist_volumes!E$10:E$32, MATCH($C22, Hist_volumes!$C$10:$C$32,0))) -> each | F22: =IF(ISBLANK($C22),0, INDEX(Hist_volumes!F$10:F$32, MATCH($C22, Hist_volumes!$C$10:$C$32,0))) -> Historical average | H22: =SUMPRODUCT((Hist_volumes!$O$10:$O$32)*(Hist_volumes!$C$10:$C$32=$C22)) -> 39 | M22: =ROUND(IF($F22=Lists!$C$5,SUMPRODUCT(('Defect analysis'!Q$140:Q$144)*('Defect analysis'!$B$140:$B$144=$C22)),$H22), IF($E22=Lists!$M$5,0,Lists!$M$6)) -> 39 | N22: =ROUND(IF($F22=Lists!$C$5,SUMPRODUCT(('Defect analysis'!R$140:R$144)*('Defect analysis'!$B$140:$B$144=$C22)),$H22), IF($E22=Lists!$M$5,0,Lists!$M$6)) -> 39 | O22: =ROUND(IF($F22=Lists!$C$5,SUMPRODUCT(('Defect analysis'!S$140:S$144)*('Defect analysis'!$B$140:$B$144=$C22)),$H22), IF($E22=Lists!$M$5,0,Lists!$M$6)) -> 39 | P22: =ROUND(IF($F22=Lists!$C$5,SUMPRODUCT(('Defect analysis'!T$140:T$144)*('Defect analysis'!$B$140:$B$144=$C22)),$H22), IF($E22=Lists!$M$5,0,Lists!$M$6)) -> 39 | Q22: =ROUND(IF($F22=Lists!$C$5,SUMPRODUCT(('Defect analysis'!U$140:U$144)*('Defect analysis'!$B$140:$B$144=$C22)),$H22), IF($E22=Lists!$M$5,0,Lists!$M$6)) -> 39 | S22: 195
B23: =IF(ISBLANK($C23),0, INDEX(Hist_volumes!B$10:B$32, MATCH($C23, Hist_volumes!$C$10:$C$32,0))) -> Defective fuses, surge diverters and ACRs | C23: Defective fuses and surge diverters: faults | D23: =IF(ISBLANK($C23),0, INDEX(Hist_volumes!D$10:D$32, MATCH($C23, Hist_volumes!$C$10:$C$32,0))) -> Switchgear (DSS) | E23: =IF(ISBLANK($C23),0, INDEX(Hist_volumes!E$10:E$32, MATCH($C23, Hist_volumes!$C$10:$C$32,0))) -> each | F23: =IF(ISBLANK($C23),0, INDEX(Hist_volumes!F$10:F$32, MATCH($C23, Hist_volumes!$C$10:$C$32,0))) -> Historical average | H23: =SUMPRODUCT((Hist_volumes!$O$10:$O$32)*(Hist_volumes!$C$10:$C$32=$C23)) -> 367.25 | M23: =ROUND(IF($F23=Lists!$C$5,SUMPRODUCT(('Defect analysis'!Q$140:Q$144)*('Defect analysis'!$B$140:$B$144=$C23)),$H23), IF($E23=Lists!$M$5,0,Lists!$M$6)) -> 367 | N23: =ROUND(IF($F23=Lists!$C$5,SUMPRODUCT(('Defect analysis'!R$140:R$144)*('Defect analysis'!$B$140:$B$144=$C23)),$H23), IF($E23=Lists!$M$5,0,Lists!$M$6)) -> 367 | O23: =ROUND(IF($F23=Lists!$C$5,SUMPRODUCT(('Defect analysis'!S$140:S$144)*('Defect analysis'!$B$140:$B$144=$C23)),$H23), IF($E23=Lists!$M$5,0,Lists!$M$6)) -> 367 | P23: =ROUND(IF($F23=Lists!$C$5,SUMPRODUCT(('Defect analysis'!T$140:T$144)*('Defect analysis'!$B$140:$B$144=$C23)),$H23), IF($E23=Lists!$M$5,0,Lists!$M$6)) -> 367 | Q23: =ROUND(IF($F23=Lists!$C$5,SUMPRODUCT(('Defect analysis'!U$140:U$144)*('Defect analysis'!$B$140:$B$144=$C23)),$H23), IF($E23=Lists!$M$5,0,Lists!$M$6)) -> 367 | S23: 1835
B24: =IF(ISBLANK($C24),0, INDEX(Hist_volumes!B$10:B$32, MATCH($C24, Hist_volumes!$C$10:$C$32,0))) -> HV wood pole replacement | C24: ST pole replacement: faults | D24: =IF(ISBLANK($C24),0, INDEX(Hist_volumes!D$10:D$32, MATCH($C24, Hist_volumes!$C$10:$C$32,0))) -> Poles | E24: =IF(ISBLANK($C24),0, INDEX(Hist_volumes!E$10:E$32, MATCH($C24, Hist_volumes!$C$10:$C$32,0))) -> each | F24: =IF(ISBLANK($C24),0, INDEX(Hist_volumes!F$10:F$32, MATCH($C24, Hist_volumes!$C$10:$C$32,0))) -> Historical average | H24: =SUMPRODUCT((Hist_volumes!$O$10:$O$32)*(Hist_volumes!$C$10:$C$32=$C24)) -> 2 | M24: =ROUND(IF($F24=Lists!$C$5,SUMPRODUCT(('Defect analysis'!Q$140:Q$144)*('Defect analysis'!$B$140:$B$144=$C24)),$H24), IF($E24=Lists!$M$5,0,Lists!$M$6)) -> 2 | N24: =ROUND(IF($F24=Lists!$C$5,SUMPRODUCT(('Defect analysis'!R$140:R$144)*('Defect analysis'!$B$140:$B$144=$C24)),$H24), IF($E24=Lists!$M$5,0,Lists!$M$6)) -> 2 | O24: =ROUND(IF($F24=Lists!$C$5,SUMPRODUCT(('Defect analysis'!S$140:S$144)*('Defect analysis'!$B$140:$B$144=$C24)),$H24), IF($E24=Lists!$M$5,0,Lists!$M$6)) -> 2 | P24: =ROUND(IF($F24=Lists!$C$5,SUMPRODUCT(('Defect analysis'!T$140:T$144)*('Defect analysis'!$B$140:$B$144=$C24)),$H24), IF($E24=Lists!$M$5,0,Lists!$M$6)) -> 2 | Q24: =ROUND(IF($F24=Lists!$C$5,SUMPRODUCT(('Defect analysis'!U$140:U$144)*('Defect analysis'!$B$140:$B$144=$C24)),$H24), IF($E24=Lists!$M$5,0,Lists!$M$6)) -> 2 | S24: 10
B25: =IF(ISBLANK($C25),0, INDEX(Hist_volumes!B$10:B$32, MATCH($C25, Hist_volumes!$C$10:$C$32,0))) -> HV wood pole replacement | C25: Other pole replacement: faults | D25: =IF(ISBLANK($C25),0, INDEX(Hist_volumes!D$10:D$32, MATCH($C25, Hist_volumes!$C$10:$C$32,0))) -> Poles | E25: =IF(ISBLANK($C25),0, INDEX(Hist_volumes!E$10:E$32, MATCH($C25, Hist_volumes!$C$10:$C$32,0))) -> each | F25: =IF(ISBLANK($C25),0, INDEX(Hist_volumes!F$10:F$32, MATCH($C25, Hist_volumes!$C$10:$C$32,0))) -> Historical average | H25: =SUMPRODUCT((Hist_volumes!$O$10:$O$32)*(Hist_volumes!$C$10:$C$32=$C25)) -> 2.25 | M25: =ROUND(IF($F25=Lists!$C$5,SUMPRODUCT(('Defect analysis'!Q$140:Q$144)*('Defect analysis'!$B$140:$B$144=$C25)),$H25), IF($E25=Lists!$M$5,0,Lists!$M$6)) -> 2 | N25: =ROUND(IF($F25=Lists!$C$5,SUMPRODUCT(('Defect analysis'!R$140:R$144)*('Defect analysis'!$B$140:$B$144=$C25)),$H25), IF($E25=Lists!$M$5,0,Lists!$M$6)) -> 2 | O25: =ROUND(IF($F25=Lists!$C$5,SUMPRODUCT(('Defect analysis'!S$140:S$144)*('Defect analysis'!$B$140:$B$144=$C25)),$H25), IF($E25=Lists!$M$5,0,Lists!$M$6)) -> 2 | P25: =ROUND(IF($F25=Lists!$C$5,SUMPRODUCT(('Defect analysis'!T$140:T$144)*('Defect analysis'!$B$140:$B$144=$C25)),$H25), IF($E25=Lists!$M$5,0,Lists!$M$6)) -> 2 | Q25: =ROUND(IF($F25=Lists!$C$5,SUMPRODUCT(('Defect analysis'!U$140:U$144)*('Defect analysis'!$B$140:$B$144=$C25)),$H25), IF($E25=Lists!$M$5,0,Lists!$M$6)) -> 2 | S25: 10
B26: =IF(ISBLANK($C26),0, INDEX(Hist_volumes!B$10:B$32, MATCH($C26, Hist_volumes!$C$10:$C$32,0))) -> Defective fuses, surge diverters and ACRs | C26: Distribution switchgear refurbishment and repairs | D26: =IF(ISBLANK($C26),0, INDEX(Hist_volumes!D$10:D$32, MATCH($C26, Hist_volumes!$C$10:$C$32,0))) -> Switchgear (DSS) | E26: =IF(ISBLANK($C26),0, INDEX(Hist_volumes!E$10:E$32, MATCH($C26, Hist_volumes!$C$10:$C$32,0))) -> each | F26: =IF(ISBLANK($C26),0, INDEX(Hist_volumes!F$10:F$32, MATCH($C26, Hist_volumes!$C$10:$C$32,0))) -> Estimate | H26: =SUMPRODUCT((Hist_volumes!$O$10:$O$32)*(Hist_volumes!$C$10:$C$32=$C26)) -> 29 | M26: =ROUND(IF($F26=Lists!$C$5,SUMPRODUCT(('Defect analysis'!Q$140:Q$144)*('Defect analysis'!$B$140:$B$144=$C26)),$H26), IF($E26=Lists!$M$5,0,Lists!$M$6)) -> 29 | N26: =ROUND(IF($F26=Lists!$C$5,SUMPRODUCT(('Defect analysis'!R$140:R$144)*('Defect analysis'!$B$140:$B$144=$C26)),$H26), IF($E26=Lists!$M$5,0,Lists!$M$6)) -> 29 | O26: =ROUND(IF($F26=Lists!$C$5,SUMPRODUCT(('Defect analysis'!S$140:S$144)*('Defect analysis'!$B$140:$B$144=$C26)),$H26), IF($E26=Lists!$M$5,0,Lists!$M$6)) -> 29 | P26: =ROUND(IF($F26=Lists!$C$5,SUMPRODUCT(('Defect analysis'!T$140:T$144)*('Defect analysis'!$B$140:$B$144=$C26)),$H26), IF($E26=Lists!$M$5,0,Lists!$M$6)) -> 29 | Q26: =ROUND(IF($F26=Lists!$C$5,SUMPRODUCT(('Defect analysis'!U$140:U$144)*('Defect analysis'!$B$140:$B$144=$C26)),$H26), IF($E26=Lists!$M$5,0,Lists!$M$6)) -> 29 | S26: 145
B27: =IF(ISBLANK($C27),0, INDEX(Hist_volumes!B$10:B$32, MATCH($C27, Hist_volumes!$C$10:$C$32,0))) -> Defective fuses, surge diverters and ACRs | C27: Defective fuses and surge diverters | D27: =IF(ISBLANK($C27),0, INDEX(Hist_volumes!D$10:D$32, MATCH($C27, Hist_volumes!$C$10:$C$32,0))) -> Switchgear (DSS) | E27: =IF(ISBLANK($C27),0, INDEX(Hist_volumes!E$10:E$32, MATCH($C27, Hist_volumes!$C$10:$C$32,0))) -> each | F27: =IF(ISBLANK($C27),0, INDEX(Hist_volumes!F$10:F$32, MATCH($C27, Hist_volumes!$C$10:$C$32,0))) -> Historical average | H27: =SUMPRODUCT((Hist_volumes!$O$10:$O$32)*(Hist_volumes!$C$10:$C$32=$C27)) -> 4836 | M27: =ROUND(IF($F27=Lists!$C$5,SUMPRODUCT(('Defect analysis'!Q$140:Q$144)*('Defect analysis'!$B$140:$B$144=$C27)),$H27), IF($E27=Lists!$M$5,0,Lists!$M$6)) -> 4836 | N27: =ROUND(IF($F27=Lists!$C$5,SUMPRODUCT(('Defect analysis'!R$140:R$144)*('Defect analysis'!$B$140:$B$144=$C27)),$H27), IF($E27=Lists!$M$5,0,Lists!$M$6)) -> 4836 | O27: =ROUND(IF($F27=Lists!$C$5,SUMPRODUCT(('Defect analysis'!S$140:S$144)*('Defect analysis'!$B$140:$B$144=$C27)),$H27), IF($E27=Lists!$M$5,0,Lists!$M$6)) -> 4836 | P27: =ROUND(IF($F27=Lists!$C$5,SUMPRODUCT(('Defect analysis'!T$140:T$144)*('Defect analysis'!$B$140:$B$144=$C27)),$H27), IF($E27=Lists!$M$5,0,Lists!$M$6)) -> 4836 | Q27: =ROUND(IF($F27=Lists!$C$5,SUMPRODUCT(('Defect analysis'!U$140:U$144)*('Defect analysis'!$B$140:$B$144=$C27)),$H27), IF($E27=Lists!$M$5,0,Lists!$M$6)) -> 4836 | S27: 24180
B28: =IF(ISBLANK($C28),0, INDEX(Hist_volumes!B$10:B$32, MATCH($C28, Hist_volumes!$C$10:$C$32,0))) -> Defective SWER ISO & CBU Earth Repair | C28: Defective SWER ISO & CBU Earth Repair | D28: =IF(ISBLANK($C28),0, INDEX(Hist_volumes!D$10:D$32, MATCH($C28, Hist_volumes!$C$10:$C$32,0))) -> Underground cable | E28: =IF(ISBLANK($C28),0, INDEX(Hist_volumes!E$10:E$32, MATCH($C28, Hist_volumes!$C$10:$C$32,0))) -> each | F28: =IF(ISBLANK($C28),0, INDEX(Hist_volumes!F$10:F$32, MATCH($C28, Hist_volumes!$C$10:$C$32,0))) -> Historical average | H28: =SUMPRODUCT((Hist_volumes!$O$10:$O$32)*(Hist_volumes!$C$10:$C$32=$C28)) -> 129.75 | M28: =ROUND(IF($F28=Lists!$C$5,SUMPRODUCT(('Defect analysis'!Q$140:Q$144)*('Defect analysis'!$B$140:$B$144=$C28)),$H28), IF($E28=Lists!$M$5,0,Lists!$M$6)) -> 130 | N28: =ROUND(IF($F28=Lists!$C$5,SUMPRODUCT(('Defect analysis'!R$140:R$144)*('Defect analysis'!$B$140:$B$144=$C28)),$H28), IF($E28=Lists!$M$5,0,Lists!$M$6)) -> 130 | O28: =ROUND(IF($F28=Lists!$C$5,SUMPRODUCT(('Defect analysis'!S$140:S$144)*('Defect analysis'!$B$140:$B$144=$C28)),$H28), IF($E28=Lists!$M$5,0,Lists!$M$6)) -> 130 | P28: =ROUND(IF($F28=Lists!$C$5,SUMPRODUCT(('Defect analysis'!T$140:T$144)*('Defect analysis'!$B$140:$B$144=$C28)),$H28), IF($E28=Lists!$M$5,0,Lists!$M$6)) -> 130 | Q28: =ROUND(IF($F28=Lists!$C$5,SUMPRODUCT(('Defect analysis'!U$140:U$144)*('Defect analysis'!$B$140:$B$144=$C28)),$H28), IF($E28=Lists!$M$5,0,Lists!$M$6)) -> 130 | S28: 650
B29: =IF(ISBLANK($C29),0, INDEX(Hist_volumes!B$10:B$32, MATCH($C29, Hist_volumes!$C$10:$C$32,0))) -> Concrete pole replacement | C29: LV concrete pole replacement | D29: =IF(ISBLANK($C29),0, INDEX(Hist_volumes!D$10:D$32, MATCH($C29, Hist_volumes!$C$10:$C$32,0))) -> Poles | E29: =IF(ISBLANK($C29),0, INDEX(Hist_volumes!E$10:E$32, MATCH($C29, Hist_volumes!$C$10:$C$32,0))) -> each | F29: =IF(ISBLANK($C29),0, INDEX(Hist_volumes!F$10:F$32, MATCH($C29, Hist_volumes!$C$10:$C$32,0))) -> Pole calculation model & adjustment | H29: =SUMPRODUCT((Hist_volumes!$O$10:$O$32)*(Hist_volumes!$C$10:$C$32=$C29)) -> 460 | M29: =ROUND(IF($F29=Lists!$C$5,SUMPRODUCT(('Defect analysis'!Q$140:Q$144)*('Defect analysis'!$B$140:$B$144=$C29)),$H29), IF($E29=Lists!$M$5,0,Lists!$M$6)) -> 460 | N29: =ROUND(IF($F29=Lists!$C$5,SUMPRODUCT(('Defect analysis'!R$140:R$144)*('Defect analysis'!$B$140:$B$144=$C29)),$H29), IF($E29=Lists!$M$5,0,Lists!$M$6)) -> 460 | O29: =ROUND(IF($F29=Lists!$C$5,SUMPRODUCT(('Defect analysis'!S$140:S$144)*('Defect analysis'!$B$140:$B$144=$C29)),$H29), IF($E29=Lists!$M$5,0,Lists!$M$6)) -> 460 | P29: =ROUND(IF($F29=Lists!$C$5,SUMPRODUCT(('Defect analysis'!T$140:T$144)*('Defect analysis'!$B$140:$B$144=$C29)),$H29), IF($E29=Lists!$M$5,0,Lists!$M$6)) -> 460 | Q29: =ROUND(IF($F29=Lists!$C$5,SUMPRODUCT(('Defect analysis'!U$140:U$144)*('Defect analysis'!$B$140:$B$144=$C29)),$H29), IF($E29=Lists!$M$5,0,Lists!$M$6)) -> 460 | S29: 2300
B30: =IF(ISBLANK($C30),0, INDEX(Hist_volumes!B$10:B$32, MATCH($C30, Hist_volumes!$C$10:$C$32,0))) -> Concrete pole replacement | C30: HV concrete pole replacement | D30: =IF(ISBLANK($C30),0, INDEX(Hist_volumes!D$10:D$32, MATCH($C30, Hist_volumes!$C$10:$C$32,0))) -> Poles | E30: =IF(ISBLANK($C30),0, INDEX(Hist_volumes!E$10:E$32, MATCH($C30, Hist_volumes!$C$10:$C$32,0))) -> each | F30: =IF(ISBLANK($C30),0, INDEX(Hist_volumes!F$10:F$32, MATCH($C30, Hist_volumes!$C$10:$C$32,0))) -> Pole calculation model & adjustment | H30: =SUMPRODUCT((Hist_volumes!$O$10:$O$32)*(Hist_volumes!$C$10:$C$32=$C30)) -> 2089.4 | M30: =ROUND(IF($F30=Lists!$C$5,SUMPRODUCT(('Defect analysis'!Q$140:Q$144)*('Defect analysis'!$B$140:$B$144=$C30)),$H30), IF($E30=Lists!$M$5,0,Lists!$M$6)) -> 2089 | N30: =ROUND(IF($F30=Lists!$C$5,SUMPRODUCT(('Defect analysis'!R$140:R$144)*('Defect analysis'!$B$140:$B$144=$C30)),$H30), IF($E30=Lists!$M$5,0,Lists!$M$6)) -> 2089 | O30: =ROUND(IF($F30=Lists!$C$5,SUMPRODUCT(('Defect analysis'!S$140:S$144)*('Defect analysis'!$B$140:$B$144=$C30)),$H30), IF($E30=Lists!$M$5,0,Lists!$M$6)) -> 2089 | P30: =ROUND(IF($F30=Lists!$C$5,SUMPRODUCT(('Defect analysis'!T$140:T$144)*('Defect analysis'!$B$140:$B$144=$C30)),$H30), IF($E30=Lists!$M$5,0,Lists!$M$6)) -> 2089 | Q30: =ROUND(IF($F30=Lists!$C$5,SUMPRODUCT(('Defect analysis'!U$140:U$144)*('Defect analysis'!$B$140:$B$144=$C30)),$H30), IF($E30=Lists!$M$5,0,Lists!$M$6)) -> 2089 | S30: 10445
B31: =IF(ISBLANK($C31),0, INDEX(Hist_volumes!B$10:B$32, MATCH($C31, Hist_volumes!$C$10:$C$32,0))) -> 0 | D31: =IF(ISBLANK($C31),0, INDEX(Hist_volumes!D$10:D$32, MATCH($C31, Hist_volumes!$C$10:$C$32,0))) -> 0 | F31: =IF(ISBLANK($C31),0, INDEX(Hist_volumes!F$10:F$32, MATCH($C31, Hist_volumes!$C$10:$C$32,0))) -> 0 | H31: =SUMPRODUCT((Hist_volumes!$O$10:$O$32)*(Hist_volumes!$C$10:$C$32=$C31)) -> 0 | M31: =$H31 -> 0 | N31: =ROUND(IF($F31=Lists!$C$5,SUMPRODUCT(('Defect analysis'!R$140:R$144)*('Defect analysis'!$B$140:$B$144=$C31)),$H31), IF($E31=Lists!$M$5,0,Lists!$M$6)) -> 0 | O31: =ROUND(IF($F31=Lists!$C$5,SUMPRODUCT(('Defect analysis'!S$140:S$144)*('Defect analysis'!$B$140:$B$144=$C31)),$H31), IF($E31=Lists!$M$5,0,Lists!$M$6)) -> 0 | P31: =ROUND(IF($F31=Lists!$C$5,SUMPRODUCT(('Defect analysis'!T$140:T$144)*('Defect analysis'!$B$140:$B$144=$C31)),$H31), IF($E31=Lists!$M$5,0,Lists!$M$6)) -> 0 | Q31: =ROUND(IF($F31=Lists!$C$5,SUMPRODUCT(('Defect analysis'!U$140:U$144)*('Defect analysis'!$B$140:$B$144=$C31)),$H31), IF($E31=Lists!$M$5,0,Lists!$M$6)) -> 0 | S31: 0
B32: =IF(ISBLANK($C32),0, INDEX(Hist_volumes!B$10:B$32, MATCH($C32, Hist_volumes!$C$10:$C$32,0))) -> 0 | D32: =IF(ISBLANK($C32),0, INDEX(Hist_volumes!D$10:D$32, MATCH($C32, Hist_volumes!$C$10:$C$32,0))) -> 0 | F32: =IF(ISBLANK($C32),0, INDEX(Hist_volumes!F$10:F$32, MATCH($C32, Hist_volumes!$C$10:$C$32,0))) -> 0 | H32: =SUMPRODUCT((Hist_volumes!$O$10:$O$32)*(Hist_volumes!$C$10:$C$32=$C32)) -> 0 | M32: =$H$31 -> 0 | N32: =ROUND(IF($F32=Lists!$C$5,SUMPRODUCT(('Defect analysis'!R$140:R$144)*('Defect analysis'!$B$140:$B$144=$C32)),$H32), IF($E32=Lists!$M$5,0,Lists!$M$6)) -> 0 | O32: =ROUND(IF($F32=Lists!$C$5,SUMPRODUCT(('Defect analysis'!S$140:S$144)*('Defect analysis'!$B$140:$B$144=$C32)),$H32), IF($E32=Lists!$M$5,0,Lists!$M$6)) -> 0 | P32: =ROUND(IF($F32=Lists!$C$5,SUMPRODUCT(('Defect analysis'!T$140:T$144)*('Defect analysis'!$B$140:$B$144=$C32)),$H32), IF($E32=Lists!$M$5,0,Lists!$M$6)) -> 0 | Q32: =ROUND(IF($F32=Lists!$C$5,SUMPRODUCT(('Defect analysis'!U$140:U$144)*('Defect analysis'!$B$140:$B$144=$C32)),$H32), IF($E32=Lists!$M$5,0,Lists!$M$6)) -> 0 | S32: 0

Sheet Hist_expenditure
A1: =bus -> Powercor
A2: =Cover!$C$5 -> Replacement expenditure forecast model
A3: HISTORICAL EXPENDITURE
C4: Converstion to June 2026 $ | H4: =INDEX(Assumptions!$J$35:$Z$35, MATCH(H5,Assumptions!$J$30:$Z$30,0)) -> 1.194526817 | I4: =INDEX(Assumptions!$J$35:$Z$35, MATCH(I5,Assumptions!$J$30:$Z$30,0)) -> 1.169145514 | J4: =INDEX(Assumptions!$J$35:$Z$35, MATCH(J5,Assumptions!$J$30:$Z$30,0)) -> 1.10669641 | K4: =INDEX(Assumptions!$J$35:$Z$35, MATCH(K5,Assumptions!$J$30:$Z$30,0)) -> 1.044792002
C5: Financial year ending | H5: =VALUE(RIGHT(H9,2)) -> 22 | I5: =VALUE(RIGHT(I9,2)) -> 23 | J5: =VALUE(RIGHT(J9,2)) -> 24 | K5: =VALUE(RIGHT(K9,2)) -> 25
C6: Count | H6: 1 | I6: =H6+1 -> 2 | J6: =I6+1 -> 3 | K6: =J6+1 -> 4
H8: Historical expenditure ($ nominal) | M8: Historical expenditure ($ 2026)
B9: Capex model project/program | C9: Description | D9: Asset class | H9: 2021/22 | I9: 2022/23 | J9: 2023/24 | K9: 2024/25 | M9: 2021/22 | N9: 2022/23 | O9: 2023/24 | P9: 2024/25
B10: =Hist_volumes!B10 -> LV wood pole replacement | C10: =Hist_volumes!C10 -> LV wood pole replacement | D10: =Hist_volumes!D10 -> Poles | H10: 7176517.865 | I10: 11582637 | J10: 14940542.08 | K10: 10397107.8 | M10: =Hist_expenditure!H10*Hist_expenditure!H$4 -> 8572543.039 | N10: =Hist_expenditure!I10*Hist_expenditure!I$4 -> 13541788.08 | O10: =Hist_expenditure!J10*Hist_expenditure!J$4 -> 16534644.3 | P10: =Hist_expenditure!K10*Hist_expenditure!K$4 -> 10862815.06
B11: =Hist_volumes!B11 -> HV wood pole replacement | C11: =Hist_volumes!C11 -> HV wood pole replacement | D11: =Hist_volumes!D11 -> Poles | H11: 38725581.73 | I11: 61125932.99 | J11: 62063285.53 | K11: 50872320.07 | M11: =Hist_expenditure!H11*Hist_expenditure!H$4 -> 46258745.87 | N11: =Hist_expenditure!I11*Hist_expenditure!I$4 -> 71465110.33 | O11: =Hist_expenditure!J11*Hist_expenditure!J$4 -> 68685215.32 | P11: =Hist_expenditure!K11*Hist_expenditure!K$4 -> 53150993.11
B12: =Hist_volumes!B12 -> LV pole top replacement | C12: =Hist_volumes!C12 -> LV cross-arm replacement | D12: =Hist_volumes!D12 -> Pole top structures | H12: 10284524 | I12: 17197865 | J12: 16914000 | K12: 9645634 | M12: =Hist_expenditure!H12*Hist_expenditure!H$4 -> 12285139.71 | N12: =Hist_expenditure!I12*Hist_expenditure!I$4 -> 20106806.71 | O12: =Hist_expenditure!J12*Hist_expenditure!J$4 -> 18718663.09 | P12: =Hist_expenditure!K12*Hist_expenditure!K$4 -> 10077681.25
B13: =Hist_volumes!B13 -> HV pole top replacement | C13: =Hist_volumes!C13 -> HV cross-arm replacement | D13: =Hist_volumes!D13 -> Pole top structures | H13: 11558267 | I13: 13757630 | J13: 14816988 | K13: 10866697.31 | M13: =Hist_expenditure!H13*Hist_expenditure!H$4 -> 13806659.88 | N13: =Hist_expenditure!I13*Hist_expenditure!I$4 -> 16084671.39 | O13: =Hist_expenditure!J13*Hist_expenditure!J$4 -> 16397907.43 | P13: =Hist_expenditure!K13*Hist_expenditure!K$4 -> 11353438.44
B14: =Hist_volumes!B14 -> HV pole top replacement | C14: =Hist_volumes!C14 -> Overhead HV insulators | D14: =Hist_volumes!D14 -> Pole top structures | H14: 1903318.1 | I14: 1358570.35 | J14: 4476262.77 | K14: 11340687.69 | M14: =Hist_expenditure!H14*Hist_expenditure!H$4 -> 2273564.511 | N14: =Hist_expenditure!I14*Hist_expenditure!I$4 -> 1588366.43 | O14: =Hist_expenditure!J14*Hist_expenditure!J$4 -> 4953863.94 | P14: =Hist_expenditure!K14*Hist_expenditure!K$4 -> 11848659.79
B15: =Hist_volumes!B15 -> LV pole top replacement | C15: =Hist_volumes!C15 -> Overhead LV insulators | D15: =Hist_volumes!D15 -> Pole top structures | H15: 424564.85 | I15: 393723.76 | J15: 1027361.27 | K15: 264414.4792 | M15: =Hist_expenditure!H15*Hist_expenditure!H$4 -> 507154.0987 | N15: =Hist_expenditure!I15*Hist_expenditure!I$4 -> 460320.3676 | O15: =Hist_expenditure!J15*Hist_expenditure!J$4 -> 1136977.03 | P15: =Hist_expenditure!K15*Hist_expenditure!K$4 -> 276258.1329
B16: =Hist_volumes!B16 -> Defective fuses, surge diverters and ACRs | C16: =Hist_volumes!C16 -> Defective ACRs | D16: =Hist_volumes!D16 -> Switchgear (DSS) | H16: 88688.01455 | I16: 22747.39359 | J16: 57513.1571 | K16: 625093.805 | M16: =Hist_expenditure!H16*Hist_expenditure!H$4 -> 105940.2117 | N16: =Hist_expenditure!I16*Hist_expenditure!I$4 -> 26595.01316 | O16: =Hist_expenditure!J16*Hist_expenditure!J$4 -> 63649.60452 | P16: =Hist_expenditure!K16*Hist_expenditure!K$4 -> 653093.0077
B17: =Hist_volumes!B17 -> Pole reinforcement | C17: =Hist_volumes!C17 -> Pole reinforcement | D17: =Hist_volumes!D17 -> Staking | H17: 2733510 | I17: 9094630 | J17: 6069361 | K17: 5725710 | M17: =Hist_expenditure!H17*Hist_expenditure!H$4 -> 3265250.998 | N17: =Hist_expenditure!I17*Hist_expenditure!I$4 -> 10632945.86 | O17: =Hist_expenditure!J17*Hist_expenditure!J$4 -> 6716940.033 | P17: =Hist_expenditure!K17*Hist_expenditure!K$4 -> 5982176.011
B18: =Hist_volumes!B18 -> LV wood pole replacement | C18: =Hist_volumes!C18 -> LV pole replacement: faults | D18: =Hist_volumes!D18 -> Poles | H18: 353265.1349 | I18: 542333.1906 | J18: 408632.9152 | K18: 535488.836 | M18: =Hist_expenditure!H18*Hist_expenditure!H$4 -> 421984.677 | N18: =Hist_expenditure!I18*Hist_expenditure!I$4 -> 634066.4167 | O18: =Hist_expenditure!J18*Hist_expenditure!J$4 -> 452232.5804 | P18: =Hist_expenditure!K18*Hist_expenditure!K$4 -> 559474.4527
B19: =Hist_volumes!B19 -> HV wood pole replacement | C19: =Hist_volumes!C19 -> HV pole replacement: faults | D19: =Hist_volumes!D19 -> Poles | H19: 3313043.267 | I19: 2760976.847 | J19: 4050858.469 | K19: 3317187.668 | M19: =Hist_expenditure!H19*Hist_expenditure!H$4 -> 3957519.027 | N19: =Hist_expenditure!I19*Hist_expenditure!I$4 -> 3227983.694 | O19: =Hist_expenditure!J19*Hist_expenditure!J$4 -> 4483070.527 | P19: =Hist_expenditure!K19*Hist_expenditure!K$4 -> 3465771.143
B20: =Hist_volumes!B20 -> LV pole top replacement | C20: =Hist_volumes!C20 -> LV pole top replacement: faults | D20: =Hist_volumes!D20 -> Pole top structures | H20: 4070669 | I20: 2737023 | J20: 3261991 | K20: 4350160.069 | M20: =Hist_expenditure!H20*Hist_expenditure!H$4 -> 4862523.282 | N20: =Hist_expenditure!I20*Hist_expenditure!I$4 -> 3199978.161 | O20: =Hist_expenditure!J20*Hist_expenditure!J$4 -> 3610033.731 | P20: =Hist_expenditure!K20*Hist_expenditure!K$4 -> 4545012.445
B21: =Hist_volumes!B21 -> HV pole top replacement | C21: =Hist_volumes!C21 -> HV pole top replacement: faults | D21: =Hist_volumes!D21 -> Pole top structures | H21: 3320873.839 | I21: 1495914.047 | J21: 1731594.459 | K21: 2657822.007 | M21: =Hist_expenditure!H21*Hist_expenditure!H$4 -> 3966872.855 | N21: =Hist_expenditure!I21*Hist_expenditure!I$4 -> 1748941.196 | O21: =Hist_expenditure!J21*Hist_expenditure!J$4 -> 1916349.373 | P21: =Hist_expenditure!K21*Hist_expenditure!K$4 -> 2776871.174
B22: =Hist_volumes!B22 -> HV pole top replacement | C22: =Hist_volumes!C22 -> ST pole top replacement: faults | D22: =Hist_volumes!D22 -> Pole top structures | H22: 44611.43548 | I22: 234850.9905 | J22: 346232.2961 | K22: 306947.496 | M22: =Hist_expenditure!H22*Hist_expenditure!H$4 -> 53289.55601 | N22: =Hist_expenditure!I22*Hist_expenditure!I$4 -> 274574.9819 | O22: =Hist_expenditure!J22*Hist_expenditure!J$4 -> 383174.0393 | P22: =Hist_expenditure!K22*Hist_expenditure!K$4 -> 320696.2887
B23: =Hist_volumes!B23 -> Defective fuses, surge diverters and ACRs | C23: =Hist_volumes!C23 -> Defective fuses and surge diverters: faults | D23: =Hist_volumes!D23 -> Switchgear (DSS) | H23: 22318.05395 | I23: 18405.04229 | J23: 471033.0791 | K23: 2581546.129 | M23: =Hist_expenditure!H23*Hist_expenditure!H$4 -> 26659.51394 | N23: =Hist_expenditure!I23*Hist_expenditure!I$4 -> 21518.17263 | O23: =Hist_expenditure!J23*Hist_expenditure!J$4 -> 521290.6179 | P23: =Hist_expenditure!K23*Hist_expenditure!K$4 -> 2697178.747
B24: =Hist_volumes!B24 -> HV wood pole replacement | C24: =Hist_volumes!C24 -> ST pole replacement: faults | D24: =Hist_volumes!D24 -> Poles | H24: 17310.7347 | I24: 57789.79979 | J24: 171230.0797 | K24: 0 | M24: =Hist_expenditure!H24*Hist_expenditure!H$4 -> 20678.13681 | N24: =Hist_expenditure!I24*Hist_expenditure!I$4 -> 67564.68516 | O24: =Hist_expenditure!J24*Hist_expenditure!J$4 -> 189499.7146 | P24: =Hist_expenditure!K24*Hist_expenditure!K$4 -> 0
B25: =Hist_volumes!B25 -> HV wood pole replacement | C25: =Hist_volumes!C25 -> Other pole replacement: faults | D25: =Hist_volumes!D25 -> Poles | H25: 0 | I25: 0 | J25: 147320.0336 | K25: 0 | M25: =Hist_expenditure!H25*Hist_expenditure!H$4 -> 0 | N25: =Hist_expenditure!I25*Hist_expenditure!I$4 -> 0 | O25: =Hist_expenditure!J25*Hist_expenditure!J$4 -> 163038.5524 | P25: =Hist_expenditure!K25*Hist_expenditure!K$4 -> 0
B26: =Hist_volumes!B26 -> Defective fuses, surge diverters and ACRs | C26: =Hist_volumes!C26 -> Distribution switchgear refurbishment and repairs | D26: =Hist_volumes!D26 -> Switchgear (DSS) | H26: 0 | I26: 0 | J26: 0 | K26: 0 | M26: =Hist_expenditure!H26*Hist_expenditure!H$4 -> 0 | N26: =Hist_expenditure!I26*Hist_expenditure!I$4 -> 0 | O26: =Hist_expenditure!J26*Hist_expenditure!J$4 -> 0 | P26: =Hist_expenditure!K26*Hist_expenditure!K$4 -> 0
B27: =Hist_volumes!B27 -> Defective fuses, surge diverters and ACRs | C27: =Hist_volumes!C27 -> Defective fuses and surge diverters | D27: =Hist_volumes!D27 -> Switchgear (DSS) | H27: 11142134.95 | I27: 18335035 | J27: 19899578.51 | K27: 17970323 | M27: =Hist_expenditure!H27*Hist_expenditure!H$4 -> 13309578.99 | N27: =Hist_expenditure!I27*Hist_expenditure!I$4 -> 21436323.91 | O27: =Hist_expenditure!J27*Hist_expenditure!J$4 -> 22022792.11 | P27: =Hist_expenditure!K27*Hist_expenditure!K$4 -> 18775249.73
B28: =Hist_volumes!B28 -> Defective SWER ISO & CBU Earth Repair | C28: =Hist_volumes!C28 -> Defective SWER ISO & CBU Earth Repair | D28: =Hist_volumes!D28 -> Underground cable | H28: 178447.12 | I28: 1830554.53 | J28: -940400.39 | K28: 56954.11 | M28: =Hist_expenditure!H28*Hist_expenditure!H$4 -> 213159.8702 | N28: =Hist_expenditure!I28*Hist_expenditure!I$4 -> 2140184.616 | O28: =Hist_expenditure!J28*Hist_expenditure!J$4 -> -1040737.736 | P28: =Hist_expenditure!K28*Hist_expenditure!K$4 -> 59505.19858
B29: =Hist_volumes!B29 -> Concrete pole replacement | C29: =Hist_volumes!C29 -> LV concrete pole replacement | D29: =Hist_volumes!D29 -> Poles | H29: 0 | I29: 0 | J29: 0 | K29: 0 | M29: =Hist_expenditure!H29*Hist_expenditure!H$4 -> 0 | N29: =Hist_expenditure!I29*Hist_expenditure!I$4 -> 0 | O29: =Hist_expenditure!J29*Hist_expenditure!J$4 -> 0 | P29: =Hist_expenditure!K29*Hist_expenditure!K$4 -> 0
B30: =Hist_volumes!B30 -> Concrete pole replacement | C30: =Hist_volumes!C30 -> HV concrete pole replacement | D30: =Hist_volumes!D30 -> Poles | H30: 0 | I30: 0 | J30: 0 | K30: 0 | M30: =Hist_expenditure!H30*Hist_expenditure!H$4 -> 0 | N30: =Hist_expenditure!I30*Hist_expenditure!I$4 -> 0 | O30: =Hist_expenditure!J30*Hist_expenditure!J$4 -> 0 | P30: =Hist_expenditure!K30*Hist_expenditure!K$4 -> 0
B31: =Hist_volumes!B31 -> Concrete pole replacement | C31: =Hist_volumes!C31 -> HV concrete pole replacement | D31: =Hist_volumes!D31 -> Poles | H31: 0 | I31: 0 | J31: 0 | K31: 0 | M31: =Hist_expenditure!H31*Hist_expenditure!H$4 -> 0 | N31: =Hist_expenditure!I31*Hist_expenditure!I$4 -> 0 | O31: =Hist_expenditure!J31*Hist_expenditure!J$4 -> 0 | P31: =Hist_expenditure!K31*Hist_expenditure!K$4 -> 0
B32: =Hist_volumes!B32 -> Concrete pole replacement | C32: =Hist_volumes!C32 -> HV concrete pole replacement | D32: =Hist_volumes!D32 -> Poles | H32: 0 | I32: 0 | J32: 0 | K32: 0 | M32: =Hist_expenditure!H32*Hist_expenditure!H$4 -> 0 | N32: =Hist_expenditure!I32*Hist_expenditure!I$4 -> 0 | O32: =Hist_expenditure!J32*Hist_expenditure!J$4 -> 0 | P32: =Hist_expenditure!K32*Hist_expenditure!K$4 -> 0

Sheet Unit_rates
A1: =bus -> Powercor
A2: =Cover!$C$5 -> Replacement expenditure forecast model
A3: AVERAGE HISTORICAL UNIT RATES
G8: AVERAGE UNIT RATE ($ 2026)
B9: =Hist_volumes!B9 -> Capex model project/program | C9: =Hist_volumes!C9 -> Description | D9: =Hist_volumes!D9 -> Asset class | E9: =Hist_volumes!E9 -> Volume units | G9: Average period (yrs) | H9: End year | I9: Hist ave unit rate | J9: Override rate | K9: Applied rate
B10: =Hist_expenditure!B10 -> LV wood pole replacement | C10: =Hist_expenditure!C10 -> LV wood pole replacement | D10: =Hist_expenditure!D10 -> Poles | E10: =INDEX(Hist_volumes!$E$10:$E$32, MATCH($C10, Hist_volumes!$C$10:$C$32,0)) -> each | G10: 4 | H10: 25 | I10: =IF(ISBLANK(H10),0,IF(SUMPRODUCT((Hist_volumes!$H10:$K10)*(Hist_volumes!$H$5:$K$5<=$H10)*(Hist_volumes!$H$5:$K$5>($H10-$G10)))=0,0, SUMPRODUCT((Hist_expenditure!$M10:$P10)*(Hist_expenditure!$H$5:$K$5<=$H10)*(Hist_expenditure!$H$5:$K$5>($H10-$G10)))/SUMPRODUCT((Hist_volumes!$H10:$K10)*(Hist_volumes!$H$5:$K$5<=$H10)*(Hist_volumes!$H$5:$K$5>($H10-$G10))))) -> 18775.80223 | K10: =IF(ISBLANK(J10), I10,J10) -> 18775.80223
B11: =Hist_expenditure!B11 -> HV wood pole replacement | C11: =Hist_expenditure!C11 -> HV wood pole replacement | D11: =Hist_expenditure!D11 -> Poles | E11: =INDEX(Hist_volumes!$E$10:$E$32, MATCH($C11, Hist_volumes!$C$10:$C$32,0)) -> each | G11: 4 | H11: 25 | I11: =IF(ISBLANK(H11),0,IF(SUMPRODUCT((Hist_volumes!$H11:$K11)*(Hist_volumes!$H$5:$K$5<=$H11)*(Hist_volumes!$H$5:$K$5>($H11-$G11)))=0,0, SUMPRODUCT((Hist_expenditure!$M11:$P11)*(Hist_expenditure!$H$5:$K$5<=$H11)*(Hist_expenditure!$H$5:$K$5>($H11-$G11)))/SUMPRODUCT((Hist_volumes!$H11:$K11)*(Hist_volumes!$H$5:$K$5<=$H11)*(Hist_volumes!$H$5:$K$5>($H11-$G11))))) -> 18997.62606 | K11: 18997.62606
B12: =Hist_expenditure!B12 -> LV pole top replacement | C12: =Hist_expenditure!C12 -> LV cross-arm replacement | D12: =Hist_expenditure!D12 -> Pole top structures | E12: =INDEX(Hist_volumes!$E$10:$E$32, MATCH($C12, Hist_volumes!$C$10:$C$32,0)) -> each | G12: 4 | H12: 25 | I12: =IF(ISBLANK(H12),0,IF(SUMPRODUCT((Hist_volumes!$H12:$K12)*(Hist_volumes!$H$5:$K$5<=$H12)*(Hist_volumes!$H$5:$K$5>($H12-$G12)))=0,0, SUMPRODUCT((Hist_expenditure!$M12:$P12)*(Hist_expenditure!$H$5:$K$5<=$H12)*(Hist_expenditure!$H$5:$K$5>($H12-$G12)))/SUMPRODUCT((Hist_volumes!$H12:$K12)*(Hist_volumes!$H$5:$K$5<=$H12)*(Hist_volumes!$H$5:$K$5>($H12-$G12))))) -> 4203.647346 | K12: 4203.647346
B13: =Hist_expenditure!B13 -> HV pole top replacement | C13: =Hist_expenditure!C13 -> HV cross-arm replacement | D13: =Hist_expenditure!D13 -> Pole top structures | E13: =INDEX(Hist_volumes!$E$10:$E$32, MATCH($C13, Hist_volumes!$C$10:$C$32,0)) -> each | G13: 4 | H13: 25 | I13: =IF(ISBLANK(H13),0,IF(SUMPRODUCT((Hist_volumes!$H13:$K13)*(Hist_volumes!$H$5:$K$5<=$H13)*(Hist_volumes!$H$5:$K$5>($H13-$G13)))=0,0, SUMPRODUCT((Hist_expenditure!$M13:$P13)*(Hist_expenditure!$H$5:$K$5<=$H13)*(Hist_expenditure!$H$5:$K$5>($H13-$G13)))/SUMPRODUCT((Hist_volumes!$H13:$K13)*(Hist_volumes!$H$5:$K$5<=$H13)*(Hist_volumes!$H$5:$K$5>($H13-$G13))))) -> 6310.090547 | K13: 6310.090547
B14: =Hist_expenditure!B14 -> HV pole top replacement | C14: =Hist_expenditure!C14 -> Overhead HV insulators | D14: =Hist_expenditure!D14 -> Pole top structures | E14: =INDEX(Hist_volumes!$E$10:$E$32, MATCH($C14, Hist_volumes!$C$10:$C$32,0)) -> each | G14: 4 | H14: 25 | I14: =IF(ISBLANK(H14),0,IF(SUMPRODUCT((Hist_volumes!$H14:$K14)*(Hist_volumes!$H$5:$K$5<=$H14)*(Hist_volumes!$H$5:$K$5>($H14-$G14)))=0,0, SUMPRODUCT((Hist_expenditure!$M14:$P14)*(Hist_expenditure!$H$5:$K$5<=$H14)*(Hist_expenditure!$H$5:$K$5>($H14-$G14)))/SUMPRODUCT((Hist_volumes!$H14:$K14)*(Hist_volumes!$H$5:$K$5<=$H14)*(Hist_volumes!$H$5:$K$5>($H14-$G14))))) -> 1274.560826 | K14: 1274.560826
B15: =Hist_expenditure!B15 -> LV pole top replacement | C15: =Hist_expenditure!C15 -> Overhead LV insulators | D15: =Hist_expenditure!D15 -> Pole top structures | E15: =INDEX(Hist_volumes!$E$10:$E$32, MATCH($C15, Hist_volumes!$C$10:$C$32,0)) -> each | G15: 4 | H15: 25 | I15: =IF(ISBLANK(H15),0,IF(SUMPRODUCT((Hist_volumes!$H15:$K15)*(Hist_volumes!$H$5:$K$5<=$H15)*(Hist_volumes!$H$5:$K$5>($H15-$G15)))=0,0, SUMPRODUCT((Hist_expenditure!$M15:$P15)*(Hist_expenditure!$H$5:$K$5<=$H15)*(Hist_expenditure!$H$5:$K$5>($H15-$G15)))/SUMPRODUCT((Hist_volumes!$H15:$K15)*(Hist_volumes!$H$5:$K$5<=$H15)*(Hist_volumes!$H$5:$K$5>($H15-$G15))))) -> 759.1548562 | K15: 759.1548562
B16: =Hist_expenditure!B16 -> Defective fuses, surge diverters and ACRs | C16: =Hist_expenditure!C16 -> Defective ACRs | D16: =Hist_expenditure!D16 -> Switchgear (DSS) | E16: =INDEX(Hist_volumes!$E$10:$E$32, MATCH($C16, Hist_volumes!$C$10:$C$32,0)) -> each | G16: 4 | H16: 25 | I16: =IF(ISBLANK(H16),0,IF(SUMPRODUCT((Hist_volumes!$H16:$K16)*(Hist_volumes!$H$5:$K$5<=$H16)*(Hist_volumes!$H$5:$K$5>($H16-$G16)))=0,0, SUMPRODUCT((Hist_expenditure!$M16:$P16)*(Hist_expenditure!$H$5:$K$5<=$H16)*(Hist_expenditure!$H$5:$K$5>($H16-$G16)))/SUMPRODUCT((Hist_volumes!$H16:$K16)*(Hist_volumes!$H$5:$K$5<=$H16)*(Hist_volumes!$H$5:$K$5>($H16-$G16))))) -> 21665.25618 | K16: 21665.25618
B17: =Hist_expenditure!B17 -> Pole reinforcement | C17: =Hist_expenditure!C17 -> Pole reinforcement | D17: =Hist_expenditure!D17 -> Staking | E17: =INDEX(Hist_volumes!$E$10:$E$32, MATCH($C17, Hist_volumes!$C$10:$C$32,0)) -> each | G17: 4 | H17: 25 | I17: =IF(ISBLANK(H17),0,IF(SUMPRODUCT((Hist_volumes!$H17:$K17)*(Hist_volumes!$H$5:$K$5<=$H17)*(Hist_volumes!$H$5:$K$5>($H17-$G17)))=0,0, SUMPRODUCT((Hist_expenditure!$M17:$P17)*(Hist_expenditure!$H$5:$K$5<=$H17)*(Hist_expenditure!$H$5:$K$5>($H17-$G17)))/SUMPRODUCT((Hist_volumes!$H17:$K17)*(Hist_volumes!$H$5:$K$5<=$H17)*(Hist_volumes!$H$5:$K$5>($H17-$G17))))) -> 2376.882297 | K17: 2376.882297
B18: =Hist_expenditure!B18 -> LV wood pole replacement | C18: =Hist_expenditure!C18 -> LV pole replacement: faults | D18: =Hist_expenditure!D18 -> Poles | E18: =INDEX(Hist_volumes!$E$10:$E$32, MATCH($C18, Hist_volumes!$C$10:$C$32,0)) -> each | G18: 4 | H18: 25 | I18: =IF(ISBLANK(H18),0,IF(SUMPRODUCT((Hist_volumes!$H18:$K18)*(Hist_volumes!$H$5:$K$5<=$H18)*(Hist_volumes!$H$5:$K$5>($H18-$G18)))=0,0, SUMPRODUCT((Hist_expenditure!$M18:$P18)*(Hist_expenditure!$H$5:$K$5<=$H18)*(Hist_expenditure!$H$5:$K$5>($H18-$G18)))/SUMPRODUCT((Hist_volumes!$H18:$K18)*(Hist_volumes!$H$5:$K$5<=$H18)*(Hist_volumes!$H$5:$K$5>($H18-$G18))))) -> 18298.74448 | K18: 18298.74448
B19: =Hist_expenditure!B19 -> HV wood pole replacement | C19: =Hist_expenditure!C19 -> HV pole replacement: faults | D19: =Hist_expenditure!D19 -> Poles | E19: =INDEX(Hist_volumes!$E$10:$E$32, MATCH($C19, Hist_volumes!$C$10:$C$32,0)) -> each | G19: 4 | H19: 25 | I19: =IF(ISBLANK(H19),0,IF(SUMPRODUCT((Hist_volumes!$H19:$K19)*(Hist_volumes!$H$5:$K$5<=$H19)*(Hist_volumes!$H$5:$K$5>($H19-$G19)))=0,0, SUMPRODUCT((Hist_expenditure!$M19:$P19)*(Hist_expenditure!$H$5:$K$5<=$H19)*(Hist_expenditure!$H$5:$K$5>($H19-$G19)))/SUMPRODUCT((Hist_volumes!$H19:$K19)*(Hist_volumes!$H$5:$K$5<=$H19)*(Hist_volumes!$H$5:$K$5>($H19-$G19))))) -> 20098.73093 | K19: 20098.73093
B20: =Hist_expenditure!B20 -> LV pole top replacement | C20: =Hist_expenditure!C20 -> LV pole top replacement: faults | D20: =Hist_expenditure!D20 -> Pole top structures | E20: =INDEX(Hist_volumes!$E$10:$E$32, MATCH($C20, Hist_volumes!$C$10:$C$32,0)) -> each | G20: 4 | H20: 25 | I20: =IF(ISBLANK(H20),0,IF(SUMPRODUCT((Hist_volumes!$H20:$K20)*(Hist_volumes!$H$5:$K$5<=$H20)*(Hist_volumes!$H$5:$K$5>($H20-$G20)))=0,0, SUMPRODUCT((Hist_expenditure!$M20:$P20)*(Hist_expenditure!$H$5:$K$5<=$H20)*(Hist_expenditure!$H$5:$K$5>($H20-$G20)))/SUMPRODUCT((Hist_volumes!$H20:$K20)*(Hist_volumes!$H$5:$K$5<=$H20)*(Hist_volumes!$H$5:$K$5>($H20-$G20))))) -> 4808.048508 | K20: 4808.048508
B21: =Hist_expenditure!B21 -> HV pole top replacement | C21: =Hist_expenditure!C21 -> HV pole top replacement: faults | D21: =Hist_expenditure!D21 -> Pole top structures | E21: =INDEX(Hist_volumes!$E$10:$E$32, MATCH($C21, Hist_volumes!$C$10:$C$32,0)) -> each | G21: 4 | H21: 25 | I21: =IF(ISBLANK(H21),0,IF(SUMPRODUCT((Hist_volumes!$H21:$K21)*(Hist_volumes!$H$5:$K$5<=$H21)*(Hist_volumes!$H$5:$K$5>($H21-$G21)))=0,0, SUMPRODUCT((Hist_expenditure!$M21:$P21)*(Hist_expenditure!$H$5:$K$5<=$H21)*(Hist_expenditure!$H$5:$K$5>($H21-$G21)))/SUMPRODUCT((Hist_volumes!$H21:$K21)*(Hist_volumes!$H$5:$K$5<=$H21)*(Hist_volumes!$H$5:$K$5>($H21-$G21))))) -> 4115.86975 | K21: 4115.86975
B22: =Hist_expenditure!B22 -> HV pole top replacement | C22: =Hist_expenditure!C22 -> ST pole top replacement: faults | D22: =Hist_expenditure!D22 -> Pole top structures | E22: =INDEX(Hist_volumes!$E$10:$E$32, MATCH($C22, Hist_volumes!$C$10:$C$32,0)) -> each | G22: 4 | H22: 25 | I22: =IF(ISBLANK(H22),0,IF(SUMPRODUCT((Hist_volumes!$H22:$K22)*(Hist_volumes!$H$5:$K$5<=$H22)*(Hist_volumes!$H$5:$K$5>($H22-$G22)))=0,0, SUMPRODUCT((Hist_expenditure!$M22:$P22)*(Hist_expenditure!$H$5:$K$5<=$H22)*(Hist_expenditure!$H$5:$K$5>($H22-$G22)))/SUMPRODUCT((Hist_volumes!$H22:$K22)*(Hist_volumes!$H$5:$K$5<=$H22)*(Hist_volumes!$H$5:$K$5>($H22-$G22))))) -> 6613.685038 | K22: 6613.685038
B23: =Hist_expenditure!B23 -> Defective fuses, surge diverters and ACRs | C23: =Hist_expenditure!C23 -> Defective fuses and surge diverters: faults | D23: =Hist_expenditure!D23 -> Switchgear (DSS) | E23: =INDEX(Hist_volumes!$E$10:$E$32, MATCH($C23, Hist_volumes!$C$10:$C$32,0)) -> each | G23: 4 | H23: 25 | I23: =IF(ISBLANK(H23),0,IF(SUMPRODUCT((Hist_volumes!$H23:$K23)*(Hist_volumes!$H$5:$K$5<=$H23)*(Hist_volumes!$H$5:$K$5>($H23-$G23)))=0,0, SUMPRODUCT((Hist_expenditure!$M23:$P23)*(Hist_expenditure!$H$5:$K$5<=$H23)*(Hist_expenditure!$H$5:$K$5>($H23-$G23)))/SUMPRODUCT((Hist_volumes!$H23:$K23)*(Hist_volumes!$H$5:$K$5<=$H23)*(Hist_volumes!$H$5:$K$5>($H23-$G23))))) -> 2223.721614 | K23: 2223.721614
B24: =Hist_expenditure!B24 -> HV wood pole replacement | C24: =Hist_expenditure!C24 -> ST pole replacement: faults | D24: =Hist_expenditure!D24 -> Poles | E24: =INDEX(Hist_volumes!$E$10:$E$32, MATCH($C24, Hist_volumes!$C$10:$C$32,0)) -> each | G24: 4 | H24: 25 | I24: =IF(ISBLANK(H24),0,IF(SUMPRODUCT((Hist_volumes!$H24:$K24)*(Hist_volumes!$H$5:$K$5<=$H24)*(Hist_volumes!$H$5:$K$5>($H24-$G24)))=0,0, SUMPRODUCT((Hist_expenditure!$M24:$P24)*(Hist_expenditure!$H$5:$K$5<=$H24)*(Hist_expenditure!$H$5:$K$5>($H24-$G24)))/SUMPRODUCT((Hist_volumes!$H24:$K24)*(Hist_volumes!$H$5:$K$5<=$H24)*(Hist_volumes!$H$5:$K$5>($H24-$G24))))) -> 34717.81707 | K24: 34717.81707
B25: =Hist_expenditure!B25 -> HV wood pole replacement | C25: =Hist_expenditure!C25 -> Other pole replacement: faults | D25: =Hist_expenditure!D25 -> Poles | E25: =INDEX(Hist_volumes!$E$10:$E$32, MATCH($C25, Hist_volumes!$C$10:$C$32,0)) -> each | G25: 4 | H25: 25 | I25: =IF(ISBLANK(H25),0,IF(SUMPRODUCT((Hist_volumes!$H25:$K25)*(Hist_volumes!$H$5:$K$5<=$H25)*(Hist_volumes!$H$5:$K$5>($H25-$G25)))=0,0, SUMPRODUCT((Hist_expenditure!$M25:$P25)*(Hist_expenditure!$H$5:$K$5<=$H25)*(Hist_expenditure!$H$5:$K$5>($H25-$G25)))/SUMPRODUCT((Hist_volumes!$H25:$K25)*(Hist_volumes!$H$5:$K$5<=$H25)*(Hist_volumes!$H$5:$K$5>($H25-$G25))))) -> 18115.39471 | K25: 18115.39471
B26: =Hist_expenditure!B26 -> Defective fuses, surge diverters and ACRs | C26: =Hist_expenditure!C26 -> Distribution switchgear refurbishment and repairs | D26: =Hist_expenditure!D26 -> Switchgear (DSS) | E26: =INDEX(Hist_volumes!$E$10:$E$32, MATCH($C26, Hist_volumes!$C$10:$C$32,0)) -> each | G26: 4 | H26: 25 | I26: =IF(ISBLANK(H26),0,IF(SUMPRODUCT((Hist_volumes!$H26:$K26)*(Hist_volumes!$H$5:$K$5<=$H26)*(Hist_volumes!$H$5:$K$5>($H26-$G26)))=0,0, SUMPRODUCT((Hist_expenditure!$M26:$P26)*(Hist_expenditure!$H$5:$K$5<=$H26)*(Hist_expenditure!$H$5:$K$5>($H26-$G26)))/SUMPRODUCT((Hist_volumes!$H26:$K26)*(Hist_volumes!$H$5:$K$5<=$H26)*(Hist_volumes!$H$5:$K$5>($H26-$G26))))) -> 0 | J26: 6487.584454 | K26: 6487.584454
B27: =Hist_expenditure!B27 -> Defective fuses, surge diverters and ACRs | C27: =Hist_expenditure!C27 -> Defective fuses and surge diverters | D27: =Hist_expenditure!D27 -> Switchgear (DSS) | E27: =INDEX(Hist_volumes!$E$10:$E$32, MATCH($C27, Hist_volumes!$C$10:$C$32,0)) -> each | G27: 4 | H27: 25 | I27: =IF(ISBLANK(H27),0,IF(SUMPRODUCT((Hist_volumes!$H27:$K27)*(Hist_volumes!$H$5:$K$5<=$H27)*(Hist_volumes!$H$5:$K$5>($H27-$G27)))=0,0, SUMPRODUCT((Hist_expenditure!$M27:$P27)*(Hist_expenditure!$H$5:$K$5<=$H27)*(Hist_expenditure!$H$5:$K$5>($H27-$G27)))/SUMPRODUCT((Hist_volumes!$H27:$K27)*(Hist_volumes!$H$5:$K$5<=$H27)*(Hist_volumes!$H$5:$K$5>($H27-$G27))))) -> 3905.290774 | J27: 2200 | K27: 2200
B28: =Hist_expenditure!B28 -> Defective SWER ISO & CBU Earth Repair | C28: =Hist_expenditure!C28 -> Defective SWER ISO & CBU Earth Repair | D28: =Hist_expenditure!D28 -> Underground cable | E28: =INDEX(Hist_volumes!$E$10:$E$32, MATCH($C28, Hist_volumes!$C$10:$C$32,0)) -> each | G28: 4 | H28: 25 | I28: =IF(ISBLANK(H28),0,IF(SUMPRODUCT((Hist_volumes!$H28:$K28)*(Hist_volumes!$H$5:$K$5<=$H28)*(Hist_volumes!$H$5:$K$5>($H28-$G28)))=0,0, SUMPRODUCT((Hist_expenditure!$M28:$P28)*(Hist_expenditure!$H$5:$K$5<=$H28)*(Hist_expenditure!$H$5:$K$5>($H28-$G28)))/SUMPRODUCT((Hist_volumes!$H28:$K28)*(Hist_volumes!$H$5:$K$5<=$H28)*(Hist_volumes!$H$5:$K$5>($H28-$G28))))) -> 2643.760981 | K28: 2643.760981
B29: =Hist_expenditure!B29 -> Concrete pole replacement | C29: =Hist_expenditure!C29 -> LV concrete pole replacement | D29: =Hist_expenditure!D29 -> Poles | E29: =INDEX(Hist_volumes!$E$10:$E$32, MATCH($C29, Hist_volumes!$C$10:$C$32,0)) -> each | G29: 4 | H29: 25 | I29: =IF(ISBLANK(H29),0,IF(SUMPRODUCT((Hist_volumes!$H29:$K29)*(Hist_volumes!$H$5:$K$5<=$H29)*(Hist_volumes!$H$5:$K$5>($H29-$G29)))=0,0, SUMPRODUCT((Hist_expenditure!$M29:$P29)*(Hist_expenditure!$H$5:$K$5<=$H29)*(Hist_expenditure!$H$5:$K$5>($H29-$G29)))/SUMPRODUCT((Hist_volumes!$H29:$K29)*(Hist_volumes!$H$5:$K$5<=$H29)*(Hist_volumes!$H$5:$K$5>($H29-$G29))))) -> 0 | J29: =$K$10 -> 18775.80223 | K29: 18775.80223
B30: =Hist_expenditure!B30 -> Concrete pole replacement | C30: =Hist_expenditure!C30 -> HV concrete pole replacement | D30: =Hist_expenditure!D30 -> Poles | E30: =INDEX(Hist_volumes!$E$10:$E$32, MATCH($C30, Hist_volumes!$C$10:$C$32,0)) -> each | G30: 4 | H30: 25 | I30: =IF(ISBLANK(H30),0,IF(SUMPRODUCT((Hist_volumes!$H30:$K30)*(Hist_volumes!$H$5:$K$5<=$H30)*(Hist_volumes!$H$5:$K$5>($H30-$G30)))=0,0, SUMPRODUCT((Hist_expenditure!$M30:$P30)*(Hist_expenditure!$H$5:$K$5<=$H30)*(Hist_expenditure!$H$5:$K$5>($H30-$G30)))/SUMPRODUCT((Hist_volumes!$H30:$K30)*(Hist_volumes!$H$5:$K$5<=$H30)*(Hist_volumes!$H$5:$K$5>($H30-$G30))))) -> 0 | J30: =$K$11 -> 18997.62606 | K30: 18997.62606
B31: =Hist_expenditure!B31 -> Concrete pole replacement | C31: =Hist_expenditure!C31 -> HV concrete pole replacement | D31: =Hist_expenditure!D31 -> Poles | E31: =INDEX(Hist_volumes!$E$10:$E$32, MATCH($C31, Hist_volumes!$C$10:$C$32,0)) -> each | G31: 4 | H31: 25 | I31: =IF(ISBLANK(H31),0,IF(SUMPRODUCT((Hist_volumes!$H31:$K31)*(Hist_volumes!$H$5:$K$5<=$H31)*(Hist_volumes!$H$5:$K$5>($H31-$G31)))=0,0, SUMPRODUCT((Hist_expenditure!$M31:$P31)*(Hist_expenditure!$H$5:$K$5<=$H31)*(Hist_expenditure!$H$5:$K$5>($H31-$G31)))/SUMPRODUCT((Hist_volumes!$H31:$K31)*(Hist_volumes!$H$5:$K$5<=$H31)*(Hist_volumes!$H$5:$K$5>($H31-$G31))))) -> 0 | J31: =$K$11 -> 18997.62606 | K31: 18997.62606
B32: =Hist_expenditure!B32 -> Concrete pole replacement | C32: =Hist_expenditure!C32 -> HV concrete pole replacement | D32: =Hist_expenditure!D32 -> Poles | E32: =INDEX(Hist_volumes!$E$10:$E$32, MATCH($C32, Hist_volumes!$C$10:$C$32,0)) -> each | G32: 4 | H32: 25 | I32: =IF(ISBLANK(H32),0,IF(SUMPRODUCT((Hist_volumes!$H32:$K32)*(Hist_volumes!$H$5:$K$5<=$H32)*(Hist_volumes!$H$5:$K$5>($H32-$G32)))=0,0, SUMPRODUCT((Hist_expenditure!$M32:$P32)*(Hist_expenditure!$H$5:$K$5<=$H32)*(Hist_expenditure!$H$5:$K$5>($H32-$G32)))/SUMPRODUCT((Hist_volumes!$H32:$K32)*(Hist_volumes!$H$5:$K$5<=$H32)*(Hist_volumes!$H$5:$K$5>($H32-$G32))))) -> 0 | J32: =$K$11 -> 18997.62606 | K32: 18997.62606

Sheet AER_DD_expenditure
A1: =bus -> Powercor
A2: =Cover!$C$5 -> Replacement expenditure forecast model
A3: ACCEPTED AER DRAFT DECISION EXPENDITURE
M8: ACCEPTED AER DRAFT DECISION EXPENDITURE ($ 2026) | S8: TOTAL
B9: =Hist_volumes!B9 -> Capex model project/program | M9: 2026/27 | N9: 2027/28 | O9: 2028/29 | P9: 2029/30 | Q9: 2030/31 | S9: 2026-31
B10: Service lines | M10: 8686187.242 | N10: 12471137.61 | O10: 12292045.31 | P10: 10401769.34 | Q10: 12999009.02 | S10: =SUM(M10:Q10) -> 56850148.53
B11: Defective switches | M11: 7448560.429 | N11: 7515220.673 | O11: 7614711.841 | P11: 7681372.085 | Q11: 7780863.253 | S11: 38040728.28
B12: Defective indoor transformer replacement | M12: 921969.8334 | N12: 921969.8334 | O12: 921969.8334 | P12: 921969.8334 | Q12: 921969.8334 | S12: 4609849.167
B13: Defective kiosk transformer replacement | M13: 11043076.97 | N13: 11051682.05 | O13: 11051682.05 | P13: 11060287.14 | Q13: 11060287.14 | S13: 55267015.35
B14: Defective ground transformer replacement | M14: 1979209.248 | N14: 1979209.248 | O14: 1979209.248 | P14: 1979209.248 | Q14: 1979209.248 | S14: 9896046.242
B15: Corrective HV cable replacement | M15: 1845336.293 | N15: 1845336.293 | O15: 1845336.293 | P15: 1845336.293 | Q15: 1845336.293 | S15: 9226681.463
B16: Corrective LV cable replacement | M16: 1402561.2 | N16: 1402561.2 | O16: 1402561.2 | P16: 1402561.2 | Q16: 1402561.2 | S16: 7012805.998
B17: Underground pits and pillars | M17: 579979.5127 | N17: 579979.5127 | O17: 579979.5127 | P17: 579979.5127 | Q17: 579979.5127 | S17: 2899897.563
B18: Defective conductor | M18: 6954377.165 | N18: 6954377.165 | O18: 6954377.165 | P18: 6954377.165 | Q18: 6954377.165 | S18: 34771885.83
B19: Other distribution works | M19: 1213938.842 | N19: 1252789.392 | O19: 1291997.768 | P19: 1322576.984 | Q19: 1335686.379 | S19: 6416989.365
B20: HBRA HV wooden cross-arm replacements | M20: 4007967.206 | N20: 4007967.206 | O20: 4007967.206 | P20: 4007967.206 | Q20: 4007967.206 | S20: 20039836.03
B21: Conductor clearance rectification from LIDAR | M21: 3369823.605 | N21: 3369823.605 | O21: 3369823.605 | P21: 3369823.605 | Q21: 3369823.605 | S21: 16849118.02
B22: CRO switch program | M22: 5002542.346 | N22: 5002542.346 | O22: 5002542.346 | P22: 5002542.346 | Q22: 5002542.346 | S22: 25012711.73
B23: Relay replacements | M23: 4178656.675 | N23: 3506973.828 | O23: 7492031.78 | P23: 2159927.509 | Q23: 2237737.019 | S23: 19575326.81
B24: Risk-based 66kV replacement | M24: 1595806.073 | N24: 1595806.073 | O24: 1595806.073 | P24: 1595806.073 | Q24: 1595806.073 | S24: 7979030.364
B25: Bare 22kV conductor bushfire mitigation | M25: 5244044.39 | N25: 5244044.39 | O25: 0 | P25: 0 | Q25: 0 | S25: 10488088.78
B26: ZSS switchboard replacement | M26: 2810701.56 | N26: 2903486.16 | O26: 5714187.72 | P26: 5621403.12 | Q26: 5621403.12 | S26: 22671181.68
B27: Compliance replacement transformers | M27: 992018.615 | N27: 992018.615 | O27: 889810.3869 | P27: 631284.6744 | Q27: 396807.3347 | S27: 3901939.626
B28: Risk-based HV conductor replacement | M28: 405027.0293 | N28: 405027.0293 | O28: 405027.0293 | P28: 405027.0293 | Q28: 405027.0293 | S28: 2025135.147
B29: Minor station works | M29: 823282.8018 | N29: 967115.2378 | O29: 716046.8199 | P29: 994296.3978 | Q29: 716470.1437 | S29: 4217211.401
B30: Secondary defects, batteries and chargers | M30: 688113.8893 | N30: 1283388.606 | O30: 1283388.606 | P30: 688113.8893 | Q30: 688113.8893 | S30: 4631118.879
B31: Miscellaneous plant and station | M31: 2102777.857 | N31: 2099393.549 | O31: 2417104.257 | P31: 2417896.226 | Q31: 2102757.534 | S31: 11139929.42
B32: Environmental | M32: 1202596.463 | N32: 1202596.463 | O32: 1202596.463 | P32: 1202596.463 | Q32: 1202596.463 | S32: 6012982.317
B33: Expulsion drop-out fuse program | M33: 1816121.803 | N33: 0 | O33: 0 | P33: 0 | Q33: 0 | S33: 1816121.803
B34: Earth grid | M34: 600116.1739 | N34: 266088.5507 | O34: 154702.7858 | P34: 154682.6358 | Q34: 154859.958 | S34: =SUM(M34:Q34) -> 1330450.104

Sheet Trend_based_exp
A1: =bus -> Powercor
A2: =Cover!$C$5 -> Replacement expenditure forecast model
A3: FORECAST TREND-BASED EXPENDITURE
G8: Unit rate applied | M8: FORECAST EXPENDITURE ($ 2026) | S8: TOTAL
B9: =Hist_volumes!B9 -> Capex model project/program | C9: =Hist_volumes!C9 -> Description | D9: =Hist_volumes!D9 -> Asset class | E9: =Hist_volumes!E9 -> Volume units | G9: 2026 | M9: 2026/27 | N9: 2027/28 | O9: 2028/29 | P9: 2029/30 | Q9: 2030/31 | S9: 2026-31
B10: =Hist_expenditure!B10 -> LV wood pole replacement | C10: =Hist_expenditure!C10 -> LV wood pole replacement | D10: =Hist_expenditure!D10 -> Poles | E10: =INDEX(Unit_rates!$E$10:$E$32,MATCH($C10,Unit_rates!$C$10:$C$32,0)) -> each | G10: =INDEX(Unit_rates!$K$10:$K$32,MATCH($C10,Unit_rates!$C$10:$C$32,0)) -> 18775.80223 | M10: =SUMPRODUCT((Forecast_volumes!M$10:M$32)*(Forecast_volumes!$C$10:$C$32=$C10))*$G10 -> 5745395.483 | N10: =SUMPRODUCT((Forecast_volumes!N$10:N$32)*(Forecast_volumes!$C$10:$C$32=$C10))*$G10 -> 5745395.483 | O10: =SUMPRODUCT((Forecast_volumes!O$10:O$32)*(Forecast_volumes!$C$10:$C$32=$C10))*$G10 -> 5745395.483 | P10: =SUMPRODUCT((Forecast_volumes!P$10:P$32)*(Forecast_volumes!$C$10:$C$32=$C10))*$G10 -> 5745395.483 | Q10: =SUMPRODUCT((Forecast_volumes!Q$10:Q$32)*(Forecast_volumes!$C$10:$C$32=$C10))*$G10 -> 5745395.483 | S10: =SUM(M10:Q10) -> 28726977.41
B11: =Hist_expenditure!B11 -> HV wood pole replacement | C11: =Hist_expenditure!C11 -> HV wood pole replacement | D11: =Hist_expenditure!D11 -> Poles | E11: =INDEX(Unit_rates!$E$10:$E$32,MATCH($C11,Unit_rates!$C$10:$C$32,0)) -> each | G11: =INDEX(Unit_rates!$K$10:$K$32,MATCH($C11,Unit_rates!$C$10:$C$32,0)) -> 18997.62606 | M11: =SUMPRODUCT((Forecast_volumes!M$10:M$32)*(Forecast_volumes!$C$10:$C$32=$C11))*$G11 -> 26748657.49 | N11: =SUMPRODUCT((Forecast_volumes!N$10:N$32)*(Forecast_volumes!$C$10:$C$32=$C11))*$G11 -> 26748657.49 | O11: =SUMPRODUCT((Forecast_volumes!O$10:O$32)*(Forecast_volumes!$C$10:$C$32=$C11))*$G11 -> 26748657.49 | P11: =SUMPRODUCT((Forecast_volumes!P$10:P$32)*(Forecast_volumes!$C$10:$C$32=$C11))*$G11 -> 26748657.49 | Q11: =SUMPRODUCT((Forecast_volumes!Q$10:Q$32)*(Forecast_volumes!$C$10:$C$32=$C11))*$G11 -> 26748657.49 | S11: 133743287.5
B12: =Hist_expenditure!B12 -> LV pole top replacement | C12: =Hist_expenditure!C12 -> LV cross-arm replacement | D12: =Hist_expenditure!D12 -> Pole top structures | E12: =INDEX(Unit_rates!$E$10:$E$32,MATCH($C12,Unit_rates!$C$10:$C$32,0)) -> each | G12: =INDEX(Unit_rates!$K$10:$K$32,MATCH($C12,Unit_rates!$C$10:$C$32,0)) -> 4203.647346 | M12: =SUMPRODUCT((Forecast_volumes!M$10:M$32)*(Forecast_volumes!$C$10:$C$32=$C12))*$G12 -> 12266242.95 | N12: =SUMPRODUCT((Forecast_volumes!N$10:N$32)*(Forecast_volumes!$C$10:$C$32=$C12))*$G12 -> 15137334.09 | O12: =SUMPRODUCT((Forecast_volumes!O$10:O$32)*(Forecast_volumes!$C$10:$C$32=$C12))*$G12 -> 14519397.93 | P12: =SUMPRODUCT((Forecast_volumes!P$10:P$32)*(Forecast_volumes!$C$10:$C$32=$C12))*$G12 -> 11543215.61 | Q12: =SUMPRODUCT((Forecast_volumes!Q$10:Q$32)*(Forecast_volumes!$C$10:$C$32=$C12))*$G12 -> 14607674.53 | S12: 68073865.11
B13: =Hist_expenditure!B13 -> HV pole top replacement | C13: =Hist_expenditure!C13 -> HV cross-arm replacement | D13: =Hist_expenditure!D13 -> Pole top structures | E13: =INDEX(Unit_rates!$E$10:$E$32,MATCH($C13,Unit_rates!$C$10:$C$32,0)) -> each | G13: =INDEX(Unit_rates!$K$10:$K$32,MATCH($C13,Unit_rates!$C$10:$C$32,0)) -> 6310.090547 | M13: =SUMPRODUCT((Forecast_volumes!M$10:M$32)*(Forecast_volumes!$C$10:$C$32=$C13))*$G13 -> 13661346.03 | N13: =SUMPRODUCT((Forecast_volumes!N$10:N$32)*(Forecast_volumes!$C$10:$C$32=$C13))*$G13 -> 12027032.58 | O13: =SUMPRODUCT((Forecast_volumes!O$10:O$32)*(Forecast_volumes!$C$10:$C$32=$C13))*$G13 -> 10903836.47 | P13: =SUMPRODUCT((Forecast_volumes!P$10:P$32)*(Forecast_volumes!$C$10:$C$32=$C13))*$G13 -> 8108466.353 | Q13: =SUMPRODUCT((Forecast_volumes!Q$10:Q$32)*(Forecast_volumes!$C$10:$C$32=$C13))*$G13 -> 14103052.37 | S13: 58803733.81
B14: =Hist_expenditure!B14 -> HV pole top replacement | C14: =Hist_expenditure!C14 -> Overhead HV insulators | D14: =Hist_expenditure!D14 -> Pole top structures | E14: =INDEX(Unit_rates!$E$10:$E$32,MATCH($C14,Unit_rates!$C$10:$C$32,0)) -> each | G14: =INDEX(Unit_rates!$K$10:$K$32,MATCH($C14,Unit_rates!$C$10:$C$32,0)) -> 1274.560826 | M14: =SUMPRODUCT((Forecast_volumes!M$10:M$32)*(Forecast_volumes!$C$10:$C$32=$C14))*$G14 -> 2960804.798 | N14: =SUMPRODUCT((Forecast_volumes!N$10:N$32)*(Forecast_volumes!$C$10:$C$32=$C14))*$G14 -> 3162185.408 | O14: =SUMPRODUCT((Forecast_volumes!O$10:O$32)*(Forecast_volumes!$C$10:$C$32=$C14))*$G14 -> 3155812.604 | P14: =SUMPRODUCT((Forecast_volumes!P$10:P$32)*(Forecast_volumes!$C$10:$C$32=$C14))*$G14 -> 3024532.839 | Q14: =SUMPRODUCT((Forecast_volumes!Q$10:Q$32)*(Forecast_volumes!$C$10:$C$32=$C14))*$G14 -> 3139243.314 | S14: 15442578.96
B15: =Hist_expenditure!B15 -> LV pole top replacement | C15: =Hist_expenditure!C15 -> Overhead LV insulators | D15: =Hist_expenditure!D15 -> Pole top structures | E15: =INDEX(Unit_rates!$E$10:$E$32,MATCH($C15,Unit_rates!$C$10:$C$32,0)) -> each | G15: =INDEX(Unit_rates!$K$10:$K$32,MATCH($C15,Unit_rates!$C$10:$C$32,0)) -> 759.1548562 | M15: =SUMPRODUCT((Forecast_volumes!M$10:M$32)*(Forecast_volumes!$C$10:$C$32=$C15))*$G15 -> 158663.3649 | N15: =SUMPRODUCT((Forecast_volumes!N$10:N$32)*(Forecast_volumes!$C$10:$C$32=$C15))*$G15 -> 200416.882 | O15: =SUMPRODUCT((Forecast_volumes!O$10:O$32)*(Forecast_volumes!$C$10:$C$32=$C15))*$G15 -> 186752.0946 | P15: =SUMPRODUCT((Forecast_volumes!P$10:P$32)*(Forecast_volumes!$C$10:$C$32=$C15))*$G15 -> 145757.7324 | Q15: =SUMPRODUCT((Forecast_volumes!Q$10:Q$32)*(Forecast_volumes!$C$10:$C$32=$C15))*$G15 -> 185992.9398 | S15: 877583.0137
B16: =Hist_expenditure!B16 -> Defective fuses, surge diverters and ACRs | C16: =Hist_expenditure!C16 -> Defective ACRs | D16: =Hist_expenditure!D16 -> Switchgear (DSS) | E16: =INDEX(Unit_rates!$E$10:$E$32,MATCH($C16,Unit_rates!$C$10:$C$32,0)) -> each | G16: =INDEX(Unit_rates!$K$10:$K$32,MATCH($C16,Unit_rates!$C$10:$C$32,0)) -> 21665.25618 | M16: =SUMPRODUCT((Forecast_volumes!M$10:M$32)*(Forecast_volumes!$C$10:$C$32=$C16))*$G16 -> 736618.7101 | N16: =SUMPRODUCT((Forecast_volumes!N$10:N$32)*(Forecast_volumes!$C$10:$C$32=$C16))*$G16 -> 758283.9663 | O16: =SUMPRODUCT((Forecast_volumes!O$10:O$32)*(Forecast_volumes!$C$10:$C$32=$C16))*$G16 -> 779949.2225 | P16: =SUMPRODUCT((Forecast_volumes!P$10:P$32)*(Forecast_volumes!$C$10:$C$32=$C16))*$G16 -> 801614.4787 | Q16: =SUMPRODUCT((Forecast_volumes!Q$10:Q$32)*(Forecast_volumes!$C$10:$C$32=$C16))*$G16 -> 823279.7349 | S16: 3899746.113
B17: =Hist_expenditure!B17 -> Pole reinforcement | C17: =Hist_expenditure!C17 -> Pole reinforcement | D17: =Hist_expenditure!D17 -> Staking | E17: =INDEX(Unit_rates!$E$10:$E$32,MATCH($C17,Unit_rates!$C$10:$C$32,0)) -> each | G17: =INDEX(Unit_rates!$K$10:$K$32,MATCH($C17,Unit_rates!$C$10:$C$32,0)) -> 2376.882297 | M17: =SUMPRODUCT((Forecast_volumes!M$10:M$32)*(Forecast_volumes!$C$10:$C$32=$C17))*$G17 -> 6600602.139 | N17: =SUMPRODUCT((Forecast_volumes!N$10:N$32)*(Forecast_volumes!$C$10:$C$32=$C17))*$G17 -> 6600602.139 | O17: =SUMPRODUCT((Forecast_volumes!O$10:O$32)*(Forecast_volumes!$C$10:$C$32=$C17))*$G17 -> 6600602.139 | P17: =SUMPRODUCT((Forecast_volumes!P$10:P$32)*(Forecast_volumes!$C$10:$C$32=$C17))*$G17 -> 6600602.139 | Q17: =SUMPRODUCT((Forecast_volumes!Q$10:Q$32)*(Forecast_volumes!$C$10:$C$32=$C17))*$G17 -> 6600602.139 | S17: 33003010.7
B18: =Hist_expenditure!B18 -> LV wood pole replacement | C18: =Hist_expenditure!C18 -> LV pole replacement: faults | D18: =Hist_expenditure!D18 -> Poles | E18: =INDEX(Unit_rates!$E$10:$E$32,MATCH($C18,Unit_rates!$C$10:$C$32,0)) -> each | G18: =INDEX(Unit_rates!$K$10:$K$32,MATCH($C18,Unit_rates!$C$10:$C$32,0)) -> 18298.74448 | M18: =SUMPRODUCT((Forecast_volumes!M$10:M$32)*(Forecast_volumes!$C$10:$C$32=$C18))*$G18 -> 512364.8456 | N18: =SUMPRODUCT((Forecast_volumes!N$10:N$32)*(Forecast_volumes!$C$10:$C$32=$C18))*$G18 -> 512364.8456 | O18: =SUMPRODUCT((Forecast_volumes!O$10:O$32)*(Forecast_volumes!$C$10:$C$32=$C18))*$G18 -> 512364.8456 | P18: =SUMPRODUCT((Forecast_volumes!P$10:P$32)*(Forecast_volumes!$C$10:$C$32=$C18))*$G18 -> 512364.8456 | Q18: =SUMPRODUCT((Forecast_volumes!Q$10:Q$32)*(Forecast_volumes!$C$10:$C$32=$C18))*$G18 -> 512364.8456 | S18: 2561824.228
B19: =Hist_expenditure!B19 -> HV wood pole replacement | C19: =Hist_expenditure!C19 -> HV pole replacement: faults | D19: =Hist_expenditure!D19 -> Poles | E19: =INDEX(Unit_rates!$E$10:$E$32,MATCH($C19,Unit_rates!$C$10:$C$32,0)) -> each | G19: =INDEX(Unit_rates!$K$10:$K$32,MATCH($C19,Unit_rates!$C$10:$C$32,0)) -> 20098.73093 | M19: =SUMPRODUCT((Forecast_volumes!M$10:M$32)*(Forecast_volumes!$C$10:$C$32=$C19))*$G19 -> 3778561.415 | N19: =SUMPRODUCT((Forecast_volumes!N$10:N$32)*(Forecast_volumes!$C$10:$C$32=$C19))*$G19 -> 3778561.415 | O19: =SUMPRODUCT((Forecast_volumes!O$10:O$32)*(Forecast_volumes!$C$10:$C$32=$C19))*$G19 -> 3778561.415 | P19: =SUMPRODUCT((Forecast_volumes!P$10:P$32)*(Forecast_volumes!$C$10:$C$32=$C19))*$G19 -> 3778561.415 | Q19: =SUMPRODUCT((Forecast_volumes!Q$10:Q$32)*(Forecast_volumes!$C$10:$C$32=$C19))*$G19 -> 3778561.415 | S19: 18892807.08
B20: =Hist_expenditure!B20 -> LV pole top replacement | C20: =Hist_expenditure!C20 -> LV pole top replacement: faults | D20: =Hist_expenditure!D20 -> Pole top structures | E20: =INDEX(Unit_rates!$E$10:$E$32,MATCH($C20,Unit_rates!$C$10:$C$32,0)) -> each | G20: =INDEX(Unit_rates!$K$10:$K$32,MATCH($C20,Unit_rates!$C$10:$C$32,0)) -> 4808.048508 | M20: =SUMPRODUCT((Forecast_volumes!M$10:M$32)*(Forecast_volumes!$C$10:$C$32=$C20))*$G20 -> 4053184.893 | N20: =SUMPRODUCT((Forecast_volumes!N$10:N$32)*(Forecast_volumes!$C$10:$C$32=$C20))*$G20 -> 4053184.893 | O20: =SUMPRODUCT((Forecast_volumes!O$10:O$32)*(Forecast_volumes!$C$10:$C$32=$C20))*$G20 -> 4053184.893 | P20: =SUMPRODUCT((Forecast_volumes!P$10:P$32)*(Forecast_volumes!$C$10:$C$32=$C20))*$G20 -> 4053184.893 | Q20: =SUMPRODUCT((Forecast_volumes!Q$10:Q$32)*(Forecast_volumes!$C$10:$C$32=$C20))*$G20 -> 4053184.893 | S20: 20265924.46
B21: =Hist_expenditure!B21 -> HV pole top replacement | C21: =Hist_expenditure!C21 -> HV pole top replacement: faults | D21: =Hist_expenditure!D21 -> Pole top structures | E21: =INDEX(Unit_rates!$E$10:$E$32,MATCH($C21,Unit_rates!$C$10:$C$32,0)) -> each | G21: =INDEX(Unit_rates!$K$10:$K$32,MATCH($C21,Unit_rates!$C$10:$C$32,0)) -> 4115.86975 | M21: =SUMPRODUCT((Forecast_volumes!M$10:M$32)*(Forecast_volumes!$C$10:$C$32=$C21))*$G21 -> 2601229.682 | N21: =SUMPRODUCT((Forecast_volumes!N$10:N$32)*(Forecast_volumes!$C$10:$C$32=$C21))*$G21 -> 2601229.682 | O21: =SUMPRODUCT((Forecast_volumes!O$10:O$32)*(Forecast_volumes!$C$10:$C$32=$C21))*$G21 -> 2601229.682 | P21: =SUMPRODUCT((Forecast_volumes!P$10:P$32)*(Forecast_volumes!$C$10:$C$32=$C21))*$G21 -> 2601229.682 | Q21: =SUMPRODUCT((Forecast_volumes!Q$10:Q$32)*(Forecast_volumes!$C$10:$C$32=$C21))*$G21 -> 2601229.682 | S21: 13006148.41
B22: =Hist_expenditure!B22 -> HV pole top replacement | C22: =Hist_expenditure!C22 -> ST pole top replacement: faults | D22: =Hist_expenditure!D22 -> Pole top structures | E22: =INDEX(Unit_rates!$E$10:$E$32,MATCH($C22,Unit_rates!$C$10:$C$32,0)) -> each | G22: =INDEX(Unit_rates!$K$10:$K$32,MATCH($C22,Unit_rates!$C$10:$C$32,0)) -> 6613.685038 | M22: =SUMPRODUCT((Forecast_volumes!M$10:M$32)*(Forecast_volumes!$C$10:$C$32=$C22))*$G22 -> 257933.7165 | N22: =SUMPRODUCT((Forecast_volumes!N$10:N$32)*(Forecast_volumes!$C$10:$C$32=$C22))*$G22 -> 257933.7165 | O22: =SUMPRODUCT((Forecast_volumes!O$10:O$32)*(Forecast_volumes!$C$10:$C$32=$C22))*$G22 -> 257933.7165 | P22: =SUMPRODUCT((Forecast_volumes!P$10:P$32)*(Forecast_volumes!$C$10:$C$32=$C22))*$G22 -> 257933.7165 | Q22: =SUMPRODUCT((Forecast_volumes!Q$10:Q$32)*(Forecast_volumes!$C$10:$C$32=$C22))*$G22 -> 257933.7165 | S22: 1289668.582
B23: =Hist_expenditure!B23 -> Defective fuses, surge diverters and ACRs | C23: =Hist_expenditure!C23 -> Defective fuses and surge diverters: faults | D23: =Hist_expenditure!D23 -> Switchgear (DSS) | E23: =INDEX(Unit_rates!$E$10:$E$32,MATCH($C23,Unit_rates!$C$10:$C$32,0)) -> each | G23: =INDEX(Unit_rates!$K$10:$K$32,MATCH($C23,Unit_rates!$C$10:$C$32,0)) -> 2223.721614 | M23: =SUMPRODUCT((Forecast_volumes!M$10:M$32)*(Forecast_volumes!$C$10:$C$32=$C23))*$G23 -> 816105.8324 | N23: =SUMPRODUCT((Forecast_volumes!N$10:N$32)*(Forecast_volumes!$C$10:$C$32=$C23))*$G23 -> 816105.8324 | O23: =SUMPRODUCT((Forecast_volumes!O$10:O$32)*(Forecast_volumes!$C$10:$C$32=$C23))*$G23 -> 816105.8324 | P23: =SUMPRODUCT((Forecast_volumes!P$10:P$32)*(Forecast_volumes!$C$10:$C$32=$C23))*$G23 -> 816105.8324 | Q23: =SUMPRODUCT((Forecast_volumes!Q$10:Q$32)*(Forecast_volumes!$C$10:$C$32=$C23))*$G23 -> 816105.8324 | S23: 4080529.162
B24: =Hist_expenditure!B24 -> HV wood pole replacement | C24: =Hist_expenditure!C24 -> ST pole replacement: faults | D24: =Hist_expenditure!D24 -> Poles | E24: =INDEX(Unit_rates!$E$10:$E$32,MATCH($C24,Unit_rates!$C$10:$C$32,0)) -> each | G24: =INDEX(Unit_rates!$K$10:$K$32,MATCH($C24,Unit_rates!$C$10:$C$32,0)) -> 34717.81707 | M24: =SUMPRODUCT((Forecast_volumes!M$10:M$32)*(Forecast_volumes!$C$10:$C$32=$C24))*$G24 -> 69435.63414 | N24: =SUMPRODUCT((Forecast_volumes!N$10:N$32)*(Forecast_volumes!$C$10:$C$32=$C24))*$G24 -> 69435.63414 | O24: =SUMPRODUCT((Forecast_volumes!O$10:O$32)*(Forecast_volumes!$C$10:$C$32=$C24))*$G24 -> 69435.63414 | P24: =SUMPRODUCT((Forecast_volumes!P$10:P$32)*(Forecast_volumes!$C$10:$C$32=$C24))*$G24 -> 69435.63414 | Q24: =SUMPRODUCT((Forecast_volumes!Q$10:Q$32)*(Forecast_volumes!$C$10:$C$32=$C24))*$G24 -> 69435.63414 | S24: 347178.1707
B25: =Hist_expenditure!B25 -> HV wood pole replacement | C25: =Hist_expenditure!C25 -> Other pole replacement: faults | D25: =Hist_expenditure!D25 -> Poles | E25: =INDEX(Unit_rates!$E$10:$E$32,MATCH($C25,Unit_rates!$C$10:$C$32,0)) -> each | G25: =INDEX(Unit_rates!$K$10:$K$32,MATCH($C25,Unit_rates!$C$10:$C$32,0)) -> 18115.39471 | M25: =SUMPRODUCT((Forecast_volumes!M$10:M$32)*(Forecast_volumes!$C$10:$C$32=$C25))*$G25 -> 36230.78941 | N25: =SUMPRODUCT((Forecast_volumes!N$10:N$32)*(Forecast_volumes!$C$10:$C$32=$C25))*$G25 -> 36230.78941 | O25: =SUMPRODUCT((Forecast_volumes!O$10:O$32)*(Forecast_volumes!$C$10:$C$32=$C25))*$G25 -> 36230.78941 | P25: =SUMPRODUCT((Forecast_volumes!P$10:P$32)*(Forecast_volumes!$C$10:$C$32=$C25))*$G25 -> 36230.78941 | Q25: =SUMPRODUCT((Forecast_volumes!Q$10:Q$32)*(Forecast_volumes!$C$10:$C$32=$C25))*$G25 -> 36230.78941 | S25: 181153.9471
B26: =Hist_expenditure!B26 -> Defective fuses, surge diverters and ACRs | C26: =Hist_expenditure!C26 -> Distribution switchgear refurbishment and repairs | D26: =Hist_expenditure!D26 -> Switchgear (DSS) | E26: =INDEX(Unit_rates!$E$10:$E$32,MATCH($C26,Unit_rates!$C$10:$C$32,0)) -> each | G26: =INDEX(Unit_rates!$K$10:$K$32,MATCH($C26,Unit_rates!$C$10:$C$32,0)) -> 6487.584454 | M26: =SUMPRODUCT((Forecast_volumes!M$10:M$32)*(Forecast_volumes!$C$10:$C$32=$C26))*$G26 -> 188139.9492 | N26: =SUMPRODUCT((Forecast_volumes!N$10:N$32)*(Forecast_volumes!$C$10:$C$32=$C26))*$G26 -> 188139.9492 | O26: =SUMPRODUCT((Forecast_volumes!O$10:O$32)*(Forecast_volumes!$C$10:$C$32=$C26))*$G26 -> 188139.9492 | P26: =SUMPRODUCT((Forecast_volumes!P$10:P$32)*(Forecast_volumes!$C$10:$C$32=$C26))*$G26 -> 188139.9492 | Q26: =SUMPRODUCT((Forecast_volumes!Q$10:Q$32)*(Forecast_volumes!$C$10:$C$32=$C26))*$G26 -> 188139.9492 | S26: 940699.7459
B27: =Hist_expenditure!B27 -> Defective fuses, surge diverters and ACRs | C27: =Hist_expenditure!C27 -> Defective fuses and surge diverters | D27: =Hist_expenditure!D27 -> Switchgear (DSS) | E27: =INDEX(Unit_rates!$E$10:$E$32,MATCH($C27,Unit_rates!$C$10:$C$32,0)) -> each | G27: =INDEX(Unit_rates!$K$10:$K$32,MATCH($C27,Unit_rates!$C$10:$C$32,0)) -> 2200 | M27: =SUMPRODUCT((Forecast_volumes!M$10:M$32)*(Forecast_volumes!$C$10:$C$32=$C27))*$G27 -> 10639200 | N27: =SUMPRODUCT((Forecast_volumes!N$10:N$32)*(Forecast_volumes!$C$10:$C$32=$C27))*$G27 -> 10639200 | O27: =SUMPRODUCT((Forecast_volumes!O$10:O$32)*(Forecast_volumes!$C$10:$C$32=$C27))*$G27 -> 10639200 | P27: =SUMPRODUCT((Forecast_volumes!P$10:P$32)*(Forecast_volumes!$C$10:$C$32=$C27))*$G27 -> 10639200 | Q27: =SUMPRODUCT((Forecast_volumes!Q$10:Q$32)*(Forecast_volumes!$C$10:$C$32=$C27))*$G27 -> 10639200 | S27: 53196000
B28: =Hist_expenditure!B28 -> Defective SWER ISO & CBU Earth Repair | C28: =Hist_expenditure!C28 -> Defective SWER ISO & CBU Earth Repair | D28: =Hist_expenditure!D28 -> Underground cable | E28: =INDEX(Unit_rates!$E$10:$E$32,MATCH($C28,Unit_rates!$C$10:$C$32,0)) -> each | G28: =INDEX(Unit_rates!$K$10:$K$32,MATCH($C28,Unit_rates!$C$10:$C$32,0)) -> 2643.760981 | M28: =SUMPRODUCT((Forecast_volumes!M$10:M$32)*(Forecast_volumes!$C$10:$C$32=$C28))*$G28 -> 343688.9275 | N28: =SUMPRODUCT((Forecast_volumes!N$10:N$32)*(Forecast_volumes!$C$10:$C$32=$C28))*$G28 -> 343688.9275 | O28: =SUMPRODUCT((Forecast_volumes!O$10:O$32)*(Forecast_volumes!$C$10:$C$32=$C28))*$G28 -> 343688.9275 | P28: =SUMPRODUCT((Forecast_volumes!P$10:P$32)*(Forecast_volumes!$C$10:$C$32=$C28))*$G28 -> 343688.9275 | Q28: =SUMPRODUCT((Forecast_volumes!Q$10:Q$32)*(Forecast_volumes!$C$10:$C$32=$C28))*$G28 -> 343688.9275 | S28: 1718444.637
B29: =Hist_expenditure!B29 -> Concrete pole replacement | C29: =Hist_expenditure!C29 -> LV concrete pole replacement | D29: =Hist_expenditure!D29 -> Poles | E29: =INDEX(Unit_rates!$E$10:$E$32,MATCH($C29,Unit_rates!$C$10:$C$32,0)) -> each | G29: =INDEX(Unit_rates!$K$10:$K$32,MATCH($C29,Unit_rates!$C$10:$C$32,0)) -> 18775.80223 | M29: =SUMPRODUCT((Forecast_volumes!M$10:M$32)*(Forecast_volumes!$C$10:$C$32=$C29))*$G29 -> 8636869.026 | N29: =SUMPRODUCT((Forecast_volumes!N$10:N$32)*(Forecast_volumes!$C$10:$C$32=$C29))*$G29 -> 8636869.026 | O29: =SUMPRODUCT((Forecast_volumes!O$10:O$32)*(Forecast_volumes!$C$10:$C$32=$C29))*$G29 -> 8636869.026 | P29: =SUMPRODUCT((Forecast_volumes!P$10:P$32)*(Forecast_volumes!$C$10:$C$32=$C29))*$G29 -> 8636869.026 | Q29: =SUMPRODUCT((Forecast_volumes!Q$10:Q$32)*(Forecast_volumes!$C$10:$C$32=$C29))*$G29 -> 8636869.026 | S29: 43184345.13
B30: =Hist_expenditure!B30 -> Concrete pole replacement | C30: =Hist_expenditure!C30 -> HV concrete pole replacement | D30: =Hist_expenditure!D30 -> Poles | E30: =INDEX(Unit_rates!$E$10:$E$32,MATCH($C30,Unit_rates!$C$10:$C$32,0)) -> each | G30: =INDEX(Unit_rates!$K$10:$K$32,MATCH($C30,Unit_rates!$C$10:$C$32,0)) -> 18997.62606 | M30: =SUMPRODUCT((Forecast_volumes!M$10:M$32)*(Forecast_volumes!$C$10:$C$32=$C30))*$G30 -> 39686040.84 | N30: =SUMPRODUCT((Forecast_volumes!N$10:N$32)*(Forecast_volumes!$C$10:$C$32=$C30))*$G30 -> 39686040.84 | O30: =SUMPRODUCT((Forecast_volumes!O$10:O$32)*(Forecast_volumes!$C$10:$C$32=$C30))*$G30 -> 39686040.84 | P30: =SUMPRODUCT((Forecast_volumes!P$10:P$32)*(Forecast_volumes!$C$10:$C$32=$C30))*$G30 -> 39686040.84 | Q30: =SUMPRODUCT((Forecast_volumes!Q$10:Q$32)*(Forecast_volumes!$C$10:$C$32=$C30))*$G30 -> 39686040.84 | S30: 198430204.2

Sheet Risk_based_exp
A1: =bus -> Powercor
A2: =Cover!$C$5 -> Replacement expenditure forecast model
A3: FORECAST RISK-BASED EXPENDITURE
M8: FORECAST RISK-BASED EXPENDITURE ($ 2026) | S8: TOTAL
B9: =Hist_volumes!B9 -> Capex model project/program | C9: =Hist_volumes!C9 -> Description | D9: =Hist_volumes!D9 -> Asset class | M9: 2026/27 | N9: 2027/28 | O9: 2028/29 | P9: 2029/30 | Q9: 2030/31 | S9: 2026-31
B10: Risk-based HV cable replacement | C10: Risk-based HV cable | D10: Underground cable | M10: 3184512.34 | N10: 3183169.552 | O10: 3179784.02 | P10: 3173390.449 | Q10: 3162664.222 | S10: =SUM(M10:Q10) -> 15883520.58
B11: ZSS transformer replacement | C11: STL transformer replacement | D11: Transformers (ZSS) | M11: 0 | N11: 0 | O11: 0 | P11: 4664263.728 | Q11: 2332131.864 | S11: 6996395.592
B12: ZSS transformer replacement | C12: CHA transformer replacement | D12: Transformers (ZSS) | M12: 4503613.268 | N12: 2251806.634 | O12: 0 | P12: 0 | Q12: 0 | S12: 6755419.901
B13: ZSS transformer replacement | C13: KYM transformer replacement | D13: Transformers (ZSS) | M13: 0 | N13: 707754.4884 | O13: 0 | P13: 0 | Q13: 0 | S13: 707754.4884
B14: ZSS transformer replacement | C14: MRO transformer replacement | D14: Transformers (ZSS) | M14: 0 | N14: 0 | O14: 2213392.821 | P14: 0 | Q14: 0 | S14: 2213392.821
B15: ZSS transformer replacement | C15: CDN transformer replacement | D15: Transformers (ZSS) | M15: 0 | N15: 0 | O15: 0 | P15: 2213392.821 | Q15: 0 | S15: 2213392.821
B16: Transformer refurbishment | C16: Transformer refurbishment | D16: Transformers (ZSS) | M16: 2123263.777 | N16: 2123263.777 | O16: 2123263.777 | P16: 2123263.777 | Q16: 2123263.777 | S16: 10616318.88

Sheet Consol
A1: =bus -> Powercor
A2: =Cover!$C$5 -> Replacement expenditure forecast model
A3: CONSOLIDATED EXPENDITURE
G8: Accepted AER draft decision ($ 2026) | M8: Trend-based expenditure ($ 2026) | S8: Risk -based expenditure ($ 2026) | Y8: Total forecast expenditure ($ 2026) | AE8: TOTAL
B9: Project/Program | D9: Asset class | G9: 2026-27 | H9: 2027-28 | I9: 2028-29 | J9: 2029-30 | K9: 2030-31 | M9: 2026-27 | N9: 2027-28 | O9: 2028-29 | P9: 2029-30 | Q9: 2030-31 | S9: =M9 -> 2026-27 | T9: =N9 -> 2027-28 | U9: =O9 -> 2028-29 | V9: =P9 -> 2029-30 | W9: =Q9 -> 2030-31 | Y9: =G9 -> 2026-27 | Z9: =H9 -> 2027-28 | AA9: =I9 -> 2028-29 | AB9: =J9 -> 2029-30 | AC9: =K9 -> 2030-31 | AE9: 2026-31
B10: LV wood pole replacement | D10: Poles | G10: =SUMPRODUCT(('AER_DD_expenditure '!M$10:M$34)*('AER_DD_expenditure '!$B$10:$B$34=$B10)) -> 0 | H10: =SUMPRODUCT(('AER_DD_expenditure '!N$10:N$34)*('AER_DD_expenditure '!$B$10:$B$34=$B10)) -> 0 | I10: =SUMPRODUCT(('AER_DD_expenditure '!O$10:O$34)*('AER_DD_expenditure '!$B$10:$B$34=$B10)) -> 0 | J10: =SUMPRODUCT(('AER_DD_expenditure '!P$10:P$34)*('AER_DD_expenditure '!$B$10:$B$34=$B10)) -> 0 | K10: =SUMPRODUCT(('AER_DD_expenditure '!Q$10:Q$34)*('AER_DD_expenditure '!$B$10:$B$34=$B10)) -> 0 | M10: =SUMPRODUCT((Trend_based_exp!M$10:M$30)*(Trend_based_exp!$B$10:$B$30=$B10)) -> 6257760.328 | N10: =SUMPRODUCT((Trend_based_exp!N$10:N$30)*(Trend_based_exp!$B$10:$B$30=$B10)) -> 6257760.328 | O10: =SUMPRODUCT((Trend_based_exp!O$10:O$30)*(Trend_based_exp!$B$10:$B$30=$B10)) -> 6257760.328 | P10: =SUMPRODUCT((Trend_based_exp!P$10:P$30)*(Trend_based_exp!$B$10:$B$30=$B10)) -> 6257760.328 | Q10: =SUMPRODUCT((Trend_based_exp!Q$10:Q$30)*(Trend_based_exp!$B$10:$B$30=$B10)) -> 6257760.328 | S10: =SUMPRODUCT((Risk_based_exp!M$10:M$16)*(Risk_based_exp!$B$10:$B$16=$B10)) -> 0 | T10: =SUMPRODUCT((Risk_based_exp!N$10:N$16)*(Risk_based_exp!$B$10:$B$16=$B10)) -> 0 | U10: =SUMPRODUCT((Risk_based_exp!O$10:O$16)*(Risk_based_exp!$B$10:$B$16=$B10)) -> 0 | V10: =SUMPRODUCT((Risk_based_exp!P$10:P$16)*(Risk_based_exp!$B$10:$B$16=$B10)) -> 0 | W10: =SUMPRODUCT((Risk_based_exp!Q$10:Q$16)*(Risk_based_exp!$B$10:$B$16=$B10)) -> 0 | Y10: =M10+G10+S10 -> 6257760.328 | Z10: =N10+H10+T10 -> 6257760.328 | AA10: =O10+I10+U10 -> 6257760.328 | AB10: =P10+J10+V10 -> 6257760.328 | AC10: =Q10+K10+W10 -> 6257760.328 | AE10: =SUM(Y10:AC10) -> 31288801.64
B11: HV wood pole replacement | D11: Poles | G11: =SUMPRODUCT(('AER_DD_expenditure '!M$10:M$34)*('AER_DD_expenditure '!$B$10:$B$34=$B11)) -> 0 | H11: =SUMPRODUCT(('AER_DD_expenditure '!N$10:N$34)*('AER_DD_expenditure '!$B$10:$B$34=$B11)) -> 0 | I11: =SUMPRODUCT(('AER_DD_expenditure '!O$10:O$34)*('AER_DD_expenditure '!$B$10:$B$34=$B11)) -> 0 | J11: =SUMPRODUCT(('AER_DD_expenditure '!P$10:P$34)*('AER_DD_expenditure '!$B$10:$B$34=$B11)) -> 0 | K11: =SUMPRODUCT(('AER_DD_expenditure '!Q$10:Q$34)*('AER_DD_expenditure '!$B$10:$B$34=$B11)) -> 0 | M11: =SUMPRODUCT((Trend_based_exp!M$10:M$30)*(Trend_based_exp!$B$10:$B$30=$B11)) -> 30632885.33 | N11: =SUMPRODUCT((Trend_based_exp!N$10:N$30)*(Trend_based_exp!$B$10:$B$30=$B11)) -> 30632885.33 | O11: =SUMPRODUCT((Trend_based_exp!O$10:O$30)*(Trend_based_exp!$B$10:$B$30=$B11)) -> 30632885.33 | P11: =SUMPRODUCT((Trend_based_exp!P$10:P$30)*(Trend_based_exp!$B$10:$B$30=$B11)) -> 30632885.33 | Q11: =SUMPRODUCT((Trend_based_exp!Q$10:Q$30)*(Trend_based_exp!$B$10:$B$30=$B11)) -> 30632885.33 | S11: =SUMPRODUCT((Risk_based_exp!M$10:M$16)*(Risk_based_exp!$B$10:$B$16=$B11)) -> 0 | T11: =SUMPRODUCT((Risk_based_exp!N$10:N$16)*(Risk_based_exp!$B$10:$B$16=$B11)) -> 0 | U11: =SUMPRODUCT((Risk_based_exp!O$10:O$16)*(Risk_based_exp!$B$10:$B$16=$B11)) -> 0 | V11: =SUMPRODUCT((Risk_based_exp!P$10:P$16)*(Risk_based_exp!$B$10:$B$16=$B11)) -> 0 | W11: =SUMPRODUCT((Risk_based_exp!Q$10:Q$16)*(Risk_based_exp!$B$10:$B$16=$B11)) -> 0 | Y11: 30632885.33 | Z11: 30632885.33 | AA11: 30632885.33 | AB11: 30632885.33 | AC11: 30632885.33 | AE11: =SUM(Y11:AC11) -> 153164426.7
B12: LV pole top replacement | D12: Pole top structures | G12: =SUMPRODUCT(('AER_DD_expenditure '!M$10:M$34)*('AER_DD_expenditure '!$B$10:$B$34=$B12)) -> 0 | H12: =SUMPRODUCT(('AER_DD_expenditure '!N$10:N$34)*('AER_DD_expenditure '!$B$10:$B$34=$B12)) -> 0 | I12: =SUMPRODUCT(('AER_DD_expenditure '!O$10:O$34)*('AER_DD_expenditure '!$B$10:$B$34=$B12)) -> 0 | J12: =SUMPRODUCT(('AER_DD_expenditure '!P$10:P$34)*('AER_DD_expenditure '!$B$10:$B$34=$B12)) -> 0 | K12: =SUMPRODUCT(('AER_DD_expenditure '!Q$10:Q$34)*('AER_DD_expenditure '!$B$10:$B$34=$B12)) -> 0 | M12: =SUMPRODUCT((Trend_based_exp!M$10:M$30)*(Trend_based_exp!$B$10:$B$30=$B12)) -> 16478091.21 | N12: =SUMPRODUCT((Trend_based_exp!N$10:N$30)*(Trend_based_exp!$B$10:$B$30=$B12)) -> 19390935.87 | O12: =SUMPRODUCT((Trend_based_exp!O$10:O$30)*(Trend_based_exp!$B$10:$B$30=$B12)) -> 18759334.92 | P12: =SUMPRODUCT((Trend_based_exp!P$10:P$30)*(Trend_based_exp!$B$10:$B$30=$B12)) -> 15742158.24 | Q12: =SUMPRODUCT((Trend_based_exp!Q$10:Q$30)*(Trend_based_exp!$B$10:$B$30=$B12)) -> 18846852.36 | S12: =SUMPRODUCT((Risk_based_exp!M$10:M$16)*(Risk_based_exp!$B$10:$B$16=$B12)) -> 0 | T12: =SUMPRODUCT((Risk_based_exp!N$10:N$16)*(Risk_based_exp!$B$10:$B$16=$B12)) -> 0 | U12: =SUMPRODUCT((Risk_based_exp!O$10:O$16)*(Risk_based_exp!$B$10:$B$16=$B12)) -> 0 | V12: =SUMPRODUCT((Risk_based_exp!P$10:P$16)*(Risk_based_exp!$B$10:$B$16=$B12)) -> 0 | W12: =SUMPRODUCT((Risk_based_exp!Q$10:Q$16)*(Risk_based_exp!$B$10:$B$16=$B12)) -> 0 | Y12: =M12+G12+S12 -> 16478091.21 | Z12: 19390935.87 | AA12: 18759334.92 | AB12: 15742158.24 | AC12: 18846852.36 | AE12: 89217372.59
B13: HV pole top replacement | D13: Pole top structures | G13: =SUMPRODUCT(('AER_DD_expenditure '!M$10:M$34)*('AER_DD_expenditure '!$B$10:$B$34=$B13)) -> 0 | H13: =SUMPRODUCT(('AER_DD_expenditure '!N$10:N$34)*('AER_DD_expenditure '!$B$10:$B$34=$B13)) -> 0 | I13: =SUMPRODUCT(('AER_DD_expenditure '!O$10:O$34)*('AER_DD_expenditure '!$B$10:$B$34=$B13)) -> 0 | J13: =SUMPRODUCT(('AER_DD_expenditure '!P$10:P$34)*('AER_DD_expenditure '!$B$10:$B$34=$B13)) -> 0 | K13: =SUMPRODUCT(('AER_DD_expenditure '!Q$10:Q$34)*('AER_DD_expenditure '!$B$10:$B$34=$B13)) -> 0 | M13: =SUMPRODUCT((Trend_based_exp!M$10:M$30)*(Trend_based_exp!$B$10:$B$30=$B13)) -> 19481314.23 | N13: =SUMPRODUCT((Trend_based_exp!N$10:N$30)*(Trend_based_exp!$B$10:$B$30=$B13)) -> 18048381.39 | O13: =SUMPRODUCT((Trend_based_exp!O$10:O$30)*(Trend_based_exp!$B$10:$B$30=$B13)) -> 16918812.47 | P13: =SUMPRODUCT((Trend_based_exp!P$10:P$30)*(Trend_based_exp!$B$10:$B$30=$B13)) -> 13992162.59 | Q13: =SUMPRODUCT((Trend_based_exp!Q$10:Q$30)*(Trend_based_exp!$B$10:$B$30=$B13)) -> 20101459.08 | S13: =SUMPRODUCT((Risk_based_exp!M$10:M$16)*(Risk_based_exp!$B$10:$B$16=$B13)) -> 0 | T13: =SUMPRODUCT((Risk_based_exp!N$10:N$16)*(Risk_based_exp!$B$10:$B$16=$B13)) -> 0 | U13: =SUMPRODUCT((Risk_based_exp!O$10:O$16)*(Risk_based_exp!$B$10:$B$16=$B13)) -> 0 | V13: =SUMPRODUCT((Risk_based_exp!P$10:P$16)*(Risk_based_exp!$B$10:$B$16=$B13)) -> 0 | W13: =SUMPRODUCT((Risk_based_exp!Q$10:Q$16)*(Risk_based_exp!$B$10:$B$16=$B13)) -> 0 | Y13: 19481314.23 | Z13: 18048381.39 | AA13: 16918812.47 | AB13: 13992162.59 | AC13: 20101459.08 | AE13: 88542129.76
B14: Concrete pole replacement | D14: Poles | G14: =SUMPRODUCT(('AER_DD_expenditure '!M$10:M$34)*('AER_DD_expenditure '!$B$10:$B$34=$B14)) -> 0 | H14: =SUMPRODUCT(('AER_DD_expenditure '!N$10:N$34)*('AER_DD_expenditure '!$B$10:$B$34=$B14)) -> 0 | I14: =SUMPRODUCT(('AER_DD_expenditure '!O$10:O$34)*('AER_DD_expenditure '!$B$10:$B$34=$B14)) -> 0 | J14: =SUMPRODUCT(('AER_DD_expenditure '!P$10:P$34)*('AER_DD_expenditure '!$B$10:$B$34=$B14)) -> 0 | K14: =SUMPRODUCT(('AER_DD_expenditure '!Q$10:Q$34)*('AER_DD_expenditure '!$B$10:$B$34=$B14)) -> 0 | M14: =SUMPRODUCT((Trend_based_exp!M$10:M$30)*(Trend_based_exp!$B$10:$B$30=$B14)) -> 48322909.87 | N14: =SUMPRODUCT((Trend_based_exp!N$10:N$30)*(Trend_based_exp!$B$10:$B$30=$B14)) -> 48322909.87 | O14: =SUMPRODUCT((Trend_based_exp!O$10:O$30)*(Trend_based_exp!$B$10:$B$30=$B14)) -> 48322909.87 | P14: =SUMPRODUCT((Trend_based_exp!P$10:P$30)*(Trend_based_exp!$B$10:$B$30=$B14)) -> 48322909.87 | Q14: =SUMPRODUCT((Trend_based_exp!Q$10:Q$30)*(Trend_based_exp!$B$10:$B$30=$B14)) -> 48322909.87 | S14: =SUMPRODUCT((Risk_based_exp!M$10:M$16)*(Risk_based_exp!$B$10:$B$16=$B14)) -> 0 | T14: =SUMPRODUCT((Risk_based_exp!N$10:N$16)*(Risk_based_exp!$B$10:$B$16=$B14)) -> 0 | U14: =SUMPRODUCT((Risk_based_exp!O$10:O$16)*(Risk_based_exp!$B$10:$B$16=$B14)) -> 0 | V14: =SUMPRODUCT((Risk_based_exp!P$10:P$16)*(Risk_based_exp!$B$10:$B$16=$B14)) -> 0 | W14: =SUMPRODUCT((Risk_based_exp!Q$10:Q$16)*(Risk_based_exp!$B$10:$B$16=$B14)) -> 0 | Y14: 48322909.87 | Z14: 48322909.87 | AA14: 48322909.87 | AB14: 48322909.87 | AC14: 48322909.87 | AE14: 241614549.3
B15: HBRA HV wooden cross-arm replacements | D15: Pole top structures | G15: =SUMPRODUCT(('AER_DD_expenditure '!M$10:M$34)*('AER_DD_expenditure '!$B$10:$B$34=$B15)) -> 4007967.206 | H15: =SUMPRODUCT(('AER_DD_expenditure '!N$10:N$34)*('AER_DD_expenditure '!$B$10:$B$34=$B15)) -> 4007967.206 | I15: =SUMPRODUCT(('AER_DD_expenditure '!O$10:O$34)*('AER_DD_expenditure '!$B$10:$B$34=$B15)) -> 4007967.206 | J15: =SUMPRODUCT(('AER_DD_expenditure '!P$10:P$34)*('AER_DD_expenditure '!$B$10:$B$34=$B15)) -> 4007967.206 | K15: =SUMPRODUCT(('AER_DD_expenditure '!Q$10:Q$34)*('AER_DD_expenditure '!$B$10:$B$34=$B15)) -> 4007967.206 | M15: =SUMPRODUCT((Trend_based_exp!M$10:M$30)*(Trend_based_exp!$B$10:$B$30=$B15)) -> 0 | N15: =SUMPRODUCT((Trend_based_exp!N$10:N$30)*(Trend_based_exp!$B$10:$B$30=$B15)) -> 0 | O15: =SUMPRODUCT((Trend_based_exp!O$10:O$30)*(Trend_based_exp!$B$10:$B$30=$B15)) -> 0 | P15: =SUMPRODUCT((Trend_based_exp!P$10:P$30)*(Trend_based_exp!$B$10:$B$30=$B15)) -> 0 | Q15: =SUMPRODUCT((Trend_based_exp!Q$10:Q$30)*(Trend_based_exp!$B$10:$B$30=$B15)) -> 0 | S15: =SUMPRODUCT((Risk_based_exp!M$10:M$16)*(Risk_based_exp!$B$10:$B$16=$B15)) -> 0 | T15: =SUMPRODUCT((Risk_based_exp!N$10:N$16)*(Risk_based_exp!$B$10:$B$16=$B15)) -> 0 | U15: =SUMPRODUCT((Risk_based_exp!O$10:O$16)*(Risk_based_exp!$B$10:$B$16=$B15)) -> 0 | V15: =SUMPRODUCT((Risk_based_exp!P$10:P$16)*(Risk_based_exp!$B$10:$B$16=$B15)) -> 0 | W15: =SUMPRODUCT((Risk_based_exp!Q$10:Q$16)*(Risk_based_exp!$B$10:$B$16=$B15)) -> 0 | Y15: 4007967.206 | Z15: 4007967.206 | AA15: 4007967.206 | AB15: 4007967.206 | AC15: 4007967.206 | AE15: 20039836.03
B16: Pole reinforcement | D16: Staking | G16: =SUMPRODUCT(('AER_DD_expenditure '!M$10:M$34)*('AER_DD_expenditure '!$B$10:$B$34=$B16)) -> 0 | H16: =SUMPRODUCT(('AER_DD_expenditure '!N$10:N$34)*('AER_DD_expenditure '!$B$10:$B$34=$B16)) -> 0 | I16: =SUMPRODUCT(('AER_DD_expenditure '!O$10:O$34)*('AER_DD_expenditure '!$B$10:$B$34=$B16)) -> 0 | J16: =SUMPRODUCT(('AER_DD_expenditure '!P$10:P$34)*('AER_DD_expenditure '!$B$10:$B$34=$B16)) -> 0 | K16: =SUMPRODUCT(('AER_DD_expenditure '!Q$10:Q$34)*('AER_DD_expenditure '!$B$10:$B$34=$B16)) -> 0 | M16: =SUMPRODUCT((Trend_based_exp!M$10:M$30)*(Trend_based_exp!$B$10:$B$30=$B16)) -> 6600602.139 | N16: =SUMPRODUCT((Trend_based_exp!N$10:N$30)*(Trend_based_exp!$B$10:$B$30=$B16)) -> 6600602.139 | O16: =SUMPRODUCT((Trend_based_exp!O$10:O$30)*(Trend_based_exp!$B$10:$B$30=$B16)) -> 6600602.139 | P16: =SUMPRODUCT((Trend_based_exp!P$10:P$30)*(Trend_based_exp!$B$10:$B$30=$B16)) -> 6600602.139 | Q16: =SUMPRODUCT((Trend_based_exp!Q$10:Q$30)*(Trend_based_exp!$B$10:$B$30=$B16)) -> 6600602.139 | S16: =SUMPRODUCT((Risk_based_exp!M$10:M$16)*(Risk_based_exp!$B$10:$B$16=$B16)) -> 0 | T16: =SUMPRODUCT((Risk_based_exp!N$10:N$16)*(Risk_based_exp!$B$10:$B$16=$B16)) -> 0 | U16: =SUMPRODUCT((Risk_based_exp!O$10:O$16)*(Risk_based_exp!$B$10:$B$16=$B16)) -> 0 | V16: =SUMPRODUCT((Risk_based_exp!P$10:P$16)*(Risk_based_exp!$B$10:$B$16=$B16)) -> 0 | W16: =SUMPRODUCT((Risk_based_exp!Q$10:Q$16)*(Risk_based_exp!$B$10:$B$16=$B16)) -> 0 | Y16: 6600602.139 | Z16: 6600602.139 | AA16: 6600602.139 | AB16: 6600602.139 | AC16: 6600602.139 | AE16: 33003010.7
B17: Defective conductor | D17: Overhead conductor | G17: =SUMPRODUCT(('AER_DD_expenditure '!M$10:M$34)*('AER_DD_expenditure '!$B$10:$B$34=$B17)) -> 6954377.165 | H17: =SUMPRODUCT(('AER_DD_expenditure '!N$10:N$34)*('AER_DD_expenditure '!$B$10:$B$34=$B17)) -> 6954377.165 | I17: =SUMPRODUCT(('AER_DD_expenditure '!O$10:O$34)*('AER_DD_expenditure '!$B$10:$B$34=$B17)) -> 6954377.165 | J17: =SUMPRODUCT(('AER_DD_expenditure '!P$10:P$34)*('AER_DD_expenditure '!$B$10:$B$34=$B17)) -> 6954377.165 | K17: =SUMPRODUCT(('AER_DD_expenditure '!Q$10:Q$34)*('AER_DD_expenditure '!$B$10:$B$34=$B17)) -> 6954377.165 | M17: =SUMPRODUCT((Trend_based_exp!M$10:M$30)*(Trend_based_exp!$B$10:$B$30=$B17)) -> 0 | N17: =SUMPRODUCT((Trend_based_exp!N$10:N$30)*(Trend_based_exp!$B$10:$B$30=$B17)) -> 0 | O17: =SUMPRODUCT((Trend_based_exp!O$10:O$30)*(Trend_based_exp!$B$10:$B$30=$B17)) -> 0 | P17: =SUMPRODUCT((Trend_based_exp!P$10:P$30)*(Trend_based_exp!$B$10:$B$30=$B17)) -> 0 | Q17: =SUMPRODUCT((Trend_based_exp!Q$10:Q$30)*(Trend_based_exp!$B$10:$B$30=$B17)) -> 0 | S17: =SUMPRODUCT((Risk_based_exp!M$10:M$16)*(Risk_based_exp!$B$10:$B$16=$B17)) -> 0 | T17: =SUMPRODUCT((Risk_based_exp!N$10:N$16)*(Risk_based_exp!$B$10:$B$16=$B17)) -> 0 | U17: =SUMPRODUCT((Risk_based_exp!O$10:O$16)*(Risk_based_exp!$B$10:$B$16=$B17)) -> 0 | V17: =SUMPRODUCT((Risk_based_exp!P$10:P$16)*(Risk_based_exp!$B$10:$B$16=$B17)) -> 0 | W17: =SUMPRODUCT((Risk_based_exp!Q$10:Q$16)*(Risk_based_exp!$B$10:$B$16=$B17)) -> 0 | Y17: 6954377.165 | Z17: 6954377.165 | AA17: 6954377.165 | AB17: 6954377.165 | AC17: 6954377.165 | AE17: 34771885.83
B18: Risk-based HV conductor replacement | D18: Overhead conductor | G18: =SUMPRODUCT(('AER_DD_expenditure '!M$10:M$34)*('AER_DD_expenditure '!$B$10:$B$34=$B18)) -> 405027.0293 | H18: =SUMPRODUCT(('AER_DD_expenditure '!N$10:N$34)*('AER_DD_expenditure '!$B$10:$B$34=$B18)) -> 405027.0293 | I18: =SUMPRODUCT(('AER_DD_expenditure '!O$10:O$34)*('AER_DD_expenditure '!$B$10:$B$34=$B18)) -> 405027.0293 | J18: =SUMPRODUCT(('AER_DD_expenditure '!P$10:P$34)*('AER_DD_expenditure '!$B$10:$B$34=$B18)) -> 405027.0293 | K18: =SUMPRODUCT(('AER_DD_expenditure '!Q$10:Q$34)*('AER_DD_expenditure '!$B$10:$B$34=$B18)) -> 405027.0293 | M18: =SUMPRODUCT((Trend_based_exp!M$10:M$30)*(Trend_based_exp!$B$10:$B$30=$B18)) -> 0 | N18: =SUMPRODUCT((Trend_based_exp!N$10:N$30)*(Trend_based_exp!$B$10:$B$30=$B18)) -> 0 | O18: =SUMPRODUCT((Trend_based_exp!O$10:O$30)*(Trend_based_exp!$B$10:$B$30=$B18)) -> 0 | P18: =SUMPRODUCT((Trend_based_exp!P$10:P$30)*(Trend_based_exp!$B$10:$B$30=$B18)) -> 0 | Q18: =SUMPRODUCT((Trend_based_exp!Q$10:Q$30)*(Trend_based_exp!$B$10:$B$30=$B18)) -> 0 | S18: =SUMPRODUCT((Risk_based_exp!M$10:M$16)*(Risk_based_exp!$B$10:$B$16=$B18)) -> 0 | T18: =SUMPRODUCT((Risk_based_exp!N$10:N$16)*(Risk_based_exp!$B$10:$B$16=$B18)) -> 0 | U18: =SUMPRODUCT((Risk_based_exp!O$10:O$16)*(Risk_based_exp!$B$10:$B$16=$B18)) -> 0 | V18: =SUMPRODUCT((Risk_based_exp!P$10:P$16)*(Risk_based_exp!$B$10:$B$16=$B18)) -> 0 | W18: =SUMPRODUCT((Risk_based_exp!Q$10:Q$16)*(Risk_based_exp!$B$10:$B$16=$B18)) -> 0 | Y18: 405027.0293 | Z18: 405027.0293 | AA18: 405027.0293 | AB18: 405027.0293 | AC18: 405027.0293 | AE18: 2025135.147
B19: Conductor clearance rectification from LIDAR | D19: Overhead conductor | G19: =SUMPRODUCT(('AER_DD_expenditure '!M$10:M$34)*('AER_DD_expenditure '!$B$10:$B$34=$B19)) -> 3369823.605 | H19: =SUMPRODUCT(('AER_DD_expenditure '!N$10:N$34)*('AER_DD_expenditure '!$B$10:$B$34=$B19)) -> 3369823.605 | I19: =SUMPRODUCT(('AER_DD_expenditure '!O$10:O$34)*('AER_DD_expenditure '!$B$10:$B$34=$B19)) -> 3369823.605 | J19: =SUMPRODUCT(('AER_DD_expenditure '!P$10:P$34)*('AER_DD_expenditure '!$B$10:$B$34=$B19)) -> 3369823.605 | K19: =SUMPRODUCT(('AER_DD_expenditure '!Q$10:Q$34)*('AER_DD_expenditure '!$B$10:$B$34=$B19)) -> 3369823.605 | M19: =SUMPRODUCT((Trend_based_exp!M$10:M$30)*(Trend_based_exp!$B$10:$B$30=$B19)) -> 0 | N19: =SUMPRODUCT((Trend_based_exp!N$10:N$30)*(Trend_based_exp!$B$10:$B$30=$B19)) -> 0 | O19: =SUMPRODUCT((Trend_based_exp!O$10:O$30)*(Trend_based_exp!$B$10:$B$30=$B19)) -> 0 | P19: =SUMPRODUCT((Trend_based_exp!P$10:P$30)*(Trend_based_exp!$B$10:$B$30=$B19)) -> 0 | Q19: =SUMPRODUCT((Trend_based_exp!Q$10:Q$30)*(Trend_based_exp!$B$10:$B$30=$B19)) -> 0 | S19: =SUMPRODUCT((Risk_based_exp!M$10:M$16)*(Risk_based_exp!$B$10:$B$16=$B19)) -> 0 | T19: =SUMPRODUCT((Risk_based_exp!N$10:N$16)*(Risk_based_exp!$B$10:$B$16=$B19)) -> 0 | U19: =SUMPRODUCT((Risk_based_exp!O$10:O$16)*(Risk_based_exp!$B$10:$B$16=$B19)) -> 0 | V19: =SUMPRODUCT((Risk_based_exp!P$10:P$16)*(Risk_based_exp!$B$10:$B$16=$B19)) -> 0 | W19: =SUMPRODUCT((Risk_based_exp!Q$10:Q$16)*(Risk_based_exp!$B$10:$B$16=$B19)) -> 0 | Y19: 3369823.605 | Z19: 3369823.605 | AA19: 3369823.605 | AB19: 3369823.605 | AC19: 3369823.605 | AE19: 16849118.02
B20: Risk-based 66kV replacement | D20: Overhead conductor | G20: =SUMPRODUCT(('AER_DD_expenditure '!M$10:M$34)*('AER_DD_expenditure '!$B$10:$B$34=$B20)) -> 1595806.073 | H20: =SUMPRODUCT(('AER_DD_expenditure '!N$10:N$34)*('AER_DD_expenditure '!$B$10:$B$34=$B20)) -> 1595806.073 | I20: =SUMPRODUCT(('AER_DD_expenditure '!O$10:O$34)*('AER_DD_expenditure '!$B$10:$B$34=$B20)) -> 1595806.073 | J20: =SUMPRODUCT(('AER_DD_expenditure '!P$10:P$34)*('AER_DD_expenditure '!$B$10:$B$34=$B20)) -> 1595806.073 | K20: =SUMPRODUCT(('AER_DD_expenditure '!Q$10:Q$34)*('AER_DD_expenditure '!$B$10:$B$34=$B20)) -> 1595806.073 | M20: =SUMPRODUCT((Trend_based_exp!M$10:M$30)*(Trend_based_exp!$B$10:$B$30=$B20)) -> 0 | N20: =SUMPRODUCT((Trend_based_exp!N$10:N$30)*(Trend_based_exp!$B$10:$B$30=$B20)) -> 0 | O20: =SUMPRODUCT((Trend_based_exp!O$10:O$30)*(Trend_based_exp!$B$10:$B$30=$B20)) -> 0 | P20: =SUMPRODUCT((Trend_based_exp!P$10:P$30)*(Trend_based_exp!$B$10:$B$30=$B20)) -> 0 | Q20: =SUMPRODUCT((Trend_based_exp!Q$10:Q$30)*(Trend_based_exp!$B$10:$B$30=$B20)) -> 0 | S20: =SUMPRODUCT((Risk_based_exp!M$10:M$16)*(Risk_based_exp!$B$10:$B$16=$B20)) -> 0 | T20: =SUMPRODUCT((Risk_based_exp!N$10:N$16)*(Risk_based_exp!$B$10:$B$16=$B20)) -> 0 | U20: =SUMPRODUCT((Risk_based_exp!O$10:O$16)*(Risk_based_exp!$B$10:$B$16=$B20)) -> 0 | V20: =SUMPRODUCT((Risk_based_exp!P$10:P$16)*(Risk_based_exp!$B$10:$B$16=$B20)) -> 0 | W20: =SUMPRODUCT((Risk_based_exp!Q$10:Q$16)*(Risk_based_exp!$B$10:$B$16=$B20)) -> 0 | Y20: 1595806.073 | Z20: 1595806.073 | AA20: 1595806.073 | AB20: 1595806.073 | AC20: 1595806.073 | AE20: 7979030.364
B21: Bare 22kV conductor bushfire mitigation | D21: Overhead conductor | G21: =SUMPRODUCT(('AER_DD_expenditure '!M$10:M$34)*('AER_DD_expenditure '!$B$10:$B$34=$B21)) -> 5244044.39 | H21: =SUMPRODUCT(('AER_DD_expenditure '!N$10:N$34)*('AER_DD_expenditure '!$B$10:$B$34=$B21)) -> 5244044.39 | I21: =SUMPRODUCT(('AER_DD_expenditure '!O$10:O$34)*('AER_DD_expenditure '!$B$10:$B$34=$B21)) -> 0 | J21: =SUMPRODUCT(('AER_DD_expenditure '!P$10:P$34)*('AER_DD_expenditure '!$B$10:$B$34=$B21)) -> 0 | K21: =SUMPRODUCT(('AER_DD_expenditure '!Q$10:Q$34)*('AER_DD_expenditure '!$B$10:$B$34=$B21)) -> 0 | M21: =SUMPRODUCT((Trend_based_exp!M$10:M$30)*(Trend_based_exp!$B$10:$B$30=$B21)) -> 0 | N21: =SUMPRODUCT((Trend_based_exp!N$10:N$30)*(Trend_based_exp!$B$10:$B$30=$B21)) -> 0 | O21: =SUMPRODUCT((Trend_based_exp!O$10:O$30)*(Trend_based_exp!$B$10:$B$30=$B21)) -> 0 | P21: =SUMPRODUCT((Trend_based_exp!P$10:P$30)*(Trend_based_exp!$B$10:$B$30=$B21)) -> 0 | Q21: =SUMPRODUCT((Trend_based_exp!Q$10:Q$30)*(Trend_based_exp!$B$10:$B$30=$B21)) -> 0 | S21: =SUMPRODUCT((Risk_based_exp!M$10:M$16)*(Risk_based_exp!$B$10:$B$16=$B21)) -> 0 | T21: =SUMPRODUCT((Risk_based_exp!N$10:N$16)*(Risk_based_exp!$B$10:$B$16=$B21)) -> 0 | U21: =SUMPRODUCT((Risk_based_exp!O$10:O$16)*(Risk_based_exp!$B$10:$B$16=$B21)) -> 0 | V21: =SUMPRODUCT((Risk_based_exp!P$10:P$16)*(Risk_based_exp!$B$10:$B$16=$B21)) -> 0 | W21: =SUMPRODUCT((Risk_based_exp!Q$10:Q$16)*(Risk_based_exp!$B$10:$B$16=$B21)) -> 0 | Y21: 5244044.39 | Z21: 5244044.39 | AA21: 0 | AB21: 0 | AC21: 0 | AE21: 10488088.78
B22: Risk-based HV cable replacement | D22: Underground cable | G22: =SUMPRODUCT(('AER_DD_expenditure '!M$10:M$34)*('AER_DD_expenditure '!$B$10:$B$34=$B22)) -> 0 | H22: =SUMPRODUCT(('AER_DD_expenditure '!N$10:N$34)*('AER_DD_expenditure '!$B$10:$B$34=$B22)) -> 0 | I22: =SUMPRODUCT(('AER_DD_expenditure '!O$10:O$34)*('AER_DD_expenditure '!$B$10:$B$34=$B22)) -> 0 | J22: =SUMPRODUCT(('AER_DD_expenditure '!P$10:P$34)*('AER_DD_expenditure '!$B$10:$B$34=$B22)) -> 0 | K22: =SUMPRODUCT(('AER_DD_expenditure '!Q$10:Q$34)*('AER_DD_expenditure '!$B$10:$B$34=$B22)) -> 0 | M22: =SUMPRODUCT((Trend_based_exp!M$10:M$30)*(Trend_based_exp!$B$10:$B$30=$B22)) -> 0 | N22: =SUMPRODUCT((Trend_based_exp!N$10:N$30)*(Trend_based_exp!$B$10:$B$30=$B22)) -> 0 | O22: =SUMPRODUCT((Trend_based_exp!O$10:O$30)*(Trend_based_exp!$B$10:$B$30=$B22)) -> 0 | P22: =SUMPRODUCT((Trend_based_exp!P$10:P$30)*(Trend_based_exp!$B$10:$B$30=$B22)) -> 0 | Q22: =SUMPRODUCT((Trend_based_exp!Q$10:Q$30)*(Trend_based_exp!$B$10:$B$30=$B22)) -> 0 | S22: =SUMPRODUCT((Risk_based_exp!M$10:M$16)*(Risk_based_exp!$B$10:$B$16=$B22)) -> 3184512.34 | T22: =SUMPRODUCT((Risk_based_exp!N$10:N$16)*(Risk_based_exp!$B$10:$B$16=$B22)) -> 3183169.552 | U22: =SUMPRODUCT((Risk_based_exp!O$10:O$16)*(Risk_based_exp!$B$10:$B$16=$B22)) -> 3179784.02 | V22: =SUMPRODUCT((Risk_based_exp!P$10:P$16)*(Risk_based_exp!$B$10:$B$16=$B22)) -> 3173390.449 | W22: =SUMPRODUCT((Risk_based_exp!Q$10:Q$16)*(Risk_based_exp!$B$10:$B$16=$B22)) -> 3162664.222 | Y22: 3184512.34 | Z22: 3183169.552 | AA22: 3179784.02 | AB22: 3173390.449 | AC22: 3162664.222 | AE22: 15883520.58
B23: Defective SWER ISO & CBU Earth Repair | D23: Underground cable | G23: =SUMPRODUCT(('AER_DD_expenditure '!M$10:M$34)*('AER_DD_expenditure '!$B$10:$B$34=$B23)) -> 0 | H23: =SUMPRODUCT(('AER_DD_expenditure '!N$10:N$34)*('AER_DD_expenditure '!$B$10:$B$34=$B23)) -> 0 | I23: =SUMPRODUCT(('AER_DD_expenditure '!O$10:O$34)*('AER_DD_expenditure '!$B$10:$B$34=$B23)) -> 0 | J23: =SUMPRODUCT(('AER_DD_expenditure '!P$10:P$34)*('AER_DD_expenditure '!$B$10:$B$34=$B23)) -> 0 | K23: =SUMPRODUCT(('AER_DD_expenditure '!Q$10:Q$34)*('AER_DD_expenditure '!$B$10:$B$34=$B23)) -> 0 | M23: =SUMPRODUCT((Trend_based_exp!M$10:M$30)*(Trend_based_exp!$B$10:$B$30=$B23)) -> 343688.9275 | N23: =SUMPRODUCT((Trend_based_exp!N$10:N$30)*(Trend_based_exp!$B$10:$B$30=$B23)) -> 343688.9275 | O23: =SUMPRODUCT((Trend_based_exp!O$10:O$30)*(Trend_based_exp!$B$10:$B$30=$B23)) -> 343688.9275 | P23: =SUMPRODUCT((Trend_based_exp!P$10:P$30)*(Trend_based_exp!$B$10:$B$30=$B23)) -> 343688.9275 | Q23: =SUMPRODUCT((Trend_based_exp!Q$10:Q$30)*(Trend_based_exp!$B$10:$B$30=$B23)) -> 343688.9275 | S23: =SUMPRODUCT((Risk_based_exp!M$10:M$16)*(Risk_based_exp!$B$10:$B$16=$B23)) -> 0 | T23: =SUMPRODUCT((Risk_based_exp!N$10:N$16)*(Risk_based_exp!$B$10:$B$16=$B23)) -> 0 | U23: =SUMPRODUCT((Risk_based_exp!O$10:O$16)*(Risk_based_exp!$B$10:$B$16=$B23)) -> 0 | V23: =SUMPRODUCT((Risk_based_exp!P$10:P$16)*(Risk_based_exp!$B$10:$B$16=$B23)) -> 0 | W23: =SUMPRODUCT((Risk_based_exp!Q$10:Q$16)*(Risk_based_exp!$B$10:$B$16=$B23)) -> 0 | Y23: 343688.9275 | Z23: 343688.9275 | AA23: 343688.9275 | AB23: 343688.9275 | AC23: 343688.9275 | AE23: 1718444.637
B24: Corrective HV cable replacement | D24: Underground cable | G24: =SUMPRODUCT(('AER_DD_expenditure '!M$10:M$34)*('AER_DD_expenditure '!$B$10:$B$34=$B24)) -> 1845336.293 | H24: =SUMPRODUCT(('AER_DD_expenditure '!N$10:N$34)*('AER_DD_expenditure '!$B$10:$B$34=$B24)) -> 1845336.293 | I24: =SUMPRODUCT(('AER_DD_expenditure '!O$10:O$34)*('AER_DD_expenditure '!$B$10:$B$34=$B24)) -> 1845336.293 | J24: =SUMPRODUCT(('AER_DD_expenditure '!P$10:P$34)*('AER_DD_expenditure '!$B$10:$B$34=$B24)) -> 1845336.293 | K24: =SUMPRODUCT(('AER_DD_expenditure '!Q$10:Q$34)*('AER_DD_expenditure '!$B$10:$B$34=$B24)) -> 1845336.293 | M24: =SUMPRODUCT((Trend_based_exp!M$10:M$30)*(Trend_based_exp!$B$10:$B$30=$B24)) -> 0 | N24: =SUMPRODUCT((Trend_based_exp!N$10:N$30)*(Trend_based_exp!$B$10:$B$30=$B24)) -> 0 | O24: =SUMPRODUCT((Trend_based_exp!O$10:O$30)*(Trend_based_exp!$B$10:$B$30=$B24)) -> 0 | P24: =SUMPRODUCT((Trend_based_exp!P$10:P$30)*(Trend_based_exp!$B$10:$B$30=$B24)) -> 0 | Q24: =SUMPRODUCT((Trend_based_exp!Q$10:Q$30)*(Trend_based_exp!$B$10:$B$30=$B24)) -> 0 | S24: =SUMPRODUCT((Risk_based_exp!M$10:M$16)*(Risk_based_exp!$B$10:$B$16=$B24)) -> 0 | T24: =SUMPRODUCT((Risk_based_exp!N$10:N$16)*(Risk_based_exp!$B$10:$B$16=$B24)) -> 0 | U24: =SUMPRODUCT((Risk_based_exp!O$10:O$16)*(Risk_based_exp!$B$10:$B$16=$B24)) -> 0 | V24: =SUMPRODUCT((Risk_based_exp!P$10:P$16)*(Risk_based_exp!$B$10:$B$16=$B24)) -> 0 | W24: =SUMPRODUCT((Risk_based_exp!Q$10:Q$16)*(Risk_based_exp!$B$10:$B$16=$B24)) -> 0 | Y24: 1845336.293 | Z24: 1845336.293 | AA24: 1845336.293 | AB24: 1845336.293 | AC24: 1845336.293 | AE24: 9226681.463
B25: Corrective LV cable replacement | D25: Underground cable | G25: =SUMPRODUCT(('AER_DD_expenditure '!M$10:M$34)*('AER_DD_expenditure '!$B$10:$B$34=$B25)) -> 1402561.2 | H25: =SUMPRODUCT(('AER_DD_expenditure '!N$10:N$34)*('AER_DD_expenditure '!$B$10:$B$34=$B25)) -> 1402561.2 | I25: =SUMPRODUCT(('AER_DD_expenditure '!O$10:O$34)*('AER_DD_expenditure '!$B$10:$B$34=$B25)) -> 1402561.2 | J25: =SUMPRODUCT(('AER_DD_expenditure '!P$10:P$34)*('AER_DD_expenditure '!$B$10:$B$34=$B25)) -> 1402561.2 | K25: =SUMPRODUCT(('AER_DD_expenditure '!Q$10:Q$34)*('AER_DD_expenditure '!$B$10:$B$34=$B25)) -> 1402561.2 | M25: =SUMPRODUCT((Trend_based_exp!M$10:M$30)*(Trend_based_exp!$B$10:$B$30=$B25)) -> 0 | N25: =SUMPRODUCT((Trend_based_exp!N$10:N$30)*(Trend_based_exp!$B$10:$B$30=$B25)) -> 0 | O25: =SUMPRODUCT((Trend_based_exp!O$10:O$30)*(Trend_based_exp!$B$10:$B$30=$B25)) -> 0 | P25: =SUMPRODUCT((Trend_based_exp!P$10:P$30)*(Trend_based_exp!$B$10:$B$30=$B25)) -> 0 | Q25: =SUMPRODUCT((Trend_based_exp!Q$10:Q$30)*(Trend_based_exp!$B$10:$B$30=$B25)) -> 0 | S25: =SUMPRODUCT((Risk_based_exp!M$10:M$16)*(Risk_based_exp!$B$10:$B$16=$B25)) -> 0 | T25: =SUMPRODUCT((Risk_based_exp!N$10:N$16)*(Risk_based_exp!$B$10:$B$16=$B25)) -> 0 | U25: =SUMPRODUCT((Risk_based_exp!O$10:O$16)*(Risk_based_exp!$B$10:$B$16=$B25)) -> 0 | V25: =SUMPRODUCT((Risk_based_exp!P$10:P$16)*(Risk_based_exp!$B$10:$B$16=$B25)) -> 0 | W25: =SUMPRODUCT((Risk_based_exp!Q$10:Q$16)*(Risk_based_exp!$B$10:$B$16=$B25)) -> 0 | Y25: 1402561.2 | Z25: 1402561.2 | AA25: 1402561.2 | AB25: 1402561.2 | AC25: 1402561.2 | AE25: 7012805.998
B26: Service lines | D26: Service Lines | G26: =SUMPRODUCT(('AER_DD_expenditure '!M$10:M$34)*('AER_DD_expenditure '!$B$10:$B$34=$B26)) -> 8686187.242 | H26: =SUMPRODUCT(('AER_DD_expenditure '!N$10:N$34)*('AER_DD_expenditure '!$B$10:$B$34=$B26)) -> 12471137.61 | I26: =SUMPRODUCT(('AER_DD_expenditure '!O$10:O$34)*('AER_DD_expenditure '!$B$10:$B$34=$B26)) -> 12292045.31 | J26: =SUMPRODUCT(('AER_DD_expenditure '!P$10:P$34)*('AER_DD_expenditure '!$B$10:$B$34=$B26)) -> 10401769.34 | K26: =SUMPRODUCT(('AER_DD_expenditure '!Q$10:Q$34)*('AER_DD_expenditure '!$B$10:$B$34=$B26)) -> 12999009.02 | M26: =SUMPRODUCT((Trend_based_exp!M$10:M$30)*(Trend_based_exp!$B$10:$B$30=$B26)) -> 0 | N26: =SUMPRODUCT((Trend_based_exp!N$10:N$30)*(Trend_based_exp!$B$10:$B$30=$B26)) -> 0 | O26: =SUMPRODUCT((Trend_based_exp!O$10:O$30)*(Trend_based_exp!$B$10:$B$30=$B26)) -> 0 | P26: =SUMPRODUCT((Trend_based_exp!P$10:P$30)*(Trend_based_exp!$B$10:$B$30=$B26)) -> 0 | Q26: =SUMPRODUCT((Trend_based_exp!Q$10:Q$30)*(Trend_based_exp!$B$10:$B$30=$B26)) -> 0 | S26: =SUMPRODUCT((Risk_based_exp!M$10:M$16)*(Risk_based_exp!$B$10:$B$16=$B26)) -> 0 | T26: =SUMPRODUCT((Risk_based_exp!N$10:N$16)*(Risk_based_exp!$B$10:$B$16=$B26)) -> 0 | U26: =SUMPRODUCT((Risk_based_exp!O$10:O$16)*(Risk_based_exp!$B$10:$B$16=$B26)) -> 0 | V26: =SUMPRODUCT((Risk_based_exp!P$10:P$16)*(Risk_based_exp!$B$10:$B$16=$B26)) -> 0 | W26: =SUMPRODUCT((Risk_based_exp!Q$10:Q$16)*(Risk_based_exp!$B$10:$B$16=$B26)) -> 0 | Y26: 8686187.242 | Z26: 12471137.61 | AA26: 12292045.31 | AB26: 10401769.34 | AC26: 12999009.02 | AE26: 56850148.53
B27: ZSS transformer replacement | D27: Transformers (ZSS) | G27: =SUMPRODUCT(('AER_DD_expenditure '!M$10:M$34)*('AER_DD_expenditure '!$B$10:$B$34=$B27)) -> 0 | H27: =SUMPRODUCT(('AER_DD_expenditure '!N$10:N$34)*('AER_DD_expenditure '!$B$10:$B$34=$B27)) -> 0 | I27: =SUMPRODUCT(('AER_DD_expenditure '!O$10:O$34)*('AER_DD_expenditure '!$B$10:$B$34=$B27)) -> 0 | J27: =SUMPRODUCT(('AER_DD_expenditure '!P$10:P$34)*('AER_DD_expenditure '!$B$10:$B$34=$B27)) -> 0 | K27: =SUMPRODUCT(('AER_DD_expenditure '!Q$10:Q$34)*('AER_DD_expenditure '!$B$10:$B$34=$B27)) -> 0 | M27: =SUMPRODUCT((Trend_based_exp!M$10:M$30)*(Trend_based_exp!$B$10:$B$30=$B27)) -> 0 | N27: =SUMPRODUCT((Trend_based_exp!N$10:N$30)*(Trend_based_exp!$B$10:$B$30=$B27)) -> 0 | O27: =SUMPRODUCT((Trend_based_exp!O$10:O$30)*(Trend_based_exp!$B$10:$B$30=$B27)) -> 0 | P27: =SUMPRODUCT((Trend_based_exp!P$10:P$30)*(Trend_based_exp!$B$10:$B$30=$B27)) -> 0 | Q27: =SUMPRODUCT((Trend_based_exp!Q$10:Q$30)*(Trend_based_exp!$B$10:$B$30=$B27)) -> 0 | S27: =SUMPRODUCT((Risk_based_exp!M$10:M$16)*(Risk_based_exp!$B$10:$B$16=$B27)) -> 4503613.268 | T27: =SUMPRODUCT((Risk_based_exp!N$10:N$16)*(Risk_based_exp!$B$10:$B$16=$B27)) -> 2959561.122 | U27: =SUMPRODUCT((Risk_based_exp!O$10:O$16)*(Risk_based_exp!$B$10:$B$16=$B27)) -> 2213392.821 | V27: =SUMPRODUCT((Risk_based_exp!P$10:P$16)*(Risk_based_exp!$B$10:$B$16=$B27)) -> 6877656.549 | W27: =SUMPRODUCT((Risk_based_exp!Q$10:Q$16)*(Risk_based_exp!$B$10:$B$16=$B27)) -> 2332131.864 | Y27: 4503613.268 | Z27: 2959561.122 | AA27: 2213392.821 | AB27: 6877656.549 | AC27: 2332131.864 | AE27: 18886355.62
B28: Transformer refurbishment | D28: Transformers (ZSS) | G28: =SUMPRODUCT(('AER_DD_expenditure '!M$10:M$34)*('AER_DD_expenditure '!$B$10:$B$34=$B28)) -> 0 | H28: =SUMPRODUCT(('AER_DD_expenditure '!N$10:N$34)*('AER_DD_expenditure '!$B$10:$B$34=$B28)) -> 0 | I28: =SUMPRODUCT(('AER_DD_expenditure '!O$10:O$34)*('AER_DD_expenditure '!$B$10:$B$34=$B28)) -> 0 | J28: =SUMPRODUCT(('AER_DD_expenditure '!P$10:P$34)*('AER_DD_expenditure '!$B$10:$B$34=$B28)) -> 0 | K28: =SUMPRODUCT(('AER_DD_expenditure '!Q$10:Q$34)*('AER_DD_expenditure '!$B$10:$B$34=$B28)) -> 0 | M28: =SUMPRODUCT((Trend_based_exp!M$10:M$30)*(Trend_based_exp!$B$10:$B$30=$B28)) -> 0 | N28: =SUMPRODUCT((Trend_based_exp!N$10:N$30)*(Trend_based_exp!$B$10:$B$30=$B28)) -> 0 | O28: =SUMPRODUCT((Trend_based_exp!O$10:O$30)*(Trend_based_exp!$B$10:$B$30=$B28)) -> 0 | P28: =SUMPRODUCT((Trend_based_exp!P$10:P$30)*(Trend_based_exp!$B$10:$B$30=$B28)) -> 0 | Q28: =SUMPRODUCT((Trend_based_exp!Q$10:Q$30)*(Trend_based_exp!$B$10:$B$30=$B28)) -> 0 | S28: =SUMPRODUCT((Risk_based_exp!M$10:M$16)*(Risk_based_exp!$B$10:$B$16=$B28)) -> 2123263.777 | T28: =SUMPRODUCT((Risk_based_exp!N$10:N$16)*(Risk_based_exp!$B$10:$B$16=$B28)) -> 2123263.777 | U28: =SUMPRODUCT((Risk_based_exp!O$10:O$16)*(Risk_based_exp!$B$10:$B$16=$B28)) -> 2123263.777 | V28: =SUMPRODUCT((Risk_based_exp!P$10:P$16)*(Risk_based_exp!$B$10:$B$16=$B28)) -> 2123263.777 | W28: =SUMPRODUCT((Risk_based_exp!Q$10:Q$16)*(Risk_based_exp!$B$10:$B$16=$B28)) -> 2123263.777 | Y28: 2123263.777 | Z28: 2123263.777 | AA28: 2123263.777 | AB28: 2123263.777 | AC28: 2123263.777 | AE28: 10616318.88
B29: Miscellaneous plant and station | D29: Other replacement | G29: =SUMPRODUCT(('AER_DD_expenditure '!M$10:M$34)*('AER_DD_expenditure '!$B$10:$B$34=$B29)) -> 2102777.857 | H29: =SUMPRODUCT(('AER_DD_expenditure '!N$10:N$34)*('AER_DD_expenditure '!$B$10:$B$34=$B29)) -> 2099393.549 | I29: =SUMPRODUCT(('AER_DD_expenditure '!O$10:O$34)*('AER_DD_expenditure '!$B$10:$B$34=$B29)) -> 2417104.257 | J29: =SUMPRODUCT(('AER_DD_expenditure '!P$10:P$34)*('AER_DD_expenditure '!$B$10:$B$34=$B29)) -> 2417896.226 | K29: =SUMPRODUCT(('AER_DD_expenditure '!Q$10:Q$34)*('AER_DD_expenditure '!$B$10:$B$34=$B29)) -> 2102757.534 | M29: =SUMPRODUCT((Trend_based_exp!M$10:M$30)*(Trend_based_exp!$B$10:$B$30=$B29)) -> 0 | N29: =SUMPRODUCT((Trend_based_exp!N$10:N$30)*(Trend_based_exp!$B$10:$B$30=$B29)) -> 0 | O29: =SUMPRODUCT((Trend_based_exp!O$10:O$30)*(Trend_based_exp!$B$10:$B$30=$B29)) -> 0 | P29: =SUMPRODUCT((Trend_based_exp!P$10:P$30)*(Trend_based_exp!$B$10:$B$30=$B29)) -> 0 | Q29: =SUMPRODUCT((Trend_based_exp!Q$10:Q$30)*(Trend_based_exp!$B$10:$B$30=$B29)) -> 0 | S29: =SUMPRODUCT((Risk_based_exp!M$10:M$16)*(Risk_based_exp!$B$10:$B$16=$B29)) -> 0 | T29: =SUMPRODUCT((Risk_based_exp!N$10:N$16)*(Risk_based_exp!$B$10:$B$16=$B29)) -> 0 | U29: =SUMPRODUCT((Risk_based_exp!O$10:O$16)*(Risk_based_exp!$B$10:$B$16=$B29)) -> 0 | V29: =SUMPRODUCT((Risk_based_exp!P$10:P$16)*(Risk_based_exp!$B$10:$B$16=$B29)) -> 0 | W29: =SUMPRODUCT((Risk_based_exp!Q$10:Q$16)*(Risk_based_exp!$B$10:$B$16=$B29)) -> 0 | Y29: 2102777.857 | Z29: 2099393.549 | AA29: 2417104.257 | AB29: 2417896.226 | AC29: 2102757.534 | AE29: 11139929.42
B30: Minor station works | D30: Transformers (ZSS) | G30: =SUMPRODUCT(('AER_DD_expenditure '!M$10:M$34)*('AER_DD_expenditure '!$B$10:$B$34=$B30)) -> 823282.8018 | H30: =SUMPRODUCT(('AER_DD_expenditure '!N$10:N$34)*('AER_DD_expenditure '!$B$10:$B$34=$B30)) -> 967115.2378 | I30: =SUMPRODUCT(('AER_DD_expenditure '!O$10:O$34)*('AER_DD_expenditure '!$B$10:$B$34=$B30)) -> 716046.8199 | J30: =SUMPRODUCT(('AER_DD_expenditure '!P$10:P$34)*('AER_DD_expenditure '!$B$10:$B$34=$B30)) -> 994296.3978 | K30: =SUMPRODUCT(('AER_DD_expenditure '!Q$10:Q$34)*('AER_DD_expenditure '!$B$10:$B$34=$B30)) -> 716470.1437 | M30: =SUMPRODUCT((Trend_based_exp!M$10:M$30)*(Trend_based_exp!$B$10:$B$30=$B30)) -> 0 | N30: =SUMPRODUCT((Trend_based_exp!N$10:N$30)*(Trend_based_exp!$B$10:$B$30=$B30)) -> 0 | O30: =SUMPRODUCT((Trend_based_exp!O$10:O$30)*(Trend_based_exp!$B$10:$B$30=$B30)) -> 0 | P30: =SUMPRODUCT((Trend_based_exp!P$10:P$30)*(Trend_based_exp!$B$10:$B$30=$B30)) -> 0 | Q30: =SUMPRODUCT((Trend_based_exp!Q$10:Q$30)*(Trend_based_exp!$B$10:$B$30=$B30)) -> 0 | S30: =SUMPRODUCT((Risk_based_exp!M$10:M$16)*(Risk_based_exp!$B$10:$B$16=$B30)) -> 0 | T30: =SUMPRODUCT((Risk_based_exp!N$10:N$16)*(Risk_based_exp!$B$10:$B$16=$B30)) -> 0 | U30: =SUMPRODUCT((Risk_based_exp!O$10:O$16)*(Risk_based_exp!$B$10:$B$16=$B30)) -> 0 | V30: =SUMPRODUCT((Risk_based_exp!P$10:P$16)*(Risk_based_exp!$B$10:$B$16=$B30)) -> 0 | W30: =SUMPRODUCT((Risk_based_exp!Q$10:Q$16)*(Risk_based_exp!$B$10:$B$16=$B30)) -> 0 | Y30: 823282.8018 | Z30: 967115.2378 | AA30: 716046.8199 | AB30: 994296.3978 | AC30: 716470.1437 | AE30: 4217211.401
B31: Defective kiosk transformer replacement | D31: Transformers (DSS) | G31: =SUMPRODUCT(('AER_DD_expenditure '!M$10:M$34)*('AER_DD_expenditure '!$B$10:$B$34=$B31)) -> 11043076.97 | H31: =SUMPRODUCT(('AER_DD_expenditure '!N$10:N$34)*('AER_DD_expenditure '!$B$10:$B$34=$B31)) -> 11051682.05 | I31: =SUMPRODUCT(('AER_DD_expenditure '!O$10:O$34)*('AER_DD_expenditure '!$B$10:$B$34=$B31)) -> 11051682.05 | J31: =SUMPRODUCT(('AER_DD_expenditure '!P$10:P$34)*('AER_DD_expenditure '!$B$10:$B$34=$B31)) -> 11060287.14 | K31: =SUMPRODUCT(('AER_DD_expenditure '!Q$10:Q$34)*('AER_DD_expenditure '!$B$10:$B$34=$B31)) -> 11060287.14 | M31: =SUMPRODUCT((Trend_based_exp!M$10:M$30)*(Trend_based_exp!$B$10:$B$30=$B31)) -> 0 | N31: =SUMPRODUCT((Trend_based_exp!N$10:N$30)*(Trend_based_exp!$B$10:$B$30=$B31)) -> 0 | O31: =SUMPRODUCT((Trend_based_exp!O$10:O$30)*(Trend_based_exp!$B$10:$B$30=$B31)) -> 0 | P31: =SUMPRODUCT((Trend_based_exp!P$10:P$30)*(Trend_based_exp!$B$10:$B$30=$B31)) -> 0 | Q31: =SUMPRODUCT((Trend_based_exp!Q$10:Q$30)*(Trend_based_exp!$B$10:$B$30=$B31)) -> 0 | S31: =SUMPRODUCT((Risk_based_exp!M$10:M$16)*(Risk_based_exp!$B$10:$B$16=$B31)) -> 0 | T31: =SUMPRODUCT((Risk_based_exp!N$10:N$16)*(Risk_based_exp!$B$10:$B$16=$B31)) -> 0 | U31: =SUMPRODUCT((Risk_based_exp!O$10:O$16)*(Risk_based_exp!$B$10:$B$16=$B31)) -> 0 | V31: =SUMPRODUCT((Risk_based_exp!P$10:P$16)*(Risk_based_exp!$B$10:$B$16=$B31)) -> 0 | W31: =SUMPRODUCT((Risk_based_exp!Q$10:Q$16)*(Risk_based_exp!$B$10:$B$16=$B31)) -> 0 | Y31: 11043076.97 | Z31: 11051682.05 | AA31: 11051682.05 | AB31: 11060287.14 | AC31: 11060287.14 | AE31: 55267015.35
B32: Defective ground transformer replacement | D32: Transformers (DSS) | G32: =SUMPRODUCT(('AER_DD_expenditure '!M$10:M$34)*('AER_DD_expenditure '!$B$10:$B$34=$B32)) -> 1979209.248 | H32: =SUMPRODUCT(('AER_DD_expenditure '!N$10:N$34)*('AER_DD_expenditure '!$B$10:$B$34=$B32)) -> 1979209.248 | I32: =SUMPRODUCT(('AER_DD_expenditure '!O$10:O$34)*('AER_DD_expenditure '!$B$10:$B$34=$B32)) -> 1979209.248 | J32: =SUMPRODUCT(('AER_DD_expenditure '!P$10:P$34)*('AER_DD_expenditure '!$B$10:$B$34=$B32)) -> 1979209.248 | K32: =SUMPRODUCT(('AER_DD_expenditure '!Q$10:Q$34)*('AER_DD_expenditure '!$B$10:$B$34=$B32)) -> 1979209.248 | M32: =SUMPRODUCT((Trend_based_exp!M$10:M$30)*(Trend_based_exp!$B$10:$B$30=$B32)) -> 0 | N32: =SUMPRODUCT((Trend_based_exp!N$10:N$30)*(Trend_based_exp!$B$10:$B$30=$B32)) -> 0 | O32: =SUMPRODUCT((Trend_based_exp!O$10:O$30)*(Trend_based_exp!$B$10:$B$30=$B32)) -> 0 | P32: =SUMPRODUCT((Trend_based_exp!P$10:P$30)*(Trend_based_exp!$B$10:$B$30=$B32)) -> 0 | Q32: =SUMPRODUCT((Trend_based_exp!Q$10:Q$30)*(Trend_based_exp!$B$10:$B$30=$B32)) -> 0 | S32: =SUMPRODUCT((Risk_based_exp!M$10:M$16)*(Risk_based_exp!$B$10:$B$16=$B32)) -> 0 | T32: =SUMPRODUCT((Risk_based_exp!N$10:N$16)*(Risk_based_exp!$B$10:$B$16=$B32)) -> 0 | U32: =SUMPRODUCT((Risk_based_exp!O$10:O$16)*(Risk_based_exp!$B$10:$B$16=$B32)) -> 0 | V32: =SUMPRODUCT((Risk_based_exp!P$10:P$16)*(Risk_based_exp!$B$10:$B$16=$B32)) -> 0 | W32: =SUMPRODUCT((Risk_based_exp!Q$10:Q$16)*(Risk_based_exp!$B$10:$B$16=$B32)) -> 0 | Y32: 1979209.248 | Z32: 1979209.248 | AA32: 1979209.248 | AB32: 1979209.248 | AC32: 1979209.248 | AE32: 9896046.242
B33: Compliance replacement transformers | D33: Transformers (DSS) | G33: =SUMPRODUCT(('AER_DD_expenditure '!M$10:M$34)*('AER_DD_expenditure '!$B$10:$B$34=$B33)) -> 992018.615 | H33: =SUMPRODUCT(('AER_DD_expenditure '!N$10:N$34)*('AER_DD_expenditure '!$B$10:$B$34=$B33)) -> 992018.615 | I33: =SUMPRODUCT(('AER_DD_expenditure '!O$10:O$34)*('AER_DD_expenditure '!$B$10:$B$34=$B33)) -> 889810.3869 | J33: =SUMPRODUCT(('AER_DD_expenditure '!P$10:P$34)*('AER_DD_expenditure '!$B$10:$B$34=$B33)) -> 631284.6744 | K33: =SUMPRODUCT(('AER_DD_expenditure '!Q$10:Q$34)*('AER_DD_expenditure '!$B$10:$B$34=$B33)) -> 396807.3347 | M33: =SUMPRODUCT((Trend_based_exp!M$10:M$30)*(Trend_based_exp!$B$10:$B$30=$B33)) -> 0 | N33: =SUMPRODUCT((Trend_based_exp!N$10:N$30)*(Trend_based_exp!$B$10:$B$30=$B33)) -> 0 | O33: =SUMPRODUCT((Trend_based_exp!O$10:O$30)*(Trend_based_exp!$B$10:$B$30=$B33)) -> 0 | P33: =SUMPRODUCT((Trend_based_exp!P$10:P$30)*(Trend_based_exp!$B$10:$B$30=$B33)) -> 0 | Q33: =SUMPRODUCT((Trend_based_exp!Q$10:Q$30)*(Trend_based_exp!$B$10:$B$30=$B33)) -> 0 | S33: =SUMPRODUCT((Risk_based_exp!M$10:M$16)*(Risk_based_exp!$B$10:$B$16=$B33)) -> 0 | T33: =SUMPRODUCT((Risk_based_exp!N$10:N$16)*(Risk_based_exp!$B$10:$B$16=$B33)) -> 0 | U33: =SUMPRODUCT((Risk_based_exp!O$10:O$16)*(Risk_based_exp!$B$10:$B$16=$B33)) -> 0 | V33: =SUMPRODUCT((Risk_based_exp!P$10:P$16)*(Risk_based_exp!$B$10:$B$16=$B33)) -> 0 | W33: =SUMPRODUCT((Risk_based_exp!Q$10:Q$16)*(Risk_based_exp!$B$10:$B$16=$B33)) -> 0 | Y33: 992018.615 | Z33: 992018.615 | AA33: 889810.3869 | AB33: 631284.6744 | AC33: 396807.3347 | AE33: 3901939.626
B34: Defective indoor transformer replacement | D34: Transformers (DSS) | G34: =SUMPRODUCT(('AER_DD_expenditure '!M$10:M$34)*('AER_DD_expenditure '!$B$10:$B$34=$B34)) -> 921969.8334 | H34: =SUMPRODUCT(('AER_DD_expenditure '!N$10:N$34)*('AER_DD_expenditure '!$B$10:$B$34=$B34)) -> 921969.8334 | I34: =SUMPRODUCT(('AER_DD_expenditure '!O$10:O$34)*('AER_DD_expenditure '!$B$10:$B$34=$B34)) -> 921969.8334 | J34: =SUMPRODUCT(('AER_DD_expenditure '!P$10:P$34)*('AER_DD_expenditure '!$B$10:$B$34=$B34)) -> 921969.8334 | K34: =SUMPRODUCT(('AER_DD_expenditure '!Q$10:Q$34)*('AER_DD_expenditure '!$B$10:$B$34=$B34)) -> 921969.8334 | M34: =SUMPRODUCT((Trend_based_exp!M$10:M$30)*(Trend_based_exp!$B$10:$B$30=$B34)) -> 0 | N34: =SUMPRODUCT((Trend_based_exp!N$10:N$30)*(Trend_based_exp!$B$10:$B$30=$B34)) -> 0 | O34: =SUMPRODUCT((Trend_based_exp!O$10:O$30)*(Trend_based_exp!$B$10:$B$30=$B34)) -> 0 | P34: =SUMPRODUCT((Trend_based_exp!P$10:P$30)*(Trend_based_exp!$B$10:$B$30=$B34)) -> 0 | Q34: =SUMPRODUCT((Trend_based_exp!Q$10:Q$30)*(Trend_based_exp!$B$10:$B$30=$B34)) -> 0 | S34: =SUMPRODUCT((Risk_based_exp!M$10:M$16)*(Risk_based_exp!$B$10:$B$16=$B34)) -> 0 | T34: =SUMPRODUCT((Risk_based_exp!N$10:N$16)*(Risk_based_exp!$B$10:$B$16=$B34)) -> 0 | U34: =SUMPRODUCT((Risk_based_exp!O$10:O$16)*(Risk_based_exp!$B$10:$B$16=$B34)) -> 0 | V34: =SUMPRODUCT((Risk_based_exp!P$10:P$16)*(Risk_based_exp!$B$10:$B$16=$B34)) -> 0 | W34: =SUMPRODUCT((Risk_based_exp!Q$10:Q$16)*(Risk_based_exp!$B$10:$B$16=$B34)) -> 0 | Y34: 921969.8334 | Z34: 921969.8334 | AA34: 921969.8334 | AB34: 921969.8334 | AC34: 921969.8334 | AE34: 4609849.167
B35: Other distribution works | D35: Transformers (DSS) | G35: =SUMPRODUCT(('AER_DD_expenditure '!M$10:M$34)*('AER_DD_expenditure '!$B$10:$B$34=$B35)) -> 1213938.842 | H35: =SUMPRODUCT(('AER_DD_expenditure '!N$10:N$34)*('AER_DD_expenditure '!$B$10:$B$34=$B35)) -> 1252789.392 | I35: =SUMPRODUCT(('AER_DD_expenditure '!O$10:O$34)*('AER_DD_expenditure '!$B$10:$B$34=$B35)) -> 1291997.768 | J35: =SUMPRODUCT(('AER_DD_expenditure '!P$10:P$34)*('AER_DD_expenditure '!$B$10:$B$34=$B35)) -> 1322576.984 | K35: =SUMPRODUCT(('AER_DD_expenditure '!Q$10:Q$34)*('AER_DD_expenditure '!$B$10:$B$34=$B35)) -> 1335686.379 | M35: =SUMPRODUCT((Trend_based_exp!M$10:M$30)*(Trend_based_exp!$B$10:$B$30=$B35)) -> 0 | N35: =SUMPRODUCT((Trend_based_exp!N$10:N$30)*(Trend_based_exp!$B$10:$B$30=$B35)) -> 0 | O35: =SUMPRODUCT((Trend_based_exp!O$10:O$30)*(Trend_based_exp!$B$10:$B$30=$B35)) -> 0 | P35: =SUMPRODUCT((Trend_based_exp!P$10:P$30)*(Trend_based_exp!$B$10:$B$30=$B35)) -> 0 | Q35: =SUMPRODUCT((Trend_based_exp!Q$10:Q$30)*(Trend_based_exp!$B$10:$B$30=$B35)) -> 0 | S35: =SUMPRODUCT((Risk_based_exp!M$10:M$16)*(Risk_based_exp!$B$10:$B$16=$B35)) -> 0 | T35: =SUMPRODUCT((Risk_based_exp!N$10:N$16)*(Risk_based_exp!$B$10:$B$16=$B35)) -> 0 | U35: =SUMPRODUCT((Risk_based_exp!O$10:O$16)*(Risk_based_exp!$B$10:$B$16=$B35)) -> 0 | V35: =SUMPRODUCT((Risk_based_exp!P$10:P$16)*(Risk_based_exp!$B$10:$B$16=$B35)) -> 0 | W35: =SUMPRODUCT((Risk_based_exp!Q$10:Q$16)*(Risk_based_exp!$B$10:$B$16=$B35)) -> 0 | Y35: 1213938.842 | Z35: 1252789.392 | AA35: 1291997.768 | AB35: 1322576.984 | AC35: 1335686.379 | AE35: 6416989.365
B36: ZSS switchboard replacement | D36: Switchgear (ZSS) | G36: =SUMPRODUCT(('AER_DD_expenditure '!M$10:M$34)*('AER_DD_expenditure '!$B$10:$B$34=$B36)) -> 2810701.56 | H36: =SUMPRODUCT(('AER_DD_expenditure '!N$10:N$34)*('AER_DD_expenditure '!$B$10:$B$34=$B36)) -> 2903486.16 | I36: =SUMPRODUCT(('AER_DD_expenditure '!O$10:O$34)*('AER_DD_expenditure '!$B$10:$B$34=$B36)) -> 5714187.72 | J36: =SUMPRODUCT(('AER_DD_expenditure '!P$10:P$34)*('AER_DD_expenditure '!$B$10:$B$34=$B36)) -> 5621403.12 | K36: =SUMPRODUCT(('AER_DD_expenditure '!Q$10:Q$34)*('AER_DD_expenditure '!$B$10:$B$34=$B36)) -> 5621403.12 | M36: =SUMPRODUCT((Trend_based_exp!M$10:M$30)*(Trend_based_exp!$B$10:$B$30=$B36)) -> 0 | N36: =SUMPRODUCT((Trend_based_exp!N$10:N$30)*(Trend_based_exp!$B$10:$B$30=$B36)) -> 0 | O36: =SUMPRODUCT((Trend_based_exp!O$10:O$30)*(Trend_based_exp!$B$10:$B$30=$B36)) -> 0 | P36: =SUMPRODUCT((Trend_based_exp!P$10:P$30)*(Trend_based_exp!$B$10:$B$30=$B36)) -> 0 | Q36: =SUMPRODUCT((Trend_based_exp!Q$10:Q$30)*(Trend_based_exp!$B$10:$B$30=$B36)) -> 0 | S36: =SUMPRODUCT((Risk_based_exp!M$10:M$16)*(Risk_based_exp!$B$10:$B$16=$B36)) -> 0 | T36: =SUMPRODUCT((Risk_based_exp!N$10:N$16)*(Risk_based_exp!$B$10:$B$16=$B36)) -> 0 | U36: =SUMPRODUCT((Risk_based_exp!O$10:O$16)*(Risk_based_exp!$B$10:$B$16=$B36)) -> 0 | V36: =SUMPRODUCT((Risk_based_exp!P$10:P$16)*(Risk_based_exp!$B$10:$B$16=$B36)) -> 0 | W36: =SUMPRODUCT((Risk_based_exp!Q$10:Q$16)*(Risk_based_exp!$B$10:$B$16=$B36)) -> 0 | Y36: 2810701.56 | Z36: 2903486.16 | AA36: 5714187.72 | AB36: 5621403.12 | AC36: 5621403.12 | AE36: 22671181.68
B37: Defective fuses, surge diverters and ACRs | D37: Switchgear (DSS) | G37: =SUMPRODUCT(('AER_DD_expenditure '!M$10:M$34)*('AER_DD_expenditure '!$B$10:$B$34=$B37)) -> 0 | H37: =SUMPRODUCT(('AER_DD_expenditure '!N$10:N$34)*('AER_DD_expenditure '!$B$10:$B$34=$B37)) -> 0 | I37: =SUMPRODUCT(('AER_DD_expenditure '!O$10:O$34)*('AER_DD_expenditure '!$B$10:$B$34=$B37)) -> 0 | J37: =SUMPRODUCT(('AER_DD_expenditure '!P$10:P$34)*('AER_DD_expenditure '!$B$10:$B$34=$B37)) -> 0 | K37: =SUMPRODUCT(('AER_DD_expenditure '!Q$10:Q$34)*('AER_DD_expenditure '!$B$10:$B$34=$B37)) -> 0 | M37: =SUMPRODUCT((Trend_based_exp!M$10:M$30)*(Trend_based_exp!$B$10:$B$30=$B37)) -> 12380064.49 | N37: =SUMPRODUCT((Trend_based_exp!N$10:N$30)*(Trend_based_exp!$B$10:$B$30=$B37)) -> 12401729.75 | O37: =SUMPRODUCT((Trend_based_exp!O$10:O$30)*(Trend_based_exp!$B$10:$B$30=$B37)) -> 12423395 | P37: =SUMPRODUCT((Trend_based_exp!P$10:P$30)*(Trend_based_exp!$B$10:$B$30=$B37)) -> 12445060.26 | Q37: =SUMPRODUCT((Trend_based_exp!Q$10:Q$30)*(Trend_based_exp!$B$10:$B$30=$B37)) -> 12466725.52 | S37: =SUMPRODUCT((Risk_based_exp!M$10:M$16)*(Risk_based_exp!$B$10:$B$16=$B37)) -> 0 | T37: =SUMPRODUCT((Risk_based_exp!N$10:N$16)*(Risk_based_exp!$B$10:$B$16=$B37)) -> 0 | U37: =SUMPRODUCT((Risk_based_exp!O$10:O$16)*(Risk_based_exp!$B$10:$B$16=$B37)) -> 0 | V37: =SUMPRODUCT((Risk_based_exp!P$10:P$16)*(Risk_based_exp!$B$10:$B$16=$B37)) -> 0 | W37: =SUMPRODUCT((Risk_based_exp!Q$10:Q$16)*(Risk_based_exp!$B$10:$B$16=$B37)) -> 0 | Y37: 12380064.49 | Z37: 12401729.75 | AA37: 12423395 | AB37: 12445060.26 | AC37: 12466725.52 | AE37: 62116975.02
B38: CRO switch program | D38: Switchgear (DSS) | G38: =SUMPRODUCT(('AER_DD_expenditure '!M$10:M$34)*('AER_DD_expenditure '!$B$10:$B$34=$B38)) -> 5002542.346 | H38: =SUMPRODUCT(('AER_DD_expenditure '!N$10:N$34)*('AER_DD_expenditure '!$B$10:$B$34=$B38)) -> 5002542.346 | I38: =SUMPRODUCT(('AER_DD_expenditure '!O$10:O$34)*('AER_DD_expenditure '!$B$10:$B$34=$B38)) -> 5002542.346 | J38: =SUMPRODUCT(('AER_DD_expenditure '!P$10:P$34)*('AER_DD_expenditure '!$B$10:$B$34=$B38)) -> 5002542.346 | K38: =SUMPRODUCT(('AER_DD_expenditure '!Q$10:Q$34)*('AER_DD_expenditure '!$B$10:$B$34=$B38)) -> 5002542.346 | M38: =SUMPRODUCT((Trend_based_exp!M$10:M$30)*(Trend_based_exp!$B$10:$B$30=$B38)) -> 0 | N38: =SUMPRODUCT((Trend_based_exp!N$10:N$30)*(Trend_based_exp!$B$10:$B$30=$B38)) -> 0 | O38: =SUMPRODUCT((Trend_based_exp!O$10:O$30)*(Trend_based_exp!$B$10:$B$30=$B38)) -> 0 | P38: =SUMPRODUCT((Trend_based_exp!P$10:P$30)*(Trend_based_exp!$B$10:$B$30=$B38)) -> 0 | Q38: =SUMPRODUCT((Trend_based_exp!Q$10:Q$30)*(Trend_based_exp!$B$10:$B$30=$B38)) -> 0 | S38: =SUMPRODUCT((Risk_based_exp!M$10:M$16)*(Risk_based_exp!$B$10:$B$16=$B38)) -> 0 | T38: =SUMPRODUCT((Risk_based_exp!N$10:N$16)*(Risk_based_exp!$B$10:$B$16=$B38)) -> 0 | U38: =SUMPRODUCT((Risk_based_exp!O$10:O$16)*(Risk_based_exp!$B$10:$B$16=$B38)) -> 0 | V38: =SUMPRODUCT((Risk_based_exp!P$10:P$16)*(Risk_based_exp!$B$10:$B$16=$B38)) -> 0 | W38: =SUMPRODUCT((Risk_based_exp!Q$10:Q$16)*(Risk_based_exp!$B$10:$B$16=$B38)) -> 0 | Y38: 5002542.346 | Z38: 5002542.346 | AA38: 5002542.346 | AB38: 5002542.346 | AC38: 5002542.346 | AE38: 25012711.73
B39: Defective switches | D39: Switchgear (DSS) | G39: =SUMPRODUCT(('AER_DD_expenditure '!M$10:M$34)*('AER_DD_expenditure '!$B$10:$B$34=$B39)) -> 7448560.429 | H39: =SUMPRODUCT(('AER_DD_expenditure '!N$10:N$34)*('AER_DD_expenditure '!$B$10:$B$34=$B39)) -> 7515220.673 | I39: =SUMPRODUCT(('AER_DD_expenditure '!O$10:O$34)*('AER_DD_expenditure '!$B$10:$B$34=$B39)) -> 7614711.841 | J39: =SUMPRODUCT(('AER_DD_expenditure '!P$10:P$34)*('AER_DD_expenditure '!$B$10:$B$34=$B39)) -> 7681372.085 | K39: =SUMPRODUCT(('AER_DD_expenditure '!Q$10:Q$34)*('AER_DD_expenditure '!$B$10:$B$34=$B39)) -> 7780863.253 | M39: =SUMPRODUCT((Trend_based_exp!M$10:M$30)*(Trend_based_exp!$B$10:$B$30=$B39)) -> 0 | N39: =SUMPRODUCT((Trend_based_exp!N$10:N$30)*(Trend_based_exp!$B$10:$B$30=$B39)) -> 0 | O39: =SUMPRODUCT((Trend_based_exp!O$10:O$30)*(Trend_based_exp!$B$10:$B$30=$B39)) -> 0 | P39: =SUMPRODUCT((Trend_based_exp!P$10:P$30)*(Trend_based_exp!$B$10:$B$30=$B39)) -> 0 | Q39: =SUMPRODUCT((Trend_based_exp!Q$10:Q$30)*(Trend_based_exp!$B$10:$B$30=$B39)) -> 0 | S39: =SUMPRODUCT((Risk_based_exp!M$10:M$16)*(Risk_based_exp!$B$10:$B$16=$B39)) -> 0 | T39: =SUMPRODUCT((Risk_based_exp!N$10:N$16)*(Risk_based_exp!$B$10:$B$16=$B39)) -> 0 | U39: =SUMPRODUCT((Risk_based_exp!O$10:O$16)*(Risk_based_exp!$B$10:$B$16=$B39)) -> 0 | V39: =SUMPRODUCT((Risk_based_exp!P$10:P$16)*(Risk_based_exp!$B$10:$B$16=$B39)) -> 0 | W39: =SUMPRODUCT((Risk_based_exp!Q$10:Q$16)*(Risk_based_exp!$B$10:$B$16=$B39)) -> 0 | Y39: 7448560.429 | Z39: 7515220.673 | AA39: 7614711.841 | AB39: 7681372.085 | AC39: 7780863.253 | AE39: 38040728.28
B40: Expulsion drop-out fuse program | D40: Switchgear (DSS) | G40: =SUMPRODUCT(('AER_DD_expenditure '!M$10:M$34)*('AER_DD_expenditure '!$B$10:$B$34=$B40)) -> 1816121.803 | H40: =SUMPRODUCT(('AER_DD_expenditure '!N$10:N$34)*('AER_DD_expenditure '!$B$10:$B$34=$B40)) -> 0 | I40: =SUMPRODUCT(('AER_DD_expenditure '!O$10:O$34)*('AER_DD_expenditure '!$B$10:$B$34=$B40)) -> 0 | J40: =SUMPRODUCT(('AER_DD_expenditure '!P$10:P$34)*('AER_DD_expenditure '!$B$10:$B$34=$B40)) -> 0 | K40: =SUMPRODUCT(('AER_DD_expenditure '!Q$10:Q$34)*('AER_DD_expenditure '!$B$10:$B$34=$B40)) -> 0 | M40: =SUMPRODUCT((Trend_based_exp!M$10:M$30)*(Trend_based_exp!$B$10:$B$30=$B40)) -> 0 | N40: =SUMPRODUCT((Trend_based_exp!N$10:N$30)*(Trend_based_exp!$B$10:$B$30=$B40)) -> 0 | O40: =SUMPRODUCT((Trend_based_exp!O$10:O$30)*(Trend_based_exp!$B$10:$B$30=$B40)) -> 0 | P40: =SUMPRODUCT((Trend_based_exp!P$10:P$30)*(Trend_based_exp!$B$10:$B$30=$B40)) -> 0 | Q40: =SUMPRODUCT((Trend_based_exp!Q$10:Q$30)*(Trend_based_exp!$B$10:$B$30=$B40)) -> 0 | S40: =SUMPRODUCT((Risk_based_exp!M$10:M$16)*(Risk_based_exp!$B$10:$B$16=$B40)) -> 0 | T40: =SUMPRODUCT((Risk_based_exp!N$10:N$16)*(Risk_based_exp!$B$10:$B$16=$B40)) -> 0 | U40: =SUMPRODUCT((Risk_based_exp!O$10:O$16)*(Risk_based_exp!$B$10:$B$16=$B40)) -> 0 | V40: =SUMPRODUCT((Risk_based_exp!P$10:P$16)*(Risk_based_exp!$B$10:$B$16=$B40)) -> 0 | W40: =SUMPRODUCT((Risk_based_exp!Q$10:Q$16)*(Risk_based_exp!$B$10:$B$16=$B40)) -> 0 | Y40: 1816121.803 | Z40: 0 | AA40: 0 | AB40: 0 | AC40: 0 | AE40: 1816121.803
B41: Relay replacements | D41: SCADA/comms | G41: =SUMPRODUCT(('AER_DD_expenditure '!M$10:M$34)*('AER_DD_expenditure '!$B$10:$B$34=$B41)) -> 4178656.675 | H41: =SUMPRODUCT(('AER_DD_expenditure '!N$10:N$34)*('AER_DD_expenditure '!$B$10:$B$34=$B41)) -> 3506973.828 | I41: =SUMPRODUCT(('AER_DD_expenditure '!O$10:O$34)*('AER_DD_expenditure '!$B$10:$B$34=$B41)) -> 7492031.78 | J41: =SUMPRODUCT(('AER_DD_expenditure '!P$10:P$34)*('AER_DD_expenditure '!$B$10:$B$34=$B41)) -> 2159927.509 | K41: =SUMPRODUCT(('AER_DD_expenditure '!Q$10:Q$34)*('AER_DD_expenditure '!$B$10:$B$34=$B41)) -> 2237737.019 | M41: =SUMPRODUCT((Trend_based_exp!M$10:M$30)*(Trend_based_exp!$B$10:$B$30=$B41)) -> 0 | N41: =SUMPRODUCT((Trend_based_exp!N$10:N$30)*(Trend_based_exp!$B$10:$B$30=$B41)) -> 0 | O41: =SUMPRODUCT((Trend_based_exp!O$10:O$30)*(Trend_based_exp!$B$10:$B$30=$B41)) -> 0 | P41: =SUMPRODUCT((Trend_based_exp!P$10:P$30)*(Trend_based_exp!$B$10:$B$30=$B41)) -> 0 | Q41: =SUMPRODUCT((Trend_based_exp!Q$10:Q$30)*(Trend_based_exp!$B$10:$B$30=$B41)) -> 0 | S41: =SUMPRODUCT((Risk_based_exp!M$10:M$16)*(Risk_based_exp!$B$10:$B$16=$B41)) -> 0 | T41: =SUMPRODUCT((Risk_based_exp!N$10:N$16)*(Risk_based_exp!$B$10:$B$16=$B41)) -> 0 | U41: =SUMPRODUCT((Risk_based_exp!O$10:O$16)*(Risk_based_exp!$B$10:$B$16=$B41)) -> 0 | V41: =SUMPRODUCT((Risk_based_exp!P$10:P$16)*(Risk_based_exp!$B$10:$B$16=$B41)) -> 0 | W41: =SUMPRODUCT((Risk_based_exp!Q$10:Q$16)*(Risk_based_exp!$B$10:$B$16=$B41)) -> 0 | Y41: 4178656.675 | Z41: 3506973.828 | AA41: 7492031.78 | AB41: 2159927.509 | AC41: 2237737.019 | AE41: 19575326.81
B42: Secondary defects, batteries and chargers | D42: SCADA/comms | G42: =SUMPRODUCT(('AER_DD_expenditure '!M$10:M$34)*('AER_DD_expenditure '!$B$10:$B$34=$B42)) -> 688113.8893 | H42: =SUMPRODUCT(('AER_DD_expenditure '!N$10:N$34)*('AER_DD_expenditure '!$B$10:$B$34=$B42)) -> 1283388.606 | I42: =SUMPRODUCT(('AER_DD_expenditure '!O$10:O$34)*('AER_DD_expenditure '!$B$10:$B$34=$B42)) -> 1283388.606 | J42: =SUMPRODUCT(('AER_DD_expenditure '!P$10:P$34)*('AER_DD_expenditure '!$B$10:$B$34=$B42)) -> 688113.8893 | K42: =SUMPRODUCT(('AER_DD_expenditure '!Q$10:Q$34)*('AER_DD_expenditure '!$B$10:$B$34=$B42)) -> 688113.8893 | M42: =SUMPRODUCT((Trend_based_exp!M$10:M$30)*(Trend_based_exp!$B$10:$B$30=$B42)) -> 0 | N42: =SUMPRODUCT((Trend_based_exp!N$10:N$30)*(Trend_based_exp!$B$10:$B$30=$B42)) -> 0 | O42: =SUMPRODUCT((Trend_based_exp!O$10:O$30)*(Trend_based_exp!$B$10:$B$30=$B42)) -> 0 | P42: =SUMPRODUCT((Trend_based_exp!P$10:P$30)*(Trend_based_exp!$B$10:$B$30=$B42)) -> 0 | Q42: =SUMPRODUCT((Trend_based_exp!Q$10:Q$30)*(Trend_based_exp!$B$10:$B$30=$B42)) -> 0 | S42: =SUMPRODUCT((Risk_based_exp!M$10:M$16)*(Risk_based_exp!$B$10:$B$16=$B42)) -> 0 | T42: =SUMPRODUCT((Risk_based_exp!N$10:N$16)*(Risk_based_exp!$B$10:$B$16=$B42)) -> 0 | U42: =SUMPRODUCT((Risk_based_exp!O$10:O$16)*(Risk_based_exp!$B$10:$B$16=$B42)) -> 0 | V42: =SUMPRODUCT((Risk_based_exp!P$10:P$16)*(Risk_based_exp!$B$10:$B$16=$B42)) -> 0 | W42: =SUMPRODUCT((Risk_based_exp!Q$10:Q$16)*(Risk_based_exp!$B$10:$B$16=$B42)) -> 0 | Y42: 688113.8893 | Z42: 1283388.606 | AA42: 1283388.606 | AB42: 688113.8893 | AC42: 688113.8893 | AE42: 4631118.879
B43: Underground pits and pillars | D43: Underground cable | G43: =SUMPRODUCT(('AER_DD_expenditure '!M$10:M$34)*('AER_DD_expenditure '!$B$10:$B$34=$B43)) -> 579979.5127 | H43: =SUMPRODUCT(('AER_DD_expenditure '!N$10:N$34)*('AER_DD_expenditure '!$B$10:$B$34=$B43)) -> 579979.5127 | I43: =SUMPRODUCT(('AER_DD_expenditure '!O$10:O$34)*('AER_DD_expenditure '!$B$10:$B$34=$B43)) -> 579979.5127 | J43: =SUMPRODUCT(('AER_DD_expenditure '!P$10:P$34)*('AER_DD_expenditure '!$B$10:$B$34=$B43)) -> 579979.5127 | K43: =SUMPRODUCT(('AER_DD_expenditure '!Q$10:Q$34)*('AER_DD_expenditure '!$B$10:$B$34=$B43)) -> 579979.5127 | M43: =SUMPRODUCT((Trend_based_exp!M$10:M$30)*(Trend_based_exp!$B$10:$B$30=$B43)) -> 0 | N43: =SUMPRODUCT((Trend_based_exp!N$10:N$30)*(Trend_based_exp!$B$10:$B$30=$B43)) -> 0 | O43: =SUMPRODUCT((Trend_based_exp!O$10:O$30)*(Trend_based_exp!$B$10:$B$30=$B43)) -> 0 | P43: =SUMPRODUCT((Trend_based_exp!P$10:P$30)*(Trend_based_exp!$B$10:$B$30=$B43)) -> 0 | Q43: =SUMPRODUCT((Trend_based_exp!Q$10:Q$30)*(Trend_based_exp!$B$10:$B$30=$B43)) -> 0 | S43: =SUMPRODUCT((Risk_based_exp!M$10:M$16)*(Risk_based_exp!$B$10:$B$16=$B43)) -> 0 | T43: =SUMPRODUCT((Risk_based_exp!N$10:N$16)*(Risk_based_exp!$B$10:$B$16=$B43)) -> 0 | U43: =SUMPRODUCT((Risk_based_exp!O$10:O$16)*(Risk_based_exp!$B$10:$B$16=$B43)) -> 0 | V43: =SUMPRODUCT((Risk_based_exp!P$10:P$16)*(Risk_based_exp!$B$10:$B$16=$B43)) -> 0 | W43: =SUMPRODUCT((Risk_based_exp!Q$10:Q$16)*(Risk_based_exp!$B$10:$B$16=$B43)) -> 0 | Y43: 579979.5127 | Z43: 579979.5127 | AA43: 579979.5127 | AB43: 579979.5127 | AC43: 579979.5127 | AE43: 2899897.563
B44: Environmental | D44: Other replacement | G44: =SUMPRODUCT(('AER_DD_expenditure '!M$10:M$34)*('AER_DD_expenditure '!$B$10:$B$34=$B44)) -> 1202596.463 | H44: =SUMPRODUCT(('AER_DD_expenditure '!N$10:N$34)*('AER_DD_expenditure '!$B$10:$B$34=$B44)) -> 1202596.463 | I44: =SUMPRODUCT(('AER_DD_expenditure '!O$10:O$34)*('AER_DD_expenditure '!$B$10:$B$34=$B44)) -> 1202596.463 | J44: =SUMPRODUCT(('AER_DD_expenditure '!P$10:P$34)*('AER_DD_expenditure '!$B$10:$B$34=$B44)) -> 1202596.463 | K44: =SUMPRODUCT(('AER_DD_expenditure '!Q$10:Q$34)*('AER_DD_expenditure '!$B$10:$B$34=$B44)) -> 1202596.463 | M44: =SUMPRODUCT((Trend_based_exp!M$10:M$30)*(Trend_based_exp!$B$10:$B$30=$B44)) -> 0 | N44: =SUMPRODUCT((Trend_based_exp!N$10:N$30)*(Trend_based_exp!$B$10:$B$30=$B44)) -> 0 | O44: =SUMPRODUCT((Trend_based_exp!O$10:O$30)*(Trend_based_exp!$B$10:$B$30=$B44)) -> 0 | P44: =SUMPRODUCT((Trend_based_exp!P$10:P$30)*(Trend_based_exp!$B$10:$B$30=$B44)) -> 0 | Q44: =SUMPRODUCT((Trend_based_exp!Q$10:Q$30)*(Trend_based_exp!$B$10:$B$30=$B44)) -> 0 | S44: =SUMPRODUCT((Risk_based_exp!M$10:M$16)*(Risk_based_exp!$B$10:$B$16=$B44)) -> 0 | T44: =SUMPRODUCT((Risk_based_exp!N$10:N$16)*(Risk_based_exp!$B$10:$B$16=$B44)) -> 0 | U44: =SUMPRODUCT((Risk_based_exp!O$10:O$16)*(Risk_based_exp!$B$10:$B$16=$B44)) -> 0 | V44: =SUMPRODUCT((Risk_based_exp!P$10:P$16)*(Risk_based_exp!$B$10:$B$16=$B44)) -> 0 | W44: =SUMPRODUCT((Risk_based_exp!Q$10:Q$16)*(Risk_based_exp!$B$10:$B$16=$B44)) -> 0 | Y44: 1202596.463 | Z44: 1202596.463 | AA44: 1202596.463 | AB44: 1202596.463 | AC44: 1202596.463 | AE44: 6012982.317
B45: Earth grid | D45: Other replacement | G45: =SUMPRODUCT(('AER_DD_expenditure '!M$10:M$34)*('AER_DD_expenditure '!$B$10:$B$34=$B45)) -> 600116.1739 | H45: =SUMPRODUCT(('AER_DD_expenditure '!N$10:N$34)*('AER_DD_expenditure '!$B$10:$B$34=$B45)) -> 266088.5507 | I45: =SUMPRODUCT(('AER_DD_expenditure '!O$10:O$34)*('AER_DD_expenditure '!$B$10:$B$34=$B45)) -> 154702.7858 | J45: =SUMPRODUCT(('AER_DD_expenditure '!P$10:P$34)*('AER_DD_expenditure '!$B$10:$B$34=$B45)) -> 154682.6358 | K45: =SUMPRODUCT(('AER_DD_expenditure '!Q$10:Q$34)*('AER_DD_expenditure '!$B$10:$B$34=$B45)) -> 154859.958 | M45: =SUMPRODUCT((Trend_based_exp!M$10:M$30)*(Trend_based_exp!$B$10:$B$30=$B45)) -> 0 | N45: =SUMPRODUCT((Trend_based_exp!N$10:N$30)*(Trend_based_exp!$B$10:$B$30=$B45)) -> 0 | O45: =SUMPRODUCT((Trend_based_exp!O$10:O$30)*(Trend_based_exp!$B$10:$B$30=$B45)) -> 0 | P45: =SUMPRODUCT((Trend_based_exp!P$10:P$30)*(Trend_based_exp!$B$10:$B$30=$B45)) -> 0 | Q45: =SUMPRODUCT((Trend_based_exp!Q$10:Q$30)*(Trend_based_exp!$B$10:$B$30=$B45)) -> 0 | S45: =SUMPRODUCT((Risk_based_exp!M$10:M$16)*(Risk_based_exp!$B$10:$B$16=$B45)) -> 0 | T45: =SUMPRODUCT((Risk_based_exp!N$10:N$16)*(Risk_based_exp!$B$10:$B$16=$B45)) -> 0 | U45: =SUMPRODUCT((Risk_based_exp!O$10:O$16)*(Risk_based_exp!$B$10:$B$16=$B45)) -> 0 | V45: =SUMPRODUCT((Risk_based_exp!P$10:P$16)*(Risk_based_exp!$B$10:$B$16=$B45)) -> 0 | W45: =SUMPRODUCT((Risk_based_exp!Q$10:Q$16)*(Risk_based_exp!$B$10:$B$16=$B45)) -> 0 | Y45: 600116.1739 | Z45: 266088.5507 | AA45: 154702.7858 | AB45: 154682.6358 | AC45: 154859.958 | AE45: 1330450.104
B46: Innovation fund | D46: Innovation | G46: =SUMPRODUCT(('AER_DD_expenditure '!M$10:M$34)*('AER_DD_expenditure '!$B$10:$B$34=$B46)) -> 0 | H46: =SUMPRODUCT(('AER_DD_expenditure '!N$10:N$34)*('AER_DD_expenditure '!$B$10:$B$34=$B46)) -> 0 | I46: =SUMPRODUCT(('AER_DD_expenditure '!O$10:O$34)*('AER_DD_expenditure '!$B$10:$B$34=$B46)) -> 0 | J46: =SUMPRODUCT(('AER_DD_expenditure '!P$10:P$34)*('AER_DD_expenditure '!$B$10:$B$34=$B46)) -> 0 | K46: =SUMPRODUCT(('AER_DD_expenditure '!Q$10:Q$34)*('AER_DD_expenditure '!$B$10:$B$34=$B46)) -> 0 | M46: =SUMPRODUCT((Trend_based_exp!M$10:M$30)*(Trend_based_exp!$B$10:$B$30=$B46)) -> 0 | N46: =SUMPRODUCT((Trend_based_exp!N$10:N$30)*(Trend_based_exp!$B$10:$B$30=$B46)) -> 0 | O46: =SUMPRODUCT((Trend_based_exp!O$10:O$30)*(Trend_based_exp!$B$10:$B$30=$B46)) -> 0 | P46: =SUMPRODUCT((Trend_based_exp!P$10:P$30)*(Trend_based_exp!$B$10:$B$30=$B46)) -> 0 | Q46: =SUMPRODUCT((Trend_based_exp!Q$10:Q$30)*(Trend_based_exp!$B$10:$B$30=$B46)) -> 0 | S46: =SUMPRODUCT((Risk_based_exp!M$10:M$16)*(Risk_based_exp!$B$10:$B$16=$B46)) -> 0 | T46: =SUMPRODUCT((Risk_based_exp!N$10:N$16)*(Risk_based_exp!$B$10:$B$16=$B46)) -> 0 | U46: =SUMPRODUCT((Risk_based_exp!O$10:O$16)*(Risk_based_exp!$B$10:$B$16=$B46)) -> 0 | V46: =SUMPRODUCT((Risk_based_exp!P$10:P$16)*(Risk_based_exp!$B$10:$B$16=$B46)) -> 0 | W46: =SUMPRODUCT((Risk_based_exp!Q$10:Q$16)*(Risk_based_exp!$B$10:$B$16=$B46)) -> 0 | Y46: 0 | Z46: 0 | AA46: 0 | AB46: 0 | AC46: 0 | AE46: 0

Sheet Adjustments
A1: =bus -> Powercor
A2: =Cover!$C$5 -> Replacement expenditure forecast model
A3: ADJUSTMENTS
B6: Count | L6: 1 | M6: =L6+1 -> 2 | N6: =M6+1 -> 3 | O6: =N6+1 -> 4 | P6: =O6+1 -> 5
A9: Allocation of poles: concrete & wood | G9: =Hist_volumes!H9 -> 2021/22 | H9: =Hist_volumes!I9 -> 2022/23 | I9: =Hist_volumes!J9 -> 2023/24 | J9: =Hist_volumes!K9 -> 2024/25 | L9: =Consol!S9 -> 2026-27 | M9: =Consol!T9 -> 2027-28 | N9: =Consol!U9 -> 2028-29 | O9: =Consol!V9 -> 2029-30 | P9: =Consol!W9 -> 2030-31
B11: Allocation of poles: concrete & wood
C12: LV pole replacement | L12: 766 | M12: 766 | N12: 766 | O12: 766 | P12: 766
C13: HV pole replacement | L13: 3521 | M13: 3521 | N13: 3521 | O13: 3521 | P13: 3521
C15: LV concrete pole replacement | D15: 0.6 | E15: Refer PAL IR042 Q3 | L15: =ROUND(L12*$D$15,0) -> 460 | M15: 460 | N15: 460 | O15: 460 | P15: 460
C16: HV concrete pole replacement | D16: =D15 -> 0.6 | L16: 2113 | M16: 2113 | N16: 2113 | O16: 2113 | P16: 2113
C18: LV wood pole replacement | D18: =1-D15 -> 0.4 | L18: =L12-L15 -> 306 | M18: 306 | N18: 306 | O18: 306 | P18: 306
C19: HV wood pole replacement | D19: =1-D16 -> 0.4 | L19: 1408 | M19: 1408 | N19: 1408 | O19: 1408 | P19: 1408
A24: Pole top structures overlap with pole replacement program | D24: 4 year average | G24: 2021/22 | H24: 2022/23 | I24: 2023/24 | J24: 2024/25
B26: HV Xarm | C26: Replaced | G26: 2414 | H26: 2076 | I26: 1903 | J26: 1120
C27: Replaced as part of pole replacement | G27: 77 | H27: 40 | I27: 52 | J27: 19
B29: LV Xarm | C29: Replaced | G29: 3303 | H29: 4314 | I29: 3493 | J29: 2174
C30: Replaced as part of pole replacement | G30: 84 | H30: 63 | I30: 54 | J30: 24
C32: % of HV replaced as part of pole replacement | D32: =AVERAGE(G32:J32) -> 0.02386366257 | G32: =G27/G26 -> 0.03189726595 | H32: =H27/H26 -> 0.01926782274 | I32: =I27/I26 -> 0.02732527588 | J32: =J27/J26 -> 0.01696428571
C33: % of LV replaced as part of pole replacement | D33: =AVERAGE(G33:J33) -> 0.01663352273 | G33: =G30/G29 -> 0.02543142598 | H33: =H30/H29 -> 0.01460361613 | I33: =I30/I29 -> 0.01545949041 | J33: =J30/J29 -> 0.01103955842
A40: Pole replacement overlap with bushfire resilience pole program
B43: HV concrete pole replacement | D43: 67 | E43: Refer PAL RRP MOD 3.5.01 - Bushfire resilience - Dec2025 - Public
B44: Adjustment for overlap per year | D44: =D43/5 -> 13.4 | E44: * Adjustment included on Hist_volumes tab
A47: Pole replacement overlap with flood resilience pole program
C49: Regulatory proposal capex ($2026) | D49: 19613048.76
C50: AER draft decision capex ($2026) | D50: 8446802.984
D51: =D50/D49 -> 0.4306726142
C53: Regulatory proposal overlap poles | D53: 51
C54: Pro rata overlapped poles | D54: =ROUND(D53*D51,0) -> 22
C56: Adjustment for overlap per year | D56: =D53/5 -> 10.2 | E56: * Adjustment included on Hist_volumes tab

Sheet Assumptions
A1: =bus -> Powercor
A2: =Cover!$C$5 -> Replacement expenditure forecast model
A3: ASSUMPTIONS
B6: Output dollars | D6: 2026-06-30
B8: HY | D8: 2021-06-30
B12: RIN year | K12: 2011 | L12: 2012 | M12: 2013 | N12: 2014 | O12: 2015 | P12: 2016 | Q12: 2017 | R12: 2018 | S12: 2019 | T12: 2020 | U12: HY2021 | V12: FY22 | W12: FY23 | X12: FY24 | Y12: FY25 | Z12: FY26
B13: Lagged actual CPI | K13: 0.02787663108 | L13: 0.03519907675 | M13: 0.02004008016 | N13: 0.02161100196 | O13: 0.02307692308 | P13: 0.01510859301 | Q13: 0.01023255814 | R13: 0.01933701657 | S13: 0.02077687444 | T13: 0.01592920354 | U13: 0.01219512195 | V13: 0.008605851979 | W13: 0.03498293515 | X13: 0.07831821929 | Y13: 0.04051987768 | Z13: 0.0242468773
B14: RIN year end date | J14: 2010-12-31 | K14: =EOMONTH(J14,12) -> 2011-12-31 | L14: 2012-12-31 | M14: 2013-12-31 | N14: 2014-12-31 | O14: 2015-12-31 | P14: 2016-12-31 | Q14: 2017-12-31 | R14: 2018-12-31 | S14: 2019-12-31 | T14: 2020-12-31 | U14: 2021-06-30 | V14: =EOMONTH(U14,12) -> 2022-06-30 | W14: =EOMONTH(V14,12) -> 2023-06-30 | X14: =EOMONTH(W14,12) -> 2024-06-30 | Y14: =EOMONTH(X14,12) -> 2025-06-30 | Z14: =EOMONTH(Y14,12) -> 2026-06-30
B18: RIN year type | G18: CY | H18: CY | I18: CY | J18: CY | K18: CY | L18: CY | M18: CY | N18: CY | O18: CY | P18: CY | Q18: CY | R18: CY | S18: CY | T18: CY | U18: CY | V18: CY | W18: CY | X18: CY | Y18: CY | Z18: CY | AA18: CY | AB18: HY | AC18: FY | AD18: FY | AE18: FY | AF18: FY | AG18: FY | AH18: FY | AI18: FY | AJ18: FY | AK18: FY | AL18: FY
B19: Half year date | G19: 2010-12-31 | H19: =EOMONTH(G19,6) -> 2011-06-30 | I19: 2011-12-31 | J19: 2012-06-30 | K19: 2012-12-31 | L19: 2013-06-30 | M19: 2013-12-31 | N19: 2014-06-30 | O19: 2014-12-31 | P19: 2015-06-30 | Q19: 2015-12-31 | R19: 2016-06-30 | S19: 2016-12-31 | T19: 2017-06-30 | U19: 2017-12-31 | V19: 2018-06-30 | W19: 2018-12-31 | X19: 2019-06-30 | Y19: 2019-12-31 | Z19: 2020-06-30 | AA19: 2020-12-31 | AB19: 2021-06-30 | AC19: 2021-12-31 | AD19: 2022-06-30 | AE19: 2022-12-31 | AF19: 2023-06-30 | AG19: 2023-12-31 | AH19: 2024-06-30 | AI19: 2024-12-31 | AJ19: 2025-06-30 | AK19: 2025-12-31 | AL19: 2026-06-30
B20: RIN year end date | G20: =IF(G$18=$B$8,$D$8,IF(G18="CY",IF(MONTH(G19)=6,EOMONTH(G19,6),G19),IF(MONTH(G19)=12,EOMONTH(G19,6),G19))) -> 2010-12-31 | H20: 2011-12-31 | I20: 2011-12-31 | J20: 2012-12-31 | K20: 2012-12-31 | L20: 2013-12-31 | M20: 2013-12-31 | N20: 2014-12-31 | O20: 2014-12-31 | P20: 2015-12-31 | Q20: 2015-12-31 | R20: 2016-12-31 | S20: 2016-12-31 | T20: 2017-12-31 | U20: 2017-12-31 | V20: 2018-12-31 | W20: 2018-12-31 | X20: 2019-12-31 | Y20: 2019-12-31 | Z20: 2020-12-31 | AA20: 2020-12-31 | AB20: 2021-06-30 | AC20: 2022-06-30 | AD20: 2022-06-30 | AE20: 2023-06-30 | AF20: 2023-06-30 | AG20: 2024-06-30 | AH20: 2024-06-30 | AI20: 2025-06-30 | AJ20: 2025-06-30 | AK20: 2026-06-30 | AL20: 2026-06-30
B21: Annual CPI applicable | G21: =INDEX($J$13:$Z$13,MATCH(G20,$J$14:$Z$14,0)) -> 0 | H21: 0.02787663108 | I21: 0.02787663108 | J21: 0.03519907675 | K21: 0.03519907675 | L21: 0.02004008016 | M21: 0.02004008016 | N21: 0.02161100196 | O21: 0.02161100196 | P21: 0.02307692308 | Q21: 0.02307692308 | R21: 0.01510859301 | S21: 0.01510859301 | T21: 0.01023255814 | U21: 0.01023255814 | V21: 0.01933701657 | W21: 0.01933701657 | X21: 0.02077687444 | Y21: 0.02077687444 | Z21: 0.01592920354 | AA21: 0.01592920354 | AB21: 0.01219512195 | AC21: 0.008605851979 | AD21: 0.008605851979 | AE21: 0.03498293515 | AF21: 0.03498293515 | AG21: 0.07831821929 | AH21: 0.07831821929 | AI21: 0.04051987768 | AJ21: 0.04051987768 | AK21: 0.0242468773 | AL21: 0.0242468773
B24: From December 2010 | G24: 1 | H24: =G24*(1+H$21)^IF(H$18=$B$8,1, 0.5) -> 1.013842508 | I24: 1.027876631 | J24: 1.045810338 | K24: 1.06405694 | L24: 1.074665945 | M24: 1.085380726 | N24: 1.09704612 | O24: 1.108836891 | P24: 1.121558189 | Q24: 1.134425434 | R24: 1.142963093 | S24: 1.151565007 | T24: 1.157441739 | U24: 1.163348463 | V24: 1.174542451 | W24: 1.185844151 | X24: 1.198099887 | Y24: 1.210482286 | Z24: 1.220085205 | AA24: 1.229764305 | AB24: 1.24476143 | AC24: 1.250106073 | AD24: 1.255473663 | AE24: 1.277244971 | AF24: 1.299393817 | AG24: 1.349317856 | AH24: 1.401160027 | AI24: 1.429265562 | AJ24: 1.45793486 | AK24: 1.475504181 | AL24: 1.493285227
B26: Convert to June 2026 | G26: =$AL$24/G24 -> 1.493285227 | H26: 1.472896644 | I26: 1.452786436 | J26: 1.427873844 | K26: 1.403388458 | L26: 1.389534333 | M26: 1.375816975 | N26: 1.361187283 | O26: 1.346713155 | P26: 1.331438031 | Q26: 1.316336166 | R26: 1.306503452 | S26: 1.296744186 | T26: 1.290160167 | U26: 1.283609576 | V26: 1.271376122 | W26: 1.259259259 | X26: 1.246377905 | Y26: 1.233628319 | Z26: 1.223918806 | AA26: 1.214285714 | AB26: 1.199655766 | AC26: 1.194526817 | AD26: 1.189419795 | AE26: 1.169145514 | AF26: 1.149216818 | AG26: 1.10669641 | AH26: 1.065749235 | AI26: 1.044792002 | AJ26: 1.024246877 | AK26: 1.012050827 | AL26: 1
K28: 2011/12 | L28: 2012/13 | M28: 2013/14 | N28: 2014/15 | O28: 2015/16 | P28: 2016/17 | Q28: 2017/18 | R28: 2018/19 | S28: 2019/20 | T28: 2020/21 | U28: 2021/22 | V28: 2022/23 | W28: 2023/24 | X28: 2024/25 | Y28: 2025/26 | Z28: 2026/27 | AA28: 2027/28 | AB28: 2028/29 | AC28: 2029/30 | AD28: 2030/31
K30: =VALUE(RIGHT(K28,2)) -> 12 | L30: 13 | M30: 14 | N30: 15 | O30: 16 | P30: 17 | Q30: 18 | R30: 19 | S30: 20 | T30: 21 | U30: 22 | V30: 23 | W30: 24 | X30: 25 | Y30: 26 | Z30: 27
B31: Escalation for financial years | J31: 2010-12-31 | K31: =EOMONTH(J31,12) -> 2011-12-31 | L31: 2012-12-31 | M31: 2013-12-31 | N31: 2014-12-31 | O31: 2015-12-31 | P31: 2016-12-31 | Q31: 2017-12-31 | R31: 2018-12-31 | S31: 2019-12-31 | T31: 2020-12-31 | U31: 2021-12-31 | V31: 2022-12-31 | W31: 2023-12-31 | X31: 2024-12-31 | Y31: 2025-12-31 | Z31: 2026-06-30
B33: From: | D33: =Assumptions!G19 -> 2010-12-31 | J33: =INDEX(Assumptions!$G$24:$AL$24, MATCH(J31, Assumptions!$G$19:$AL$19,0)) -> 1 | K33: =INDEX(Assumptions!$G$24:$AL$24, MATCH(K31, Assumptions!$G$19:$AL$19,0)) -> 1.027876631 | L33: =INDEX(Assumptions!$G$24:$AL$24, MATCH(L31, Assumptions!$G$19:$AL$19,0)) -> 1.06405694 | M33: =INDEX(Assumptions!$G$24:$AL$24, MATCH(M31, Assumptions!$G$19:$AL$19,0)) -> 1.085380726 | N33: =INDEX(Assumptions!$G$24:$AL$24, MATCH(N31, Assumptions!$G$19:$AL$19,0)) -> 1.108836891 | O33: =INDEX(Assumptions!$G$24:$AL$24, MATCH(O31, Assumptions!$G$19:$AL$19,0)) -> 1.134425434 | P33: =INDEX(Assumptions!$G$24:$AL$24, MATCH(P31, Assumptions!$G$19:$AL$19,0)) -> 1.151565007 | Q33: =INDEX(Assumptions!$G$24:$AL$24, MATCH(Q31, Assumptions!$G$19:$AL$19,0)) -> 1.163348463 | R33: =INDEX(Assumptions!$G$24:$AL$24, MATCH(R31, Assumptions!$G$19:$AL$19,0)) -> 1.185844151 | S33: =INDEX(Assumptions!$G$24:$AL$24, MATCH(S31, Assumptions!$G$19:$AL$19,0)) -> 1.210482286 | T33: =INDEX(Assumptions!$G$24:$AL$24, MATCH(T31, Assumptions!$G$19:$AL$19,0)) -> 1.229764305 | U33: =INDEX(Assumptions!$G$24:$AL$24, MATCH(U31, Assumptions!$G$19:$AL$19,0)) -> 1.250106073 | V33: =INDEX(Assumptions!$G$24:$AL$24, MATCH(V31, Assumptions!$G$19:$AL$19,0)) -> 1.277244971 | W33: =INDEX(Assumptions!$G$24:$AL$24, MATCH(W31, Assumptions!$G$19:$AL$19,0)) -> 1.349317856 | X33: =INDEX(Assumptions!$G$24:$AL$24, MATCH(X31, Assumptions!$G$19:$AL$19,0)) -> 1.429265562 | Y33: =INDEX(Assumptions!$G$24:$AL$24, MATCH(Y31, Assumptions!$G$19:$AL$19,0)) -> 1.475504181 | Z33: =INDEX(Assumptions!$G$24:$AL$24, MATCH(Z31, Assumptions!$G$19:$AL$19,0)) -> 1.493285227
B35: December to June 2026 | J35: =$Z$33/J33 -> 1.493285227 | K35: =$Z$33/K33 -> 1.452786436 | L35: 1.403388458 | M35: 1.375816975 | N35: 1.346713155 | O35: 1.316336166 | P35: 1.296744186 | Q35: 1.283609576 | R35: 1.259259259 | S35: 1.233628319 | T35: 1.214285714 | U35: 1.194526817 | V35: 1.169145514 | W35: 1.10669641 | X35: 1.044792002 | Y35: 1.012050827 | Z35: 1
B39: Convert to output dollars from:
B41: Convert from | C41: 2023-12-31 | D41: =INDEX($G$26:$AL$26, MATCH(C41,$G$19:$AL$19,0)) -> 1.10669641

Sheet Lists
A1: Powercor
A2: =Cover!$C$5 -> Replacement expenditure forecast model
A5: 0.1 | C5: Defect analysis | E5: Average | G5: each | H5: 23 | J5: 1000 | L5: Volumes rounded if units are: | M5: each
C6: Historical average | E6: Linear | G6: km | H6: 24 | L6: Decimal places for rounding: | M6: 5
C7: Historial % | E7: 5 year cycle | H7: 25
C8: Estimate | H8: 26
C9: Expenditure
C10: Risk-based
C11: Pole calculation model & adjustment
C12: Adjustment (bushfire)
C13: Adjustment (flood)
C14: Other
